Workbook

Sheet Info

Sheet Trial (hidden)

Sheet Instructions (hidden)
A1: Excel Skills | Cashbook & Bank Reconciliation Template
A2: Instructions
A3: www.excel-skills.com
A5: This template enables users to record deposit and withdrawal transactions for multiple bank accounts and automatically produces a monthly cashbook report, bank reconciliation and a unique dashboard. The cashbook report can be compiled for any 12 month reporting period by simply entering the appropriate start date in a single input cell and the report can be viewed on an individual account or consolidated basis. The template also accommodates petty cash transactions and sales tax calculations.
A7: Note: Refer to our unique accounting templates if you require a more comprehensive monthly accounting solution which includes an income statement, cash flow statement and balance sheet. Our accounting templates also automatically calculate debtors, creditors, cash and sales tax balances.
A9: The cashbook template also facilitates performing a bank reconciliation for any bank account by simply entering or copying all cashbook transactions onto the Data sheet and entering the appropriate bank statement date for each cashbook transaction. The bank reconciliation on the Recon sheet is calculated automatically from the cashbook entries and can easily be rolled forward for the next monthly period or rolled back to display the bank reconciliation for any previous period.
A11: The following sheets are included in this template:
A12: Setup - this sheet enables users to enter the business name, add sales tax codes, edit sales tax percentages and to add additional bank account codes to the template. A list of the input error codes which can be encountered when entering data on the Data sheet is also included on this sheet.
A13: Data - all cashbook transactions should be entered on this sheet or copied from an accounting program or bank statement export file. You can add additional columns in order to match the columns on this sheet to the format of any accounting or bank statement export file but note that all the existing columns should be retained. After recording all the appropriate cashbook entries on this sheet, the bank statement date of each transaction should be entered in column J.
A14: Cashbook - the cashbook report on this sheet is automatically compiled based on the transactions entered on the Data sheet and the start date specified in cell D1. The report can be compiled for an individual bank account by selecting the appropriate bank code from the list box in cell D2 or a consolidated report for all bank accounts can be compiled by simply clearing the contents of the list box. You can also compile a report for only deposits or withdrawals by selecting the appropriate item from the list box in cell D3. The default accounts on this sheet can be amended and you can add as many accounts as required.
A15: Recon - this sheet includes a bank reconciliation report which is automatically populated based on the cashbook transactions recorded on the Data sheet. All the calculations on this sheet are automated and the only user input required is entering the appropriate bank code in cell B4, the reconciliation date in cell B5 and the actual bank statement balance in cell B25. The sheet also includes daily balance and movement calculations which make finding reconciliation differences easier.
A16: Dashboard - the unique cashbook dashboard on this sheet is automatically updated based on the bank code and dates selected in the filter section of the dashboard. You can select a single bank code or clear the contents of the list box to view calculations for all bank accounts. The dashboard also includes a unique interactive report where you can select the basis of balances or movements and view all transaction types or only cash inflows or outflows. The last section of the dashboard enables users to view monthly account movements for any account. Aside from the filter and report selections, no user input is required on this sheet and all workings are included below the dashboard.
A18: Record Cashbook Transactions
A20: All cashbook transactions should be entered or copied onto the Data sheet. All the columns with yellow column headings require user input while the columns with light blue column headings contain formulas which are automatically copied for each new transaction added to the table. The sheet includes the following columns:
A21: Transaction Date - enter the cashbook transaction date in this column. This is the date a deposit is received or a payment is made. Note that all dates should be entered in accordance with your regional date settings.
A22: Customer / Supplier - enter the name of the appropriate customer or supplier.
A23: Reference - enter a transaction reference which will enable you to trace the transaction to its supporting documentation. For example: an invoice number, bank statement reference, receipt number or a reference to a debit order can be used.
A24: Description - enter a brief description of the transaction which will enable you to easily determine the nature of the transaction.
A25: Inclusive Amount - all deposits (cash inflows) should be entered as positive values and all withdrawals (cash outflows) should be entered as negative values. All transaction amounts should be entered inclusive of sales tax.
A26: Tax 1 Code - select a tax code from the list box. All the sales tax codes which have been created on the Setup sheet will be available for selection and sales tax percentages are calculated based on the selected tax code. If your business is not registered for sales tax purposes, all transactions should be recorded by using the E tax code. The first sales tax code is for national or federal sales tax and should therefore be applicable in most countries.
A27: Tax 2 Code - select a tax code from the list box. All the sales tax codes which have been created on the Setup sheet will be available for selection and sales tax percentages are calculated based on the selected tax code. If your business is not registered for sales tax purposes, all transactions should be recorded by using the E tax code. The second sales tax code is for state sales tax - if you do not need two sales tax codes, this column can be deleted.
A28: Bank Code - select the appropriate bank account code from the list box in this column. The template includes 3 default bank account codes and a petty cash code but you can add additional bank accounts on the Setup sheet by inserting a new row anywhere between the first bank code and the end of list row, entering a new bank code in column A and entering a description of the new bank account in column B.
A29: Account Number - select the appropriate account number from the list box. The list box in this column will include the account numbers and descriptions of all the accounts added to the Cashbook sheet. New accounts therefore need to be added to the Cashbook sheet before being available for selection.
A30: Statement Date - review the actual bank account statement and enter the appropriate bank statement date for each of the cashbook transactions recorded on this sheet. Note that you should leave the statement date blank if a cashbook entry cannot be traced to the actual bank statement.
A31: Trn Type - the transaction type is automatically assigned based on whether a positive or negative amount has been entered in column E. If a positive amount has been entered, the transaction type is "D" for deposits and if the amount is negative, the transaction type is "W" for withdrawal.
A32: Cashbook Balance - this column includes a calculation of the cashbook balance for the appropriate bank account which is based on the transaction date entered in column A. For transactions on the same date, the sequence in which the transactions are included on the Data sheet determines which transactions are included first in the calculation.
A33: Sales Tax 1 Amount - the sales tax amounts in this column are calculated based on the tax 1 code selected in column F and the sales tax percentages specified on the Setup sheet. The tax 1 calculations are applicable for national or federal sales tax and should therefore apply to most countries. If no sales tax should be calculated, the E tax code can be selected in column F.
A34: Sales Tax 2 Amount - the sales tax amounts in this column are calculated based on the tax 2 code selected in column G and the sales tax percentages specified on the Setup sheet. The tax 2 calculations are applicable for state sales tax and may therefore not apply in all countries. If you do not need state sales tax calculations, you can delete this column.
A35: Exclusive Amount - the amounts in this column deduct the sales tax amounts calculated in the previous two columns from the inclusive amounts in column F.
A36: Cashbook Balance Date - the dates in this column are used to determine the cashbook balances in column L.
A37: Error Code - the formula in this column displays an error code if an input error has occurred. The affected column heading will be highlighted in orange until the error is rectified. Refer to the error codes section of the instructions for guidance on how to resolve input errors.
A39: Note: All the data on the Data sheet have been included in an Excel table. This feature is extremely useful when entering data in a table format because the formulas which are included in calculated columns (the columns with light blue column headings) are automatically copied when new rows are inserted into the table or when data is entered into the first blank row below the table. You can therefore enter a new transaction by simply entering a transaction date in the first blank cell in column A - the table will then automatically extend to include the new transaction.
A41: Note: The list box in the Account Number column contains both the account number and the account description but only the appropriate account number should be selected when allocating transactions. Excel actually does not allow the inclusion of two columns in a list box, but we have implemented a work around in order to provide the account description together with the account number. However, because of the implementation of this feature, you will not be able to enter the account number into this column and all account numbers should therefore be selected from the list box or copied from an existing, similar transaction. You may also notice that all the cells in the Account Number column contain an error message that refers to a data validation error - this is to be expected because of the work around that we implemented and can safely be ignored.
A43: Error Codes
A45: The following error codes may result from inaccurate input on the Data sheet and will be displayed in the Error Code column. The heading of the affected input column will also be highlighted in orange:
A47: ■ E1 - this error code means that the statement date entered in column J is before the transaction date in column A. Statement dates can never be before the transaction dates and the error can therefore be rectified by either amending the appropriate transaction date or the statement date.
A48: ■ E2 - this error code means that the account number selected in column I is invalid. All the accounts added to the Cashbook sheet will be included in the list boxes in column I and the error can therefore be rectified by simply selecting a valid account number from the list box. New accounts must be created on the Cashbook sheet before being available for selection.
A49: ■ E3 - this error code means that the bank account code selected in column H is invalid. All the bank account codes created on the Setup sheet will be included in the list boxes in column H and the error can therefore be rectified by simply selecting a valid bank code. New bank account codes must be created on the Setup sheet before being available for selection.
A51: Note: Input errors may result in inaccurate cashbook and bank reconciliation calculations and it is therefore imperative that all errors are resolved before reviewing the cashbook report on the Cashbook sheet or the bank reconciliation on the Recon sheet.
A53: Recording the Opening Cashbook Balances
A55: The following procedure needs to be completed in order to record the opening cashbook balances of existing bank accounts:
A56: ■ Enter a transaction on the Data sheet for the opening bank statement balance. The transaction date and the statement date of the opening balance should be the same. The transaction reference and description should indicate that the transaction relates to the opening bank statement balance and the transaction should be dated on the last day of the month before the first monthly period which needs to be included in the cashbook.
A57: ■ Enter or copy all the outstanding deposits and withdrawals as at the last day of the month before the first month which needs to be included in the cashbook onto the Data sheet. These outstanding entries should include all transactions that need to be included in the opening cashbook balance but have not yet been included on the actual bank statement. The cashbook transaction dates should be entered in column A and the bank statement dates should be left blank until the transactions are included on the actual bank statement.
A59: Example: If the first monthly period that you want to include in the cashbook is March, the actual bank statement balance as at 28 February should be entered as a transaction on the Data sheet. The transaction date and statement date should be 28 February. All outstanding deposits as at 28 February should be recorded by entering positive amounts in column F and the actual cashbook transaction dates in column A. All outstanding withdrawals as at 28 February should be entered by entering negative amounts in column F and entering the actual cashbook transaction dates in column A.
A61: Example: If an outstanding cheque was issued on the 15th of February and the cheque has not been processed through the actual bank statement by the 28th of February, the cheque should be recorded by entering a negative amount in column F and entering the date of the cheque in column A (15th of February). The statement date should be left blank until the cheque number is included on the actual bank statement and only then will this date be entered in the Statement Date column (the statement date will therefore be a date after 28 February).
A63: In order to check if the opening cashbook balance has been entered accurately, enter any subsequent date in cell B5 on the Recon sheet. The calculated bank statement balance should agree to the opening bank statement balance specified on the Data sheet, the opening cashbook balance should agree to the balance according to any previously used Cashbook (if applicable) and the outstanding deposit and withdrawal totals should agree to the sum of the transactions entered on the Data sheet (entries dated on or before the opening balance date which have not yet been included on the bank statement).
A65: Note: This procedure should be repeated for all the bank accounts included in the template. Petty cash accounts typically have no outstanding items and only the balance of the cash on hand at the end of the month prior to the first month which is included in the template therefore needs to be specified.
A67: Transfers between Bank Accounts
A69: When funds are transferred between two bank accounts, the deposit and withdrawal entries both need to be recorded. The deposit entry should be recorded by selecting the bank account into which the funds are transferred and the withdrawal entry should be recorded by selecting the bank account from which the funds are transferred.
A71: We recommend creating a cash transfer control account on the Cashbook sheet and selecting this account in column I on the Data sheet when recording transfers between bank accounts. By using a single account for bank transfers, you can therefore easily determine when only one of the entries has been recorded. We've created a default cash transfer control account (BS-TRF) on the Cashbook sheet but you can use another account if you are using an existing account structure.
A73: Note: You can check whether the balance of the cash transfer control account is nil by clearing the contents of the bank account code list box on the Cashbook sheet in cell D2 in order to display the cashbook totals for all bank accounts. If a total is not nil, the transactions for the appropriate period should be investigated in order to determine why the allocations to the cash transfer control account do not result in a nil balance.
A75: Note: If a bank account code is selected in cell D2, the total for the cash transfer control account will probably not be nil because only one side of the transfer would be taken into account. This total represents the total funds transferred from the selected bank account to any other bank account or the reimbursements of petty cash.
A77: Petty Cash Transactions
A79: Although petty cash does not actually represent an actual cashbook which has a bank statement, we have included a default bank code (PC) for petty cash in the template in order to facilitate also recording petty cash transactions. The statement dates entered in column J on the Data sheet should therefore be the same as the transaction dates entered in column A.
A81: Creating Additional Bank Accounts
A83: The template includes three default bank accounts and a petty cash account. The default bank codes and descriptions of these accounts are included on the Setup sheet. Additional bank accounts can be added to the template by simply inserting the required number of new rows anywhere between the first bank code and the end of list row, entering a new bank code in column A and entering a description of the bank account in column B.
A85: As soon as the new bank account codes have been created, the codes will be available for selection from the bank code list boxes on the other sheets. Note that the default bank codes and descriptions of the bank accounts on the Setup sheet can also be amended if required.
A87: Note: After adding additional bank accounts, you also need to copy the formulas at the bottom of the Cashbook sheet in order to include the closing balance calculations of all the bank accounts on the Cashbook sheet.
A89: Removing Second Sales Tax Calculations
A91: We have included two sales tax types in the template to accommodate calculating sales tax on a national / federal basis and a state basis. If you do not need both sales tax types, you can delete the second sales tax type. You should not however delete both as this may result in template calculation errors.
A93: Note: If sales tax is not applicable to your business, we recommend using the "E" sales tax code when recording all entries. No sales tax will then be calculated as the sales tax percentage for this code is zero.
A95: The second sales tax type can be removed by deleting the Tax 2 Code column (column G) and the Sales Tax 2 Amount (column N) on the Data sheet. You can then also delete the BS-TAX2 account row on the Cashbook sheet. Completing these two steps will remove the second sales tax type from the template.
A97: Note: No new columns should be added between the exclusive amount and sales tax amount columns on the Data sheet otherwise it may affect some of the sales tax calculations in this template. Also, if you delete the columns for the second sales tax type, the Sales Tax 1 Amount column may display validation warnings but these can safely be ignored as it has no effect on the template calculations. If you do not want to see these validation warnings, just keep both sales tax types and just don't select any tax codes in the second sales tax code column.
A99: Cashbook Report
A101: The cashbook report on the Cashbook sheet is automatically compiled based on the transactions recorded on the Data sheet, the start date specified in cell D1 and the bank account code selected in cell D2. The report includes 31 default accounts but you can add additional accounts and customize the default account numbers and descriptions as required.
A103: It is also not necessary to use the default account format which consists of a two letter code indicating income statement and balance sheet accounts and a 3 digit number indicating the account group and account number. You can specify any account number format by simply editing the account numbers in column A on the Cashbook sheet and entering the appropriate account descriptions in column B.
A105: Additional accounts can be added by simply inserting a new row at the appropriate row location, entering the new account number and description and copying all the formulas in the columns with a light blue column heading from one of the existing rows.
A107: You can also delete accounts if you wish to do so but care should be taken not to delete accounts to which entries have been allocated on the Data sheet because this may result in inaccurate cashbook calculations. If an account is deleted and entries have been allocated to the account, the appropriate rows on the Data sheet will contain an E2 error code in the Error Code column on the Data sheet. A new account allocation will then have to be selected in order to rectify the errors.
A109: The 12-month reporting period included in the cashbook report is determined based on the start date entered in cell D1. After specifying the initial opening balances, the cashbook report can be rolled forward for an unlimited number of future periods by entering a new start date in cell D1. All the cashbook calculations are automatically adjusted based on the date specified.
A111: The cashbook report can be compiled for a single bank account by simply selecting the appropriate bank account code from the list box in cell D2 or a consolidated cashbook report which includes all the bank accounts and the petty cash account can be compiled by simply clearing the contents of the list box in cell D2.
A113: You also have the option of including all cashbook transactions (the default selection) or only including deposit or withdrawal type transactions by simply selecting the appropriate transaction type from the list box in cell D3 on the Cashbook sheet.
A115: Note: The closing balances of all the default bank accounts at the end of each monthly period are included below the cashbook report. If you create additional bank accounts on the Setup sheet, the formulas which are used to calculate the closing balance will need to be copied to the appropriate number of additional rows in order to also include the closing balances of the additional bank accounts on the Cashbook sheet.
A117: Performing a Bank Reconciliation
A119: Bank Statement Dates
A121: The automated bank reconciliation on the Recon sheet is compiled based on the bank statement dates entered in column J on the Data sheet. Users therefore need to obtain a copy or extract of the actual bank statement and enter the statement dates of all the cashbook entries included on the Data sheet. If a transaction does not appear on the actual bank statement, the statement date should be left blank.
A123: We recommend that you sort all the entries for the appropriate bank account on the Data sheet in ascending order based on the transaction dates in column A in order to simplify the recording of the appropriate statement dates. Note that the dates can be entered or copied from the Transaction Date column (if the same dates apply) and should be recorded in accordance with your regional date settings.
A125: We also recommend that you make a tick mark next to the entries on the actual bank statement to ensure that the statement dates of all entries have been recorded on the Data sheet. After entering the statement dates of all the entries that appear on the bank statement, open the Recon sheet in order to review the bank reconciliation.
A127: Bank Reconciliation
A129: Select the appropriate bank account code from the list box in cell B4 and enter the appropriate date on which the reconciliation needs to be performed in cell B5 - all the calculations on the Recon sheet will be updated automatically based on the reconciliation date which is specified.
A131: Note: If you clear the contents of the bank account code list box in cell B4, all the calculations on the Recon sheet will be based on all the transactions included on the Data sheet and it may be difficult to reconcile any individual bank account to an actual bank statement. We therefore recommend performing bank account reconciliations on an individual account basis and only clearing the list box if you want to view a consolidated reconciliation for all the bank accounts and the petty cash account.
A133: The total of all withdrawal and deposit entries for the selected bank account will be included under the Current Month Transactions section of the report. These totals include all the entries between the 1st day of the month and the date specified as the reconciliation date in cell B5. All withdrawals have a transaction type of "W" in column K on the Data sheet and all deposits have a transaction type of "D" in column K on the Data sheet.
A135: Note: All the current months' entries are included in these totals regardless of whether the transactions appear on the bank statement (and therefore contain a statement date in column J on the Data sheet).
A137: Note: Transactions dated (in the Transaction Date column on the Data sheet) after the reconciliation date are not included in the calculations on the Recon sheet. The Cashbook Closing Balance will be the net total of all deposits and withdrawals recorded on the Data sheet and dated on or before the reconciliation date specified in cell B5.
A139: Similarly, the outstanding withdrawal and deposit totals include all the entries dated before the reconciliation date (in the Transaction Date column on the Data sheet) and with statement dates (in column J of the Data sheet) dated after the reconciliation date or blank (entries which are therefore not yet reflected on the actual bank statement).
A141: The Calculated Bank Statement Balance is arrived at by deducting the outstanding deposits total from the Cashbook Closing Balance and adding the outstanding withdrawals to this balance. The calculation therefore reflects the cashbook balance before taking the entries that do not appear on the bank statement into account. This amount should therefore agree to the actual bank statement balance as at the reconciliation date.
A143: The Actual Bank Statement Balance on the reconciliation date should be entered in cell B25 and cell B26 reflects the difference between the calculated and actual bank statement balances. Cell B27 will contain a green "ok" message if the two balances are equal and a red "error" message if the balances are not equal.
A145: If an error is displayed, it means that the entries on the actual bank statement and the cashbook entries on the Data sheet do not reconcile. There could be a number of explanations for an error being encountered:
A146: ■ An entry which is included on the Data sheet does not appear on the bank statement but a statement date has been entered in column J for the particular entry.
A147: ■ An entry which is included on the Data sheet appears on the bank statement but a statement date has not been entered in column J for the particular entry.
A148: ■ The statement date in column J has been entered incorrectly.
A149: ■ An entry which appears on the bank statement has not been recorded on the Data sheet.
A150: ■ The transaction amount differs between the Data sheet and the actual bank statement.
A152: As you can see, there are a number of reasons why an unexplained difference can be encountered after performing a bank reconciliation. It is therefore absolutely essential that you take care while performing a bank reconciliation to ensure that all cashbook entries are reconciled accurately - it is a lot harder to find errors after performing a bank reconciliation and the exercise of finding errors can be quite time consuming.
A154: Fortunately, we have designed this template in such a way that it should be reasonably easy to find an explanation for any unexplained differences that may occur! When you encounter an unexplained difference between the calculated and actual bank statement balances, we recommend that you complete the following steps in order to find an explanation for the error:
A155: ■ Review the Error Code column on the Data sheet and ensure that there are no error codes reflected in this column. If any error codes are reflected in this column, the errors should be rectified before continuing with the bank reconciliation.
A156: ■ Identify the first date on which there is a difference between the calculated and actual bank statement balances - refer to column L on the Recon sheet where we display the daily calculated bank statement balances and compare these amounts to the actual bank statement balances to find the first difference. If there are no differences, you may need to roll your recon back by entering the previous month end date in cell B5.
A157: ■ Sort the entries on the Data sheet in ascending order by the statement date in column J. Review the entries on the Data sheet for all days where an unexplained difference exists and ensure that the amounts on the Data sheet and the actual bank statement agree, that the dates have been entered correctly in the Statement Date column, that all entries on the actual bank statement have been included on the Data sheet and that a statement date has been entered on the Data sheet for all the entries on the actual bank statement.
A158: This procedure should enable you to correct all the errors that have been made while performing the bank reconciliation.
A160: Note: The Recon sheet also includes daily account balance and movement calculations as well as daily outstanding deposit and withdrawal calculations and calculated bank statement balances. All of these calculations are automated and based on the recon date entered in cell B5. These calculations, especially the outstanding item calculations, make it easier to find items which affect the bank reconciliation calculations.
A162: Dashboard
A164: The cashbook dashboard on the Dashboard sheet is calculated automatically from the transactions entered on the Data sheet. All you need to do is select the appropriate bank account code and from and to dates in the filter section of the dashboard. All the calculations are then automatically updated.
A166: The dashboard calculations and charts can be compiled for a single bank account code by simply selecting the appropriate bank code in the dashboard filter section or you can show the data for all bank codes by simply clearing the bank code selection (pressing delete on the keyboard).
A168: If you do not specify a From date in the filter section, all cashbook transactions from the first date captured on the Data sheet will be included in the dashboard calculations. If you do not specify a To date in the dashboard filter section, all cashbook movements on or before the current system date will be included in the dashboard calculations.
A170: Our unique cashbook dashboard also includes a comprehensive interactive cashbook movement & balance report section which consists of three charts - a 90-day daily chart, a 13-week weekly chart and a 12-month monthly chart displaying cashbook movements for the selected bank account code and selected date range.
A172: The interactive cashbook report contains selections for the basis and type. The basis selection contains options for displaying balances or movements. The type selection contains options for all, inflows (deposits) or outflows (withdrawals) which refers to the transaction types to display.
A174: Note: The default options for the interactive report selections is to display movement amounts for all transactions. This is therefore the settings which are applied when no selections are active.
A176: Note: The daily report can be amended to include less than 90 days by simply specifying a new value in cell C71 on the Dashboard sheet. If the chart does not update automatically, just change one of the selections and it should update the new days setting. We do not recommend making changes to the weekly or monthly charts.
A178: The last section of the dashboard contains an interactive account analysis chart. This monthly chart can be used to display the monthly movements for any account by simply selecting the appropriate account number. All the accounts which are included on the Cashbook sheet are available for selection and if you clear the selected account, the total monthly movement for all accounts is displayed (exclusive of sales tax).
A180: Only the dashboard itself is included in the print range on the Dashboard sheet. The calculations below the dashboard which are used to compile the automated calculations will therefore not be printed.
A182: Help & Customization
A184: If you experience any difficulty while using this template and you are not able to find the appropriate guidance in these instructions, please e-mail us at support@excel-skills.com for assistance. This template has been designed with flexibility in mind to ensure that it can be used in most business environments. If however you need an Excel based template that is customized specifically for your business requirements, please e-mail our Support function and provide a brief explanation of your requirements.
A186: © Copyright
A188: This template remains the intellectual property of www.excel-skills.com and is protected by international copyright laws. Any publication or distribution of this template outside the scope of the permitted use of the template is expressly prohibited. In terms of the permitted use of this template, only the distribution of the template to persons within the same organisation as the registered user or persons outside the organisation who can reasonably be expected to require access to the template as a direct result of the use of the template by the registered user is allowed. Subsequent distribution of the template by parties outside of the organisation is however expressly prohibited and represents an infringement of international copyright laws.

Sheet Setup (hidden)
A1: Cashbook Template
A2: Set-up
A4: Business Name | C4: Example Company (Pty) Ltd
A6: Sales Tax
A7: Code | B7: Description | D7: Percentage
A8: A | B8: Standard Sales Tax 1 | D8: 0.15
A9: B | B9: Standard Sales Tax 2 | D9: 0.2
A10: C | B10: Standard Sales Tax 3 | D10: 0
A11: E | B11: Exempt | D11: 0
A12: Z | B12: Zero Rated | D12: 0
A13: End of list
A15: Bank Codes
A16: Code | B16: Description
A17: B1 | B17: B1 Bank Account
A18: B2 | B18: B2 Bank Account
A19: B3 | B19: B3 Bank Account
A20: PC | B20: Petty Cash
A21: End of list
A23: Input Error Codes (Data sheet)
A24: Code | B24: Reason
A25: E1 | B25: Statement date in column J is before the transaction date in column B
A26: E2 | B26: Account number is invalid
A27: E3 | B27: Bank code is invalid

Sheet Data (hidden)
A1: =Setup!$C$4 -> Example Company (Pty) Ltd
A2: Cashbook Transactions
A3: © www.excel-skills.com
A4: Transaction Date | B4: Customer / Supplier | C4: Reference | D4: Description | E4: Inclusive Amount | F4: Tax 1 Code | G4: Tax 2 Code | H4: Bank Code | I4: Account Number | J4: Statement Date | K4: Trn Type | L4: Cashbook Balance | M4: Sales Tax 1 Amount | N4: Sales Tax 2 Amount | O4: Exclusive Amount | P4: Cashbook Balance Date | Q4: Error Code
A5: 2020-02-28 | B5: Opening | C5: O/B | D5: Opening Bank Statement Balance | E5: 3400 | F5: E | G5: E | H5: B1 | I5: BS-TRF | J5: 2020-02-28 | K5: =IF(E5>=0,"D","W") -> D | L5: =SUMIFS(CBIncl,CBBalDate,"<="&($A5+(ROW($A5)/86400)),CBBank,$H5) -> 3400 | M5: =$E5/(1+IF(ISERROR($F5),0,IF(ISNA(MATCH($F5,TaxCode,0)),0,OFFSET(Setup!$D$7,MATCH($F5,TaxCode,0),0,1,1)))+IF(ISERROR($G5),0,IF(ISNA(MATCH($G5,TaxCode,0)),0,OFFSET(Setup!$D$7,MATCH($G5,TaxCode,0),0,1,1))))*IF(ISERROR($F5),0,IF(ISNA(MATCH($F5,TaxCode,0)),0,OFFSET(Setup!$D$7,MATCH($F5,TaxCode,0),0,1,1))) -> 0 | N5: =$E5/(1+IF(ISERROR($F5),0,IF(ISNA(MATCH($F5,TaxCode,0)),0,OFFSET(Setup!$D$7,MATCH($F5,TaxCode,0),0,1,1)))+IF(ISERROR($G5),0,IF(ISNA(MATCH($G5,TaxCode,0)),0,OFFSET(Setup!$D$7,MATCH($G5,TaxCode,0),0,1,1))))*IF(ISERROR($G5),0,IF(ISNA(MATCH($G5,TaxCode,0)),0,OFFSET(Setup!$D$7,MATCH($G5,TaxCode,0),0,1,1))) -> 0 | O5: =IF(TaxCount=2,E5-SUM(M5:N5),E5-SUM(M5:M5)) -> 3400 | P5: =IF(ISBLANK($A5)=TRUE,TODAY()+(ROW($A5)/86400),$A5+(ROW($A5)/86400)) -> 2020-02-28T00:00:05 | Q5: =IF(AND(ISBLANK(J5)=FALSE,J5<A5),"E1",IF(AND(ISBLANK(I5)=FALSE,ISNA(VLOOKUP(I5,AccountAll,1,0))),"E2",IF(AND(ISBLANK(H5)=FALSE,ISNA(VLOOKUP(H5,BankCode,1,0))),"E3","-"))) -> -
A6: 2020-02-28 | B6: Opening | C6: O/B | D6: Opening Bank Statement Balance | E6: 1600 | F6: E | G6: E | H6: B2 | I6: BS-TRF | J6: 2020-02-28 | K6: D | L6: =SUMIFS(CBIncl,CBBalDate,"<="&($A6+(ROW($A6)/86400)),CBBank,$H6) -> 1600 | M6: =$E6/(1+IF(ISERROR($F6),0,IF(ISNA(MATCH($F6,TaxCode,0)),0,OFFSET(Setup!$D$7,MATCH($F6,TaxCode,0),0,1,1)))+IF(ISERROR($G6),0,IF(ISNA(MATCH($G6,TaxCode,0)),0,OFFSET(Setup!$D$7,MATCH($G6,TaxCode,0),0,1,1))))*IF(ISERROR($F6),0,IF(ISNA(MATCH($F6,TaxCode,0)),0,OFFSET(Setup!$D$7,MATCH($F6,TaxCode,0),0,1,1))) -> 0 | N6: =$E6/(1+IF(ISERROR($F6),0,IF(ISNA(MATCH($F6,TaxCode,0)),0,OFFSET(Setup!$D$7,MATCH($F6,TaxCode,0),0,1,1)))+IF(ISERROR($G6),0,IF(ISNA(MATCH($G6,TaxCode,0)),0,OFFSET(Setup!$D$7,MATCH($G6,TaxCode,0),0,1,1))))*IF(ISERROR($G6),0,IF(ISNA(MATCH($G6,TaxCode,0)),0,OFFSET(Setup!$D$7,MATCH($G6,TaxCode,0),0,1,1))) -> 0 | O6: =IF(TaxCount=2,E6-SUM(M6:N6),E6-SUM(M6:M6)) -> 1600 | P6: 2020-02-28T00:00:06 | Q6: -
A7: 2020-02-28 | B7: Opening | C7: O/B | D7: Opening Bank Statement Balance | E7: 0 | F7: E | G7: E | H7: B3 | I7: BS-TRF | J7: 2020-02-28 | K7: D | L7: =SUMIFS(CBIncl,CBBalDate,"<="&($A7+(ROW($A7)/86400)),CBBank,$H7) -> 0 | M7: =$E7/(1+IF(ISERROR($F7),0,IF(ISNA(MATCH($F7,TaxCode,0)),0,OFFSET(Setup!$D$7,MATCH($F7,TaxCode,0),0,1,1)))+IF(ISERROR($G7),0,IF(ISNA(MATCH($G7,TaxCode,0)),0,OFFSET(Setup!$D$7,MATCH($G7,TaxCode,0),0,1,1))))*IF(ISERROR($F7),0,IF(ISNA(MATCH($F7,TaxCode,0)),0,OFFSET(Setup!$D$7,MATCH($F7,TaxCode,0),0,1,1))) -> 0 | N7: =$E7/(1+IF(ISERROR($F7),0,IF(ISNA(MATCH($F7,TaxCode,0)),0,OFFSET(Setup!$D$7,MATCH($F7,TaxCode,0),0,1,1)))+IF(ISERROR($G7),0,IF(ISNA(MATCH($G7,TaxCode,0)),0,OFFSET(Setup!$D$7,MATCH($G7,TaxCode,0),0,1,1))))*IF(ISERROR($G7),0,IF(ISNA(MATCH($G7,TaxCode,0)),0,OFFSET(Setup!$D$7,MATCH($G7,TaxCode,0),0,1,1))) -> 0 | O7: =IF(TaxCount=2,E7-SUM(M7:N7),E7-SUM(M7:M7)) -> 0 | P7: 2020-02-28T00:00:07 | Q7: -
A8: 2020-02-28 | B8: Opening | C8: O/B | D8: Opening Petty Cash Balance | E8: 1000 | F8: E | G8: E | H8: PC | I8: BS-TRF | J8: 2020-02-28 | K8: D | L8: =SUMIFS(CBIncl,CBBalDate,"<="&($A8+(ROW($A8)/86400)),CBBank,$H8) -> 1000 | M8: =$E8/(1+IF(ISERROR($F8),0,IF(ISNA(MATCH($F8,TaxCode,0)),0,OFFSET(Setup!$D$7,MATCH($F8,TaxCode,0),0,1,1)))+IF(ISERROR($G8),0,IF(ISNA(MATCH($G8,TaxCode,0)),0,OFFSET(Setup!$D$7,MATCH($G8,TaxCode,0),0,1,1))))*IF(ISERROR($F8),0,IF(ISNA(MATCH($F8,TaxCode,0)),0,OFFSET(Setup!$D$7,MATCH($F8,TaxCode,0),0,1,1))) -> 0 | N8: =$E8/(1+IF(ISERROR($F8),0,IF(ISNA(MATCH($F8,TaxCode,0)),0,OFFSET(Setup!$D$7,MATCH($F8,TaxCode,0),0,1,1)))+IF(ISERROR($G8),0,IF(ISNA(MATCH($G8,TaxCode,0)),0,OFFSET(Setup!$D$7,MATCH($G8,TaxCode,0),0,1,1))))*IF(ISERROR($G8),0,IF(ISNA(MATCH($G8,TaxCode,0)),0,OFFSET(Setup!$D$7,MATCH($G8,TaxCode,0),0,1,1))) -> 0 | O8: =IF(TaxCount=2,E8-SUM(M8:N8),E8-SUM(M8:M8)) -> 1000 | P8: 2020-02-28T00:00:08 | Q8: -
A9: 2020-03-02 | B9: XY Solutions | C9: Invoice EXP09 | D9: Internet Service Provider | E9: -165.3 | F9: A | G9: E | H9: B1 | I9: IS-380 | J9: 2020-03-02 | K9: W | L9: =SUMIFS(CBIncl,CBBalDate,"<="&($A9+(ROW($A9)/86400)),CBBank,$H9) -> 3234.7 | M9: =$E9/(1+IF(ISERROR($F9),0,IF(ISNA(MATCH($F9,TaxCode,0)),0,OFFSET(Setup!$D$7,MATCH($F9,TaxCode,0),0,1,1)))+IF(ISERROR($G9),0,IF(ISNA(MATCH($G9,TaxCode,0)),0,OFFSET(Setup!$D$7,MATCH($G9,TaxCode,0),0,1,1))))*IF(ISERROR($F9),0,IF(ISNA(MATCH($F9,TaxCode,0)),0,OFFSET(Setup!$D$7,MATCH($F9,TaxCode,0),0,1,1))) -> -21.56086957 | N9: =$E9/(1+IF(ISERROR($F9),0,IF(ISNA(MATCH($F9,TaxCode,0)),0,OFFSET(Setup!$D$7,MATCH($F9,TaxCode,0),0,1,1)))+IF(ISERROR($G9),0,IF(ISNA(MATCH($G9,TaxCode,0)),0,OFFSET(Setup!$D$7,MATCH($G9,TaxCode,0),0,1,1))))*IF(ISERROR($G9),0,IF(ISNA(MATCH($G9,TaxCode,0)),0,OFFSET(Setup!$D$7,MATCH($G9,TaxCode,0),0,1,1))) -> 0 | O9: =IF(TaxCount=2,E9-SUM(M9:N9),E9-SUM(M9:M9)) -> -143.7391304 | P9: 2020-03-02T00:00:09 | Q9: -
A10: 2020-03-05 | B10: Hollard | C10: Debit Order | D10: Insurance | E10: -364.8 | F10: A | G10: E | H10: B1 | I10: IS-340 | J10: 2020-03-05 | K10: W | L10: =SUMIFS(CBIncl,CBBalDate,"<="&($A10+(ROW($A10)/86400)),CBBank,$H10) -> 2869.9 | M10: =$E10/(1+IF(ISERROR($F10),0,IF(ISNA(MATCH($F10,TaxCode,0)),0,OFFSET(Setup!$D$7,MATCH($F10,TaxCode,0),0,1,1)))+IF(ISERROR($G10),0,IF(ISNA(MATCH($G10,TaxCode,0)),0,OFFSET(Setup!$D$7,MATCH($G10,TaxCode,0),0,1,1))))*IF(ISERROR($F10),0,IF(ISNA(MATCH($F10,TaxCode,0)),0,OFFSET(Setup!$D$7,MATCH($F10,TaxCode,0),0,1,1))) -> -47.5826087 | N10: =$E10/(1+IF(ISERROR($F10),0,IF(ISNA(MATCH($F10,TaxCode,0)),0,OFFSET(Setup!$D$7,MATCH($F10,TaxCode,0),0,1,1)))+IF(ISERROR($G10),0,IF(ISNA(MATCH($G10,TaxCode,0)),0,OFFSET(Setup!$D$7,MATCH($G10,TaxCode,0),0,1,1))))*IF(ISERROR($G10),0,IF(ISNA(MATCH($G10,TaxCode,0)),0,OFFSET(Setup!$D$7,MATCH($G10,TaxCode,0),0,1,1))) -> 0 | O10: =IF(TaxCount=2,E10-SUM(M10:N10),E10-SUM(M10:M10)) -> -317.2173913 | P10: 2020-03-05T00:00:10 | Q10: -
A11: 2020-03-10 | B11: WS Wholesale | C11: INV0052 | D11: Consulting Services | E11: 17100 | F11: A | G11: E | H11: B1 | I11: IS-100 | J11: 2020-03-10 | K11: D | L11: =SUMIFS(CBIncl,CBBalDate,"<="&($A11+(ROW($A11)/86400)),CBBank,$H11) -> 19969.9 | M11: =$E11/(1+IF(ISERROR($F11),0,IF(ISNA(MATCH($F11,TaxCode,0)),0,OFFSET(Setup!$D$7,MATCH($F11,TaxCode,0),0,1,1)))+IF(ISERROR($G11),0,IF(ISNA(MATCH($G11,TaxCode,0)),0,OFFSET(Setup!$D$7,MATCH($G11,TaxCode,0),0,1,1))))*IF(ISERROR($F11),0,IF(ISNA(MATCH($F11,TaxCode,0)),0,OFFSET(Setup!$D$7,MATCH($F11,TaxCode,0),0,1,1))) -> 2230.434783 | N11: =$E11/(1+IF(ISERROR($F11),0,IF(ISNA(MATCH($F11,TaxCode,0)),0,OFFSET(Setup!$D$7,MATCH($F11,TaxCode,0),0,1,1)))+IF(ISERROR($G11),0,IF(ISNA(MATCH($G11,TaxCode,0)),0,OFFSET(Setup!$D$7,MATCH($G11,TaxCode,0),0,1,1))))*IF(ISERROR($G11),0,IF(ISNA(MATCH($G11,TaxCode,0)),0,OFFSET(Setup!$D$7,MATCH($G11,TaxCode,0),0,1,1))) -> 0 | O11: =IF(TaxCount=2,E11-SUM(M11:N11),E11-SUM(M11:M11)) -> 14869.56522 | P11: 2020-03-10T00:00:11 | Q11: -
A12: 2020-03-15 | B12: ABSA | C12: Bank Statement | D12: Service Fees | E12: -57 | F12: A | G12: E | H12: B1 | I12: IS-315 | J12: 2020-03-15 | K12: W | L12: =SUMIFS(CBIncl,CBBalDate,"<="&($A12+(ROW($A12)/86400)),CBBank,$H12) -> 19912.9 | M12: =$E12/(1+IF(ISERROR($F12),0,IF(ISNA(MATCH($F12,TaxCode,0)),0,OFFSET(Setup!$D$7,MATCH($F12,TaxCode,0),0,1,1)))+IF(ISERROR($G12),0,IF(ISNA(MATCH($G12,TaxCode,0)),0,OFFSET(Setup!$D$7,MATCH($G12,TaxCode,0),0,1,1))))*IF(ISERROR($F12),0,IF(ISNA(MATCH($F12,TaxCode,0)),0,OFFSET(Setup!$D$7,MATCH($F12,TaxCode,0),0,1,1))) -> -7.434782609 | N12: =$E12/(1+IF(ISERROR($F12),0,IF(ISNA(MATCH($F12,TaxCode,0)),0,OFFSET(Setup!$D$7,MATCH($F12,TaxCode,0),0,1,1)))+IF(ISERROR($G12),0,IF(ISNA(MATCH($G12,TaxCode,0)),0,OFFSET(Setup!$D$7,MATCH($G12,TaxCode,0),0,1,1))))*IF(ISERROR($G12),0,IF(ISNA(MATCH($G12,TaxCode,0)),0,OFFSET(Setup!$D$7,MATCH($G12,TaxCode,0),0,1,1))) -> 0 | O12: =IF(TaxCount=2,E12-SUM(M12:N12),E12-SUM(M12:M12)) -> -49.56521739 | P12: 2020-03-15T00:00:12 | Q12: -
A13: 2020-03-20 | B13: Transfer | C13: Bank Statement | D13: Bank Transfer | E13: 8000 | F13: E | G13: E | H13: B2 | I13: BS-TRF | J13: 2020-03-20 | K13: D | L13: =SUMIFS(CBIncl,CBBalDate,"<="&($A13+(ROW($A13)/86400)),CBBank,$H13) -> 9600 | M13: =$E13/(1+IF(ISERROR($F13),0,IF(ISNA(MATCH($F13,TaxCode,0)),0,OFFSET(Setup!$D$7,MATCH($F13,TaxCode,0),0,1,1)))+IF(ISERROR($G13),0,IF(ISNA(MATCH($G13,TaxCode,0)),0,OFFSET(Setup!$D$7,MATCH($G13,TaxCode,0),0,1,1))))*IF(ISERROR($F13),0,IF(ISNA(MATCH($F13,TaxCode,0)),0,OFFSET(Setup!$D$7,MATCH($F13,TaxCode,0),0,1,1))) -> 0 | N13: =$E13/(1+IF(ISERROR($F13),0,IF(ISNA(MATCH($F13,TaxCode,0)),0,OFFSET(Setup!$D$7,MATCH($F13,TaxCode,0),0,1,1)))+IF(ISERROR($G13),0,IF(ISNA(MATCH($G13,TaxCode,0)),0,OFFSET(Setup!$D$7,MATCH($G13,TaxCode,0),0,1,1))))*IF(ISERROR($G13),0,IF(ISNA(MATCH($G13,TaxCode,0)),0,OFFSET(Setup!$D$7,MATCH($G13,TaxCode,0),0,1,1))) -> 0 | O13: =IF(TaxCount=2,E13-SUM(M13:N13),E13-SUM(M13:M13)) -> 8000 | P13: 2020-03-20T00:00:13 | Q13: -
A14: 2020-03-20 | B14: Transfer | C14: Bank Statement | D14: Bank Transfer | E14: -8000 | F14: E | G14: E | H14: B1 | I14: BS-TRF | J14: 2020-03-20 | K14: W | L14: =SUMIFS(CBIncl,CBBalDate,"<="&($A14+(ROW($A14)/86400)),CBBank,$H14) -> 11912.9 | M14: =$E14/(1+IF(ISERROR($F14),0,IF(ISNA(MATCH($F14,TaxCode,0)),0,OFFSET(Setup!$D$7,MATCH($F14,TaxCode,0),0,1,1)))+IF(ISERROR($G14),0,IF(ISNA(MATCH($G14,TaxCode,0)),0,OFFSET(Setup!$D$7,MATCH($G14,TaxCode,0),0,1,1))))*IF(ISERROR($F14),0,IF(ISNA(MATCH($F14,TaxCode,0)),0,OFFSET(Setup!$D$7,MATCH($F14,TaxCode,0),0,1,1))) -> 0 | N14: =$E14/(1+IF(ISERROR($F14),0,IF(ISNA(MATCH($F14,TaxCode,0)),0,OFFSET(Setup!$D$7,MATCH($F14,TaxCode,0),0,1,1)))+IF(ISERROR($G14),0,IF(ISNA(MATCH($G14,TaxCode,0)),0,OFFSET(Setup!$D$7,MATCH($G14,TaxCode,0),0,1,1))))*IF(ISERROR($G14),0,IF(ISNA(MATCH($G14,TaxCode,0)),0,OFFSET(Setup!$D$7,MATCH($G14,TaxCode,0),0,1,1))) -> 0 | O14: =IF(TaxCount=2,E14-SUM(M14:N14),E14-SUM(M14:M14)) -> -8000 | P14: 2020-03-20T00:00:14 | Q14: -
A15: 2020-03-25 | B15: Cash | C15: Bank Statement | D15: Petty Cash Reimbursement | E15: -210 | F15: E | G15: E | H15: B1 | I15: BS-TRF | J15: 2020-03-25 | K15: W | L15: =SUMIFS(CBIncl,CBBalDate,"<="&($A15+(ROW($A15)/86400)),CBBank,$H15) -> 11702.9 | M15: =$E15/(1+IF(ISERROR($F15),0,IF(ISNA(MATCH($F15,TaxCode,0)),0,OFFSET(Setup!$D$7,MATCH($F15,TaxCode,0),0,1,1)))+IF(ISERROR($G15),0,IF(ISNA(MATCH($G15,TaxCode,0)),0,OFFSET(Setup!$D$7,MATCH($G15,TaxCode,0),0,1,1))))*IF(ISERROR($F15),0,IF(ISNA(MATCH($F15,TaxCode,0)),0,OFFSET(Setup!$D$7,MATCH($F15,TaxCode,0),0,1,1))) -> 0 | N15: =$E15/(1+IF(ISERROR($F15),0,IF(ISNA(MATCH($F15,TaxCode,0)),0,OFFSET(Setup!$D$7,MATCH($F15,TaxCode,0),0,1,1)))+IF(ISERROR($G15),0,IF(ISNA(MATCH($G15,TaxCode,0)),0,OFFSET(Setup!$D$7,MATCH($G15,TaxCode,0),0,1,1))))*IF(ISERROR($G15),0,IF(ISNA(MATCH($G15,TaxCode,0)),0,OFFSET(Setup!$D$7,MATCH($G15,TaxCode,0),0,1,1))) -> 0 | O15: =IF(TaxCount=2,E15-SUM(M15:N15),E15-SUM(M15:M15)) -> -210 | P15: 2020-03-25T00:00:15 | Q15: -
A16: 2020-03-25 | B16: Cash | C16: Bank Statement | D16: Petty Cash Reimbursement | E16: 210 | F16: E | G16: E | H16: PC | I16: BS-TRF | J16: 2020-03-25 | K16: D | L16: =SUMIFS(CBIncl,CBBalDate,"<="&($A16+(ROW($A16)/86400)),CBBank,$H16) -> 1210 | M16: =$E16/(1+IF(ISERROR($F16),0,IF(ISNA(MATCH($F16,TaxCode,0)),0,OFFSET(Setup!$D$7,MATCH($F16,TaxCode,0),0,1,1)))+IF(ISERROR($G16),0,IF(ISNA(MATCH($G16,TaxCode,0)),0,OFFSET(Setup!$D$7,MATCH($G16,TaxCode,0),0,1,1))))*IF(ISERROR($F16),0,IF(ISNA(MATCH($F16,TaxCode,0)),0,OFFSET(Setup!$D$7,MATCH($F16,TaxCode,0),0,1,1))) -> 0 | N16: =$E16/(1+IF(ISERROR($F16),0,IF(ISNA(MATCH($F16,TaxCode,0)),0,OFFSET(Setup!$D$7,MATCH($F16,TaxCode,0),0,1,1)))+IF(ISERROR($G16),0,IF(ISNA(MATCH($G16,TaxCode,0)),0,OFFSET(Setup!$D$7,MATCH($G16,TaxCode,0),0,1,1))))*IF(ISERROR($G16),0,IF(ISNA(MATCH($G16,TaxCode,0)),0,OFFSET(Setup!$D$7,MATCH($G16,TaxCode,0),0,1,1))) -> 0 | O16: =IF(TaxCount=2,E16-SUM(M16:N16),E16-SUM(M16:M16)) -> 210 | P16: 2020-03-25T00:00:16 | Q16: -
A17: 2020-03-26 | B17: Payroll | C17: Payroll | D17: Salaries | E17: -8000 | F17: E | G17: E | H17: B2 | I17: IS-365 | J17: 2020-03-26 | K17: W | L17: =SUMIFS(CBIncl,CBBalDate,"<="&($A17+(ROW($A17)/86400)),CBBank,$H17) -> 1600 | M17: =$E17/(1+IF(ISERROR($F17),0,IF(ISNA(MATCH($F17,TaxCode,0)),0,OFFSET(Setup!$D$7,MATCH($F17,TaxCode,0),0,1,1)))+IF(ISERROR($G17),0,IF(ISNA(MATCH($G17,TaxCode,0)),0,OFFSET(Setup!$D$7,MATCH($G17,TaxCode,0),0,1,1))))*IF(ISERROR($F17),0,IF(ISNA(MATCH($F17,TaxCode,0)),0,OFFSET(Setup!$D$7,MATCH($F17,TaxCode,0),0,1,1))) -> 0 | N17: =$E17/(1+IF(ISERROR($F17),0,IF(ISNA(MATCH($F17,TaxCode,0)),0,OFFSET(Setup!$D$7,MATCH($F17,TaxCode,0),0,1,1)))+IF(ISERROR($G17),0,IF(ISNA(MATCH($G17,TaxCode,0)),0,OFFSET(Setup!$D$7,MATCH($G17,TaxCode,0),0,1,1))))*IF(ISERROR($G17),0,IF(ISNA(MATCH($G17,TaxCode,0)),0,OFFSET(Setup!$D$7,MATCH($G17,TaxCode,0),0,1,1))) -> 0 | O17: =IF(TaxCount=2,E17-SUM(M17:N17),E17-SUM(M17:M17)) -> -8000 | P17: 2020-03-26T00:00:17 | Q17: -
A18: 2020-03-26 | B18: PR Properties | C18: Debit Order | D18: Rent | E18: -5700 | F18: A | G18: E | H18: B1 | I18: IS-350 | J18: 2020-03-26 | K18: W | L18: =SUMIFS(CBIncl,CBBalDate,"<="&($A18+(ROW($A18)/86400)),CBBank,$H18) -> 6002.9 | M18: =$E18/(1+IF(ISERROR($F18),0,IF(ISNA(MATCH($F18,TaxCode,0)),0,OFFSET(Setup!$D$7,MATCH($F18,TaxCode,0),0,1,1)))+IF(ISERROR($G18),0,IF(ISNA(MATCH($G18,TaxCode,0)),0,OFFSET(Setup!$D$7,MATCH($G18,TaxCode,0),0,1,1))))*IF(ISERROR($F18),0,IF(ISNA(MATCH($F18,TaxCode,0)),0,OFFSET(Setup!$D$7,MATCH($F18,TaxCode,0),0,1,1))) -> -743.4782609 | N18: =$E18/(1+IF(ISERROR($F18),0,IF(ISNA(MATCH($F18,TaxCode,0)),0,OFFSET(Setup!$D$7,MATCH($F18,TaxCode,0),0,1,1)))+IF(ISERROR($G18),0,IF(ISNA(MATCH($G18,TaxCode,0)),0,OFFSET(Setup!$D$7,MATCH($G18,TaxCode,0),0,1,1))))*IF(ISERROR($G18),0,IF(ISNA(MATCH($G18,TaxCode,0)),0,OFFSET(Setup!$D$7,MATCH($G18,TaxCode,0),0,1,1))) -> 0 | O18: =IF(TaxCount=2,E18-SUM(M18:N18),E18-SUM(M18:M18)) -> -4956.521739 | P18: 2020-03-26T00:00:18 | Q18: -
A19: 2020-03-26 | B19: SQ Financial Services | C19: Debit Order | D19: Interest paid | E19: -100 | F19: E | G19: E | H19: B1 | I19: IS-500 | J19: 2020-03-26 | K19: W | L19: =SUMIFS(CBIncl,CBBalDate,"<="&($A19+(ROW($A19)/86400)),CBBank,$H19) -> 5902.9 | M19: =$E19/(1+IF(ISERROR($F19),0,IF(ISNA(MATCH($F19,TaxCode,0)),0,OFFSET(Setup!$D$7,MATCH($F19,TaxCode,0),0,1,1)))+IF(ISERROR($G19),0,IF(ISNA(MATCH($G19,TaxCode,0)),0,OFFSET(Setup!$D$7,MATCH($G19,TaxCode,0),0,1,1))))*IF(ISERROR($F19),0,IF(ISNA(MATCH($F19,TaxCode,0)),0,OFFSET(Setup!$D$7,MATCH($F19,TaxCode,0),0,1,1))) -> 0 | N19: =$E19/(1+IF(ISERROR($F19),0,IF(ISNA(MATCH($F19,TaxCode,0)),0,OFFSET(Setup!$D$7,MATCH($F19,TaxCode,0),0,1,1)))+IF(ISERROR($G19),0,IF(ISNA(MATCH($G19,TaxCode,0)),0,OFFSET(Setup!$D$7,MATCH($G19,TaxCode,0),0,1,1))))*IF(ISERROR($G19),0,IF(ISNA(MATCH($G19,TaxCode,0)),0,OFFSET(Setup!$D$7,MATCH($G19,TaxCode,0),0,1,1))) -> 0 | O19: =IF(TaxCount=2,E19-SUM(M19:N19),E19-SUM(M19:M19)) -> -100 | P19: 2020-03-26T00:00:19 | Q19: -
A20: 2020-03-31 | B20: XY Solutions | C20: Invoice EXP10 | D20: Internet Service Provider | E20: -165.3 | F20: A | G20: E | H20: B1 | I20: IS-380 | J20: 2020-03-31 | K20: W | L20: =SUMIFS(CBIncl,CBBalDate,"<="&($A20+(ROW($A20)/86400)),CBBank,$H20) -> 5737.6 | M20: =$E20/(1+IF(ISERROR($F20),0,IF(ISNA(MATCH($F20,TaxCode,0)),0,OFFSET(Setup!$D$7,MATCH($F20,TaxCode,0),0,1,1)))+IF(ISERROR($G20),0,IF(ISNA(MATCH($G20,TaxCode,0)),0,OFFSET(Setup!$D$7,MATCH($G20,TaxCode,0),0,1,1))))*IF(ISERROR($F20),0,IF(ISNA(MATCH($F20,TaxCode,0)),0,OFFSET(Setup!$D$7,MATCH($F20,TaxCode,0),0,1,1))) -> -21.56086957 | N20: =$E20/(1+IF(ISERROR($F20),0,IF(ISNA(MATCH($F20,TaxCode,0)),0,OFFSET(Setup!$D$7,MATCH($F20,TaxCode,0),0,1,1)))+IF(ISERROR($G20),0,IF(ISNA(MATCH($G20,TaxCode,0)),0,OFFSET(Setup!$D$7,MATCH($G20,TaxCode,0),0,1,1))))*IF(ISERROR($G20),0,IF(ISNA(MATCH($G20,TaxCode,0)),0,OFFSET(Setup!$D$7,MATCH($G20,TaxCode,0),0,1,1))) -> 0 | O20: =IF(TaxCount=2,E20-SUM(M20:N20),E20-SUM(M20:M20)) -> -143.7391304 | P20: 2020-03-31T00:00:20 | Q20: -
A21: 2020-04-02 | B21: IAS Accountants | C21: Invoice | D21: Bookkeeping | E21: -912 | F21: A | G21: E | H21: B1 | I21: IS-305 | J21: 2020-04-02 | K21: W | L21: =SUMIFS(CBIncl,CBBalDate,"<="&($A21+(ROW($A21)/86400)),CBBank,$H21) -> 4825.6 | M21: =$E21/(1+IF(ISERROR($F21),0,IF(ISNA(MATCH($F21,TaxCode,0)),0,OFFSET(Setup!$D$7,MATCH($F21,TaxCode,0),0,1,1)))+IF(ISERROR($G21),0,IF(ISNA(MATCH($G21,TaxCode,0)),0,OFFSET(Setup!$D$7,MATCH($G21,TaxCode,0),0,1,1))))*IF(ISERROR($F21),0,IF(ISNA(MATCH($F21,TaxCode,0)),0,OFFSET(Setup!$D$7,MATCH($F21,TaxCode,0),0,1,1))) -> -118.9565217 | N21: =$E21/(1+IF(ISERROR($F21),0,IF(ISNA(MATCH($F21,TaxCode,0)),0,OFFSET(Setup!$D$7,MATCH($F21,TaxCode,0),0,1,1)))+IF(ISERROR($G21),0,IF(ISNA(MATCH($G21,TaxCode,0)),0,OFFSET(Setup!$D$7,MATCH($G21,TaxCode,0),0,1,1))))*IF(ISERROR($G21),0,IF(ISNA(MATCH($G21,TaxCode,0)),0,OFFSET(Setup!$D$7,MATCH($G21,TaxCode,0),0,1,1))) -> 0 | O21: =IF(TaxCount=2,E21-SUM(M21:N21),E21-SUM(M21:M21)) -> -793.0434783 | P21: 2020-04-02T00:00:21 | Q21: -
A22: 2020-04-05 | B22: Hollard | C22: Debit Order | D22: Insurance | E22: -364.8 | F22: A | G22: E | H22: B1 | I22: IS-340 | J22: 2020-04-05 | K22: W | L22: =SUMIFS(CBIncl,CBBalDate,"<="&($A22+(ROW($A22)/86400)),CBBank,$H22) -> 4460.8 | M22: =$E22/(1+IF(ISERROR($F22),0,IF(ISNA(MATCH($F22,TaxCode,0)),0,OFFSET(Setup!$D$7,MATCH($F22,TaxCode,0),0,1,1)))+IF(ISERROR($G22),0,IF(ISNA(MATCH($G22,TaxCode,0)),0,OFFSET(Setup!$D$7,MATCH($G22,TaxCode,0),0,1,1))))*IF(ISERROR($F22),0,IF(ISNA(MATCH($F22,TaxCode,0)),0,OFFSET(Setup!$D$7,MATCH($F22,TaxCode,0),0,1,1))) -> -47.5826087 | N22: =$E22/(1+IF(ISERROR($F22),0,IF(ISNA(MATCH($F22,TaxCode,0)),0,OFFSET(Setup!$D$7,MATCH($F22,TaxCode,0),0,1,1)))+IF(ISERROR($G22),0,IF(ISNA(MATCH($G22,TaxCode,0)),0,OFFSET(Setup!$D$7,MATCH($G22,TaxCode,0),0,1,1))))*IF(ISERROR($G22),0,IF(ISNA(MATCH($G22,TaxCode,0)),0,OFFSET(Setup!$D$7,MATCH($G22,TaxCode,0),0,1,1))) -> 0 | O22: =IF(TaxCount=2,E22-SUM(M22:N22),E22-SUM(M22:M22)) -> -317.2173913 | P22: 2020-04-05T00:00:22 | Q22: -
A23: 2020-04-10 | B23: Waltons | C23: Invoice | D23: Paper | E23: -224 | F23: A | G23: E | H23: PC | I23: IS-325 | J23: 2020-04-10 | K23: W | L23: =SUMIFS(CBIncl,CBBalDate,"<="&($A23+(ROW($A23)/86400)),CBBank,$H23) -> 986 | M23: =$E23/(1+IF(ISERROR($F23),0,IF(ISNA(MATCH($F23,TaxCode,0)),0,OFFSET(Setup!$D$7,MATCH($F23,TaxCode,0),0,1,1)))+IF(ISERROR($G23),0,IF(ISNA(MATCH($G23,TaxCode,0)),0,OFFSET(Setup!$D$7,MATCH($G23,TaxCode,0),0,1,1))))*IF(ISERROR($F23),0,IF(ISNA(MATCH($F23,TaxCode,0)),0,OFFSET(Setup!$D$7,MATCH($F23,TaxCode,0),0,1,1))) -> -29.2173913 | N23: =$E23/(1+IF(ISERROR($F23),0,IF(ISNA(MATCH($F23,TaxCode,0)),0,OFFSET(Setup!$D$7,MATCH($F23,TaxCode,0),0,1,1)))+IF(ISERROR($G23),0,IF(ISNA(MATCH($G23,TaxCode,0)),0,OFFSET(Setup!$D$7,MATCH($G23,TaxCode,0),0,1,1))))*IF(ISERROR($G23),0,IF(ISNA(MATCH($G23,TaxCode,0)),0,OFFSET(Setup!$D$7,MATCH($G23,TaxCode,0),0,1,1))) -> 0 | O23: =IF(TaxCount=2,E23-SUM(M23:N23),E23-SUM(M23:M23)) -> -194.7826087 | P23: 2020-04-10T00:00:23 | Q23: -
A24: 2020-04-13 | B24: GP Accountants | C24: INV0054 | D24: Consulting Services | E24: 9291 | F24: A | G24: E | H24: B1 | I24: IS-100 | J24: 2020-04-13 | K24: D | L24: =SUMIFS(CBIncl,CBBalDate,"<="&($A24+(ROW($A24)/86400)),CBBank,$H24) -> 13751.8 | M24: =$E24/(1+IF(ISERROR($F24),0,IF(ISNA(MATCH($F24,TaxCode,0)),0,OFFSET(Setup!$D$7,MATCH($F24,TaxCode,0),0,1,1)))+IF(ISERROR($G24),0,IF(ISNA(MATCH($G24,TaxCode,0)),0,OFFSET(Setup!$D$7,MATCH($G24,TaxCode,0),0,1,1))))*IF(ISERROR($F24),0,IF(ISNA(MATCH($F24,TaxCode,0)),0,OFFSET(Setup!$D$7,MATCH($F24,TaxCode,0),0,1,1))) -> 1211.869565 | N24: =$E24/(1+IF(ISERROR($F24),0,IF(ISNA(MATCH($F24,TaxCode,0)),0,OFFSET(Setup!$D$7,MATCH($F24,TaxCode,0),0,1,1)))+IF(ISERROR($G24),0,IF(ISNA(MATCH($G24,TaxCode,0)),0,OFFSET(Setup!$D$7,MATCH($G24,TaxCode,0),0,1,1))))*IF(ISERROR($G24),0,IF(ISNA(MATCH($G24,TaxCode,0)),0,OFFSET(Setup!$D$7,MATCH($G24,TaxCode,0),0,1,1))) -> 0 | O24: =IF(TaxCount=2,E24-SUM(M24:N24),E24-SUM(M24:M24)) -> 8079.130435 | P24: 2020-04-13T00:00:24 | Q24: -
A25: 2020-04-14 | B25: TRF Solutions | C25: INV0053 | D25: Consulting Services | E25: 12768 | F25: A | G25: E | H25: B1 | I25: IS-100 | J25: 2020-04-14 | K25: D | L25: =SUMIFS(CBIncl,CBBalDate,"<="&($A25+(ROW($A25)/86400)),CBBank,$H25) -> 26519.8 | M25: =$E25/(1+IF(ISERROR($F25),0,IF(ISNA(MATCH($F25,TaxCode,0)),0,OFFSET(Setup!$D$7,MATCH($F25,TaxCode,0),0,1,1)))+IF(ISERROR($G25),0,IF(ISNA(MATCH($G25,TaxCode,0)),0,OFFSET(Setup!$D$7,MATCH($G25,TaxCode,0),0,1,1))))*IF(ISERROR($F25),0,IF(ISNA(MATCH($F25,TaxCode,0)),0,OFFSET(Setup!$D$7,MATCH($F25,TaxCode,0),0,1,1))) -> 1665.391304 | N25: =$E25/(1+IF(ISERROR($F25),0,IF(ISNA(MATCH($F25,TaxCode,0)),0,OFFSET(Setup!$D$7,MATCH($F25,TaxCode,0),0,1,1)))+IF(ISERROR($G25),0,IF(ISNA(MATCH($G25,TaxCode,0)),0,OFFSET(Setup!$D$7,MATCH($G25,TaxCode,0),0,1,1))))*IF(ISERROR($G25),0,IF(ISNA(MATCH($G25,TaxCode,0)),0,OFFSET(Setup!$D$7,MATCH($G25,TaxCode,0),0,1,1))) -> 0 | O25: =IF(TaxCount=2,E25-SUM(M25:N25),E25-SUM(M25:M25)) -> 11102.6087 | P25: 2020-04-14T00:00:25 | Q25: -
A26: 2020-04-15 | B26: ABSA | C26: Bank Statement | D26: Service Fees | E26: -57 | F26: A | G26: E | H26: B1 | I26: IS-315 | J26: 2020-04-15 | K26: W | L26: =SUMIFS(CBIncl,CBBalDate,"<="&($A26+(ROW($A26)/86400)),CBBank,$H26) -> 26462.8 | M26: =$E26/(1+IF(ISERROR($F26),0,IF(ISNA(MATCH($F26,TaxCode,0)),0,OFFSET(Setup!$D$7,MATCH($F26,TaxCode,0),0,1,1)))+IF(ISERROR($G26),0,IF(ISNA(MATCH($G26,TaxCode,0)),0,OFFSET(Setup!$D$7,MATCH($G26,TaxCode,0),0,1,1))))*IF(ISERROR($F26),0,IF(ISNA(MATCH($F26,TaxCode,0)),0,OFFSET(Setup!$D$7,MATCH($F26,TaxCode,0),0,1,1))) -> -7.434782609 | N26: =$E26/(1+IF(ISERROR($F26),0,IF(ISNA(MATCH($F26,TaxCode,0)),0,OFFSET(Setup!$D$7,MATCH($F26,TaxCode,0),0,1,1)))+IF(ISERROR($G26),0,IF(ISNA(MATCH($G26,TaxCode,0)),0,OFFSET(Setup!$D$7,MATCH($G26,TaxCode,0),0,1,1))))*IF(ISERROR($G26),0,IF(ISNA(MATCH($G26,TaxCode,0)),0,OFFSET(Setup!$D$7,MATCH($G26,TaxCode,0),0,1,1))) -> 0 | O26: =IF(TaxCount=2,E26-SUM(M26:N26),E26-SUM(M26:M26)) -> -49.56521739 | P26: 2020-04-15T00:00:26 | Q26: -
A27: 2020-04-20 | B27: Transfer | C27: Bank Statement | D27: Bank Transfer | E27: 8000 | F27: E | G27: E | H27: B2 | I27: BS-TRF | J27: 2020-04-20 | K27: D | L27: =SUMIFS(CBIncl,CBBalDate,"<="&($A27+(ROW($A27)/86400)),CBBank,$H27) -> 9600 | M27: =$E27/(1+IF(ISERROR($F27),0,IF(ISNA(MATCH($F27,TaxCode,0)),0,OFFSET(Setup!$D$7,MATCH($F27,TaxCode,0),0,1,1)))+IF(ISERROR($G27),0,IF(ISNA(MATCH($G27,TaxCode,0)),0,OFFSET(Setup!$D$7,MATCH($G27,TaxCode,0),0,1,1))))*IF(ISERROR($F27),0,IF(ISNA(MATCH($F27,TaxCode,0)),0,OFFSET(Setup!$D$7,MATCH($F27,TaxCode,0),0,1,1))) -> 0 | N27: =$E27/(1+IF(ISERROR($F27),0,IF(ISNA(MATCH($F27,TaxCode,0)),0,OFFSET(Setup!$D$7,MATCH($F27,TaxCode,0),0,1,1)))+IF(ISERROR($G27),0,IF(ISNA(MATCH($G27,TaxCode,0)),0,OFFSET(Setup!$D$7,MATCH($G27,TaxCode,0),0,1,1))))*IF(ISERROR($G27),0,IF(ISNA(MATCH($G27,TaxCode,0)),0,OFFSET(Setup!$D$7,MATCH($G27,TaxCode,0),0,1,1))) -> 0 | O27: =IF(TaxCount=2,E27-SUM(M27:N27),E27-SUM(M27:M27)) -> 8000 | P27: 2020-04-20T00:00:27 | Q27: -
A28: 2020-04-20 | B28: Transfer | C28: Bank Statement | D28: Bank Transfer | E28: -8000 | F28: E | G28: E | H28: B1 | I28: BS-TRF | J28: 2020-04-20 | K28: W | L28: =SUMIFS(CBIncl,CBBalDate,"<="&($A28+(ROW($A28)/86400)),CBBank,$H28) -> 18462.8 | M28: =$E28/(1+IF(ISERROR($F28),0,IF(ISNA(MATCH($F28,TaxCode,0)),0,OFFSET(Setup!$D$7,MATCH($F28,TaxCode,0),0,1,1)))+IF(ISERROR($G28),0,IF(ISNA(MATCH($G28,TaxCode,0)),0,OFFSET(Setup!$D$7,MATCH($G28,TaxCode,0),0,1,1))))*IF(ISERROR($F28),0,IF(ISNA(MATCH($F28,TaxCode,0)),0,OFFSET(Setup!$D$7,MATCH($F28,TaxCode,0),0,1,1))) -> 0 | N28: =$E28/(1+IF(ISERROR($F28),0,IF(ISNA(MATCH($F28,TaxCode,0)),0,OFFSET(Setup!$D$7,MATCH($F28,TaxCode,0),0,1,1)))+IF(ISERROR($G28),0,IF(ISNA(MATCH($G28,TaxCode,0)),0,OFFSET(Setup!$D$7,MATCH($G28,TaxCode,0),0,1,1))))*IF(ISERROR($G28),0,IF(ISNA(MATCH($G28,TaxCode,0)),0,OFFSET(Setup!$D$7,MATCH($G28,TaxCode,0),0,1,1))) -> 0 | O28: =IF(TaxCount=2,E28-SUM(M28:N28),E28-SUM(M28:M28)) -> -8000 | P28: 2020-04-20T00:00:28 | Q28: -
A29: 2020-04-24 | B29: Waltons | C29: Invoice | D29: Paper | E29: -228 | F29: A | G29: E | H29: PC | I29: IS-325 | J29: 2020-04-24 | K29: W | L29: =SUMIFS(CBIncl,CBBalDate,"<="&($A29+(ROW($A29)/86400)),CBBank,$H29) -> 758 | M29: =$E29/(1+IF(ISERROR($F29),0,IF(ISNA(MATCH($F29,TaxCode,0)),0,OFFSET(Setup!$D$7,MATCH($F29,TaxCode,0),0,1,1)))+IF(ISERROR($G29),0,IF(ISNA(MATCH($G29,TaxCode,0)),0,OFFSET(Setup!$D$7,MATCH($G29,TaxCode,0),0,1,1))))*IF(ISERROR($F29),0,IF(ISNA(MATCH($F29,TaxCode,0)),0,OFFSET(Setup!$D$7,MATCH($F29,TaxCode,0),0,1,1))) -> -29.73913043 | N29: =$E29/(1+IF(ISERROR($F29),0,IF(ISNA(MATCH($F29,TaxCode,0)),0,OFFSET(Setup!$D$7,MATCH($F29,TaxCode,0),0,1,1)))+IF(ISERROR($G29),0,IF(ISNA(MATCH($G29,TaxCode,0)),0,OFFSET(Setup!$D$7,MATCH($G29,TaxCode,0),0,1,1))))*IF(ISERROR($G29),0,IF(ISNA(MATCH($G29,TaxCode,0)),0,OFFSET(Setup!$D$7,MATCH($G29,TaxCode,0),0,1,1))) -> 0 | O29: =IF(TaxCount=2,E29-SUM(M29:N29),E29-SUM(M29:M29)) -> -198.2608696 | P29: 2020-04-24T00:00:29 | Q29: -
A30: 2020-04-25 | B30: Cash | C30: Bank Statement | D30: Petty Cash Reimbursement | E30: -320 | F30: E | G30: E | H30: B1 | I30: BS-TRF | J30: 2020-04-25 | K30: W | L30: =SUMIFS(CBIncl,CBBalDate,"<="&($A30+(ROW($A30)/86400)),CBBank,$H30) -> 18142.8 | M30: =$E30/(1+IF(ISERROR($F30),0,IF(ISNA(MATCH($F30,TaxCode,0)),0,OFFSET(Setup!$D$7,MATCH($F30,TaxCode,0),0,1,1)))+IF(ISERROR($G30),0,IF(ISNA(MATCH($G30,TaxCode,0)),0,OFFSET(Setup!$D$7,MATCH($G30,TaxCode,0),0,1,1))))*IF(ISERROR($F30),0,IF(ISNA(MATCH($F30,TaxCode,0)),0,OFFSET(Setup!$D$7,MATCH($F30,TaxCode,0),0,1,1))) -> 0 | N30: =$E30/(1+IF(ISERROR($F30),0,IF(ISNA(MATCH($F30,TaxCode,0)),0,OFFSET(Setup!$D$7,MATCH($F30,TaxCode,0),0,1,1)))+IF(ISERROR($G30),0,IF(ISNA(MATCH($G30,TaxCode,0)),0,OFFSET(Setup!$D$7,MATCH($G30,TaxCode,0),0,1,1))))*IF(ISERROR($G30),0,IF(ISNA(MATCH($G30,TaxCode,0)),0,OFFSET(Setup!$D$7,MATCH($G30,TaxCode,0),0,1,1))) -> 0 | O30: =IF(TaxCount=2,E30-SUM(M30:N30),E30-SUM(M30:M30)) -> -320 | P30: 2020-04-25T00:00:30 | Q30: -
A31: 2020-04-25 | B31: Cash | C31: Bank Statement | D31: Petty Cash Reimbursement | E31: 320 | F31: E | G31: E | H31: PC | I31: BS-TRF | J31: 2020-04-25 | K31: D | L31: =SUMIFS(CBIncl,CBBalDate,"<="&($A31+(ROW($A31)/86400)),CBBank,$H31) -> 1078 | M31: =$E31/(1+IF(ISERROR($F31),0,IF(ISNA(MATCH($F31,TaxCode,0)),0,OFFSET(Setup!$D$7,MATCH($F31,TaxCode,0),0,1,1)))+IF(ISERROR($G31),0,IF(ISNA(MATCH($G31,TaxCode,0)),0,OFFSET(Setup!$D$7,MATCH($G31,TaxCode,0),0,1,1))))*IF(ISERROR($F31),0,IF(ISNA(MATCH($F31,TaxCode,0)),0,OFFSET(Setup!$D$7,MATCH($F31,TaxCode,0),0,1,1))) -> 0 | N31: =$E31/(1+IF(ISERROR($F31),0,IF(ISNA(MATCH($F31,TaxCode,0)),0,OFFSET(Setup!$D$7,MATCH($F31,TaxCode,0),0,1,1)))+IF(ISERROR($G31),0,IF(ISNA(MATCH($G31,TaxCode,0)),0,OFFSET(Setup!$D$7,MATCH($G31,TaxCode,0),0,1,1))))*IF(ISERROR($G31),0,IF(ISNA(MATCH($G31,TaxCode,0)),0,OFFSET(Setup!$D$7,MATCH($G31,TaxCode,0),0,1,1))) -> 0 | O31: =IF(TaxCount=2,E31-SUM(M31:N31),E31-SUM(M31:M31)) -> 320 | P31: 2020-04-25T00:00:31 | Q31: -
A32: 2020-04-25 | B32: Inland Revenue | C32: Return | D32: Sales Tax | E32: -2700 | F32: E | G32: E | H32: B1 | I32: BS-TAX1 | J32: 2020-04-25 | K32: W | L32: =SUMIFS(CBIncl,CBBalDate,"<="&($A32+(ROW($A32)/86400)),CBBank,$H32) -> 15442.8 | M32: =$E32/(1+IF(ISERROR($F32),0,IF(ISNA(MATCH($F32,TaxCode,0)),0,OFFSET(Setup!$D$7,MATCH($F32,TaxCode,0),0,1,1)))+IF(ISERROR($G32),0,IF(ISNA(MATCH($G32,TaxCode,0)),0,OFFSET(Setup!$D$7,MATCH($G32,TaxCode,0),0,1,1))))*IF(ISERROR($F32),0,IF(ISNA(MATCH($F32,TaxCode,0)),0,OFFSET(Setup!$D$7,MATCH($F32,TaxCode,0),0,1,1))) -> 0 | N32: =$E32/(1+IF(ISERROR($F32),0,IF(ISNA(MATCH($F32,TaxCode,0)),0,OFFSET(Setup!$D$7,MATCH($F32,TaxCode,0),0,1,1)))+IF(ISERROR($G32),0,IF(ISNA(MATCH($G32,TaxCode,0)),0,OFFSET(Setup!$D$7,MATCH($G32,TaxCode,0),0,1,1))))*IF(ISERROR($G32),0,IF(ISNA(MATCH($G32,TaxCode,0)),0,OFFSET(Setup!$D$7,MATCH($G32,TaxCode,0),0,1,1))) -> 0 | O32: =IF(TaxCount=2,E32-SUM(M32:N32),E32-SUM(M32:M32)) -> -2700 | P32: 2020-04-25T00:00:32 | Q32: -
A33: 2020-04-26 | B33: Payroll | C33: Payroll | D33: Salaries | E33: -8000 | F33: E | G33: E | H33: B2 | I33: IS-365 | J33: 2020-04-26 | K33: W | L33: =SUMIFS(CBIncl,CBBalDate,"<="&($A33+(ROW($A33)/86400)),CBBank,$H33) -> 1600 | M33: =$E33/(1+IF(ISERROR($F33),0,IF(ISNA(MATCH($F33,TaxCode,0)),0,OFFSET(Setup!$D$7,MATCH($F33,TaxCode,0),0,1,1)))+IF(ISERROR($G33),0,IF(ISNA(MATCH($G33,TaxCode,0)),0,OFFSET(Setup!$D$7,MATCH($G33,TaxCode,0),0,1,1))))*IF(ISERROR($F33),0,IF(ISNA(MATCH($F33,TaxCode,0)),0,OFFSET(Setup!$D$7,MATCH($F33,TaxCode,0),0,1,1))) -> 0 | N33: =$E33/(1+IF(ISERROR($F33),0,IF(ISNA(MATCH($F33,TaxCode,0)),0,OFFSET(Setup!$D$7,MATCH($F33,TaxCode,0),0,1,1)))+IF(ISERROR($G33),0,IF(ISNA(MATCH($G33,TaxCode,0)),0,OFFSET(Setup!$D$7,MATCH($G33,TaxCode,0),0,1,1))))*IF(ISERROR($G33),0,IF(ISNA(MATCH($G33,TaxCode,0)),0,OFFSET(Setup!$D$7,MATCH($G33,TaxCode,0),0,1,1))) -> 0 | O33: =IF(TaxCount=2,E33-SUM(M33:N33),E33-SUM(M33:M33)) -> -8000 | P33: 2020-04-26T00:00:33 | Q33: -
A34: 2020-04-26 | B34: PR Properties | C34: Debit Order | D34: Rent | E34: -5700 | F34: A | G34: E | H34: B1 | I34: IS-350 | J34: 2020-04-26 | K34: W | L34: =SUMIFS(CBIncl,CBBalDate,"<="&($A34+(ROW($A34)/86400)),CBBank,$H34) -> 9742.8 | M34: =$E34/(1+IF(ISERROR($F34),0,IF(ISNA(MATCH($F34,TaxCode,0)),0,OFFSET(Setup!$D$7,MATCH($F34,TaxCode,0),0,1,1)))+IF(ISERROR($G34),0,IF(ISNA(MATCH($G34,TaxCode,0)),0,OFFSET(Setup!$D$7,MATCH($G34,TaxCode,0),0,1,1))))*IF(ISERROR($F34),0,IF(ISNA(MATCH($F34,TaxCode,0)),0,OFFSET(Setup!$D$7,MATCH($F34,TaxCode,0),0,1,1))) -> -743.4782609 | N34: =$E34/(1+IF(ISERROR($F34),0,IF(ISNA(MATCH($F34,TaxCode,0)),0,OFFSET(Setup!$D$7,MATCH($F34,TaxCode,0),0,1,1)))+IF(ISERROR($G34),0,IF(ISNA(MATCH($G34,TaxCode,0)),0,OFFSET(Setup!$D$7,MATCH($G34,TaxCode,0),0,1,1))))*IF(ISERROR($G34),0,IF(ISNA(MATCH($G34,TaxCode,0)),0,OFFSET(Setup!$D$7,MATCH($G34,TaxCode,0),0,1,1))) -> 0 | O34: =IF(TaxCount=2,E34-SUM(M34:N34),E34-SUM(M34:M34)) -> -4956.521739 | P34: 2020-04-26T00:00:34 | Q34: -
A35: 2020-04-26 | B35: SQ Financial Services | C35: Debit Order | D35: Interest paid | E35: -100 | F35: E | G35: E | H35: B1 | I35: IS-500 | J35: 2020-04-26 | K35: W | L35: =SUMIFS(CBIncl,CBBalDate,"<="&($A35+(ROW($A35)/86400)),CBBank,$H35) -> 9642.8 | M35: =$E35/(1+IF(ISERROR($F35),0,IF(ISNA(MATCH($F35,TaxCode,0)),0,OFFSET(Setup!$D$7,MATCH($F35,TaxCode,0),0,1,1)))+IF(ISERROR($G35),0,IF(ISNA(MATCH($G35,TaxCode,0)),0,OFFSET(Setup!$D$7,MATCH($G35,TaxCode,0),0,1,1))))*IF(ISERROR($F35),0,IF(ISNA(MATCH($F35,TaxCode,0)),0,OFFSET(Setup!$D$7,MATCH($F35,TaxCode,0),0,1,1))) -> 0 | N35: =$E35/(1+IF(ISERROR($F35),0,IF(ISNA(MATCH($F35,TaxCode,0)),0,OFFSET(Setup!$D$7,MATCH($F35,TaxCode,0),0,1,1)))+IF(ISERROR($G35),0,IF(ISNA(MATCH($G35,TaxCode,0)),0,OFFSET(Setup!$D$7,MATCH($G35,TaxCode,0),0,1,1))))*IF(ISERROR($G35),0,IF(ISNA(MATCH($G35,TaxCode,0)),0,OFFSET(Setup!$D$7,MATCH($G35,TaxCode,0),0,1,1))) -> 0 | O35: =IF(TaxCount=2,E35-SUM(M35:N35),E35-SUM(M35:M35)) -> -100 | P35: 2020-04-26T00:00:35 | Q35: -
A36: 2020-04-27 | B36: WC Financial Advisors | C36: INV0056 | D36: Taxation Services | E36: 7980 | F36: A | G36: E | H36: B1 | I36: IS-100 | J36: 2020-04-27 | K36: D | L36: =SUMIFS(CBIncl,CBBalDate,"<="&($A36+(ROW($A36)/86400)),CBBank,$H36) -> 17622.8 | M36: =$E36/(1+IF(ISERROR($F36),0,IF(ISNA(MATCH($F36,TaxCode,0)),0,OFFSET(Setup!$D$7,MATCH($F36,TaxCode,0),0,1,1)))+IF(ISERROR($G36),0,IF(ISNA(MATCH($G36,TaxCode,0)),0,OFFSET(Setup!$D$7,MATCH($G36,TaxCode,0),0,1,1))))*IF(ISERROR($F36),0,IF(ISNA(MATCH($F36,TaxCode,0)),0,OFFSET(Setup!$D$7,MATCH($F36,TaxCode,0),0,1,1))) -> 1040.869565 | N36: =$E36/(1+IF(ISERROR($F36),0,IF(ISNA(MATCH($F36,TaxCode,0)),0,OFFSET(Setup!$D$7,MATCH($F36,TaxCode,0),0,1,1)))+IF(ISERROR($G36),0,IF(ISNA(MATCH($G36,TaxCode,0)),0,OFFSET(Setup!$D$7,MATCH($G36,TaxCode,0),0,1,1))))*IF(ISERROR($G36),0,IF(ISNA(MATCH($G36,TaxCode,0)),0,OFFSET(Setup!$D$7,MATCH($G36,TaxCode,0),0,1,1))) -> 0 | O36: =IF(TaxCount=2,E36-SUM(M36:N36),E36-SUM(M36:M36)) -> 6939.130435 | P36: 2020-04-27T00:00:36 | Q36: -
A37: 2020-04-27 | B37: WC Financial Advisors | C37: INV0056 | D37: Accounting Services | E37: 3762 | F37: A | G37: E | H37: B1 | I37: IS-100 | J37: 2020-04-27 | K37: D | L37: =SUMIFS(CBIncl,CBBalDate,"<="&($A37+(ROW($A37)/86400)),CBBank,$H37) -> 21384.8 | M37: =$E37/(1+IF(ISERROR($F37),0,IF(ISNA(MATCH($F37,TaxCode,0)),0,OFFSET(Setup!$D$7,MATCH($F37,TaxCode,0),0,1,1)))+IF(ISERROR($G37),0,IF(ISNA(MATCH($G37,TaxCode,0)),0,OFFSET(Setup!$D$7,MATCH($G37,TaxCode,0),0,1,1))))*IF(ISERROR($F37),0,IF(ISNA(MATCH($F37,TaxCode,0)),0,OFFSET(Setup!$D$7,MATCH($F37,TaxCode,0),0,1,1))) -> 490.6956522 | N37: =$E37/(1+IF(ISERROR($F37),0,IF(ISNA(MATCH($F37,TaxCode,0)),0,OFFSET(Setup!$D$7,MATCH($F37,TaxCode,0),0,1,1)))+IF(ISERROR($G37),0,IF(ISNA(MATCH($G37,TaxCode,0)),0,OFFSET(Setup!$D$7,MATCH($G37,TaxCode,0),0,1,1))))*IF(ISERROR($G37),0,IF(ISNA(MATCH($G37,TaxCode,0)),0,OFFSET(Setup!$D$7,MATCH($G37,TaxCode,0),0,1,1))) -> 0 | O37: =IF(TaxCount=2,E37-SUM(M37:N37),E37-SUM(M37:M37)) -> 3271.304348 | P37: 2020-04-27T00:00:37 | Q37: -
A38: 2020-04-27 | B38: WC Financial Advisors | C38: INV0056 | D38: Consulting Services | E38: 37777.32 | F38: A | G38: E | H38: B1 | I38: IS-100 | J38: 2020-04-27 | K38: D | L38: =SUMIFS(CBIncl,CBBalDate,"<="&($A38+(ROW($A38)/86400)),CBBank,$H38) -> 59162.12 | M38: =$E38/(1+IF(ISERROR($F38),0,IF(ISNA(MATCH($F38,TaxCode,0)),0,OFFSET(Setup!$D$7,MATCH($F38,TaxCode,0),0,1,1)))+IF(ISERROR($G38),0,IF(ISNA(MATCH($G38,TaxCode,0)),0,OFFSET(Setup!$D$7,MATCH($G38,TaxCode,0),0,1,1))))*IF(ISERROR($F38),0,IF(ISNA(MATCH($F38,TaxCode,0)),0,OFFSET(Setup!$D$7,MATCH($F38,TaxCode,0),0,1,1))) -> 4927.476522 | N38: =$E38/(1+IF(ISERROR($F38),0,IF(ISNA(MATCH($F38,TaxCode,0)),0,OFFSET(Setup!$D$7,MATCH($F38,TaxCode,0),0,1,1)))+IF(ISERROR($G38),0,IF(ISNA(MATCH($G38,TaxCode,0)),0,OFFSET(Setup!$D$7,MATCH($G38,TaxCode,0),0,1,1))))*IF(ISERROR($G38),0,IF(ISNA(MATCH($G38,TaxCode,0)),0,OFFSET(Setup!$D$7,MATCH($G38,TaxCode,0),0,1,1))) -> 0 | O38: =IF(TaxCount=2,E38-SUM(M38:N38),E38-SUM(M38:M38)) -> 32849.84348 | P38: 2020-04-27T00:00:38 | Q38: -
A39: 2020-05-01 | B39: XY Solutions | C39: Invoice EXP11 | D39: Internet Service Provider | E39: -165.3 | F39: A | G39: E | H39: B1 | I39: IS-380 | J39: 2020-05-01 | K39: W | L39: =SUMIFS(CBIncl,CBBalDate,"<="&($A39+(ROW($A39)/86400)),CBBank,$H39) -> 58996.82 | M39: =$E39/(1+IF(ISERROR($F39),0,IF(ISNA(MATCH($F39,TaxCode,0)),0,OFFSET(Setup!$D$7,MATCH($F39,TaxCode,0),0,1,1)))+IF(ISERROR($G39),0,IF(ISNA(MATCH($G39,TaxCode,0)),0,OFFSET(Setup!$D$7,MATCH($G39,TaxCode,0),0,1,1))))*IF(ISERROR($F39),0,IF(ISNA(MATCH($F39,TaxCode,0)),0,OFFSET(Setup!$D$7,MATCH($F39,TaxCode,0),0,1,1))) -> -21.56086957 | N39: =$E39/(1+IF(ISERROR($F39),0,IF(ISNA(MATCH($F39,TaxCode,0)),0,OFFSET(Setup!$D$7,MATCH($F39,TaxCode,0),0,1,1)))+IF(ISERROR($G39),0,IF(ISNA(MATCH($G39,TaxCode,0)),0,OFFSET(Setup!$D$7,MATCH($G39,TaxCode,0),0,1,1))))*IF(ISERROR($G39),0,IF(ISNA(MATCH($G39,TaxCode,0)),0,OFFSET(Setup!$D$7,MATCH($G39,TaxCode,0),0,1,1))) -> 0 | O39: =IF(TaxCount=2,E39-SUM(M39:N39),E39-SUM(M39:M39)) -> -143.7391304 | P39: 2020-05-01T00:00:39 | Q39: -
A40: 2020-05-03 | B40: IAS Accountants | C40: Invoice | D40: Bookkeeping | E40: -912 | F40: A | G40: E | H40: B1 | I40: IS-305 | J40: 2020-05-03 | K40: W | L40: =SUMIFS(CBIncl,CBBalDate,"<="&($A40+(ROW($A40)/86400)),CBBank,$H40) -> 58084.82 | M40: =$E40/(1+IF(ISERROR($F40),0,IF(ISNA(MATCH($F40,TaxCode,0)),0,OFFSET(Setup!$D$7,MATCH($F40,TaxCode,0),0,1,1)))+IF(ISERROR($G40),0,IF(ISNA(MATCH($G40,TaxCode,0)),0,OFFSET(Setup!$D$7,MATCH($G40,TaxCode,0),0,1,1))))*IF(ISERROR($F40),0,IF(ISNA(MATCH($F40,TaxCode,0)),0,OFFSET(Setup!$D$7,MATCH($F40,TaxCode,0),0,1,1))) -> -118.9565217 | N40: =$E40/(1+IF(ISERROR($F40),0,IF(ISNA(MATCH($F40,TaxCode,0)),0,OFFSET(Setup!$D$7,MATCH($F40,TaxCode,0),0,1,1)))+IF(ISERROR($G40),0,IF(ISNA(MATCH($G40,TaxCode,0)),0,OFFSET(Setup!$D$7,MATCH($G40,TaxCode,0),0,1,1))))*IF(ISERROR($G40),0,IF(ISNA(MATCH($G40,TaxCode,0)),0,OFFSET(Setup!$D$7,MATCH($G40,TaxCode,0),0,1,1))) -> 0 | O40: =IF(TaxCount=2,E40-SUM(M40:N40),E40-SUM(M40:M40)) -> -793.0434783 | P40: 2020-05-03T00:00:40 | Q40: -
A41: 2020-05-05 | B41: Hollard | C41: Debit Order | D41: Insurance | E41: -364.8 | F41: A | G41: E | H41: B1 | I41: IS-340 | J41: 2020-05-05 | K41: W | L41: =SUMIFS(CBIncl,CBBalDate,"<="&($A41+(ROW($A41)/86400)),CBBank,$H41) -> 57720.02 | M41: =$E41/(1+IF(ISERROR($F41),0,IF(ISNA(MATCH($F41,TaxCode,0)),0,OFFSET(Setup!$D$7,MATCH($F41,TaxCode,0),0,1,1)))+IF(ISERROR($G41),0,IF(ISNA(MATCH($G41,TaxCode,0)),0,OFFSET(Setup!$D$7,MATCH($G41,TaxCode,0),0,1,1))))*IF(ISERROR($F41),0,IF(ISNA(MATCH($F41,TaxCode,0)),0,OFFSET(Setup!$D$7,MATCH($F41,TaxCode,0),0,1,1))) -> -47.5826087 | N41: =$E41/(1+IF(ISERROR($F41),0,IF(ISNA(MATCH($F41,TaxCode,0)),0,OFFSET(Setup!$D$7,MATCH($F41,TaxCode,0),0,1,1)))+IF(ISERROR($G41),0,IF(ISNA(MATCH($G41,TaxCode,0)),0,OFFSET(Setup!$D$7,MATCH($G41,TaxCode,0),0,1,1))))*IF(ISERROR($G41),0,IF(ISNA(MATCH($G41,TaxCode,0)),0,OFFSET(Setup!$D$7,MATCH($G41,TaxCode,0),0,1,1))) -> 0 | O41: =IF(TaxCount=2,E41-SUM(M41:N41),E41-SUM(M41:M41)) -> -317.2173913 | P41: 2020-05-05T00:00:41 | Q41: -
A42: 2020-05-08 | B42: ABC Limited | C42: INV0055 | D42: Accounting Services | E42: 17100 | F42: A | G42: E | H42: B1 | I42: IS-100 | J42: 2020-05-08 | K42: D | L42: =SUMIFS(CBIncl,CBBalDate,"<="&($A42+(ROW($A42)/86400)),CBBank,$H42) -> 74820.02 | M42: =$E42/(1+IF(ISERROR($F42),0,IF(ISNA(MATCH($F42,TaxCode,0)),0,OFFSET(Setup!$D$7,MATCH($F42,TaxCode,0),0,1,1)))+IF(ISERROR($G42),0,IF(ISNA(MATCH($G42,TaxCode,0)),0,OFFSET(Setup!$D$7,MATCH($G42,TaxCode,0),0,1,1))))*IF(ISERROR($F42),0,IF(ISNA(MATCH($F42,TaxCode,0)),0,OFFSET(Setup!$D$7,MATCH($F42,TaxCode,0),0,1,1))) -> 2230.434783 | N42: =$E42/(1+IF(ISERROR($F42),0,IF(ISNA(MATCH($F42,TaxCode,0)),0,OFFSET(Setup!$D$7,MATCH($F42,TaxCode,0),0,1,1)))+IF(ISERROR($G42),0,IF(ISNA(MATCH($G42,TaxCode,0)),0,OFFSET(Setup!$D$7,MATCH($G42,TaxCode,0),0,1,1))))*IF(ISERROR($G42),0,IF(ISNA(MATCH($G42,TaxCode,0)),0,OFFSET(Setup!$D$7,MATCH($G42,TaxCode,0),0,1,1))) -> 0 | O42: =IF(TaxCount=2,E42-SUM(M42:N42),E42-SUM(M42:M42)) -> 14869.56522 | P42: 2020-05-08T00:00:42 | Q42: -
A43: 2020-05-08 | B43: Waltons | C43: Invoice | D43: Paper | E43: -228 | F43: A | G43: E | H43: PC | I43: IS-325 | J43: 2020-05-08 | K43: W | L43: =SUMIFS(CBIncl,CBBalDate,"<="&($A43+(ROW($A43)/86400)),CBBank,$H43) -> 850 | M43: =$E43/(1+IF(ISERROR($F43),0,IF(ISNA(MATCH($F43,TaxCode,0)),0,OFFSET(Setup!$D$7,MATCH($F43,TaxCode,0),0,1,1)))+IF(ISERROR($G43),0,IF(ISNA(MATCH($G43,TaxCode,0)),0,OFFSET(Setup!$D$7,MATCH($G43,TaxCode,0),0,1,1))))*IF(ISERROR($F43),0,IF(ISNA(MATCH($F43,TaxCode,0)),0,OFFSET(Setup!$D$7,MATCH($F43,TaxCode,0),0,1,1))) -> -29.73913043 | N43: =$E43/(1+IF(ISERROR($F43),0,IF(ISNA(MATCH($F43,TaxCode,0)),0,OFFSET(Setup!$D$7,MATCH($F43,TaxCode,0),0,1,1)))+IF(ISERROR($G43),0,IF(ISNA(MATCH($G43,TaxCode,0)),0,OFFSET(Setup!$D$7,MATCH($G43,TaxCode,0),0,1,1))))*IF(ISERROR($G43),0,IF(ISNA(MATCH($G43,TaxCode,0)),0,OFFSET(Setup!$D$7,MATCH($G43,TaxCode,0),0,1,1))) -> 0 | O43: =IF(TaxCount=2,E43-SUM(M43:N43),E43-SUM(M43:M43)) -> -198.2608696 | P43: 2020-05-08T00:00:43 | Q43: -
A44: 2020-05-15 | B44: ABSA | C44: Bank Statement | D44: Service Fees | E44: -57 | F44: A | G44: E | H44: B1 | I44: IS-315 | J44: 2020-05-15 | K44: W | L44: =SUMIFS(CBIncl,CBBalDate,"<="&($A44+(ROW($A44)/86400)),CBBank,$H44) -> 74763.02 | M44: =$E44/(1+IF(ISERROR($F44),0,IF(ISNA(MATCH($F44,TaxCode,0)),0,OFFSET(Setup!$D$7,MATCH($F44,TaxCode,0),0,1,1)))+IF(ISERROR($G44),0,IF(ISNA(MATCH($G44,TaxCode,0)),0,OFFSET(Setup!$D$7,MATCH($G44,TaxCode,0),0,1,1))))*IF(ISERROR($F44),0,IF(ISNA(MATCH($F44,TaxCode,0)),0,OFFSET(Setup!$D$7,MATCH($F44,TaxCode,0),0,1,1))) -> -7.434782609 | N44: =$E44/(1+IF(ISERROR($F44),0,IF(ISNA(MATCH($F44,TaxCode,0)),0,OFFSET(Setup!$D$7,MATCH($F44,TaxCode,0),0,1,1)))+IF(ISERROR($G44),0,IF(ISNA(MATCH($G44,TaxCode,0)),0,OFFSET(Setup!$D$7,MATCH($G44,TaxCode,0),0,1,1))))*IF(ISERROR($G44),0,IF(ISNA(MATCH($G44,TaxCode,0)),0,OFFSET(Setup!$D$7,MATCH($G44,TaxCode,0),0,1,1))) -> 0 | O44: =IF(TaxCount=2,E44-SUM(M44:N44),E44-SUM(M44:M44)) -> -49.56521739 | P44: 2020-05-15T00:00:44 | Q44: -
A45: 2020-05-20 | B45: Transfer | C45: Bank Statement | D45: Bank Transfer | E45: 13000 | F45: E | G45: E | H45: B2 | I45: BS-TRF | J45: 2020-05-20 | K45: D | L45: =SUMIFS(CBIncl,CBBalDate,"<="&($A45+(ROW($A45)/86400)),CBBank,$H45) -> 14600 | M45: =$E45/(1+IF(ISERROR($F45),0,IF(ISNA(MATCH($F45,TaxCode,0)),0,OFFSET(Setup!$D$7,MATCH($F45,TaxCode,0),0,1,1)))+IF(ISERROR($G45),0,IF(ISNA(MATCH($G45,TaxCode,0)),0,OFFSET(Setup!$D$7,MATCH($G45,TaxCode,0),0,1,1))))*IF(ISERROR($F45),0,IF(ISNA(MATCH($F45,TaxCode,0)),0,OFFSET(Setup!$D$7,MATCH($F45,TaxCode,0),0,1,1))) -> 0 | N45: =$E45/(1+IF(ISERROR($F45),0,IF(ISNA(MATCH($F45,TaxCode,0)),0,OFFSET(Setup!$D$7,MATCH($F45,TaxCode,0),0,1,1)))+IF(ISERROR($G45),0,IF(ISNA(MATCH($G45,TaxCode,0)),0,OFFSET(Setup!$D$7,MATCH($G45,TaxCode,0),0,1,1))))*IF(ISERROR($G45),0,IF(ISNA(MATCH($G45,TaxCode,0)),0,OFFSET(Setup!$D$7,MATCH($G45,TaxCode,0),0,1,1))) -> 0 | O45: =IF(TaxCount=2,E45-SUM(M45:N45),E45-SUM(M45:M45)) -> 13000 | P45: 2020-05-20T00:00:45 | Q45: -
A46: 2020-05-20 | B46: Transfer | C46: Bank Statement | D46: Bank Transfer | E46: -13000 | F46: E | G46: E | H46: B1 | I46: BS-TRF | J46: 2020-05-20 | K46: W | L46: =SUMIFS(CBIncl,CBBalDate,"<="&($A46+(ROW($A46)/86400)),CBBank,$H46) -> 61763.02 | M46: =$E46/(1+IF(ISERROR($F46),0,IF(ISNA(MATCH($F46,TaxCode,0)),0,OFFSET(Setup!$D$7,MATCH($F46,TaxCode,0),0,1,1)))+IF(ISERROR($G46),0,IF(ISNA(MATCH($G46,TaxCode,0)),0,OFFSET(Setup!$D$7,MATCH($G46,TaxCode,0),0,1,1))))*IF(ISERROR($F46),0,IF(ISNA(MATCH($F46,TaxCode,0)),0,OFFSET(Setup!$D$7,MATCH($F46,TaxCode,0),0,1,1))) -> 0 | N46: =$E46/(1+IF(ISERROR($F46),0,IF(ISNA(MATCH($F46,TaxCode,0)),0,OFFSET(Setup!$D$7,MATCH($F46,TaxCode,0),0,1,1)))+IF(ISERROR($G46),0,IF(ISNA(MATCH($G46,TaxCode,0)),0,OFFSET(Setup!$D$7,MATCH($G46,TaxCode,0),0,1,1))))*IF(ISERROR($G46),0,IF(ISNA(MATCH($G46,TaxCode,0)),0,OFFSET(Setup!$D$7,MATCH($G46,TaxCode,0),0,1,1))) -> 0 | O46: =IF(TaxCount=2,E46-SUM(M46:N46),E46-SUM(M46:M46)) -> -13000 | P46: 2020-05-20T00:00:46 | Q46: -
A47: 2020-05-22 | B47: PQW Parking | C47: TR5674 | D47: Parking | E47: -641.82 | F47: A | G47: E | H47: B1 | I47: IS-390 | J47: 2020-05-22 | K47: W | L47: =SUMIFS(CBIncl,CBBalDate,"<="&($A47+(ROW($A47)/86400)),CBBank,$H47) -> 61121.2 | M47: =$E47/(1+IF(ISERROR($F47),0,IF(ISNA(MATCH($F47,TaxCode,0)),0,OFFSET(Setup!$D$7,MATCH($F47,TaxCode,0),0,1,1)))+IF(ISERROR($G47),0,IF(ISNA(MATCH($G47,TaxCode,0)),0,OFFSET(Setup!$D$7,MATCH($G47,TaxCode,0),0,1,1))))*IF(ISERROR($F47),0,IF(ISNA(MATCH($F47,TaxCode,0)),0,OFFSET(Setup!$D$7,MATCH($F47,TaxCode,0),0,1,1))) -> -83.71565217 | N47: =$E47/(1+IF(ISERROR($F47),0,IF(ISNA(MATCH($F47,TaxCode,0)),0,OFFSET(Setup!$D$7,MATCH($F47,TaxCode,0),0,1,1)))+IF(ISERROR($G47),0,IF(ISNA(MATCH($G47,TaxCode,0)),0,OFFSET(Setup!$D$7,MATCH($G47,TaxCode,0),0,1,1))))*IF(ISERROR($G47),0,IF(ISNA(MATCH($G47,TaxCode,0)),0,OFFSET(Setup!$D$7,MATCH($G47,TaxCode,0),0,1,1))) -> 0 | O47: =IF(TaxCount=2,E47-SUM(M47:N47),E47-SUM(M47:M47)) -> -558.1043478 | P47: 2020-05-22T00:00:47 | Q47: -
A48: 2020-05-22 | B48: Waltons | C48: Invoice | D48: Paper | E48: -228 | F48: A | G48: E | H48: PC | I48: IS-325 | J48: 2020-05-22 | K48: W | L48: =SUMIFS(CBIncl,CBBalDate,"<="&($A48+(ROW($A48)/86400)),CBBank,$H48) -> 622 | M48: =$E48/(1+IF(ISERROR($F48),0,IF(ISNA(MATCH($F48,TaxCode,0)),0,OFFSET(Setup!$D$7,MATCH($F48,TaxCode,0),0,1,1)))+IF(ISERROR($G48),0,IF(ISNA(MATCH($G48,TaxCode,0)),0,OFFSET(Setup!$D$7,MATCH($G48,TaxCode,0),0,1,1))))*IF(ISERROR($F48),0,IF(ISNA(MATCH($F48,TaxCode,0)),0,OFFSET(Setup!$D$7,MATCH($F48,TaxCode,0),0,1,1))) -> -29.73913043 | N48: =$E48/(1+IF(ISERROR($F48),0,IF(ISNA(MATCH($F48,TaxCode,0)),0,OFFSET(Setup!$D$7,MATCH($F48,TaxCode,0),0,1,1)))+IF(ISERROR($G48),0,IF(ISNA(MATCH($G48,TaxCode,0)),0,OFFSET(Setup!$D$7,MATCH($G48,TaxCode,0),0,1,1))))*IF(ISERROR($G48),0,IF(ISNA(MATCH($G48,TaxCode,0)),0,OFFSET(Setup!$D$7,MATCH($G48,TaxCode,0),0,1,1))) -> 0 | O48: =IF(TaxCount=2,E48-SUM(M48:N48),E48-SUM(M48:M48)) -> -198.2608696 | P48: 2020-05-22T00:00:48 | Q48: -
A49: 2020-05-25 | B49: Cash | C49: Bank Statement | D49: Petty Cash Reimbursement | E49: -250 | F49: E | G49: E | H49: B1 | I49: BS-TRF | J49: 2020-05-25 | K49: W | L49: =SUMIFS(CBIncl,CBBalDate,"<="&($A49+(ROW($A49)/86400)),CBBank,$H49) -> 60871.2 | M49: =$E49/(1+IF(ISERROR($F49),0,IF(ISNA(MATCH($F49,TaxCode,0)),0,OFFSET(Setup!$D$7,MATCH($F49,TaxCode,0),0,1,1)))+IF(ISERROR($G49),0,IF(ISNA(MATCH($G49,TaxCode,0)),0,OFFSET(Setup!$D$7,MATCH($G49,TaxCode,0),0,1,1))))*IF(ISERROR($F49),0,IF(ISNA(MATCH($F49,TaxCode,0)),0,OFFSET(Setup!$D$7,MATCH($F49,TaxCode,0),0,1,1))) -> 0 | N49: =$E49/(1+IF(ISERROR($F49),0,IF(ISNA(MATCH($F49,TaxCode,0)),0,OFFSET(Setup!$D$7,MATCH($F49,TaxCode,0),0,1,1)))+IF(ISERROR($G49),0,IF(ISNA(MATCH($G49,TaxCode,0)),0,OFFSET(Setup!$D$7,MATCH($G49,TaxCode,0),0,1,1))))*IF(ISERROR($G49),0,IF(ISNA(MATCH($G49,TaxCode,0)),0,OFFSET(Setup!$D$7,MATCH($G49,TaxCode,0),0,1,1))) -> 0 | O49: =IF(TaxCount=2,E49-SUM(M49:N49),E49-SUM(M49:M49)) -> -250 | P49: 2020-05-25T00:00:49 | Q49: -
A50: 2020-05-25 | B50: Cash | C50: Bank Statement | D50: Petty Cash Reimbursement | E50: 250 | F50: E | G50: E | H50: PC | I50: BS-TRF | J50: 2020-05-25 | K50: D | L50: =SUMIFS(CBIncl,CBBalDate,"<="&($A50+(ROW($A50)/86400)),CBBank,$H50) -> 872 | M50: =$E50/(1+IF(ISERROR($F50),0,IF(ISNA(MATCH($F50,TaxCode,0)),0,OFFSET(Setup!$D$7,MATCH($F50,TaxCode,0),0,1,1)))+IF(ISERROR($G50),0,IF(ISNA(MATCH($G50,TaxCode,0)),0,OFFSET(Setup!$D$7,MATCH($G50,TaxCode,0),0,1,1))))*IF(ISERROR($F50),0,IF(ISNA(MATCH($F50,TaxCode,0)),0,OFFSET(Setup!$D$7,MATCH($F50,TaxCode,0),0,1,1))) -> 0 | N50: =$E50/(1+IF(ISERROR($F50),0,IF(ISNA(MATCH($F50,TaxCode,0)),0,OFFSET(Setup!$D$7,MATCH($F50,TaxCode,0),0,1,1)))+IF(ISERROR($G50),0,IF(ISNA(MATCH($G50,TaxCode,0)),0,OFFSET(Setup!$D$7,MATCH($G50,TaxCode,0),0,1,1))))*IF(ISERROR($G50),0,IF(ISNA(MATCH($G50,TaxCode,0)),0,OFFSET(Setup!$D$7,MATCH($G50,TaxCode,0),0,1,1))) -> 0 | O50: =IF(TaxCount=2,E50-SUM(M50:N50),E50-SUM(M50:M50)) -> 250 | P50: 2020-05-25T00:00:50 | Q50: -
A51: 2020-05-26 | B51: Payroll | C51: Payroll | D51: Salaries | E51: -13000 | F51: E | G51: E | H51: B2 | I51: IS-365 | J51: 2020-05-26 | K51: W | L51: =SUMIFS(CBIncl,CBBalDate,"<="&($A51+(ROW($A51)/86400)),CBBank,$H51) -> 1600 | M51: =$E51/(1+IF(ISERROR($F51),0,IF(ISNA(MATCH($F51,TaxCode,0)),0,OFFSET(Setup!$D$7,MATCH($F51,TaxCode,0),0,1,1)))+IF(ISERROR($G51),0,IF(ISNA(MATCH($G51,TaxCode,0)),0,OFFSET(Setup!$D$7,MATCH($G51,TaxCode,0),0,1,1))))*IF(ISERROR($F51),0,IF(ISNA(MATCH($F51,TaxCode,0)),0,OFFSET(Setup!$D$7,MATCH($F51,TaxCode,0),0,1,1))) -> 0 | N51: =$E51/(1+IF(ISERROR($F51),0,IF(ISNA(MATCH($F51,TaxCode,0)),0,OFFSET(Setup!$D$7,MATCH($F51,TaxCode,0),0,1,1)))+IF(ISERROR($G51),0,IF(ISNA(MATCH($G51,TaxCode,0)),0,OFFSET(Setup!$D$7,MATCH($G51,TaxCode,0),0,1,1))))*IF(ISERROR($G51),0,IF(ISNA(MATCH($G51,TaxCode,0)),0,OFFSET(Setup!$D$7,MATCH($G51,TaxCode,0),0,1,1))) -> 0 | O51: =IF(TaxCount=2,E51-SUM(M51:N51),E51-SUM(M51:M51)) -> -13000 | P51: 2020-05-26T00:00:51 | Q51: -
A52: 2020-05-26 | B52: PR Properties | C52: Debit Order | D52: Rent | E52: -5700 | F52: A | G52: E | H52: B1 | I52: IS-350 | J52: 2020-05-26 | K52: W | L52: =SUMIFS(CBIncl,CBBalDate,"<="&($A52+(ROW($A52)/86400)),CBBank,$H52) -> 55171.2 | M52: =$E52/(1+IF(ISERROR($F52),0,IF(ISNA(MATCH($F52,TaxCode,0)),0,OFFSET(Setup!$D$7,MATCH($F52,TaxCode,0),0,1,1)))+IF(ISERROR($G52),0,IF(ISNA(MATCH($G52,TaxCode,0)),0,OFFSET(Setup!$D$7,MATCH($G52,TaxCode,0),0,1,1))))*IF(ISERROR($F52),0,IF(ISNA(MATCH($F52,TaxCode,0)),0,OFFSET(Setup!$D$7,MATCH($F52,TaxCode,0),0,1,1))) -> -743.4782609 | N52: =$E52/(1+IF(ISERROR($F52),0,IF(ISNA(MATCH($F52,TaxCode,0)),0,OFFSET(Setup!$D$7,MATCH($F52,TaxCode,0),0,1,1)))+IF(ISERROR($G52),0,IF(ISNA(MATCH($G52,TaxCode,0)),0,OFFSET(Setup!$D$7,MATCH($G52,TaxCode,0),0,1,1))))*IF(ISERROR($G52),0,IF(ISNA(MATCH($G52,TaxCode,0)),0,OFFSET(Setup!$D$7,MATCH($G52,TaxCode,0),0,1,1))) -> 0 | O52: =IF(TaxCount=2,E52-SUM(M52:N52),E52-SUM(M52:M52)) -> -4956.521739 | P52: 2020-05-26T00:00:52 | Q52: -
A53: 2020-05-26 | B53: SQ Financial Services | C53: Debit Order | D53: Interest paid | E53: -100 | F53: E | G53: E | H53: B1 | I53: IS-500 | J53: 2020-05-26 | K53: W | L53: =SUMIFS(CBIncl,CBBalDate,"<="&($A53+(ROW($A53)/86400)),CBBank,$H53) -> 55071.2 | M53: =$E53/(1+IF(ISERROR($F53),0,IF(ISNA(MATCH($F53,TaxCode,0)),0,OFFSET(Setup!$D$7,MATCH($F53,TaxCode,0),0,1,1)))+IF(ISERROR($G53),0,IF(ISNA(MATCH($G53,TaxCode,0)),0,OFFSET(Setup!$D$7,MATCH($G53,TaxCode,0),0,1,1))))*IF(ISERROR($F53),0,IF(ISNA(MATCH($F53,TaxCode,0)),0,OFFSET(Setup!$D$7,MATCH($F53,TaxCode,0),0,1,1))) -> 0 | N53: =$E53/(1+IF(ISERROR($F53),0,IF(ISNA(MATCH($F53,TaxCode,0)),0,OFFSET(Setup!$D$7,MATCH($F53,TaxCode,0),0,1,1)))+IF(ISERROR($G53),0,IF(ISNA(MATCH($G53,TaxCode,0)),0,OFFSET(Setup!$D$7,MATCH($G53,TaxCode,0),0,1,1))))*IF(ISERROR($G53),0,IF(ISNA(MATCH($G53,TaxCode,0)),0,OFFSET(Setup!$D$7,MATCH($G53,TaxCode,0),0,1,1))) -> 0 | O53: =IF(TaxCount=2,E53-SUM(M53:N53),E53-SUM(M53:M53)) -> -100 | P53: 2020-05-26T00:00:53 | Q53: -
A54: 2020-05-27 | B54: LS Retail | C54: X9987 | D54: Commission Received | E54: 5962.2 | F54: A | G54: E | H54: B1 | I54: IS-200 | J54: 2020-05-31 | K54: D | L54: =SUMIFS(CBIncl,CBBalDate,"<="&($A54+(ROW($A54)/86400)),CBBank,$H54) -> 61033.4 | M54: =$E54/(1+IF(ISERROR($F54),0,IF(ISNA(MATCH($F54,TaxCode,0)),0,OFFSET(Setup!$D$7,MATCH($F54,TaxCode,0),0,1,1)))+IF(ISERROR($G54),0,IF(ISNA(MATCH($G54,TaxCode,0)),0,OFFSET(Setup!$D$7,MATCH($G54,TaxCode,0),0,1,1))))*IF(ISERROR($F54),0,IF(ISNA(MATCH($F54,TaxCode,0)),0,OFFSET(Setup!$D$7,MATCH($F54,TaxCode,0),0,1,1))) -> 777.6782609 | N54: =$E54/(1+IF(ISERROR($F54),0,IF(ISNA(MATCH($F54,TaxCode,0)),0,OFFSET(Setup!$D$7,MATCH($F54,TaxCode,0),0,1,1)))+IF(ISERROR($G54),0,IF(ISNA(MATCH($G54,TaxCode,0)),0,OFFSET(Setup!$D$7,MATCH($G54,TaxCode,0),0,1,1))))*IF(ISERROR($G54),0,IF(ISNA(MATCH($G54,TaxCode,0)),0,OFFSET(Setup!$D$7,MATCH($G54,TaxCode,0),0,1,1))) -> 0 | O54: =IF(TaxCount=2,E54-SUM(M54:N54),E54-SUM(M54:M54)) -> 5184.521739 | P54: 2020-05-27T00:00:54 | Q54: -
A55: 2020-05-31 | B55: XY Solutions | C55: Invoice EXP12 | D55: Internet Service Provider | E55: -165.3 | F55: A | G55: E | H55: B1 | I55: IS-380 | J55: 2020-05-31 | K55: W | L55: =SUMIFS(CBIncl,CBBalDate,"<="&($A55+(ROW($A55)/86400)),CBBank,$H55) -> 60868.1 | M55: =$E55/(1+IF(ISERROR($F55),0,IF(ISNA(MATCH($F55,TaxCode,0)),0,OFFSET(Setup!$D$7,MATCH($F55,TaxCode,0),0,1,1)))+IF(ISERROR($G55),0,IF(ISNA(MATCH($G55,TaxCode,0)),0,OFFSET(Setup!$D$7,MATCH($G55,TaxCode,0),0,1,1))))*IF(ISERROR($F55),0,IF(ISNA(MATCH($F55,TaxCode,0)),0,OFFSET(Setup!$D$7,MATCH($F55,TaxCode,0),0,1,1))) -> -21.56086957 | N55: =$E55/(1+IF(ISERROR($F55),0,IF(ISNA(MATCH($F55,TaxCode,0)),0,OFFSET(Setup!$D$7,MATCH($F55,TaxCode,0),0,1,1)))+IF(ISERROR($G55),0,IF(ISNA(MATCH($G55,TaxCode,0)),0,OFFSET(Setup!$D$7,MATCH($G55,TaxCode,0),0,1,1))))*IF(ISERROR($G55),0,IF(ISNA(MATCH($G55,TaxCode,0)),0,OFFSET(Setup!$D$7,MATCH($G55,TaxCode,0),0,1,1))) -> 0 | O55: =IF(TaxCount=2,E55-SUM(M55:N55),E55-SUM(M55:M55)) -> -143.7391304 | P55: 2020-05-31T00:00:55 | Q55: -
A56: 2020-06-02 | B56: IAS Accountants | C56: Invoice | D56: Bookkeeping | E56: -912 | F56: A | G56: E | H56: B1 | I56: IS-305 | J56: 2020-06-02 | K56: W | L56: =SUMIFS(CBIncl,CBBalDate,"<="&($A56+(ROW($A56)/86400)),CBBank,$H56) -> 59956.1 | M56: =$E56/(1+IF(ISERROR($F56),0,IF(ISNA(MATCH($F56,TaxCode,0)),0,OFFSET(Setup!$D$7,MATCH($F56,TaxCode,0),0,1,1)))+IF(ISERROR($G56),0,IF(ISNA(MATCH($G56,TaxCode,0)),0,OFFSET(Setup!$D$7,MATCH($G56,TaxCode,0),0,1,1))))*IF(ISERROR($F56),0,IF(ISNA(MATCH($F56,TaxCode,0)),0,OFFSET(Setup!$D$7,MATCH($F56,TaxCode,0),0,1,1))) -> -118.9565217 | N56: =$E56/(1+IF(ISERROR($F56),0,IF(ISNA(MATCH($F56,TaxCode,0)),0,OFFSET(Setup!$D$7,MATCH($F56,TaxCode,0),0,1,1)))+IF(ISERROR($G56),0,IF(ISNA(MATCH($G56,TaxCode,0)),0,OFFSET(Setup!$D$7,MATCH($G56,TaxCode,0),0,1,1))))*IF(ISERROR($G56),0,IF(ISNA(MATCH($G56,TaxCode,0)),0,OFFSET(Setup!$D$7,MATCH($G56,TaxCode,0),0,1,1))) -> 0 | O56: =IF(TaxCount=2,E56-SUM(M56:N56),E56-SUM(M56:M56)) -> -793.0434783 | P56: 2020-06-02T00:00:56 | Q56: -
A57: 2020-06-05 | B57: Hollard | C57: Debit Order | D57: Insurance | E57: -364.8 | F57: A | G57: E | H57: B1 | I57: IS-340 | J57: 2020-06-05 | K57: W | L57: =SUMIFS(CBIncl,CBBalDate,"<="&($A57+(ROW($A57)/86400)),CBBank,$H57) -> 59591.3 | M57: =$E57/(1+IF(ISERROR($F57),0,IF(ISNA(MATCH($F57,TaxCode,0)),0,OFFSET(Setup!$D$7,MATCH($F57,TaxCode,0),0,1,1)))+IF(ISERROR($G57),0,IF(ISNA(MATCH($G57,TaxCode,0)),0,OFFSET(Setup!$D$7,MATCH($G57,TaxCode,0),0,1,1))))*IF(ISERROR($F57),0,IF(ISNA(MATCH($F57,TaxCode,0)),0,OFFSET(Setup!$D$7,MATCH($F57,TaxCode,0),0,1,1))) -> -47.5826087 | N57: =$E57/(1+IF(ISERROR($F57),0,IF(ISNA(MATCH($F57,TaxCode,0)),0,OFFSET(Setup!$D$7,MATCH($F57,TaxCode,0),0,1,1)))+IF(ISERROR($G57),0,IF(ISNA(MATCH($G57,TaxCode,0)),0,OFFSET(Setup!$D$7,MATCH($G57,TaxCode,0),0,1,1))))*IF(ISERROR($G57),0,IF(ISNA(MATCH($G57,TaxCode,0)),0,OFFSET(Setup!$D$7,MATCH($G57,TaxCode,0),0,1,1))) -> 0 | O57: =IF(TaxCount=2,E57-SUM(M57:N57),E57-SUM(M57:M57)) -> -317.2173913 | P57: 2020-06-05T00:00:57 | Q57: -
A58: 2020-06-05 | B58: Waltons | C58: Invoice | D58: Paper | E58: -228 | F58: A | G58: E | H58: PC | I58: IS-325 | J58: 2020-06-05 | K58: W | L58: =SUMIFS(CBIncl,CBBalDate,"<="&($A58+(ROW($A58)/86400)),CBBank,$H58) -> 644 | M58: =$E58/(1+IF(ISERROR($F58),0,IF(ISNA(MATCH($F58,TaxCode,0)),0,OFFSET(Setup!$D$7,MATCH($F58,TaxCode,0),0,1,1)))+IF(ISERROR($G58),0,IF(ISNA(MATCH($G58,TaxCode,0)),0,OFFSET(Setup!$D$7,MATCH($G58,TaxCode,0),0,1,1))))*IF(ISERROR($F58),0,IF(ISNA(MATCH($F58,TaxCode,0)),0,OFFSET(Setup!$D$7,MATCH($F58,TaxCode,0),0,1,1))) -> -29.73913043 | N58: =$E58/(1+IF(ISERROR($F58),0,IF(ISNA(MATCH($F58,TaxCode,0)),0,OFFSET(Setup!$D$7,MATCH($F58,TaxCode,0),0,1,1)))+IF(ISERROR($G58),0,IF(ISNA(MATCH($G58,TaxCode,0)),0,OFFSET(Setup!$D$7,MATCH($G58,TaxCode,0),0,1,1))))*IF(ISERROR($G58),0,IF(ISNA(MATCH($G58,TaxCode,0)),0,OFFSET(Setup!$D$7,MATCH($G58,TaxCode,0),0,1,1))) -> 0 | O58: =IF(TaxCount=2,E58-SUM(M58:N58),E58-SUM(M58:M58)) -> -198.2608696 | P58: 2020-06-05T00:00:58 | Q58: -
A59: 2020-06-10 | B59: SQ Financial Services | C59: Statement | D59: Loan Received | E59: 8100 | F59: E | G59: E | H59: B1 | I59: BS-700 | J59: 2020-06-10 | K59: D | L59: =SUMIFS(CBIncl,CBBalDate,"<="&($A59+(ROW($A59)/86400)),CBBank,$H59) -> 67691.3 | M59: =$E59/(1+IF(ISERROR($F59),0,IF(ISNA(MATCH($F59,TaxCode,0)),0,OFFSET(Setup!$D$7,MATCH($F59,TaxCode,0),0,1,1)))+IF(ISERROR($G59),0,IF(ISNA(MATCH($G59,TaxCode,0)),0,OFFSET(Setup!$D$7,MATCH($G59,TaxCode,0),0,1,1))))*IF(ISERROR($F59),0,IF(ISNA(MATCH($F59,TaxCode,0)),0,OFFSET(Setup!$D$7,MATCH($F59,TaxCode,0),0,1,1))) -> 0 | N59: =$E59/(1+IF(ISERROR($F59),0,IF(ISNA(MATCH($F59,TaxCode,0)),0,OFFSET(Setup!$D$7,MATCH($F59,TaxCode,0),0,1,1)))+IF(ISERROR($G59),0,IF(ISNA(MATCH($G59,TaxCode,0)),0,OFFSET(Setup!$D$7,MATCH($G59,TaxCode,0),0,1,1))))*IF(ISERROR($G59),0,IF(ISNA(MATCH($G59,TaxCode,0)),0,OFFSET(Setup!$D$7,MATCH($G59,TaxCode,0),0,1,1))) -> 0 | O59: =IF(TaxCount=2,E59-SUM(M59:N59),E59-SUM(M59:M59)) -> 8100 | P59: 2020-06-10T00:00:59 | Q59: -
A60: 2020-06-11 | B60: XX Building Supplies | C60: INV0057 | D60: Accounting Services | E60: 4560 | F60: A | G60: E | H60: B1 | I60: IS-100 | J60: 2020-06-11 | K60: D | L60: =SUMIFS(CBIncl,CBBalDate,"<="&($A60+(ROW($A60)/86400)),CBBank,$H60) -> 72251.3 | M60: =$E60/(1+IF(ISERROR($F60),0,IF(ISNA(MATCH($F60,TaxCode,0)),0,OFFSET(Setup!$D$7,MATCH($F60,TaxCode,0),0,1,1)))+IF(ISERROR($G60),0,IF(ISNA(MATCH($G60,TaxCode,0)),0,OFFSET(Setup!$D$7,MATCH($G60,TaxCode,0),0,1,1))))*IF(ISERROR($F60),0,IF(ISNA(MATCH($F60,TaxCode,0)),0,OFFSET(Setup!$D$7,MATCH($F60,TaxCode,0),0,1,1))) -> 594.7826087 | N60: =$E60/(1+IF(ISERROR($F60),0,IF(ISNA(MATCH($F60,TaxCode,0)),0,OFFSET(Setup!$D$7,MATCH($F60,TaxCode,0),0,1,1)))+IF(ISERROR($G60),0,IF(ISNA(MATCH($G60,TaxCode,0)),0,OFFSET(Setup!$D$7,MATCH($G60,TaxCode,0),0,1,1))))*IF(ISERROR($G60),0,IF(ISNA(MATCH($G60,TaxCode,0)),0,OFFSET(Setup!$D$7,MATCH($G60,TaxCode,0),0,1,1))) -> 0 | O60: =IF(TaxCount=2,E60-SUM(M60:N60),E60-SUM(M60:M60)) -> 3965.217391 | P60: 2020-06-11T00:01:00 | Q60: -
A61: 2020-06-15 | B61: ABSA | C61: Bank Statement | D61: Service Fees | E61: -57 | F61: A | G61: E | H61: B1 | I61: IS-315 | J61: 2020-06-15 | K61: W | L61: =SUMIFS(CBIncl,CBBalDate,"<="&($A61+(ROW($A61)/86400)),CBBank,$H61) -> 72194.3 | M61: =$E61/(1+IF(ISERROR($F61),0,IF(ISNA(MATCH($F61,TaxCode,0)),0,OFFSET(Setup!$D$7,MATCH($F61,TaxCode,0),0,1,1)))+IF(ISERROR($G61),0,IF(ISNA(MATCH($G61,TaxCode,0)),0,OFFSET(Setup!$D$7,MATCH($G61,TaxCode,0),0,1,1))))*IF(ISERROR($F61),0,IF(ISNA(MATCH($F61,TaxCode,0)),0,OFFSET(Setup!$D$7,MATCH($F61,TaxCode,0),0,1,1))) -> -7.434782609 | N61: =$E61/(1+IF(ISERROR($F61),0,IF(ISNA(MATCH($F61,TaxCode,0)),0,OFFSET(Setup!$D$7,MATCH($F61,TaxCode,0),0,1,1)))+IF(ISERROR($G61),0,IF(ISNA(MATCH($G61,TaxCode,0)),0,OFFSET(Setup!$D$7,MATCH($G61,TaxCode,0),0,1,1))))*IF(ISERROR($G61),0,IF(ISNA(MATCH($G61,TaxCode,0)),0,OFFSET(Setup!$D$7,MATCH($G61,TaxCode,0),0,1,1))) -> 0 | O61: =IF(TaxCount=2,E61-SUM(M61:N61),E61-SUM(M61:M61)) -> -49.56521739 | P61: 2020-06-15T00:01:01 | Q61: -
A62: 2020-06-15 | B62: Finance Week | C62: Bank Statement | D62: Annual Subscription | E62: -1368 | F62: A | G62: E | H62: B1 | I62: IS-375 | J62: 2020-06-15 | K62: W | L62: =SUMIFS(CBIncl,CBBalDate,"<="&($A62+(ROW($A62)/86400)),CBBank,$H62) -> 70826.3 | M62: =$E62/(1+IF(ISERROR($F62),0,IF(ISNA(MATCH($F62,TaxCode,0)),0,OFFSET(Setup!$D$7,MATCH($F62,TaxCode,0),0,1,1)))+IF(ISERROR($G62),0,IF(ISNA(MATCH($G62,TaxCode,0)),0,OFFSET(Setup!$D$7,MATCH($G62,TaxCode,0),0,1,1))))*IF(ISERROR($F62),0,IF(ISNA(MATCH($F62,TaxCode,0)),0,OFFSET(Setup!$D$7,MATCH($F62,TaxCode,0),0,1,1))) -> -178.4347826 | N62: =$E62/(1+IF(ISERROR($F62),0,IF(ISNA(MATCH($F62,TaxCode,0)),0,OFFSET(Setup!$D$7,MATCH($F62,TaxCode,0),0,1,1)))+IF(ISERROR($G62),0,IF(ISNA(MATCH($G62,TaxCode,0)),0,OFFSET(Setup!$D$7,MATCH($G62,TaxCode,0),0,1,1))))*IF(ISERROR($G62),0,IF(ISNA(MATCH($G62,TaxCode,0)),0,OFFSET(Setup!$D$7,MATCH($G62,TaxCode,0),0,1,1))) -> 0 | O62: =IF(TaxCount=2,E62-SUM(M62:N62),E62-SUM(M62:M62)) -> -1189.565217 | P62: 2020-06-15T00:01:02 | Q62: -
A63: 2020-06-19 | B63: Waltons | C63: Invoice | D63: Paper | E63: -228 | F63: A | G63: E | H63: PC | I63: IS-325 | J63: 2020-06-19 | K63: W | L63: =SUMIFS(CBIncl,CBBalDate,"<="&($A63+(ROW($A63)/86400)),CBBank,$H63) -> 644 | M63: =$E63/(1+IF(ISERROR($F63),0,IF(ISNA(MATCH($F63,TaxCode,0)),0,OFFSET(Setup!$D$7,MATCH($F63,TaxCode,0),0,1,1)))+IF(ISERROR($G63),0,IF(ISNA(MATCH($G63,TaxCode,0)),0,OFFSET(Setup!$D$7,MATCH($G63,TaxCode,0),0,1,1))))*IF(ISERROR($F63),0,IF(ISNA(MATCH($F63,TaxCode,0)),0,OFFSET(Setup!$D$7,MATCH($F63,TaxCode,0),0,1,1))) -> -29.73913043 | N63: =$E63/(1+IF(ISERROR($F63),0,IF(ISNA(MATCH($F63,TaxCode,0)),0,OFFSET(Setup!$D$7,MATCH($F63,TaxCode,0),0,1,1)))+IF(ISERROR($G63),0,IF(ISNA(MATCH($G63,TaxCode,0)),0,OFFSET(Setup!$D$7,MATCH($G63,TaxCode,0),0,1,1))))*IF(ISERROR($G63),0,IF(ISNA(MATCH($G63,TaxCode,0)),0,OFFSET(Setup!$D$7,MATCH($G63,TaxCode,0),0,1,1))) -> 0 | O63: =IF(TaxCount=2,E63-SUM(M63:N63),E63-SUM(M63:M63)) -> -198.2608696 | P63: 2020-06-19T00:01:03 | Q63: -
A64: 2020-06-20 | B64: Transfer | C64: Bank Statement | D64: Bank Transfer | E64: 13000 | F64: E | G64: E | H64: B2 | I64: BS-TRF | J64: 2020-06-20 | K64: D | L64: =SUMIFS(CBIncl,CBBalDate,"<="&($A64+(ROW($A64)/86400)),CBBank,$H64) -> 14600 | M64: =$E64/(1+IF(ISERROR($F64),0,IF(ISNA(MATCH($F64,TaxCode,0)),0,OFFSET(Setup!$D$7,MATCH($F64,TaxCode,0),0,1,1)))+IF(ISERROR($G64),0,IF(ISNA(MATCH($G64,TaxCode,0)),0,OFFSET(Setup!$D$7,MATCH($G64,TaxCode,0),0,1,1))))*IF(ISERROR($F64),0,IF(ISNA(MATCH($F64,TaxCode,0)),0,OFFSET(Setup!$D$7,MATCH($F64,TaxCode,0),0,1,1))) -> 0 | N64: =$E64/(1+IF(ISERROR($F64),0,IF(ISNA(MATCH($F64,TaxCode,0)),0,OFFSET(Setup!$D$7,MATCH($F64,TaxCode,0),0,1,1)))+IF(ISERROR($G64),0,IF(ISNA(MATCH($G64,TaxCode,0)),0,OFFSET(Setup!$D$7,MATCH($G64,TaxCode,0),0,1,1))))*IF(ISERROR($G64),0,IF(ISNA(MATCH($G64,TaxCode,0)),0,OFFSET(Setup!$D$7,MATCH($G64,TaxCode,0),0,1,1))) -> 0 | O64: =IF(TaxCount=2,E64-SUM(M64:N64),E64-SUM(M64:M64)) -> 13000 | P64: 2020-06-20T00:01:04 | Q64: -
A65: 2020-06-20 | B65: Transfer | C65: Bank Statement | D65: Bank Transfer | E65: -13000 | F65: E | G65: E | H65: B1 | I65: BS-TRF | J65: 2020-06-20 | K65: W | L65: =SUMIFS(CBIncl,CBBalDate,"<="&($A65+(ROW($A65)/86400)),CBBank,$H65) -> 57826.3 | M65: =$E65/(1+IF(ISERROR($F65),0,IF(ISNA(MATCH($F65,TaxCode,0)),0,OFFSET(Setup!$D$7,MATCH($F65,TaxCode,0),0,1,1)))+IF(ISERROR($G65),0,IF(ISNA(MATCH($G65,TaxCode,0)),0,OFFSET(Setup!$D$7,MATCH($G65,TaxCode,0),0,1,1))))*IF(ISERROR($F65),0,IF(ISNA(MATCH($F65,TaxCode,0)),0,OFFSET(Setup!$D$7,MATCH($F65,TaxCode,0),0,1,1))) -> 0 | N65: =$E65/(1+IF(ISERROR($F65),0,IF(ISNA(MATCH($F65,TaxCode,0)),0,OFFSET(Setup!$D$7,MATCH($F65,TaxCode,0),0,1,1)))+IF(ISERROR($G65),0,IF(ISNA(MATCH($G65,TaxCode,0)),0,OFFSET(Setup!$D$7,MATCH($G65,TaxCode,0),0,1,1))))*IF(ISERROR($G65),0,IF(ISNA(MATCH($G65,TaxCode,0)),0,OFFSET(Setup!$D$7,MATCH($G65,TaxCode,0),0,1,1))) -> 0 | O65: =IF(TaxCount=2,E65-SUM(M65:N65),E65-SUM(M65:M65)) -> -13000 | P65: 2020-06-20T00:01:05 | Q65: -
A66: 2020-06-25 | B66: Cash | C66: Bank Statement | D66: Petty Cash Reimbursement | E66: -200 | F66: E | G66: E | H66: B1 | I66: BS-TRF | J66: 2020-06-25 | K66: W | L66: =SUMIFS(CBIncl,CBBalDate,"<="&($A66+(ROW($A66)/86400)),CBBank,$H66) -> 57626.3 | M66: =$E66/(1+IF(ISERROR($F66),0,IF(ISNA(MATCH($F66,TaxCode,0)),0,OFFSET(Setup!$D$7,MATCH($F66,TaxCode,0),0,1,1)))+IF(ISERROR($G66),0,IF(ISNA(MATCH($G66,TaxCode,0)),0,OFFSET(Setup!$D$7,MATCH($G66,TaxCode,0),0,1,1))))*IF(ISERROR($F66),0,IF(ISNA(MATCH($F66,TaxCode,0)),0,OFFSET(Setup!$D$7,MATCH($F66,TaxCode,0),0,1,1))) -> 0 | N66: =$E66/(1+IF(ISERROR($F66),0,IF(ISNA(MATCH($F66,TaxCode,0)),0,OFFSET(Setup!$D$7,MATCH($F66,TaxCode,0),0,1,1)))+IF(ISERROR($G66),0,IF(ISNA(MATCH($G66,TaxCode,0)),0,OFFSET(Setup!$D$7,MATCH($G66,TaxCode,0),0,1,1))))*IF(ISERROR($G66),0,IF(ISNA(MATCH($G66,TaxCode,0)),0,OFFSET(Setup!$D$7,MATCH($G66,TaxCode,0),0,1,1))) -> 0 | O66: =IF(TaxCount=2,E66-SUM(M66:N66),E66-SUM(M66:M66)) -> -200 | P66: 2020-06-25T00:01:06 | Q66: -
A67: 2020-06-25 | B67: Cash | C67: Bank Statement | D67: Petty Cash Reimbursement | E67: 200 | F67: E | G67: E | H67: PC | I67: BS-TRF | J67: 2020-06-25 | K67: D | L67: =SUMIFS(CBIncl,CBBalDate,"<="&($A67+(ROW($A67)/86400)),CBBank,$H67) -> 616 | M67: =$E67/(1+IF(ISERROR($F67),0,IF(ISNA(MATCH($F67,TaxCode,0)),0,OFFSET(Setup!$D$7,MATCH($F67,TaxCode,0),0,1,1)))+IF(ISERROR($G67),0,IF(ISNA(MATCH($G67,TaxCode,0)),0,OFFSET(Setup!$D$7,MATCH($G67,TaxCode,0),0,1,1))))*IF(ISERROR($F67),0,IF(ISNA(MATCH($F67,TaxCode,0)),0,OFFSET(Setup!$D$7,MATCH($F67,TaxCode,0),0,1,1))) -> 0 | N67: =$E67/(1+IF(ISERROR($F67),0,IF(ISNA(MATCH($F67,TaxCode,0)),0,OFFSET(Setup!$D$7,MATCH($F67,TaxCode,0),0,1,1)))+IF(ISERROR($G67),0,IF(ISNA(MATCH($G67,TaxCode,0)),0,OFFSET(Setup!$D$7,MATCH($G67,TaxCode,0),0,1,1))))*IF(ISERROR($G67),0,IF(ISNA(MATCH($G67,TaxCode,0)),0,OFFSET(Setup!$D$7,MATCH($G67,TaxCode,0),0,1,1))) -> 0 | O67: =IF(TaxCount=2,E67-SUM(M67:N67),E67-SUM(M67:M67)) -> 200 | P67: 2020-06-25T00:01:07 | Q67: -
A68: 2020-06-25 | B68: Inland Revenue | C68: Return | D68: Sales Tax | E68: -5000 | F68: E | G68: E | H68: B1 | I68: BS-TAX1 | J68: 2020-06-25 | K68: W | L68: =SUMIFS(CBIncl,CBBalDate,"<="&($A68+(ROW($A68)/86400)),CBBank,$H68) -> 52626.3 | M68: =$E68/(1+IF(ISERROR($F68),0,IF(ISNA(MATCH($F68,TaxCode,0)),0,OFFSET(Setup!$D$7,MATCH($F68,TaxCode,0),0,1,1)))+IF(ISERROR($G68),0,IF(ISNA(MATCH($G68,TaxCode,0)),0,OFFSET(Setup!$D$7,MATCH($G68,TaxCode,0),0,1,1))))*IF(ISERROR($F68),0,IF(ISNA(MATCH($F68,TaxCode,0)),0,OFFSET(Setup!$D$7,MATCH($F68,TaxCode,0),0,1,1))) -> 0 | N68: =$E68/(1+IF(ISERROR($F68),0,IF(ISNA(MATCH($F68,TaxCode,0)),0,OFFSET(Setup!$D$7,MATCH($F68,TaxCode,0),0,1,1)))+IF(ISERROR($G68),0,IF(ISNA(MATCH($G68,TaxCode,0)),0,OFFSET(Setup!$D$7,MATCH($G68,TaxCode,0),0,1,1))))*IF(ISERROR($G68),0,IF(ISNA(MATCH($G68,TaxCode,0)),0,OFFSET(Setup!$D$7,MATCH($G68,TaxCode,0),0,1,1))) -> 0 | O68: =IF(TaxCount=2,E68-SUM(M68:N68),E68-SUM(M68:M68)) -> -5000 | P68: 2020-06-25T00:01:08 | Q68: -
A69: 2020-06-25 | B69: XR Supplies | C69: Invoice | D69: Computer equipment | E69: -5700 | F69: A | G69: E | H69: B1 | I69: BS-100 | J69: 2020-06-25 | K69: =IF(E69>=0,"D","W") -> W | L69: =SUMIFS(CBIncl,CBBalDate,"<="&($A69+(ROW($A69)/86400)),CBBank,$H69) -> 46926.3 | M69: =$E69/(1+IF(ISERROR($F69),0,IF(ISNA(MATCH($F69,TaxCode,0)),0,OFFSET(Setup!$D$7,MATCH($F69,TaxCode,0),0,1,1)))+IF(ISERROR($G69),0,IF(ISNA(MATCH($G69,TaxCode,0)),0,OFFSET(Setup!$D$7,MATCH($G69,TaxCode,0),0,1,1))))*IF(ISERROR($F69),0,IF(ISNA(MATCH($F69,TaxCode,0)),0,OFFSET(Setup!$D$7,MATCH($F69,TaxCode,0),0,1,1))) -> -743.4782609 | N69: =$E69/(1+IF(ISERROR($F69),0,IF(ISNA(MATCH($F69,TaxCode,0)),0,OFFSET(Setup!$D$7,MATCH($F69,TaxCode,0),0,1,1)))+IF(ISERROR($G69),0,IF(ISNA(MATCH($G69,TaxCode,0)),0,OFFSET(Setup!$D$7,MATCH($G69,TaxCode,0),0,1,1))))*IF(ISERROR($G69),0,IF(ISNA(MATCH($G69,TaxCode,0)),0,OFFSET(Setup!$D$7,MATCH($G69,TaxCode,0),0,1,1))) -> 0 | O69: =IF(TaxCount=2,E69-SUM(M69:N69),E69-SUM(M69:M69)) -> -4956.521739 | P69: =IF(ISBLANK($A69)=TRUE,TODAY()+(ROW($A69)/86400),$A69+(ROW($A69)/86400)) -> 2020-06-25T00:01:09 | Q69: =IF(AND(ISBLANK(J69)=FALSE,J69<A69),"E1",IF(AND(ISBLANK(I69)=FALSE,ISNA(VLOOKUP(I69,AccountAll,1,0))),"E2",IF(AND(ISBLANK(H69)=FALSE,ISNA(VLOOKUP(H69,BankCode,1,0))),"E3","-"))) -> -
A70: 2020-06-26 | B70: Payroll | C70: Payroll | D70: Salaries | E70: -13000 | F70: E | G70: E | H70: B2 | I70: IS-365 | J70: 2020-06-26 | K70: W | L70: =SUMIFS(CBIncl,CBBalDate,"<="&($A70+(ROW($A70)/86400)),CBBank,$H70) -> 1600 | M70: =$E70/(1+IF(ISERROR($F70),0,IF(ISNA(MATCH($F70,TaxCode,0)),0,OFFSET(Setup!$D$7,MATCH($F70,TaxCode,0),0,1,1)))+IF(ISERROR($G70),0,IF(ISNA(MATCH($G70,TaxCode,0)),0,OFFSET(Setup!$D$7,MATCH($G70,TaxCode,0),0,1,1))))*IF(ISERROR($F70),0,IF(ISNA(MATCH($F70,TaxCode,0)),0,OFFSET(Setup!$D$7,MATCH($F70,TaxCode,0),0,1,1))) -> 0 | N70: =$E70/(1+IF(ISERROR($F70),0,IF(ISNA(MATCH($F70,TaxCode,0)),0,OFFSET(Setup!$D$7,MATCH($F70,TaxCode,0),0,1,1)))+IF(ISERROR($G70),0,IF(ISNA(MATCH($G70,TaxCode,0)),0,OFFSET(Setup!$D$7,MATCH($G70,TaxCode,0),0,1,1))))*IF(ISERROR($G70),0,IF(ISNA(MATCH($G70,TaxCode,0)),0,OFFSET(Setup!$D$7,MATCH($G70,TaxCode,0),0,1,1))) -> 0 | O70: =IF(TaxCount=2,E70-SUM(M70:N70),E70-SUM(M70:M70)) -> -13000 | P70: 2020-06-26T00:01:10 | Q70: -
A71: 2020-06-26 | B71: PR Properties | C71: Debit Order | D71: Rent | E71: -5700 | F71: A | G71: E | H71: B1 | I71: IS-350 | J71: 2020-06-26 | K71: W | L71: =SUMIFS(CBIncl,CBBalDate,"<="&($A71+(ROW($A71)/86400)),CBBank,$H71) -> 41226.3 | M71: =$E71/(1+IF(ISERROR($F71),0,IF(ISNA(MATCH($F71,TaxCode,0)),0,OFFSET(Setup!$D$7,MATCH($F71,TaxCode,0),0,1,1)))+IF(ISERROR($G71),0,IF(ISNA(MATCH($G71,TaxCode,0)),0,OFFSET(Setup!$D$7,MATCH($G71,TaxCode,0),0,1,1))))*IF(ISERROR($F71),0,IF(ISNA(MATCH($F71,TaxCode,0)),0,OFFSET(Setup!$D$7,MATCH($F71,TaxCode,0),0,1,1))) -> -743.4782609 | N71: =$E71/(1+IF(ISERROR($F71),0,IF(ISNA(MATCH($F71,TaxCode,0)),0,OFFSET(Setup!$D$7,MATCH($F71,TaxCode,0),0,1,1)))+IF(ISERROR($G71),0,IF(ISNA(MATCH($G71,TaxCode,0)),0,OFFSET(Setup!$D$7,MATCH($G71,TaxCode,0),0,1,1))))*IF(ISERROR($G71),0,IF(ISNA(MATCH($G71,TaxCode,0)),0,OFFSET(Setup!$D$7,MATCH($G71,TaxCode,0),0,1,1))) -> 0 | O71: =IF(TaxCount=2,E71-SUM(M71:N71),E71-SUM(M71:M71)) -> -4956.521739 | P71: 2020-06-26T00:01:11 | Q71: -
A72: 2020-06-26 | B72: SQ Financial Services | C72: Debit Order | D72: Capital repayment | E72: -220 | F72: E | G72: E | H72: B1 | I72: BS-700 | J72: 2020-06-26 | K72: W | L72: =SUMIFS(CBIncl,CBBalDate,"<="&($A72+(ROW($A72)/86400)),CBBank,$H72) -> 41006.3 | M72: =$E72/(1+IF(ISERROR($F72),0,IF(ISNA(MATCH($F72,TaxCode,0)),0,OFFSET(Setup!$D$7,MATCH($F72,TaxCode,0),0,1,1)))+IF(ISERROR($G72),0,IF(ISNA(MATCH($G72,TaxCode,0)),0,OFFSET(Setup!$D$7,MATCH($G72,TaxCode,0),0,1,1))))*IF(ISERROR($F72),0,IF(ISNA(MATCH($F72,TaxCode,0)),0,OFFSET(Setup!$D$7,MATCH($F72,TaxCode,0),0,1,1))) -> 0 | N72: =$E72/(1+IF(ISERROR($F72),0,IF(ISNA(MATCH($F72,TaxCode,0)),0,OFFSET(Setup!$D$7,MATCH($F72,TaxCode,0),0,1,1)))+IF(ISERROR($G72),0,IF(ISNA(MATCH($G72,TaxCode,0)),0,OFFSET(Setup!$D$7,MATCH($G72,TaxCode,0),0,1,1))))*IF(ISERROR($G72),0,IF(ISNA(MATCH($G72,TaxCode,0)),0,OFFSET(Setup!$D$7,MATCH($G72,TaxCode,0),0,1,1))) -> 0 | O72: =IF(TaxCount=2,E72-SUM(M72:N72),E72-SUM(M72:M72)) -> -220 | P72: 2020-06-26T00:01:12 | Q72: -
A73: 2020-06-26 | B73: SQ Financial Services | C73: Debit Order | D73: Interest paid | E73: -100 | F73: E | G73: E | H73: B1 | I73: IS-500 | J73: 2020-06-26 | K73: W | L73: =SUMIFS(CBIncl,CBBalDate,"<="&($A73+(ROW($A73)/86400)),CBBank,$H73) -> 40906.3 | M73: =$E73/(1+IF(ISERROR($F73),0,IF(ISNA(MATCH($F73,TaxCode,0)),0,OFFSET(Setup!$D$7,MATCH($F73,TaxCode,0),0,1,1)))+IF(ISERROR($G73),0,IF(ISNA(MATCH($G73,TaxCode,0)),0,OFFSET(Setup!$D$7,MATCH($G73,TaxCode,0),0,1,1))))*IF(ISERROR($F73),0,IF(ISNA(MATCH($F73,TaxCode,0)),0,OFFSET(Setup!$D$7,MATCH($F73,TaxCode,0),0,1,1))) -> 0 | N73: =$E73/(1+IF(ISERROR($F73),0,IF(ISNA(MATCH($F73,TaxCode,0)),0,OFFSET(Setup!$D$7,MATCH($F73,TaxCode,0),0,1,1)))+IF(ISERROR($G73),0,IF(ISNA(MATCH($G73,TaxCode,0)),0,OFFSET(Setup!$D$7,MATCH($G73,TaxCode,0),0,1,1))))*IF(ISERROR($G73),0,IF(ISNA(MATCH($G73,TaxCode,0)),0,OFFSET(Setup!$D$7,MATCH($G73,TaxCode,0),0,1,1))) -> 0 | O73: =IF(TaxCount=2,E73-SUM(M73:N73),E73-SUM(M73:M73)) -> -100 | P73: 2020-06-26T00:01:13 | Q73: -
A74: 2020-06-26 | B74: TRF Solutions | C74: INV0058 | D74: Accounting Services | E74: 15276 | F74: A | G74: E | H74: B1 | I74: IS-100 | J74: 2020-06-26 | K74: D | L74: =SUMIFS(CBIncl,CBBalDate,"<="&($A74+(ROW($A74)/86400)),CBBank,$H74) -> 56182.3 | M74: =$E74/(1+IF(ISERROR($F74),0,IF(ISNA(MATCH($F74,TaxCode,0)),0,OFFSET(Setup!$D$7,MATCH($F74,TaxCode,0),0,1,1)))+IF(ISERROR($G74),0,IF(ISNA(MATCH($G74,TaxCode,0)),0,OFFSET(Setup!$D$7,MATCH($G74,TaxCode,0),0,1,1))))*IF(ISERROR($F74),0,IF(ISNA(MATCH($F74,TaxCode,0)),0,OFFSET(Setup!$D$7,MATCH($F74,TaxCode,0),0,1,1))) -> 1992.521739 | N74: =$E74/(1+IF(ISERROR($F74),0,IF(ISNA(MATCH($F74,TaxCode,0)),0,OFFSET(Setup!$D$7,MATCH($F74,TaxCode,0),0,1,1)))+IF(ISERROR($G74),0,IF(ISNA(MATCH($G74,TaxCode,0)),0,OFFSET(Setup!$D$7,MATCH($G74,TaxCode,0),0,1,1))))*IF(ISERROR($G74),0,IF(ISNA(MATCH($G74,TaxCode,0)),0,OFFSET(Setup!$D$7,MATCH($G74,TaxCode,0),0,1,1))) -> 0 | O74: =IF(TaxCount=2,E74-SUM(M74:N74),E74-SUM(M74:M74)) -> 13283.47826 | P74: 2020-06-26T00:01:14 | Q74: -
A75: 2020-07-01 | B75: WW Retail | C75: INV0059 | D75: Taxation Services | E75: 5130 | F75: A | G75: E | H75: B1 | I75: IS-100 | J75: 2020-07-01 | K75: D | L75: =SUMIFS(CBIncl,CBBalDate,"<="&($A75+(ROW($A75)/86400)),CBBank,$H75) -> 61312.3 | M75: =$E75/(1+IF(ISERROR($F75),0,IF(ISNA(MATCH($F75,TaxCode,0)),0,OFFSET(Setup!$D$7,MATCH($F75,TaxCode,0),0,1,1)))+IF(ISERROR($G75),0,IF(ISNA(MATCH($G75,TaxCode,0)),0,OFFSET(Setup!$D$7,MATCH($G75,TaxCode,0),0,1,1))))*IF(ISERROR($F75),0,IF(ISNA(MATCH($F75,TaxCode,0)),0,OFFSET(Setup!$D$7,MATCH($F75,TaxCode,0),0,1,1))) -> 669.1304348 | N75: =$E75/(1+IF(ISERROR($F75),0,IF(ISNA(MATCH($F75,TaxCode,0)),0,OFFSET(Setup!$D$7,MATCH($F75,TaxCode,0),0,1,1)))+IF(ISERROR($G75),0,IF(ISNA(MATCH($G75,TaxCode,0)),0,OFFSET(Setup!$D$7,MATCH($G75,TaxCode,0),0,1,1))))*IF(ISERROR($G75),0,IF(ISNA(MATCH($G75,TaxCode,0)),0,OFFSET(Setup!$D$7,MATCH($G75,TaxCode,0),0,1,1))) -> 0 | O75: =IF(TaxCount=2,E75-SUM(M75:N75),E75-SUM(M75:M75)) -> 4460.869565 | P75: 2020-07-01T00:01:15 | Q75: -
A76: 2020-07-01 | B76: XY Solutions | C76: Invoice EXP13 | D76: Internet Service Provider | E76: -165.3 | F76: A | G76: E | H76: B1 | I76: IS-380 | J76: 2020-07-01 | K76: W | L76: =SUMIFS(CBIncl,CBBalDate,"<="&($A76+(ROW($A76)/86400)),CBBank,$H76) -> 61147 | M76: =$E76/(1+IF(ISERROR($F76),0,IF(ISNA(MATCH($F76,TaxCode,0)),0,OFFSET(Setup!$D$7,MATCH($F76,TaxCode,0),0,1,1)))+IF(ISERROR($G76),0,IF(ISNA(MATCH($G76,TaxCode,0)),0,OFFSET(Setup!$D$7,MATCH($G76,TaxCode,0),0,1,1))))*IF(ISERROR($F76),0,IF(ISNA(MATCH($F76,TaxCode,0)),0,OFFSET(Setup!$D$7,MATCH($F76,TaxCode,0),0,1,1))) -> -21.56086957 | N76: =$E76/(1+IF(ISERROR($F76),0,IF(ISNA(MATCH($F76,TaxCode,0)),0,OFFSET(Setup!$D$7,MATCH($F76,TaxCode,0),0,1,1)))+IF(ISERROR($G76),0,IF(ISNA(MATCH($G76,TaxCode,0)),0,OFFSET(Setup!$D$7,MATCH($G76,TaxCode,0),0,1,1))))*IF(ISERROR($G76),0,IF(ISNA(MATCH($G76,TaxCode,0)),0,OFFSET(Setup!$D$7,MATCH($G76,TaxCode,0),0,1,1))) -> 0 | O76: =IF(TaxCount=2,E76-SUM(M76:N76),E76-SUM(M76:M76)) -> -143.7391304 | P76: 2020-07-01T00:01:16 | Q76: -
A77: 2020-07-03 | B77: IAS Accountants | C77: Invoice | D77: Bookkeeping | E77: -912 | F77: A | G77: E | H77: B1 | I77: IS-305 | J77: 2020-07-03 | K77: W | L77: =SUMIFS(CBIncl,CBBalDate,"<="&($A77+(ROW($A77)/86400)),CBBank,$H77) -> 60235 | M77: =$E77/(1+IF(ISERROR($F77),0,IF(ISNA(MATCH($F77,TaxCode,0)),0,OFFSET(Setup!$D$7,MATCH($F77,TaxCode,0),0,1,1)))+IF(ISERROR($G77),0,IF(ISNA(MATCH($G77,TaxCode,0)),0,OFFSET(Setup!$D$7,MATCH($G77,TaxCode,0),0,1,1))))*IF(ISERROR($F77),0,IF(ISNA(MATCH($F77,TaxCode,0)),0,OFFSET(Setup!$D$7,MATCH($F77,TaxCode,0),0,1,1))) -> -118.9565217 | N77: =$E77/(1+IF(ISERROR($F77),0,IF(ISNA(MATCH($F77,TaxCode,0)),0,OFFSET(Setup!$D$7,MATCH($F77,TaxCode,0),0,1,1)))+IF(ISERROR($G77),0,IF(ISNA(MATCH($G77,TaxCode,0)),0,OFFSET(Setup!$D$7,MATCH($G77,TaxCode,0),0,1,1))))*IF(ISERROR($G77),0,IF(ISNA(MATCH($G77,TaxCode,0)),0,OFFSET(Setup!$D$7,MATCH($G77,TaxCode,0),0,1,1))) -> 0 | O77: =IF(TaxCount=2,E77-SUM(M77:N77),E77-SUM(M77:M77)) -> -793.0434783 | P77: 2020-07-03T00:01:17 | Q77: -
A78: 2020-07-03 | B78: Waltons | C78: Invoice | D78: Paper | E78: -250.173 | F78: A | G78: E | H78: PC | I78: IS-325 | J78: 2020-07-03 | K78: W | L78: =SUMIFS(CBIncl,CBBalDate,"<="&($A78+(ROW($A78)/86400)),CBBank,$H78) -> 365.827 | M78: =$E78/(1+IF(ISERROR($F78),0,IF(ISNA(MATCH($F78,TaxCode,0)),0,OFFSET(Setup!$D$7,MATCH($F78,TaxCode,0),0,1,1)))+IF(ISERROR($G78),0,IF(ISNA(MATCH($G78,TaxCode,0)),0,OFFSET(Setup!$D$7,MATCH($G78,TaxCode,0),0,1,1))))*IF(ISERROR($F78),0,IF(ISNA(MATCH($F78,TaxCode,0)),0,OFFSET(Setup!$D$7,MATCH($F78,TaxCode,0),0,1,1))) -> -32.63126087 | N78: =$E78/(1+IF(ISERROR($F78),0,IF(ISNA(MATCH($F78,TaxCode,0)),0,OFFSET(Setup!$D$7,MATCH($F78,TaxCode,0),0,1,1)))+IF(ISERROR($G78),0,IF(ISNA(MATCH($G78,TaxCode,0)),0,OFFSET(Setup!$D$7,MATCH($G78,TaxCode,0),0,1,1))))*IF(ISERROR($G78),0,IF(ISNA(MATCH($G78,TaxCode,0)),0,OFFSET(Setup!$D$7,MATCH($G78,TaxCode,0),0,1,1))) -> 0 | O78: =IF(TaxCount=2,E78-SUM(M78:N78),E78-SUM(M78:M78)) -> -217.5417391 | P78: 2020-07-03T00:01:18 | Q78: -
A79: 2020-07-05 | B79: Hollard | C79: Debit Order | D79: Insurance | E79: -364.8 | F79: A | G79: E | H79: B1 | I79: IS-340 | J79: 2020-07-05 | K79: W | L79: =SUMIFS(CBIncl,CBBalDate,"<="&($A79+(ROW($A79)/86400)),CBBank,$H79) -> 59870.2 | M79: =$E79/(1+IF(ISERROR($F79),0,IF(ISNA(MATCH($F79,TaxCode,0)),0,OFFSET(Setup!$D$7,MATCH($F79,TaxCode,0),0,1,1)))+IF(ISERROR($G79),0,IF(ISNA(MATCH($G79,TaxCode,0)),0,OFFSET(Setup!$D$7,MATCH($G79,TaxCode,0),0,1,1))))*IF(ISERROR($F79),0,IF(ISNA(MATCH($F79,TaxCode,0)),0,OFFSET(Setup!$D$7,MATCH($F79,TaxCode,0),0,1,1))) -> -47.5826087 | N79: =$E79/(1+IF(ISERROR($F79),0,IF(ISNA(MATCH($F79,TaxCode,0)),0,OFFSET(Setup!$D$7,MATCH($F79,TaxCode,0),0,1,1)))+IF(ISERROR($G79),0,IF(ISNA(MATCH($G79,TaxCode,0)),0,OFFSET(Setup!$D$7,MATCH($G79,TaxCode,0),0,1,1))))*IF(ISERROR($G79),0,IF(ISNA(MATCH($G79,TaxCode,0)),0,OFFSET(Setup!$D$7,MATCH($G79,TaxCode,0),0,1,1))) -> 0 | O79: =IF(TaxCount=2,E79-SUM(M79:N79),E79-SUM(M79:M79)) -> -317.2173913 | P79: 2020-07-05T00:01:19 | Q79: -
A80: 2020-07-11 | B80: PQW Parking | C80: TR5982 | D80: Parking | E80: -229.14 | F80: A | G80: E | H80: B1 | I80: IS-390 | J80: 2020-07-11 | K80: W | L80: =SUMIFS(CBIncl,CBBalDate,"<="&($A80+(ROW($A80)/86400)),CBBank,$H80) -> 59641.06 | M80: =$E80/(1+IF(ISERROR($F80),0,IF(ISNA(MATCH($F80,TaxCode,0)),0,OFFSET(Setup!$D$7,MATCH($F80,TaxCode,0),0,1,1)))+IF(ISERROR($G80),0,IF(ISNA(MATCH($G80,TaxCode,0)),0,OFFSET(Setup!$D$7,MATCH($G80,TaxCode,0),0,1,1))))*IF(ISERROR($F80),0,IF(ISNA(MATCH($F80,TaxCode,0)),0,OFFSET(Setup!$D$7,MATCH($F80,TaxCode,0),0,1,1))) -> -29.88782609 | N80: =$E80/(1+IF(ISERROR($F80),0,IF(ISNA(MATCH($F80,TaxCode,0)),0,OFFSET(Setup!$D$7,MATCH($F80,TaxCode,0),0,1,1)))+IF(ISERROR($G80),0,IF(ISNA(MATCH($G80,TaxCode,0)),0,OFFSET(Setup!$D$7,MATCH($G80,TaxCode,0),0,1,1))))*IF(ISERROR($G80),0,IF(ISNA(MATCH($G80,TaxCode,0)),0,OFFSET(Setup!$D$7,MATCH($G80,TaxCode,0),0,1,1))) -> 0 | O80: =IF(TaxCount=2,E80-SUM(M80:N80),E80-SUM(M80:M80)) -> -199.2521739 | P80: 2020-07-11T00:01:20 | Q80: -
A81: 2020-07-15 | B81: ABSA | C81: Bank Statement | D81: Service Fees | E81: -57 | F81: A | G81: E | H81: B1 | I81: IS-315 | J81: 2020-07-15 | K81: W | L81: =SUMIFS(CBIncl,CBBalDate,"<="&($A81+(ROW($A81)/86400)),CBBank,$H81) -> 59584.06 | M81: =$E81/(1+IF(ISERROR($F81),0,IF(ISNA(MATCH($F81,TaxCode,0)),0,OFFSET(Setup!$D$7,MATCH($F81,TaxCode,0),0,1,1)))+IF(ISERROR($G81),0,IF(ISNA(MATCH($G81,TaxCode,0)),0,OFFSET(Setup!$D$7,MATCH($G81,TaxCode,0),0,1,1))))*IF(ISERROR($F81),0,IF(ISNA(MATCH($F81,TaxCode,0)),0,OFFSET(Setup!$D$7,MATCH($F81,TaxCode,0),0,1,1))) -> -7.434782609 | N81: =$E81/(1+IF(ISERROR($F81),0,IF(ISNA(MATCH($F81,TaxCode,0)),0,OFFSET(Setup!$D$7,MATCH($F81,TaxCode,0),0,1,1)))+IF(ISERROR($G81),0,IF(ISNA(MATCH($G81,TaxCode,0)),0,OFFSET(Setup!$D$7,MATCH($G81,TaxCode,0),0,1,1))))*IF(ISERROR($G81),0,IF(ISNA(MATCH($G81,TaxCode,0)),0,OFFSET(Setup!$D$7,MATCH($G81,TaxCode,0),0,1,1))) -> 0 | O81: =IF(TaxCount=2,E81-SUM(M81:N81),E81-SUM(M81:M81)) -> -49.56521739 | P81: 2020-07-15T00:01:21 | Q81: -
A82: 2020-07-17 | B82: SPAR | C82: IN1123 | D82: Consumables | E82: -111.72 | F82: A | G82: E | H82: PC | I82: IS-325 | J82: 2020-07-17 | K82: W | L82: =SUMIFS(CBIncl,CBBalDate,"<="&($A82+(ROW($A82)/86400)),CBBank,$H82) -> 254.107 | M82: =$E82/(1+IF(ISERROR($F82),0,IF(ISNA(MATCH($F82,TaxCode,0)),0,OFFSET(Setup!$D$7,MATCH($F82,TaxCode,0),0,1,1)))+IF(ISERROR($G82),0,IF(ISNA(MATCH($G82,TaxCode,0)),0,OFFSET(Setup!$D$7,MATCH($G82,TaxCode,0),0,1,1))))*IF(ISERROR($F82),0,IF(ISNA(MATCH($F82,TaxCode,0)),0,OFFSET(Setup!$D$7,MATCH($F82,TaxCode,0),0,1,1))) -> -14.57217391 | N82: =$E82/(1+IF(ISERROR($F82),0,IF(ISNA(MATCH($F82,TaxCode,0)),0,OFFSET(Setup!$D$7,MATCH($F82,TaxCode,0),0,1,1)))+IF(ISERROR($G82),0,IF(ISNA(MATCH($G82,TaxCode,0)),0,OFFSET(Setup!$D$7,MATCH($G82,TaxCode,0),0,1,1))))*IF(ISERROR($G82),0,IF(ISNA(MATCH($G82,TaxCode,0)),0,OFFSET(Setup!$D$7,MATCH($G82,TaxCode,0),0,1,1))) -> 0 | O82: =IF(TaxCount=2,E82-SUM(M82:N82),E82-SUM(M82:M82)) -> -97.14782609 | P82: 2020-07-17T00:01:22 | Q82: -
A83: 2020-07-20 | B83: Transfer | C83: Bank Statement | D83: Bank Transfer | E83: 13000 | F83: E | G83: E | H83: B2 | I83: BS-TRF | J83: 2020-07-20 | K83: D | L83: =SUMIFS(CBIncl,CBBalDate,"<="&($A83+(ROW($A83)/86400)),CBBank,$H83) -> 14600 | M83: =$E83/(1+IF(ISERROR($F83),0,IF(ISNA(MATCH($F83,TaxCode,0)),0,OFFSET(Setup!$D$7,MATCH($F83,TaxCode,0),0,1,1)))+IF(ISERROR($G83),0,IF(ISNA(MATCH($G83,TaxCode,0)),0,OFFSET(Setup!$D$7,MATCH($G83,TaxCode,0),0,1,1))))*IF(ISERROR($F83),0,IF(ISNA(MATCH($F83,TaxCode,0)),0,OFFSET(Setup!$D$7,MATCH($F83,TaxCode,0),0,1,1))) -> 0 | N83: =$E83/(1+IF(ISERROR($F83),0,IF(ISNA(MATCH($F83,TaxCode,0)),0,OFFSET(Setup!$D$7,MATCH($F83,TaxCode,0),0,1,1)))+IF(ISERROR($G83),0,IF(ISNA(MATCH($G83,TaxCode,0)),0,OFFSET(Setup!$D$7,MATCH($G83,TaxCode,0),0,1,1))))*IF(ISERROR($G83),0,IF(ISNA(MATCH($G83,TaxCode,0)),0,OFFSET(Setup!$D$7,MATCH($G83,TaxCode,0),0,1,1))) -> 0 | O83: =IF(TaxCount=2,E83-SUM(M83:N83),E83-SUM(M83:M83)) -> 13000 | P83: 2020-07-20T00:01:23 | Q83: -
A84: 2020-07-20 | B84: Transfer | C84: Bank Statement | D84: Bank Transfer | E84: -13000 | F84: E | G84: E | H84: B1 | I84: BS-TRF | J84: 2020-07-20 | K84: W | L84: =SUMIFS(CBIncl,CBBalDate,"<="&($A84+(ROW($A84)/86400)),CBBank,$H84) -> 46584.06 | M84: =$E84/(1+IF(ISERROR($F84),0,IF(ISNA(MATCH($F84,TaxCode,0)),0,OFFSET(Setup!$D$7,MATCH($F84,TaxCode,0),0,1,1)))+IF(ISERROR($G84),0,IF(ISNA(MATCH($G84,TaxCode,0)),0,OFFSET(Setup!$D$7,MATCH($G84,TaxCode,0),0,1,1))))*IF(ISERROR($F84),0,IF(ISNA(MATCH($F84,TaxCode,0)),0,OFFSET(Setup!$D$7,MATCH($F84,TaxCode,0),0,1,1))) -> 0 | N84: =$E84/(1+IF(ISERROR($F84),0,IF(ISNA(MATCH($F84,TaxCode,0)),0,OFFSET(Setup!$D$7,MATCH($F84,TaxCode,0),0,1,1)))+IF(ISERROR($G84),0,IF(ISNA(MATCH($G84,TaxCode,0)),0,OFFSET(Setup!$D$7,MATCH($G84,TaxCode,0),0,1,1))))*IF(ISERROR($G84),0,IF(ISNA(MATCH($G84,TaxCode,0)),0,OFFSET(Setup!$D$7,MATCH($G84,TaxCode,0),0,1,1))) -> 0 | O84: =IF(TaxCount=2,E84-SUM(M84:N84),E84-SUM(M84:M84)) -> -13000 | P84: 2020-07-20T00:01:24 | Q84: -
A85: 2020-07-23 | B85: DF Manufacturing | C85: INV0060 | D85: Accounting Services | E85: 3192 | F85: A | G85: E | H85: B1 | I85: IS-100 | J85: 2020-07-23 | K85: D | L85: =SUMIFS(CBIncl,CBBalDate,"<="&($A85+(ROW($A85)/86400)),CBBank,$H85) -> 49776.06 | M85: =$E85/(1+IF(ISERROR($F85),0,IF(ISNA(MATCH($F85,TaxCode,0)),0,OFFSET(Setup!$D$7,MATCH($F85,TaxCode,0),0,1,1)))+IF(ISERROR($G85),0,IF(ISNA(MATCH($G85,TaxCode,0)),0,OFFSET(Setup!$D$7,MATCH($G85,TaxCode,0),0,1,1))))*IF(ISERROR($F85),0,IF(ISNA(MATCH($F85,TaxCode,0)),0,OFFSET(Setup!$D$7,MATCH($F85,TaxCode,0),0,1,1))) -> 416.3478261 | N85: =$E85/(1+IF(ISERROR($F85),0,IF(ISNA(MATCH($F85,TaxCode,0)),0,OFFSET(Setup!$D$7,MATCH($F85,TaxCode,0),0,1,1)))+IF(ISERROR($G85),0,IF(ISNA(MATCH($G85,TaxCode,0)),0,OFFSET(Setup!$D$7,MATCH($G85,TaxCode,0),0,1,1))))*IF(ISERROR($G85),0,IF(ISNA(MATCH($G85,TaxCode,0)),0,OFFSET(Setup!$D$7,MATCH($G85,TaxCode,0),0,1,1))) -> 0 | O85: =IF(TaxCount=2,E85-SUM(M85:N85),E85-SUM(M85:M85)) -> 2775.652174 | P85: 2020-07-23T00:01:25 | Q85: -
A86: 2020-07-25 | B86: Cash | C86: Bank Statement | D86: Petty Cash Reimbursement | E86: -280 | F86: E | G86: E | H86: B1 | I86: BS-TRF | J86: 2020-07-25 | K86: W | L86: =SUMIFS(CBIncl,CBBalDate,"<="&($A86+(ROW($A86)/86400)),CBBank,$H86) -> 49496.06 | M86: =$E86/(1+IF(ISERROR($F86),0,IF(ISNA(MATCH($F86,TaxCode,0)),0,OFFSET(Setup!$D$7,MATCH($F86,TaxCode,0),0,1,1)))+IF(ISERROR($G86),0,IF(ISNA(MATCH($G86,TaxCode,0)),0,OFFSET(Setup!$D$7,MATCH($G86,TaxCode,0),0,1,1))))*IF(ISERROR($F86),0,IF(ISNA(MATCH($F86,TaxCode,0)),0,OFFSET(Setup!$D$7,MATCH($F86,TaxCode,0),0,1,1))) -> 0 | N86: =$E86/(1+IF(ISERROR($F86),0,IF(ISNA(MATCH($F86,TaxCode,0)),0,OFFSET(Setup!$D$7,MATCH($F86,TaxCode,0),0,1,1)))+IF(ISERROR($G86),0,IF(ISNA(MATCH($G86,TaxCode,0)),0,OFFSET(Setup!$D$7,MATCH($G86,TaxCode,0),0,1,1))))*IF(ISERROR($G86),0,IF(ISNA(MATCH($G86,TaxCode,0)),0,OFFSET(Setup!$D$7,MATCH($G86,TaxCode,0),0,1,1))) -> 0 | O86: =IF(TaxCount=2,E86-SUM(M86:N86),E86-SUM(M86:M86)) -> -280 | P86: 2020-07-25T00:01:26 | Q86: -
A87: 2020-07-25 | B87: Cash | C87: Bank Statement | D87: Petty Cash Reimbursement | E87: 280 | F87: E | G87: E | H87: PC | I87: BS-TRF | J87: 2020-07-25 | K87: D | L87: =SUMIFS(CBIncl,CBBalDate,"<="&($A87+(ROW($A87)/86400)),CBBank,$H87) -> 534.107 | M87: =$E87/(1+IF(ISERROR($F87),0,IF(ISNA(MATCH($F87,TaxCode,0)),0,OFFSET(Setup!$D$7,MATCH($F87,TaxCode,0),0,1,1)))+IF(ISERROR($G87),0,IF(ISNA(MATCH($G87,TaxCode,0)),0,OFFSET(Setup!$D$7,MATCH($G87,TaxCode,0),0,1,1))))*IF(ISERROR($F87),0,IF(ISNA(MATCH($F87,TaxCode,0)),0,OFFSET(Setup!$D$7,MATCH($F87,TaxCode,0),0,1,1))) -> 0 | N87: =$E87/(1+IF(ISERROR($F87),0,IF(ISNA(MATCH($F87,TaxCode,0)),0,OFFSET(Setup!$D$7,MATCH($F87,TaxCode,0),0,1,1)))+IF(ISERROR($G87),0,IF(ISNA(MATCH($G87,TaxCode,0)),0,OFFSET(Setup!$D$7,MATCH($G87,TaxCode,0),0,1,1))))*IF(ISERROR($G87),0,IF(ISNA(MATCH($G87,TaxCode,0)),0,OFFSET(Setup!$D$7,MATCH($G87,TaxCode,0),0,1,1))) -> 0 | O87: =IF(TaxCount=2,E87-SUM(M87:N87),E87-SUM(M87:M87)) -> 280 | P87: 2020-07-25T00:01:27 | Q87: -
A88: 2020-07-26 | B88: Payroll | C88: Payroll | D88: Salaries | E88: -13000 | F88: E | G88: E | H88: B2 | I88: IS-365 | J88: 2020-07-26 | K88: W | L88: =SUMIFS(CBIncl,CBBalDate,"<="&($A88+(ROW($A88)/86400)),CBBank,$H88) -> 1600 | M88: =$E88/(1+IF(ISERROR($F88),0,IF(ISNA(MATCH($F88,TaxCode,0)),0,OFFSET(Setup!$D$7,MATCH($F88,TaxCode,0),0,1,1)))+IF(ISERROR($G88),0,IF(ISNA(MATCH($G88,TaxCode,0)),0,OFFSET(Setup!$D$7,MATCH($G88,TaxCode,0),0,1,1))))*IF(ISERROR($F88),0,IF(ISNA(MATCH($F88,TaxCode,0)),0,OFFSET(Setup!$D$7,MATCH($F88,TaxCode,0),0,1,1))) -> 0 | N88: =$E88/(1+IF(ISERROR($F88),0,IF(ISNA(MATCH($F88,TaxCode,0)),0,OFFSET(Setup!$D$7,MATCH($F88,TaxCode,0),0,1,1)))+IF(ISERROR($G88),0,IF(ISNA(MATCH($G88,TaxCode,0)),0,OFFSET(Setup!$D$7,MATCH($G88,TaxCode,0),0,1,1))))*IF(ISERROR($G88),0,IF(ISNA(MATCH($G88,TaxCode,0)),0,OFFSET(Setup!$D$7,MATCH($G88,TaxCode,0),0,1,1))) -> 0 | O88: =IF(TaxCount=2,E88-SUM(M88:N88),E88-SUM(M88:M88)) -> -13000 | P88: 2020-07-26T00:01:28 | Q88: -
A89: 2020-07-26 | B89: PR Properties | C89: Debit Order | D89: Rent | E89: -5700 | F89: A | G89: E | H89: B1 | I89: IS-350 | J89: 2020-07-26 | K89: W | L89: =SUMIFS(CBIncl,CBBalDate,"<="&($A89+(ROW($A89)/86400)),CBBank,$H89) -> 49496.06 | M89: =$E89/(1+IF(ISERROR($F89),0,IF(ISNA(MATCH($F89,TaxCode,0)),0,OFFSET(Setup!$D$7,MATCH($F89,TaxCode,0),0,1,1)))+IF(ISERROR($G89),0,IF(ISNA(MATCH($G89,TaxCode,0)),0,OFFSET(Setup!$D$7,MATCH($G89,TaxCode,0),0,1,1))))*IF(ISERROR($F89),0,IF(ISNA(MATCH($F89,TaxCode,0)),0,OFFSET(Setup!$D$7,MATCH($F89,TaxCode,0),0,1,1))) -> -743.4782609 | N89: =$E89/(1+IF(ISERROR($F89),0,IF(ISNA(MATCH($F89,TaxCode,0)),0,OFFSET(Setup!$D$7,MATCH($F89,TaxCode,0),0,1,1)))+IF(ISERROR($G89),0,IF(ISNA(MATCH($G89,TaxCode,0)),0,OFFSET(Setup!$D$7,MATCH($G89,TaxCode,0),0,1,1))))*IF(ISERROR($G89),0,IF(ISNA(MATCH($G89,TaxCode,0)),0,OFFSET(Setup!$D$7,MATCH($G89,TaxCode,0),0,1,1))) -> 0 | O89: =IF(TaxCount=2,E89-SUM(M89:N89),E89-SUM(M89:M89)) -> -4956.521739 | P89: 2020-07-26T00:01:29 | Q89: -
A90: 2020-07-26 | B90: SQ Financial Services | C90: Debit Order | D90: Capital repayment | E90: -220 | F90: E | G90: E | H90: B1 | I90: BS-700 | J90: 2020-07-26 | K90: W | L90: =SUMIFS(CBIncl,CBBalDate,"<="&($A90+(ROW($A90)/86400)),CBBank,$H90) -> 43576.06 | M90: =$E90/(1+IF(ISERROR($F90),0,IF(ISNA(MATCH($F90,TaxCode,0)),0,OFFSET(Setup!$D$7,MATCH($F90,TaxCode,0),0,1,1)))+IF(ISERROR($G90),0,IF(ISNA(MATCH($G90,TaxCode,0)),0,OFFSET(Setup!$D$7,MATCH($G90,TaxCode,0),0,1,1))))*IF(ISERROR($F90),0,IF(ISNA(MATCH($F90,TaxCode,0)),0,OFFSET(Setup!$D$7,MATCH($F90,TaxCode,0),0,1,1))) -> 0 | N90: =$E90/(1+IF(ISERROR($F90),0,IF(ISNA(MATCH($F90,TaxCode,0)),0,OFFSET(Setup!$D$7,MATCH($F90,TaxCode,0),0,1,1)))+IF(ISERROR($G90),0,IF(ISNA(MATCH($G90,TaxCode,0)),0,OFFSET(Setup!$D$7,MATCH($G90,TaxCode,0),0,1,1))))*IF(ISERROR($G90),0,IF(ISNA(MATCH($G90,TaxCode,0)),0,OFFSET(Setup!$D$7,MATCH($G90,TaxCode,0),0,1,1))) -> 0 | O90: =IF(TaxCount=2,E90-SUM(M90:N90),E90-SUM(M90:M90)) -> -220 | P90: 2020-07-26T00:01:30 | Q90: -
A91: 2020-07-26 | B91: SQ Financial Services | C91: Debit Order | D91: Interest paid | E91: -100 | F91: E | G91: E | H91: B1 | I91: IS-500 | J91: 2020-07-26 | K91: W | L91: =SUMIFS(CBIncl,CBBalDate,"<="&($A91+(ROW($A91)/86400)),CBBank,$H91) -> 43476.06 | M91: =$E91/(1+IF(ISERROR($F91),0,IF(ISNA(MATCH($F91,TaxCode,0)),0,OFFSET(Setup!$D$7,MATCH($F91,TaxCode,0),0,1,1)))+IF(ISERROR($G91),0,IF(ISNA(MATCH($G91,TaxCode,0)),0,OFFSET(Setup!$D$7,MATCH($G91,TaxCode,0),0,1,1))))*IF(ISERROR($F91),0,IF(ISNA(MATCH($F91,TaxCode,0)),0,OFFSET(Setup!$D$7,MATCH($F91,TaxCode,0),0,1,1))) -> 0 | N91: =$E91/(1+IF(ISERROR($F91),0,IF(ISNA(MATCH($F91,TaxCode,0)),0,OFFSET(Setup!$D$7,MATCH($F91,TaxCode,0),0,1,1)))+IF(ISERROR($G91),0,IF(ISNA(MATCH($G91,TaxCode,0)),0,OFFSET(Setup!$D$7,MATCH($G91,TaxCode,0),0,1,1))))*IF(ISERROR($G91),0,IF(ISNA(MATCH($G91,TaxCode,0)),0,OFFSET(Setup!$D$7,MATCH($G91,TaxCode,0),0,1,1))) -> 0 | O91: =IF(TaxCount=2,E91-SUM(M91:N91),E91-SUM(M91:M91)) -> -100 | P91: 2020-07-26T00:01:31 | Q91: -
A92: 2020-07-31 | B92: DF Manufacturing | C92: INV0062 | D92: Consulting Services | E92: 25080 | F92: A | G92: E | H92: B1 | I92: IS-100 | J92: 2020-07-31 | K92: D | L92: =SUMIFS(CBIncl,CBBalDate,"<="&($A92+(ROW($A92)/86400)),CBBank,$H92) -> 68556.06 | M92: =$E92/(1+IF(ISERROR($F92),0,IF(ISNA(MATCH($F92,TaxCode,0)),0,OFFSET(Setup!$D$7,MATCH($F92,TaxCode,0),0,1,1)))+IF(ISERROR($G92),0,IF(ISNA(MATCH($G92,TaxCode,0)),0,OFFSET(Setup!$D$7,MATCH($G92,TaxCode,0),0,1,1))))*IF(ISERROR($F92),0,IF(ISNA(MATCH($F92,TaxCode,0)),0,OFFSET(Setup!$D$7,MATCH($F92,TaxCode,0),0,1,1))) -> 3271.304348 | N92: =$E92/(1+IF(ISERROR($F92),0,IF(ISNA(MATCH($F92,TaxCode,0)),0,OFFSET(Setup!$D$7,MATCH($F92,TaxCode,0),0,1,1)))+IF(ISERROR($G92),0,IF(ISNA(MATCH($G92,TaxCode,0)),0,OFFSET(Setup!$D$7,MATCH($G92,TaxCode,0),0,1,1))))*IF(ISERROR($G92),0,IF(ISNA(MATCH($G92,TaxCode,0)),0,OFFSET(Setup!$D$7,MATCH($G92,TaxCode,0),0,1,1))) -> 0 | O92: =IF(TaxCount=2,E92-SUM(M92:N92),E92-SUM(M92:M92)) -> 21808.69565 | P92: 2020-07-31T00:01:32 | Q92: -
A93: 2020-07-31 | B93: XY Solutions | C93: Invoice EXP14 | D93: Internet Service Provider | E93: -165.3 | F93: A | G93: E | H93: B1 | I93: IS-380 | J93: 2020-07-31 | K93: W | L93: =SUMIFS(CBIncl,CBBalDate,"<="&($A93+(ROW($A93)/86400)),CBBank,$H93) -> 68390.76 | M93: =$E93/(1+IF(ISERROR($F93),0,IF(ISNA(MATCH($F93,TaxCode,0)),0,OFFSET(Setup!$D$7,MATCH($F93,TaxCode,0),0,1,1)))+IF(ISERROR($G93),0,IF(ISNA(MATCH($G93,TaxCode,0)),0,OFFSET(Setup!$D$7,MATCH($G93,TaxCode,0),0,1,1))))*IF(ISERROR($F93),0,IF(ISNA(MATCH($F93,TaxCode,0)),0,OFFSET(Setup!$D$7,MATCH($F93,TaxCode,0),0,1,1))) -> -21.56086957 | N93: =$E93/(1+IF(ISERROR($F93),0,IF(ISNA(MATCH($F93,TaxCode,0)),0,OFFSET(Setup!$D$7,MATCH($F93,TaxCode,0),0,1,1)))+IF(ISERROR($G93),0,IF(ISNA(MATCH($G93,TaxCode,0)),0,OFFSET(Setup!$D$7,MATCH($G93,TaxCode,0),0,1,1))))*IF(ISERROR($G93),0,IF(ISNA(MATCH($G93,TaxCode,0)),0,OFFSET(Setup!$D$7,MATCH($G93,TaxCode,0),0,1,1))) -> 0 | O93: =IF(TaxCount=2,E93-SUM(M93:N93),E93-SUM(M93:M93)) -> -143.7391304 | P93: 2020-07-31T00:01:33 | Q93: -
A94: 2020-08-02 | B94: IAS Accountants | C94: Invoice | D94: Bookkeeping | E94: -912 | F94: A | G94: E | H94: B1 | I94: IS-305 | J94: 2020-08-02 | K94: W | L94: =SUMIFS(CBIncl,CBBalDate,"<="&($A94+(ROW($A94)/86400)),CBBank,$H94) -> 67478.76 | M94: =$E94/(1+IF(ISERROR($F94),0,IF(ISNA(MATCH($F94,TaxCode,0)),0,OFFSET(Setup!$D$7,MATCH($F94,TaxCode,0),0,1,1)))+IF(ISERROR($G94),0,IF(ISNA(MATCH($G94,TaxCode,0)),0,OFFSET(Setup!$D$7,MATCH($G94,TaxCode,0),0,1,1))))*IF(ISERROR($F94),0,IF(ISNA(MATCH($F94,TaxCode,0)),0,OFFSET(Setup!$D$7,MATCH($F94,TaxCode,0),0,1,1))) -> -118.9565217 | N94: =$E94/(1+IF(ISERROR($F94),0,IF(ISNA(MATCH($F94,TaxCode,0)),0,OFFSET(Setup!$D$7,MATCH($F94,TaxCode,0),0,1,1)))+IF(ISERROR($G94),0,IF(ISNA(MATCH($G94,TaxCode,0)),0,OFFSET(Setup!$D$7,MATCH($G94,TaxCode,0),0,1,1))))*IF(ISERROR($G94),0,IF(ISNA(MATCH($G94,TaxCode,0)),0,OFFSET(Setup!$D$7,MATCH($G94,TaxCode,0),0,1,1))) -> 0 | O94: =IF(TaxCount=2,E94-SUM(M94:N94),E94-SUM(M94:M94)) -> -793.0434783 | P94: 2020-08-02T00:01:34 | Q94: -
A95: 2020-08-04 | B95: Digicom | C95: INV0061 | D95: Consulting Services | E95: 36480 | F95: A | G95: E | H95: B1 | I95: IS-100 | J95: 2020-08-04 | K95: D | L95: =SUMIFS(CBIncl,CBBalDate,"<="&($A95+(ROW($A95)/86400)),CBBank,$H95) -> 103958.76 | M95: =$E95/(1+IF(ISERROR($F95),0,IF(ISNA(MATCH($F95,TaxCode,0)),0,OFFSET(Setup!$D$7,MATCH($F95,TaxCode,0),0,1,1)))+IF(ISERROR($G95),0,IF(ISNA(MATCH($G95,TaxCode,0)),0,OFFSET(Setup!$D$7,MATCH($G95,TaxCode,0),0,1,1))))*IF(ISERROR($F95),0,IF(ISNA(MATCH($F95,TaxCode,0)),0,OFFSET(Setup!$D$7,MATCH($F95,TaxCode,0),0,1,1))) -> 4758.26087 | N95: =$E95/(1+IF(ISERROR($F95),0,IF(ISNA(MATCH($F95,TaxCode,0)),0,OFFSET(Setup!$D$7,MATCH($F95,TaxCode,0),0,1,1)))+IF(ISERROR($G95),0,IF(ISNA(MATCH($G95,TaxCode,0)),0,OFFSET(Setup!$D$7,MATCH($G95,TaxCode,0),0,1,1))))*IF(ISERROR($G95),0,IF(ISNA(MATCH($G95,TaxCode,0)),0,OFFSET(Setup!$D$7,MATCH($G95,TaxCode,0),0,1,1))) -> 0 | O95: =IF(TaxCount=2,E95-SUM(M95:N95),E95-SUM(M95:M95)) -> 31721.73913 | P95: 2020-08-04T00:01:35 | Q95: -
A96: 2020-08-05 | B96: Hollard | C96: Debit Order | D96: Insurance | E96: -364.8 | F96: A | G96: E | H96: B1 | I96: IS-340 | J96: 2020-08-05 | K96: W | L96: =SUMIFS(CBIncl,CBBalDate,"<="&($A96+(ROW($A96)/86400)),CBBank,$H96) -> 103593.96 | M96: =$E96/(1+IF(ISERROR($F96),0,IF(ISNA(MATCH($F96,TaxCode,0)),0,OFFSET(Setup!$D$7,MATCH($F96,TaxCode,0),0,1,1)))+IF(ISERROR($G96),0,IF(ISNA(MATCH($G96,TaxCode,0)),0,OFFSET(Setup!$D$7,MATCH($G96,TaxCode,0),0,1,1))))*IF(ISERROR($F96),0,IF(ISNA(MATCH($F96,TaxCode,0)),0,OFFSET(Setup!$D$7,MATCH($F96,TaxCode,0),0,1,1))) -> -47.5826087 | N96: =$E96/(1+IF(ISERROR($F96),0,IF(ISNA(MATCH($F96,TaxCode,0)),0,OFFSET(Setup!$D$7,MATCH($F96,TaxCode,0),0,1,1)))+IF(ISERROR($G96),0,IF(ISNA(MATCH($G96,TaxCode,0)),0,OFFSET(Setup!$D$7,MATCH($G96,TaxCode,0),0,1,1))))*IF(ISERROR($G96),0,IF(ISNA(MATCH($G96,TaxCode,0)),0,OFFSET(Setup!$D$7,MATCH($G96,TaxCode,0),0,1,1))) -> 0 | O96: =IF(TaxCount=2,E96-SUM(M96:N96),E96-SUM(M96:M96)) -> -317.2173913 | P96: 2020-08-05T00:01:36 | Q96: -
A97: 2020-08-15 | B97: ABSA | C97: Bank Statement | D97: Service Fees | E97: -57 | F97: A | G97: E | H97: B1 | I97: IS-315 | J97: 2020-08-15 | K97: W | L97: =SUMIFS(CBIncl,CBBalDate,"<="&($A97+(ROW($A97)/86400)),CBBank,$H97) -> 103536.96 | M97: =$E97/(1+IF(ISERROR($F97),0,IF(ISNA(MATCH($F97,TaxCode,0)),0,OFFSET(Setup!$D$7,MATCH($F97,TaxCode,0),0,1,1)))+IF(ISERROR($G97),0,IF(ISNA(MATCH($G97,TaxCode,0)),0,OFFSET(Setup!$D$7,MATCH($G97,TaxCode,0),0,1,1))))*IF(ISERROR($F97),0,IF(ISNA(MATCH($F97,TaxCode,0)),0,OFFSET(Setup!$D$7,MATCH($F97,TaxCode,0),0,1,1))) -> -7.434782609 | N97: =$E97/(1+IF(ISERROR($F97),0,IF(ISNA(MATCH($F97,TaxCode,0)),0,OFFSET(Setup!$D$7,MATCH($F97,TaxCode,0),0,1,1)))+IF(ISERROR($G97),0,IF(ISNA(MATCH($G97,TaxCode,0)),0,OFFSET(Setup!$D$7,MATCH($G97,TaxCode,0),0,1,1))))*IF(ISERROR($G97),0,IF(ISNA(MATCH($G97,TaxCode,0)),0,OFFSET(Setup!$D$7,MATCH($G97,TaxCode,0),0,1,1))) -> 0 | O97: =IF(TaxCount=2,E97-SUM(M97:N97),E97-SUM(M97:M97)) -> -49.56521739 | P97: 2020-08-15T00:01:37 | Q97: -
A98: 2020-08-20 | B98: Transfer | C98: Bank Statement | D98: Bank Transfer | E98: 13000 | F98: E | G98: E | H98: B2 | I98: BS-TRF | J98: 2020-08-20 | K98: D | L98: =SUMIFS(CBIncl,CBBalDate,"<="&($A98+(ROW($A98)/86400)),CBBank,$H98) -> 14600 | M98: =$E98/(1+IF(ISERROR($F98),0,IF(ISNA(MATCH($F98,TaxCode,0)),0,OFFSET(Setup!$D$7,MATCH($F98,TaxCode,0),0,1,1)))+IF(ISERROR($G98),0,IF(ISNA(MATCH($G98,TaxCode,0)),0,OFFSET(Setup!$D$7,MATCH($G98,TaxCode,0),0,1,1))))*IF(ISERROR($F98),0,IF(ISNA(MATCH($F98,TaxCode,0)),0,OFFSET(Setup!$D$7,MATCH($F98,TaxCode,0),0,1,1))) -> 0 | N98: =$E98/(1+IF(ISERROR($F98),0,IF(ISNA(MATCH($F98,TaxCode,0)),0,OFFSET(Setup!$D$7,MATCH($F98,TaxCode,0),0,1,1)))+IF(ISERROR($G98),0,IF(ISNA(MATCH($G98,TaxCode,0)),0,OFFSET(Setup!$D$7,MATCH($G98,TaxCode,0),0,1,1))))*IF(ISERROR($G98),0,IF(ISNA(MATCH($G98,TaxCode,0)),0,OFFSET(Setup!$D$7,MATCH($G98,TaxCode,0),0,1,1))) -> 0 | O98: =IF(TaxCount=2,E98-SUM(M98:N98),E98-SUM(M98:M98)) -> 13000 | P98: 2020-08-20T00:01:38 | Q98: -
A99: 2020-08-20 | B99: Transfer | C99: Bank Statement | D99: Bank Transfer | E99: -13000 | F99: E | G99: E | H99: B1 | I99: BS-TRF | J99: 2020-08-20 | K99: W | L99: =SUMIFS(CBIncl,CBBalDate,"<="&($A99+(ROW($A99)/86400)),CBBank,$H99) -> 90536.96 | M99: =$E99/(1+IF(ISERROR($F99),0,IF(ISNA(MATCH($F99,TaxCode,0)),0,OFFSET(Setup!$D$7,MATCH($F99,TaxCode,0),0,1,1)))+IF(ISERROR($G99),0,IF(ISNA(MATCH($G99,TaxCode,0)),0,OFFSET(Setup!$D$7,MATCH($G99,TaxCode,0),0,1,1))))*IF(ISERROR($F99),0,IF(ISNA(MATCH($F99,TaxCode,0)),0,OFFSET(Setup!$D$7,MATCH($F99,TaxCode,0),0,1,1))) -> 0 | N99: =$E99/(1+IF(ISERROR($F99),0,IF(ISNA(MATCH($F99,TaxCode,0)),0,OFFSET(Setup!$D$7,MATCH($F99,TaxCode,0),0,1,1)))+IF(ISERROR($G99),0,IF(ISNA(MATCH($G99,TaxCode,0)),0,OFFSET(Setup!$D$7,MATCH($G99,TaxCode,0),0,1,1))))*IF(ISERROR($G99),0,IF(ISNA(MATCH($G99,TaxCode,0)),0,OFFSET(Setup!$D$7,MATCH($G99,TaxCode,0),0,1,1))) -> 0 | O99: =IF(TaxCount=2,E99-SUM(M99:N99),E99-SUM(M99:M99)) -> -13000 | P99: 2020-08-20T00:01:39 | Q99: -
A100: 2020-08-25 | B100: Cash | C100: Bank Statement | D100: Petty Cash Reimbursement | E100: -190 | F100: E | G100: E | H100: B1 | I100: BS-TRF | J100: 2020-08-25 | K100: W | L100: =SUMIFS(CBIncl,CBBalDate,"<="&($A100+(ROW($A100)/86400)),CBBank,$H100) -> 90346.96 | M100: =$E100/(1+IF(ISERROR($F100),0,IF(ISNA(MATCH($F100,TaxCode,0)),0,OFFSET(Setup!$D$7,MATCH($F100,TaxCode,0),0,1,1)))+IF(ISERROR($G100),0,IF(ISNA(MATCH($G100,TaxCode,0)),0,OFFSET(Setup!$D$7,MATCH($G100,TaxCode,0),0,1,1))))*IF(ISERROR($F100),0,IF(ISNA(MATCH($F100,TaxCode,0)),0,OFFSET(Setup!$D$7,MATCH($F100,TaxCode,0),0,1,1))) -> 0 | N100: =$E100/(1+IF(ISERROR($F100),0,IF(ISNA(MATCH($F100,TaxCode,0)),0,OFFSET(Setup!$D$7,MATCH($F100,TaxCode,0),0,1,1)))+IF(ISERROR($G100),0,IF(ISNA(MATCH($G100,TaxCode,0)),0,OFFSET(Setup!$D$7,MATCH($G100,TaxCode,0),0,1,1))))*IF(ISERROR($G100),0,IF(ISNA(MATCH($G100,TaxCode,0)),0,OFFSET(Setup!$D$7,MATCH($G100,TaxCode,0),0,1,1))) -> 0 | O100: =IF(TaxCount=2,E100-SUM(M100:N100),E100-SUM(M100:M100)) -> -190 | P100: 2020-08-25T00:01:40 | Q100: -
A101: 2020-08-25 | B101: Cash | C101: Bank Statement | D101: Petty Cash Reimbursement | E101: 190 | F101: E | G101: E | H101: PC | I101: BS-TRF | J101: 2020-08-25 | K101: D | L101: =SUMIFS(CBIncl,CBBalDate,"<="&($A101+(ROW($A101)/86400)),CBBank,$H101) -> 724.107 | M101: =$E101/(1+IF(ISERROR($F101),0,IF(ISNA(MATCH($F101,TaxCode,0)),0,OFFSET(Setup!$D$7,MATCH($F101,TaxCode,0),0,1,1)))+IF(ISERROR($G101),0,IF(ISNA(MATCH($G101,TaxCode,0)),0,OFFSET(Setup!$D$7,MATCH($G101,TaxCode,0),0,1,1))))*IF(ISERROR($F101),0,IF(ISNA(MATCH($F101,TaxCode,0)),0,OFFSET(Setup!$D$7,MATCH($F101,TaxCode,0),0,1,1))) -> 0 | N101: =$E101/(1+IF(ISERROR($F101),0,IF(ISNA(MATCH($F101,TaxCode,0)),0,OFFSET(Setup!$D$7,MATCH($F101,TaxCode,0),0,1,1)))+IF(ISERROR($G101),0,IF(ISNA(MATCH($G101,TaxCode,0)),0,OFFSET(Setup!$D$7,MATCH($G101,TaxCode,0),0,1,1))))*IF(ISERROR($G101),0,IF(ISNA(MATCH($G101,TaxCode,0)),0,OFFSET(Setup!$D$7,MATCH($G101,TaxCode,0),0,1,1))) -> 0 | O101: =IF(TaxCount=2,E101-SUM(M101:N101),E101-SUM(M101:M101)) -> 190 | P101: 2020-08-25T00:01:41 | Q101: -
A102: 2020-08-25 | B102: Inland Revenue | C102: Return | D102: Sales Tax | E102: -5900 | F102: E | G102: E | H102: B1 | I102: BS-TAX1 | J102: 2020-08-25 | K102: W | L102: =SUMIFS(CBIncl,CBBalDate,"<="&($A102+(ROW($A102)/86400)),CBBank,$H102) -> 84446.96 | M102: =$E102/(1+IF(ISERROR($F102),0,IF(ISNA(MATCH($F102,TaxCode,0)),0,OFFSET(Setup!$D$7,MATCH($F102,TaxCode,0),0,1,1)))+IF(ISERROR($G102),0,IF(ISNA(MATCH($G102,TaxCode,0)),0,OFFSET(Setup!$D$7,MATCH($G102,TaxCode,0),0,1,1))))*IF(ISERROR($F102),0,IF(ISNA(MATCH($F102,TaxCode,0)),0,OFFSET(Setup!$D$7,MATCH($F102,TaxCode,0),0,1,1))) -> 0 | N102: =$E102/(1+IF(ISERROR($F102),0,IF(ISNA(MATCH($F102,TaxCode,0)),0,OFFSET(Setup!$D$7,MATCH($F102,TaxCode,0),0,1,1)))+IF(ISERROR($G102),0,IF(ISNA(MATCH($G102,TaxCode,0)),0,OFFSET(Setup!$D$7,MATCH($G102,TaxCode,0),0,1,1))))*IF(ISERROR($G102),0,IF(ISNA(MATCH($G102,TaxCode,0)),0,OFFSET(Setup!$D$7,MATCH($G102,TaxCode,0),0,1,1))) -> 0 | O102: =IF(TaxCount=2,E102-SUM(M102:N102),E102-SUM(M102:M102)) -> -5900 | P102: 2020-08-25T00:01:42 | Q102: -
A103: 2020-08-26 | B103: Payroll | C103: Payroll | D103: Salaries | E103: -13000 | F103: E | G103: E | H103: B2 | I103: IS-365 | J103: 2020-08-26 | K103: W | L103: =SUMIFS(CBIncl,CBBalDate,"<="&($A103+(ROW($A103)/86400)),CBBank,$H103) -> 1600 | M103: =$E103/(1+IF(ISERROR($F103),0,IF(ISNA(MATCH($F103,TaxCode,0)),0,OFFSET(Setup!$D$7,MATCH($F103,TaxCode,0),0,1,1)))+IF(ISERROR($G103),0,IF(ISNA(MATCH($G103,TaxCode,0)),0,OFFSET(Setup!$D$7,MATCH($G103,TaxCode,0),0,1,1))))*IF(ISERROR($F103),0,IF(ISNA(MATCH($F103,TaxCode,0)),0,OFFSET(Setup!$D$7,MATCH($F103,TaxCode,0),0,1,1))) -> 0 | N103: =$E103/(1+IF(ISERROR($F103),0,IF(ISNA(MATCH($F103,TaxCode,0)),0,OFFSET(Setup!$D$7,MATCH($F103,TaxCode,0),0,1,1)))+IF(ISERROR($G103),0,IF(ISNA(MATCH($G103,TaxCode,0)),0,OFFSET(Setup!$D$7,MATCH($G103,TaxCode,0),0,1,1))))*IF(ISERROR($G103),0,IF(ISNA(MATCH($G103,TaxCode,0)),0,OFFSET(Setup!$D$7,MATCH($G103,TaxCode,0),0,1,1))) -> 0 | O103: =IF(TaxCount=2,E103-SUM(M103:N103),E103-SUM(M103:M103)) -> -13000 | P103: 2020-08-26T00:01:43 | Q103: -
A104: 2020-08-26 | B104: PR Properties | C104: Debit Order | D104: Rent | E104: -5700 | F104: A | G104: E | H104: B1 | I104: IS-350 | J104: 2020-08-26 | K104: W | L104: =SUMIFS(CBIncl,CBBalDate,"<="&($A104+(ROW($A104)/86400)),CBBank,$H104) -> 78746.96 | M104: =$E104/(1+IF(ISERROR($F104),0,IF(ISNA(MATCH($F104,TaxCode,0)),0,OFFSET(Setup!$D$7,MATCH($F104,TaxCode,0),0,1,1)))+IF(ISERROR($G104),0,IF(ISNA(MATCH($G104,TaxCode,0)),0,OFFSET(Setup!$D$7,MATCH($G104,TaxCode,0),0,1,1))))*IF(ISERROR($F104),0,IF(ISNA(MATCH($F104,TaxCode,0)),0,OFFSET(Setup!$D$7,MATCH($F104,TaxCode,0),0,1,1))) -> -743.4782609 | N104: =$E104/(1+IF(ISERROR($F104),0,IF(ISNA(MATCH($F104,TaxCode,0)),0,OFFSET(Setup!$D$7,MATCH($F104,TaxCode,0),0,1,1)))+IF(ISERROR($G104),0,IF(ISNA(MATCH($G104,TaxCode,0)),0,OFFSET(Setup!$D$7,MATCH($G104,TaxCode,0),0,1,1))))*IF(ISERROR($G104),0,IF(ISNA(MATCH($G104,TaxCode,0)),0,OFFSET(Setup!$D$7,MATCH($G104,TaxCode,0),0,1,1))) -> 0 | O104: =IF(TaxCount=2,E104-SUM(M104:N104),E104-SUM(M104:M104)) -> -4956.521739 | P104: 2020-08-26T00:01:44 | Q104: -
A105: 2020-08-26 | B105: SQ Financial Services | C105: Debit Order | D105: Capital repayment | E105: -220 | F105: E | G105: E | H105: B1 | I105: BS-700 | J105: 2020-08-26 | K105: W | L105: =SUMIFS(CBIncl,CBBalDate,"<="&($A105+(ROW($A105)/86400)),CBBank,$H105) -> 78526.96 | M105: =$E105/(1+IF(ISERROR($F105),0,IF(ISNA(MATCH($F105,TaxCode,0)),0,OFFSET(Setup!$D$7,MATCH($F105,TaxCode,0),0,1,1)))+IF(ISERROR($G105),0,IF(ISNA(MATCH($G105,TaxCode,0)),0,OFFSET(Setup!$D$7,MATCH($G105,TaxCode,0),0,1,1))))*IF(ISERROR($F105),0,IF(ISNA(MATCH($F105,TaxCode,0)),0,OFFSET(Setup!$D$7,MATCH($F105,TaxCode,0),0,1,1))) -> 0 | N105: =$E105/(1+IF(ISERROR($F105),0,IF(ISNA(MATCH($F105,TaxCode,0)),0,OFFSET(Setup!$D$7,MATCH($F105,TaxCode,0),0,1,1)))+IF(ISERROR($G105),0,IF(ISNA(MATCH($G105,TaxCode,0)),0,OFFSET(Setup!$D$7,MATCH($G105,TaxCode,0),0,1,1))))*IF(ISERROR($G105),0,IF(ISNA(MATCH($G105,TaxCode,0)),0,OFFSET(Setup!$D$7,MATCH($G105,TaxCode,0),0,1,1))) -> 0 | O105: =IF(TaxCount=2,E105-SUM(M105:N105),E105-SUM(M105:M105)) -> -220 | P105: 2020-08-26T00:01:45 | Q105: -
A106: 2020-08-26 | B106: SQ Financial Services | C106: Debit Order | D106: Interest paid | E106: -100 | F106: E | G106: E | H106: B1 | I106: IS-500 | J106: 2020-08-26 | K106: W | L106: =SUMIFS(CBIncl,CBBalDate,"<="&($A106+(ROW($A106)/86400)),CBBank,$H106) -> 78426.96 | M106: =$E106/(1+IF(ISERROR($F106),0,IF(ISNA(MATCH($F106,TaxCode,0)),0,OFFSET(Setup!$D$7,MATCH($F106,TaxCode,0),0,1,1)))+IF(ISERROR($G106),0,IF(ISNA(MATCH($G106,TaxCode,0)),0,OFFSET(Setup!$D$7,MATCH($G106,TaxCode,0),0,1,1))))*IF(ISERROR($F106),0,IF(ISNA(MATCH($F106,TaxCode,0)),0,OFFSET(Setup!$D$7,MATCH($F106,TaxCode,0),0,1,1))) -> 0 | N106: =$E106/(1+IF(ISERROR($F106),0,IF(ISNA(MATCH($F106,TaxCode,0)),0,OFFSET(Setup!$D$7,MATCH($F106,TaxCode,0),0,1,1)))+IF(ISERROR($G106),0,IF(ISNA(MATCH($G106,TaxCode,0)),0,OFFSET(Setup!$D$7,MATCH($G106,TaxCode,0),0,1,1))))*IF(ISERROR($G106),0,IF(ISNA(MATCH($G106,TaxCode,0)),0,OFFSET(Setup!$D$7,MATCH($G106,TaxCode,0),0,1,1))) -> 0 | O106: =IF(TaxCount=2,E106-SUM(M106:N106),E106-SUM(M106:M106)) -> -100 | P106: 2020-08-26T00:01:46 | Q106: -
A107: 2020-08-27 | B107: MM Brokers | C107: O/B S77782 | D107: Investment in Shares | E107: -5100 | F107: E | G107: E | H107: B1 | I107: BS-200 | J107: 2020-09-02 | K107: W | L107: =SUMIFS(CBIncl,CBBalDate,"<="&($A107+(ROW($A107)/86400)),CBBank,$H107) -> 73326.96 | M107: =$E107/(1+IF(ISERROR($F107),0,IF(ISNA(MATCH($F107,TaxCode,0)),0,OFFSET(Setup!$D$7,MATCH($F107,TaxCode,0),0,1,1)))+IF(ISERROR($G107),0,IF(ISNA(MATCH($G107,TaxCode,0)),0,OFFSET(Setup!$D$7,MATCH($G107,TaxCode,0),0,1,1))))*IF(ISERROR($F107),0,IF(ISNA(MATCH($F107,TaxCode,0)),0,OFFSET(Setup!$D$7,MATCH($F107,TaxCode,0),0,1,1))) -> 0 | N107: =$E107/(1+IF(ISERROR($F107),0,IF(ISNA(MATCH($F107,TaxCode,0)),0,OFFSET(Setup!$D$7,MATCH($F107,TaxCode,0),0,1,1)))+IF(ISERROR($G107),0,IF(ISNA(MATCH($G107,TaxCode,0)),0,OFFSET(Setup!$D$7,MATCH($G107,TaxCode,0),0,1,1))))*IF(ISERROR($G107),0,IF(ISNA(MATCH($G107,TaxCode,0)),0,OFFSET(Setup!$D$7,MATCH($G107,TaxCode,0),0,1,1))) -> 0 | O107: =IF(TaxCount=2,E107-SUM(M107:N107),E107-SUM(M107:M107)) -> -5100 | P107: 2020-08-27T00:01:47 | Q107: -
A108: 2020-08-30 | B108: PQW Parking | C108: TR6290 | D108: Parking | E108: -202.92 | F108: A | G108: E | H108: B1 | I108: IS-390 | J108: 2020-08-30 | K108: W | L108: =SUMIFS(CBIncl,CBBalDate,"<="&($A108+(ROW($A108)/86400)),CBBank,$H108) -> 73124.04 | M108: =$E108/(1+IF(ISERROR($F108),0,IF(ISNA(MATCH($F108,TaxCode,0)),0,OFFSET(Setup!$D$7,MATCH($F108,TaxCode,0),0,1,1)))+IF(ISERROR($G108),0,IF(ISNA(MATCH($G108,TaxCode,0)),0,OFFSET(Setup!$D$7,MATCH($G108,TaxCode,0),0,1,1))))*IF(ISERROR($F108),0,IF(ISNA(MATCH($F108,TaxCode,0)),0,OFFSET(Setup!$D$7,MATCH($F108,TaxCode,0),0,1,1))) -> -26.46782609 | N108: =$E108/(1+IF(ISERROR($F108),0,IF(ISNA(MATCH($F108,TaxCode,0)),0,OFFSET(Setup!$D$7,MATCH($F108,TaxCode,0),0,1,1)))+IF(ISERROR($G108),0,IF(ISNA(MATCH($G108,TaxCode,0)),0,OFFSET(Setup!$D$7,MATCH($G108,TaxCode,0),0,1,1))))*IF(ISERROR($G108),0,IF(ISNA(MATCH($G108,TaxCode,0)),0,OFFSET(Setup!$D$7,MATCH($G108,TaxCode,0),0,1,1))) -> 0 | O108: =IF(TaxCount=2,E108-SUM(M108:N108),E108-SUM(M108:M108)) -> -176.4521739 | P108: 2020-08-30T00:01:48 | Q108: -
A109: 2020-08-31 | B109: XY Solutions | C109: Invoice EXP15 | D109: Internet Service Provider | E109: -204.06 | F109: A | G109: E | H109: B1 | I109: IS-380 | J109: 2020-08-31 | K109: W | L109: =SUMIFS(CBIncl,CBBalDate,"<="&($A109+(ROW($A109)/86400)),CBBank,$H109) -> 72919.98 | M109: =$E109/(1+IF(ISERROR($F109),0,IF(ISNA(MATCH($F109,TaxCode,0)),0,OFFSET(Setup!$D$7,MATCH($F109,TaxCode,0),0,1,1)))+IF(ISERROR($G109),0,IF(ISNA(MATCH($G109,TaxCode,0)),0,OFFSET(Setup!$D$7,MATCH($G109,TaxCode,0),0,1,1))))*IF(ISERROR($F109),0,IF(ISNA(MATCH($F109,TaxCode,0)),0,OFFSET(Setup!$D$7,MATCH($F109,TaxCode,0),0,1,1))) -> -26.61652174 | N109: =$E109/(1+IF(ISERROR($F109),0,IF(ISNA(MATCH($F109,TaxCode,0)),0,OFFSET(Setup!$D$7,MATCH($F109,TaxCode,0),0,1,1)))+IF(ISERROR($G109),0,IF(ISNA(MATCH($G109,TaxCode,0)),0,OFFSET(Setup!$D$7,MATCH($G109,TaxCode,0),0,1,1))))*IF(ISERROR($G109),0,IF(ISNA(MATCH($G109,TaxCode,0)),0,OFFSET(Setup!$D$7,MATCH($G109,TaxCode,0),0,1,1))) -> 0 | O109: =IF(TaxCount=2,E109-SUM(M109:N109),E109-SUM(M109:M109)) -> -177.4434783 | P109: 2020-08-31T00:01:49 | Q109: -
A110: 2020-09-02 | B110: IAS Accountants | C110: Invoice | D110: Bookkeeping | E110: -912 | F110: A | G110: E | H110: B1 | I110: IS-305 | J110: 2020-09-02 | K110: W | L110: =SUMIFS(CBIncl,CBBalDate,"<="&($A110+(ROW($A110)/86400)),CBBank,$H110) -> 72007.98 | M110: =$E110/(1+IF(ISERROR($F110),0,IF(ISNA(MATCH($F110,TaxCode,0)),0,OFFSET(Setup!$D$7,MATCH($F110,TaxCode,0),0,1,1)))+IF(ISERROR($G110),0,IF(ISNA(MATCH($G110,TaxCode,0)),0,OFFSET(Setup!$D$7,MATCH($G110,TaxCode,0),0,1,1))))*IF(ISERROR($F110),0,IF(ISNA(MATCH($F110,TaxCode,0)),0,OFFSET(Setup!$D$7,MATCH($F110,TaxCode,0),0,1,1))) -> -118.9565217 | N110: =$E110/(1+IF(ISERROR($F110),0,IF(ISNA(MATCH($F110,TaxCode,0)),0,OFFSET(Setup!$D$7,MATCH($F110,TaxCode,0),0,1,1)))+IF(ISERROR($G110),0,IF(ISNA(MATCH($G110,TaxCode,0)),0,OFFSET(Setup!$D$7,MATCH($G110,TaxCode,0),0,1,1))))*IF(ISERROR($G110),0,IF(ISNA(MATCH($G110,TaxCode,0)),0,OFFSET(Setup!$D$7,MATCH($G110,TaxCode,0),0,1,1))) -> 0 | O110: =IF(TaxCount=2,E110-SUM(M110:N110),E110-SUM(M110:M110)) -> -793.0434783 | P110: 2020-09-02T00:01:50 | Q110: -
A111: 2020-09-03 | B111: FS Financial Services | C111: INV0063 | D111: Consulting Services | E111: 26220 | F111: A | G111: E | H111: B1 | I111: IS-100 | J111: 2020-09-03 | K111: D | L111: =SUMIFS(CBIncl,CBBalDate,"<="&($A111+(ROW($A111)/86400)),CBBank,$H111) -> 98227.98 | M111: =$E111/(1+IF(ISERROR($F111),0,IF(ISNA(MATCH($F111,TaxCode,0)),0,OFFSET(Setup!$D$7,MATCH($F111,TaxCode,0),0,1,1)))+IF(ISERROR($G111),0,IF(ISNA(MATCH($G111,TaxCode,0)),0,OFFSET(Setup!$D$7,MATCH($G111,TaxCode,0),0,1,1))))*IF(ISERROR($F111),0,IF(ISNA(MATCH($F111,TaxCode,0)),0,OFFSET(Setup!$D$7,MATCH($F111,TaxCode,0),0,1,1))) -> 3420 | N111: =$E111/(1+IF(ISERROR($F111),0,IF(ISNA(MATCH($F111,TaxCode,0)),0,OFFSET(Setup!$D$7,MATCH($F111,TaxCode,0),0,1,1)))+IF(ISERROR($G111),0,IF(ISNA(MATCH($G111,TaxCode,0)),0,OFFSET(Setup!$D$7,MATCH($G111,TaxCode,0),0,1,1))))*IF(ISERROR($G111),0,IF(ISNA(MATCH($G111,TaxCode,0)),0,OFFSET(Setup!$D$7,MATCH($G111,TaxCode,0),0,1,1))) -> 0 | O111: =IF(TaxCount=2,E111-SUM(M111:N111),E111-SUM(M111:M111)) -> 22800 | P111: 2020-09-03T00:01:51 | Q111: -
A112: 2020-09-05 | B112: Hollard | C112: Debit Order | D112: Insurance | E112: -364.8 | F112: A | G112: E | H112: B1 | I112: IS-340 | J112: 2020-09-05 | K112: W | L112: =SUMIFS(CBIncl,CBBalDate,"<="&($A112+(ROW($A112)/86400)),CBBank,$H112) -> 97863.18 | M112: =$E112/(1+IF(ISERROR($F112),0,IF(ISNA(MATCH($F112,TaxCode,0)),0,OFFSET(Setup!$D$7,MATCH($F112,TaxCode,0),0,1,1)))+IF(ISERROR($G112),0,IF(ISNA(MATCH($G112,TaxCode,0)),0,OFFSET(Setup!$D$7,MATCH($G112,TaxCode,0),0,1,1))))*IF(ISERROR($F112),0,IF(ISNA(MATCH($F112,TaxCode,0)),0,OFFSET(Setup!$D$7,MATCH($F112,TaxCode,0),0,1,1))) -> -47.5826087 | N112: =$E112/(1+IF(ISERROR($F112),0,IF(ISNA(MATCH($F112,TaxCode,0)),0,OFFSET(Setup!$D$7,MATCH($F112,TaxCode,0),0,1,1)))+IF(ISERROR($G112),0,IF(ISNA(MATCH($G112,TaxCode,0)),0,OFFSET(Setup!$D$7,MATCH($G112,TaxCode,0),0,1,1))))*IF(ISERROR($G112),0,IF(ISNA(MATCH($G112,TaxCode,0)),0,OFFSET(Setup!$D$7,MATCH($G112,TaxCode,0),0,1,1))) -> 0 | O112: =IF(TaxCount=2,E112-SUM(M112:N112),E112-SUM(M112:M112)) -> -317.2173913 | P112: 2020-09-05T00:01:52 | Q112: -
A113: 2020-09-06 | B113: RT Office Supplies | C113: T2518536 | D113: Office chair | E113: -1821.72 | F113: A | G113: E | H113: B1 | I113: IS-345 | J113: 2020-09-06 | K113: W | L113: =SUMIFS(CBIncl,CBBalDate,"<="&($A113+(ROW($A113)/86400)),CBBank,$H113) -> 96041.46 | M113: =$E113/(1+IF(ISERROR($F113),0,IF(ISNA(MATCH($F113,TaxCode,0)),0,OFFSET(Setup!$D$7,MATCH($F113,TaxCode,0),0,1,1)))+IF(ISERROR($G113),0,IF(ISNA(MATCH($G113,TaxCode,0)),0,OFFSET(Setup!$D$7,MATCH($G113,TaxCode,0),0,1,1))))*IF(ISERROR($F113),0,IF(ISNA(MATCH($F113,TaxCode,0)),0,OFFSET(Setup!$D$7,MATCH($F113,TaxCode,0),0,1,1))) -> -237.6156522 | N113: =$E113/(1+IF(ISERROR($F113),0,IF(ISNA(MATCH($F113,TaxCode,0)),0,OFFSET(Setup!$D$7,MATCH($F113,TaxCode,0),0,1,1)))+IF(ISERROR($G113),0,IF(ISNA(MATCH($G113,TaxCode,0)),0,OFFSET(Setup!$D$7,MATCH($G113,TaxCode,0),0,1,1))))*IF(ISERROR($G113),0,IF(ISNA(MATCH($G113,TaxCode,0)),0,OFFSET(Setup!$D$7,MATCH($G113,TaxCode,0),0,1,1))) -> 0 | O113: =IF(TaxCount=2,E113-SUM(M113:N113),E113-SUM(M113:M113)) -> -1584.104348 | P113: 2020-09-06T00:01:53 | Q113: -
A114: 2020-09-12 | B114: PTY Consultants | C114: INV0064 | D114: Consulting Services | E114: 13680 | F114: A | G114: E | H114: B1 | I114: IS-100 | J114: 2020-09-12 | K114: D | L114: =SUMIFS(CBIncl,CBBalDate,"<="&($A114+(ROW($A114)/86400)),CBBank,$H114) -> 109721.46 | M114: =$E114/(1+IF(ISERROR($F114),0,IF(ISNA(MATCH($F114,TaxCode,0)),0,OFFSET(Setup!$D$7,MATCH($F114,TaxCode,0),0,1,1)))+IF(ISERROR($G114),0,IF(ISNA(MATCH($G114,TaxCode,0)),0,OFFSET(Setup!$D$7,MATCH($G114,TaxCode,0),0,1,1))))*IF(ISERROR($F114),0,IF(ISNA(MATCH($F114,TaxCode,0)),0,OFFSET(Setup!$D$7,MATCH($F114,TaxCode,0),0,1,1))) -> 1784.347826 | N114: =$E114/(1+IF(ISERROR($F114),0,IF(ISNA(MATCH($F114,TaxCode,0)),0,OFFSET(Setup!$D$7,MATCH($F114,TaxCode,0),0,1,1)))+IF(ISERROR($G114),0,IF(ISNA(MATCH($G114,TaxCode,0)),0,OFFSET(Setup!$D$7,MATCH($G114,TaxCode,0),0,1,1))))*IF(ISERROR($G114),0,IF(ISNA(MATCH($G114,TaxCode,0)),0,OFFSET(Setup!$D$7,MATCH($G114,TaxCode,0),0,1,1))) -> 0 | O114: =IF(TaxCount=2,E114-SUM(M114:N114),E114-SUM(M114:M114)) -> 11895.65217 | P114: 2020-09-12T00:01:54 | Q114: -
A115: 2020-09-15 | B115: ABSA | C115: Bank Statement | D115: Service Fees | E115: -57 | F115: A | G115: E | H115: B1 | I115: IS-315 | J115: 2020-09-15 | K115: W | L115: =SUMIFS(CBIncl,CBBalDate,"<="&($A115+(ROW($A115)/86400)),CBBank,$H115) -> 109664.46 | M115: =$E115/(1+IF(ISERROR($F115),0,IF(ISNA(MATCH($F115,TaxCode,0)),0,OFFSET(Setup!$D$7,MATCH($F115,TaxCode,0),0,1,1)))+IF(ISERROR($G115),0,IF(ISNA(MATCH($G115,TaxCode,0)),0,OFFSET(Setup!$D$7,MATCH($G115,TaxCode,0),0,1,1))))*IF(ISERROR($F115),0,IF(ISNA(MATCH($F115,TaxCode,0)),0,OFFSET(Setup!$D$7,MATCH($F115,TaxCode,0),0,1,1))) -> -7.434782609 | N115: =$E115/(1+IF(ISERROR($F115),0,IF(ISNA(MATCH($F115,TaxCode,0)),0,OFFSET(Setup!$D$7,MATCH($F115,TaxCode,0),0,1,1)))+IF(ISERROR($G115),0,IF(ISNA(MATCH($G115,TaxCode,0)),0,OFFSET(Setup!$D$7,MATCH($G115,TaxCode,0),0,1,1))))*IF(ISERROR($G115),0,IF(ISNA(MATCH($G115,TaxCode,0)),0,OFFSET(Setup!$D$7,MATCH($G115,TaxCode,0),0,1,1))) -> 0 | O115: =IF(TaxCount=2,E115-SUM(M115:N115),E115-SUM(M115:M115)) -> -49.56521739 | P115: 2020-09-15T00:01:55 | Q115: -
A116: 2020-09-20 | B116: Transfer | C116: Bank Statement | D116: Bank Transfer | E116: 13000 | F116: E | G116: E | H116: B2 | I116: BS-TRF | J116: 2020-09-20 | K116: D | L116: =SUMIFS(CBIncl,CBBalDate,"<="&($A116+(ROW($A116)/86400)),CBBank,$H116) -> 14600 | M116: =$E116/(1+IF(ISERROR($F116),0,IF(ISNA(MATCH($F116,TaxCode,0)),0,OFFSET(Setup!$D$7,MATCH($F116,TaxCode,0),0,1,1)))+IF(ISERROR($G116),0,IF(ISNA(MATCH($G116,TaxCode,0)),0,OFFSET(Setup!$D$7,MATCH($G116,TaxCode,0),0,1,1))))*IF(ISERROR($F116),0,IF(ISNA(MATCH($F116,TaxCode,0)),0,OFFSET(Setup!$D$7,MATCH($F116,TaxCode,0),0,1,1))) -> 0 | N116: =$E116/(1+IF(ISERROR($F116),0,IF(ISNA(MATCH($F116,TaxCode,0)),0,OFFSET(Setup!$D$7,MATCH($F116,TaxCode,0),0,1,1)))+IF(ISERROR($G116),0,IF(ISNA(MATCH($G116,TaxCode,0)),0,OFFSET(Setup!$D$7,MATCH($G116,TaxCode,0),0,1,1))))*IF(ISERROR($G116),0,IF(ISNA(MATCH($G116,TaxCode,0)),0,OFFSET(Setup!$D$7,MATCH($G116,TaxCode,0),0,1,1))) -> 0 | O116: =IF(TaxCount=2,E116-SUM(M116:N116),E116-SUM(M116:M116)) -> 13000 | P116: 2020-09-20T00:01:56 | Q116: -
A117: 2020-09-20 | B117: Transfer | C117: Bank Statement | D117: Bank Transfer | E117: -13000 | F117: E | G117: E | H117: B1 | I117: BS-TRF | J117: 2020-09-20 | K117: W | L117: =SUMIFS(CBIncl,CBBalDate,"<="&($A117+(ROW($A117)/86400)),CBBank,$H117) -> 96664.46 | M117: =$E117/(1+IF(ISERROR($F117),0,IF(ISNA(MATCH($F117,TaxCode,0)),0,OFFSET(Setup!$D$7,MATCH($F117,TaxCode,0),0,1,1)))+IF(ISERROR($G117),0,IF(ISNA(MATCH($G117,TaxCode,0)),0,OFFSET(Setup!$D$7,MATCH($G117,TaxCode,0),0,1,1))))*IF(ISERROR($F117),0,IF(ISNA(MATCH($F117,TaxCode,0)),0,OFFSET(Setup!$D$7,MATCH($F117,TaxCode,0),0,1,1))) -> 0 | N117: =$E117/(1+IF(ISERROR($F117),0,IF(ISNA(MATCH($F117,TaxCode,0)),0,OFFSET(Setup!$D$7,MATCH($F117,TaxCode,0),0,1,1)))+IF(ISERROR($G117),0,IF(ISNA(MATCH($G117,TaxCode,0)),0,OFFSET(Setup!$D$7,MATCH($G117,TaxCode,0),0,1,1))))*IF(ISERROR($G117),0,IF(ISNA(MATCH($G117,TaxCode,0)),0,OFFSET(Setup!$D$7,MATCH($G117,TaxCode,0),0,1,1))) -> 0 | O117: =IF(TaxCount=2,E117-SUM(M117:N117),E117-SUM(M117:M117)) -> -13000 | P117: 2020-09-20T00:01:57 | Q117: -
A118: 2020-09-21 | B118: Town Council | C118: Statement | D118: Rates | E118: -4752 | F118: E | G118: E | H118: B1 | I118: IS-395 | J118: 2020-09-21 | K118: W | L118: =SUMIFS(CBIncl,CBBalDate,"<="&($A118+(ROW($A118)/86400)),CBBank,$H118) -> 91912.46 | M118: =$E118/(1+IF(ISERROR($F118),0,IF(ISNA(MATCH($F118,TaxCode,0)),0,OFFSET(Setup!$D$7,MATCH($F118,TaxCode,0),0,1,1)))+IF(ISERROR($G118),0,IF(ISNA(MATCH($G118,TaxCode,0)),0,OFFSET(Setup!$D$7,MATCH($G118,TaxCode,0),0,1,1))))*IF(ISERROR($F118),0,IF(ISNA(MATCH($F118,TaxCode,0)),0,OFFSET(Setup!$D$7,MATCH($F118,TaxCode,0),0,1,1))) -> 0 | N118: =$E118/(1+IF(ISERROR($F118),0,IF(ISNA(MATCH($F118,TaxCode,0)),0,OFFSET(Setup!$D$7,MATCH($F118,TaxCode,0),0,1,1)))+IF(ISERROR($G118),0,IF(ISNA(MATCH($G118,TaxCode,0)),0,OFFSET(Setup!$D$7,MATCH($G118,TaxCode,0),0,1,1))))*IF(ISERROR($G118),0,IF(ISNA(MATCH($G118,TaxCode,0)),0,OFFSET(Setup!$D$7,MATCH($G118,TaxCode,0),0,1,1))) -> 0 | O118: =IF(TaxCount=2,E118-SUM(M118:N118),E118-SUM(M118:M118)) -> -4752 | P118: 2020-09-21T00:01:58 | Q118: -
A119: 2020-09-25 | B119: Cash | C119: Bank Statement | D119: Petty Cash Reimbursement | E119: -330 | F119: E | G119: E | H119: B1 | I119: BS-TRF | J119: 2020-09-25 | K119: W | L119: =SUMIFS(CBIncl,CBBalDate,"<="&($A119+(ROW($A119)/86400)),CBBank,$H119) -> 91582.46 | M119: =$E119/(1+IF(ISERROR($F119),0,IF(ISNA(MATCH($F119,TaxCode,0)),0,OFFSET(Setup!$D$7,MATCH($F119,TaxCode,0),0,1,1)))+IF(ISERROR($G119),0,IF(ISNA(MATCH($G119,TaxCode,0)),0,OFFSET(Setup!$D$7,MATCH($G119,TaxCode,0),0,1,1))))*IF(ISERROR($F119),0,IF(ISNA(MATCH($F119,TaxCode,0)),0,OFFSET(Setup!$D$7,MATCH($F119,TaxCode,0),0,1,1))) -> 0 | N119: =$E119/(1+IF(ISERROR($F119),0,IF(ISNA(MATCH($F119,TaxCode,0)),0,OFFSET(Setup!$D$7,MATCH($F119,TaxCode,0),0,1,1)))+IF(ISERROR($G119),0,IF(ISNA(MATCH($G119,TaxCode,0)),0,OFFSET(Setup!$D$7,MATCH($G119,TaxCode,0),0,1,1))))*IF(ISERROR($G119),0,IF(ISNA(MATCH($G119,TaxCode,0)),0,OFFSET(Setup!$D$7,MATCH($G119,TaxCode,0),0,1,1))) -> 0 | O119: =IF(TaxCount=2,E119-SUM(M119:N119),E119-SUM(M119:M119)) -> -330 | P119: 2020-09-25T00:01:59 | Q119: -
A120: 2020-09-25 | B120: Cash | C120: Bank Statement | D120: Petty Cash Reimbursement | E120: 330 | F120: E | G120: E | H120: PC | I120: BS-TRF | J120: 2020-09-25 | K120: D | L120: =SUMIFS(CBIncl,CBBalDate,"<="&($A120+(ROW($A120)/86400)),CBBank,$H120) -> 1054.107 | M120: =$E120/(1+IF(ISERROR($F120),0,IF(ISNA(MATCH($F120,TaxCode,0)),0,OFFSET(Setup!$D$7,MATCH($F120,TaxCode,0),0,1,1)))+IF(ISERROR($G120),0,IF(ISNA(MATCH($G120,TaxCode,0)),0,OFFSET(Setup!$D$7,MATCH($G120,TaxCode,0),0,1,1))))*IF(ISERROR($F120),0,IF(ISNA(MATCH($F120,TaxCode,0)),0,OFFSET(Setup!$D$7,MATCH($F120,TaxCode,0),0,1,1))) -> 0 | N120: =$E120/(1+IF(ISERROR($F120),0,IF(ISNA(MATCH($F120,TaxCode,0)),0,OFFSET(Setup!$D$7,MATCH($F120,TaxCode,0),0,1,1)))+IF(ISERROR($G120),0,IF(ISNA(MATCH($G120,TaxCode,0)),0,OFFSET(Setup!$D$7,MATCH($G120,TaxCode,0),0,1,1))))*IF(ISERROR($G120),0,IF(ISNA(MATCH($G120,TaxCode,0)),0,OFFSET(Setup!$D$7,MATCH($G120,TaxCode,0),0,1,1))) -> 0 | O120: =IF(TaxCount=2,E120-SUM(M120:N120),E120-SUM(M120:M120)) -> 330 | P120: 2020-09-25T00:02:00 | Q120: -
A121: 2020-09-26 | B121: Payroll | C121: Payroll | D121: Salaries | E121: -13000 | F121: E | G121: E | H121: B2 | I121: IS-365 | J121: 2020-09-26 | K121: W | L121: =SUMIFS(CBIncl,CBBalDate,"<="&($A121+(ROW($A121)/86400)),CBBank,$H121) -> 1600 | M121: =$E121/(1+IF(ISERROR($F121),0,IF(ISNA(MATCH($F121,TaxCode,0)),0,OFFSET(Setup!$D$7,MATCH($F121,TaxCode,0),0,1,1)))+IF(ISERROR($G121),0,IF(ISNA(MATCH($G121,TaxCode,0)),0,OFFSET(Setup!$D$7,MATCH($G121,TaxCode,0),0,1,1))))*IF(ISERROR($F121),0,IF(ISNA(MATCH($F121,TaxCode,0)),0,OFFSET(Setup!$D$7,MATCH($F121,TaxCode,0),0,1,1))) -> 0 | N121: =$E121/(1+IF(ISERROR($F121),0,IF(ISNA(MATCH($F121,TaxCode,0)),0,OFFSET(Setup!$D$7,MATCH($F121,TaxCode,0),0,1,1)))+IF(ISERROR($G121),0,IF(ISNA(MATCH($G121,TaxCode,0)),0,OFFSET(Setup!$D$7,MATCH($G121,TaxCode,0),0,1,1))))*IF(ISERROR($G121),0,IF(ISNA(MATCH($G121,TaxCode,0)),0,OFFSET(Setup!$D$7,MATCH($G121,TaxCode,0),0,1,1))) -> 0 | O121: =IF(TaxCount=2,E121-SUM(M121:N121),E121-SUM(M121:M121)) -> -13000 | P121: 2020-09-26T00:02:01 | Q121: -
A122: 2020-09-26 | B122: PR Properties | C122: Debit Order | D122: Rent | E122: -5700 | F122: A | G122: E | H122: B1 | I122: IS-350 | J122: 2020-09-26 | K122: W | L122: =SUMIFS(CBIncl,CBBalDate,"<="&($A122+(ROW($A122)/86400)),CBBank,$H122) -> 85882.46 | M122: =$E122/(1+IF(ISERROR($F122),0,IF(ISNA(MATCH($F122,TaxCode,0)),0,OFFSET(Setup!$D$7,MATCH($F122,TaxCode,0),0,1,1)))+IF(ISERROR($G122),0,IF(ISNA(MATCH($G122,TaxCode,0)),0,OFFSET(Setup!$D$7,MATCH($G122,TaxCode,0),0,1,1))))*IF(ISERROR($F122),0,IF(ISNA(MATCH($F122,TaxCode,0)),0,OFFSET(Setup!$D$7,MATCH($F122,TaxCode,0),0,1,1))) -> -743.4782609 | N122: =$E122/(1+IF(ISERROR($F122),0,IF(ISNA(MATCH($F122,TaxCode,0)),0,OFFSET(Setup!$D$7,MATCH($F122,TaxCode,0),0,1,1)))+IF(ISERROR($G122),0,IF(ISNA(MATCH($G122,TaxCode,0)),0,OFFSET(Setup!$D$7,MATCH($G122,TaxCode,0),0,1,1))))*IF(ISERROR($G122),0,IF(ISNA(MATCH($G122,TaxCode,0)),0,OFFSET(Setup!$D$7,MATCH($G122,TaxCode,0),0,1,1))) -> 0 | O122: =IF(TaxCount=2,E122-SUM(M122:N122),E122-SUM(M122:M122)) -> -4956.521739 | P122: 2020-09-26T00:02:02 | Q122: -
A123: 2020-09-26 | B123: SQ Financial Services | C123: Debit Order | D123: Capital repayment | E123: -220 | F123: E | G123: E | H123: B1 | I123: BS-700 | J123: 2020-09-26 | K123: W | L123: =SUMIFS(CBIncl,CBBalDate,"<="&($A123+(ROW($A123)/86400)),CBBank,$H123) -> 85662.46 | M123: =$E123/(1+IF(ISERROR($F123),0,IF(ISNA(MATCH($F123,TaxCode,0)),0,OFFSET(Setup!$D$7,MATCH($F123,TaxCode,0),0,1,1)))+IF(ISERROR($G123),0,IF(ISNA(MATCH($G123,TaxCode,0)),0,OFFSET(Setup!$D$7,MATCH($G123,TaxCode,0),0,1,1))))*IF(ISERROR($F123),0,IF(ISNA(MATCH($F123,TaxCode,0)),0,OFFSET(Setup!$D$7,MATCH($F123,TaxCode,0),0,1,1))) -> 0 | N123: =$E123/(1+IF(ISERROR($F123),0,IF(ISNA(MATCH($F123,TaxCode,0)),0,OFFSET(Setup!$D$7,MATCH($F123,TaxCode,0),0,1,1)))+IF(ISERROR($G123),0,IF(ISNA(MATCH($G123,TaxCode,0)),0,OFFSET(Setup!$D$7,MATCH($G123,TaxCode,0),0,1,1))))*IF(ISERROR($G123),0,IF(ISNA(MATCH($G123,TaxCode,0)),0,OFFSET(Setup!$D$7,MATCH($G123,TaxCode,0),0,1,1))) -> 0 | O123: =IF(TaxCount=2,E123-SUM(M123:N123),E123-SUM(M123:M123)) -> -220 | P123: 2020-09-26T00:02:03 | Q123: -
A124: 2020-09-26 | B124: SQ Financial Services | C124: Debit Order | D124: Interest paid | E124: -100 | F124: E | G124: E | H124: B1 | I124: IS-500 | J124: 2020-09-26 | K124: W | L124: =SUMIFS(CBIncl,CBBalDate,"<="&($A124+(ROW($A124)/86400)),CBBank,$H124) -> 85562.46 | M124: =$E124/(1+IF(ISERROR($F124),0,IF(ISNA(MATCH($F124,TaxCode,0)),0,OFFSET(Setup!$D$7,MATCH($F124,TaxCode,0),0,1,1)))+IF(ISERROR($G124),0,IF(ISNA(MATCH($G124,TaxCode,0)),0,OFFSET(Setup!$D$7,MATCH($G124,TaxCode,0),0,1,1))))*IF(ISERROR($F124),0,IF(ISNA(MATCH($F124,TaxCode,0)),0,OFFSET(Setup!$D$7,MATCH($F124,TaxCode,0),0,1,1))) -> 0 | N124: =$E124/(1+IF(ISERROR($F124),0,IF(ISNA(MATCH($F124,TaxCode,0)),0,OFFSET(Setup!$D$7,MATCH($F124,TaxCode,0),0,1,1)))+IF(ISERROR($G124),0,IF(ISNA(MATCH($G124,TaxCode,0)),0,OFFSET(Setup!$D$7,MATCH($G124,TaxCode,0),0,1,1))))*IF(ISERROR($G124),0,IF(ISNA(MATCH($G124,TaxCode,0)),0,OFFSET(Setup!$D$7,MATCH($G124,TaxCode,0),0,1,1))) -> 0 | O124: =IF(TaxCount=2,E124-SUM(M124:N124),E124-SUM(M124:M124)) -> -100 | P124: 2020-09-26T00:02:04 | Q124: -
A125: 2020-10-01 | B125: XY Solutions | C125: Invoice EXP16 | D125: Internet Service Provider | E125: -204.06 | F125: A | G125: E | H125: B1 | I125: IS-380 | J125: 2020-10-01 | K125: W | L125: =SUMIFS(CBIncl,CBBalDate,"<="&($A125+(ROW($A125)/86400)),CBBank,$H125) -> 85358.4 | M125: =$E125/(1+IF(ISERROR($F125),0,IF(ISNA(MATCH($F125,TaxCode,0)),0,OFFSET(Setup!$D$7,MATCH($F125,TaxCode,0),0,1,1)))+IF(ISERROR($G125),0,IF(ISNA(MATCH($G125,TaxCode,0)),0,OFFSET(Setup!$D$7,MATCH($G125,TaxCode,0),0,1,1))))*IF(ISERROR($F125),0,IF(ISNA(MATCH($F125,TaxCode,0)),0,OFFSET(Setup!$D$7,MATCH($F125,TaxCode,0),0,1,1))) -> -26.61652174 | N125: =$E125/(1+IF(ISERROR($F125),0,IF(ISNA(MATCH($F125,TaxCode,0)),0,OFFSET(Setup!$D$7,MATCH($F125,TaxCode,0),0,1,1)))+IF(ISERROR($G125),0,IF(ISNA(MATCH($G125,TaxCode,0)),0,OFFSET(Setup!$D$7,MATCH($G125,TaxCode,0),0,1,1))))*IF(ISERROR($G125),0,IF(ISNA(MATCH($G125,TaxCode,0)),0,OFFSET(Setup!$D$7,MATCH($G125,TaxCode,0),0,1,1))) -> 0 | O125: =IF(TaxCount=2,E125-SUM(M125:N125),E125-SUM(M125:M125)) -> -177.4434783 | P125: 2020-10-01T00:02:05 | Q125: -
A126: 2020-10-03 | B126: IAS Accountants | C126: Invoice | D126: Bookkeeping | E126: -912 | F126: A | G126: E | H126: B1 | I126: IS-305 | J126: 2020-10-03 | K126: W | L126: =SUMIFS(CBIncl,CBBalDate,"<="&($A126+(ROW($A126)/86400)),CBBank,$H126) -> 84446.4 | M126: =$E126/(1+IF(ISERROR($F126),0,IF(ISNA(MATCH($F126,TaxCode,0)),0,OFFSET(Setup!$D$7,MATCH($F126,TaxCode,0),0,1,1)))+IF(ISERROR($G126),0,IF(ISNA(MATCH($G126,TaxCode,0)),0,OFFSET(Setup!$D$7,MATCH($G126,TaxCode,0),0,1,1))))*IF(ISERROR($F126),0,IF(ISNA(MATCH($F126,TaxCode,0)),0,OFFSET(Setup!$D$7,MATCH($F126,TaxCode,0),0,1,1))) -> -118.9565217 | N126: =$E126/(1+IF(ISERROR($F126),0,IF(ISNA(MATCH($F126,TaxCode,0)),0,OFFSET(Setup!$D$7,MATCH($F126,TaxCode,0),0,1,1)))+IF(ISERROR($G126),0,IF(ISNA(MATCH($G126,TaxCode,0)),0,OFFSET(Setup!$D$7,MATCH($G126,TaxCode,0),0,1,1))))*IF(ISERROR($G126),0,IF(ISNA(MATCH($G126,TaxCode,0)),0,OFFSET(Setup!$D$7,MATCH($G126,TaxCode,0),0,1,1))) -> 0 | O126: =IF(TaxCount=2,E126-SUM(M126:N126),E126-SUM(M126:M126)) -> -793.0434783 | P126: 2020-10-03T00:02:06 | Q126: -
A127: 2020-10-04 | B127: SPAR | C127: IN1145 | D127: Consumables | E127: -59.28 | F127: A | G127: E | H127: PC | I127: IS-325 | J127: 2020-10-04 | K127: W | L127: =SUMIFS(CBIncl,CBBalDate,"<="&($A127+(ROW($A127)/86400)),CBBank,$H127) -> 994.827 | M127: =$E127/(1+IF(ISERROR($F127),0,IF(ISNA(MATCH($F127,TaxCode,0)),0,OFFSET(Setup!$D$7,MATCH($F127,TaxCode,0),0,1,1)))+IF(ISERROR($G127),0,IF(ISNA(MATCH($G127,TaxCode,0)),0,OFFSET(Setup!$D$7,MATCH($G127,TaxCode,0),0,1,1))))*IF(ISERROR($F127),0,IF(ISNA(MATCH($F127,TaxCode,0)),0,OFFSET(Setup!$D$7,MATCH($F127,TaxCode,0),0,1,1))) -> -7.732173913 | N127: =$E127/(1+IF(ISERROR($F127),0,IF(ISNA(MATCH($F127,TaxCode,0)),0,OFFSET(Setup!$D$7,MATCH($F127,TaxCode,0),0,1,1)))+IF(ISERROR($G127),0,IF(ISNA(MATCH($G127,TaxCode,0)),0,OFFSET(Setup!$D$7,MATCH($G127,TaxCode,0),0,1,1))))*IF(ISERROR($G127),0,IF(ISNA(MATCH($G127,TaxCode,0)),0,OFFSET(Setup!$D$7,MATCH($G127,TaxCode,0),0,1,1))) -> 0 | O127: =IF(TaxCount=2,E127-SUM(M127:N127),E127-SUM(M127:M127)) -> -51.54782609 | P127: 2020-10-04T00:02:07 | Q127: -
A128: 2020-10-05 | B128: Hollard | C128: Debit Order | D128: Insurance | E128: -364.8 | F128: A | G128: E | H128: B1 | I128: IS-340 | J128: 2020-10-05 | K128: W | L128: =SUMIFS(CBIncl,CBBalDate,"<="&($A128+(ROW($A128)/86400)),CBBank,$H128) -> 84081.6 | M128: =$E128/(1+IF(ISERROR($F128),0,IF(ISNA(MATCH($F128,TaxCode,0)),0,OFFSET(Setup!$D$7,MATCH($F128,TaxCode,0),0,1,1)))+IF(ISERROR($G128),0,IF(ISNA(MATCH($G128,TaxCode,0)),0,OFFSET(Setup!$D$7,MATCH($G128,TaxCode,0),0,1,1))))*IF(ISERROR($F128),0,IF(ISNA(MATCH($F128,TaxCode,0)),0,OFFSET(Setup!$D$7,MATCH($F128,TaxCode,0),0,1,1))) -> -47.5826087 | N128: =$E128/(1+IF(ISERROR($F128),0,IF(ISNA(MATCH($F128,TaxCode,0)),0,OFFSET(Setup!$D$7,MATCH($F128,TaxCode,0),0,1,1)))+IF(ISERROR($G128),0,IF(ISNA(MATCH($G128,TaxCode,0)),0,OFFSET(Setup!$D$7,MATCH($G128,TaxCode,0),0,1,1))))*IF(ISERROR($G128),0,IF(ISNA(MATCH($G128,TaxCode,0)),0,OFFSET(Setup!$D$7,MATCH($G128,TaxCode,0),0,1,1))) -> 0 | O128: =IF(TaxCount=2,E128-SUM(M128:N128),E128-SUM(M128:M128)) -> -317.2173913 | P128: 2020-10-05T00:02:08 | Q128: -
A129: 2020-10-09 | B129: IT Solutions | C129: INV0065 | D129: Consulting Services | E129: 20520 | F129: A | G129: E | H129: B1 | I129: IS-100 | J129: 2020-10-09 | K129: D | L129: =SUMIFS(CBIncl,CBBalDate,"<="&($A129+(ROW($A129)/86400)),CBBank,$H129) -> 104601.6 | M129: =$E129/(1+IF(ISERROR($F129),0,IF(ISNA(MATCH($F129,TaxCode,0)),0,OFFSET(Setup!$D$7,MATCH($F129,TaxCode,0),0,1,1)))+IF(ISERROR($G129),0,IF(ISNA(MATCH($G129,TaxCode,0)),0,OFFSET(Setup!$D$7,MATCH($G129,TaxCode,0),0,1,1))))*IF(ISERROR($F129),0,IF(ISNA(MATCH($F129,TaxCode,0)),0,OFFSET(Setup!$D$7,MATCH($F129,TaxCode,0),0,1,1))) -> 2676.521739 | N129: =$E129/(1+IF(ISERROR($F129),0,IF(ISNA(MATCH($F129,TaxCode,0)),0,OFFSET(Setup!$D$7,MATCH($F129,TaxCode,0),0,1,1)))+IF(ISERROR($G129),0,IF(ISNA(MATCH($G129,TaxCode,0)),0,OFFSET(Setup!$D$7,MATCH($G129,TaxCode,0),0,1,1))))*IF(ISERROR($G129),0,IF(ISNA(MATCH($G129,TaxCode,0)),0,OFFSET(Setup!$D$7,MATCH($G129,TaxCode,0),0,1,1))) -> 0 | O129: =IF(TaxCount=2,E129-SUM(M129:N129),E129-SUM(M129:M129)) -> 17843.47826 | P129: 2020-10-09T00:02:09 | Q129: -
A130: 2020-10-15 | B130: ABSA | C130: Bank Statement | D130: Service Fees | E130: -57 | F130: A | G130: E | H130: B1 | I130: IS-315 | J130: 2020-10-15 | K130: W | L130: =SUMIFS(CBIncl,CBBalDate,"<="&($A130+(ROW($A130)/86400)),CBBank,$H130) -> 104544.6 | M130: =$E130/(1+IF(ISERROR($F130),0,IF(ISNA(MATCH($F130,TaxCode,0)),0,OFFSET(Setup!$D$7,MATCH($F130,TaxCode,0),0,1,1)))+IF(ISERROR($G130),0,IF(ISNA(MATCH($G130,TaxCode,0)),0,OFFSET(Setup!$D$7,MATCH($G130,TaxCode,0),0,1,1))))*IF(ISERROR($F130),0,IF(ISNA(MATCH($F130,TaxCode,0)),0,OFFSET(Setup!$D$7,MATCH($F130,TaxCode,0),0,1,1))) -> -7.434782609 | N130: =$E130/(1+IF(ISERROR($F130),0,IF(ISNA(MATCH($F130,TaxCode,0)),0,OFFSET(Setup!$D$7,MATCH($F130,TaxCode,0),0,1,1)))+IF(ISERROR($G130),0,IF(ISNA(MATCH($G130,TaxCode,0)),0,OFFSET(Setup!$D$7,MATCH($G130,TaxCode,0),0,1,1))))*IF(ISERROR($G130),0,IF(ISNA(MATCH($G130,TaxCode,0)),0,OFFSET(Setup!$D$7,MATCH($G130,TaxCode,0),0,1,1))) -> 0 | O130: =IF(TaxCount=2,E130-SUM(M130:N130),E130-SUM(M130:M130)) -> -49.56521739 | P130: 2020-10-15T00:02:10 | Q130: -
A131: 2020-10-19 | B131: PQW Parking | C131: TR6598 | D131: Parking | E131: -3420 | F131: A | G131: E | H131: B1 | I131: IS-390 | J131: 2020-10-19 | K131: W | L131: =SUMIFS(CBIncl,CBBalDate,"<="&($A131+(ROW($A131)/86400)),CBBank,$H131) -> 101124.6 | M131: =$E131/(1+IF(ISERROR($F131),0,IF(ISNA(MATCH($F131,TaxCode,0)),0,OFFSET(Setup!$D$7,MATCH($F131,TaxCode,0),0,1,1)))+IF(ISERROR($G131),0,IF(ISNA(MATCH($G131,TaxCode,0)),0,OFFSET(Setup!$D$7,MATCH($G131,TaxCode,0),0,1,1))))*IF(ISERROR($F131),0,IF(ISNA(MATCH($F131,TaxCode,0)),0,OFFSET(Setup!$D$7,MATCH($F131,TaxCode,0),0,1,1))) -> -446.0869565 | N131: =$E131/(1+IF(ISERROR($F131),0,IF(ISNA(MATCH($F131,TaxCode,0)),0,OFFSET(Setup!$D$7,MATCH($F131,TaxCode,0),0,1,1)))+IF(ISERROR($G131),0,IF(ISNA(MATCH($G131,TaxCode,0)),0,OFFSET(Setup!$D$7,MATCH($G131,TaxCode,0),0,1,1))))*IF(ISERROR($G131),0,IF(ISNA(MATCH($G131,TaxCode,0)),0,OFFSET(Setup!$D$7,MATCH($G131,TaxCode,0),0,1,1))) -> 0 | O131: =IF(TaxCount=2,E131-SUM(M131:N131),E131-SUM(M131:M131)) -> -2973.913043 | P131: 2020-10-19T00:02:11 | Q131: -
A132: 2020-10-20 | B132: Transfer | C132: Bank Statement | D132: Bank Transfer | E132: 13000 | F132: E | G132: E | H132: B2 | I132: BS-TRF | J132: 2020-10-20 | K132: D | L132: =SUMIFS(CBIncl,CBBalDate,"<="&($A132+(ROW($A132)/86400)),CBBank,$H132) -> 14600 | M132: =$E132/(1+IF(ISERROR($F132),0,IF(ISNA(MATCH($F132,TaxCode,0)),0,OFFSET(Setup!$D$7,MATCH($F132,TaxCode,0),0,1,1)))+IF(ISERROR($G132),0,IF(ISNA(MATCH($G132,TaxCode,0)),0,OFFSET(Setup!$D$7,MATCH($G132,TaxCode,0),0,1,1))))*IF(ISERROR($F132),0,IF(ISNA(MATCH($F132,TaxCode,0)),0,OFFSET(Setup!$D$7,MATCH($F132,TaxCode,0),0,1,1))) -> 0 | N132: =$E132/(1+IF(ISERROR($F132),0,IF(ISNA(MATCH($F132,TaxCode,0)),0,OFFSET(Setup!$D$7,MATCH($F132,TaxCode,0),0,1,1)))+IF(ISERROR($G132),0,IF(ISNA(MATCH($G132,TaxCode,0)),0,OFFSET(Setup!$D$7,MATCH($G132,TaxCode,0),0,1,1))))*IF(ISERROR($G132),0,IF(ISNA(MATCH($G132,TaxCode,0)),0,OFFSET(Setup!$D$7,MATCH($G132,TaxCode,0),0,1,1))) -> 0 | O132: =IF(TaxCount=2,E132-SUM(M132:N132),E132-SUM(M132:M132)) -> 13000 | P132: 2020-10-20T00:02:12 | Q132: -
A133: 2020-10-20 | B133: Transfer | C133: Bank Statement | D133: Bank Transfer | E133: -13000 | F133: E | G133: E | H133: B1 | I133: BS-TRF | J133: 2020-10-20 | K133: =IF(E133>=0,"D","W") -> W | L133: =SUMIFS(CBIncl,CBBalDate,"<="&($A133+(ROW($A133)/86400)),CBBank,$H133) -> 88124.6 | M133: =$E133/(1+IF(ISERROR($F133),0,IF(ISNA(MATCH($F133,TaxCode,0)),0,OFFSET(Setup!$D$7,MATCH($F133,TaxCode,0),0,1,1)))+IF(ISERROR($G133),0,IF(ISNA(MATCH($G133,TaxCode,0)),0,OFFSET(Setup!$D$7,MATCH($G133,TaxCode,0),0,1,1))))*IF(ISERROR($F133),0,IF(ISNA(MATCH($F133,TaxCode,0)),0,OFFSET(Setup!$D$7,MATCH($F133,TaxCode,0),0,1,1))) -> 0 | N133: =$E133/(1+IF(ISERROR($F133),0,IF(ISNA(MATCH($F133,TaxCode,0)),0,OFFSET(Setup!$D$7,MATCH($F133,TaxCode,0),0,1,1)))+IF(ISERROR($G133),0,IF(ISNA(MATCH($G133,TaxCode,0)),0,OFFSET(Setup!$D$7,MATCH($G133,TaxCode,0),0,1,1))))*IF(ISERROR($G133),0,IF(ISNA(MATCH($G133,TaxCode,0)),0,OFFSET(Setup!$D$7,MATCH($G133,TaxCode,0),0,1,1))) -> 0 | O133: =IF(TaxCount=2,E133-SUM(M133:N133),E133-SUM(M133:M133)) -> -13000 | P133: =IF(ISBLANK($A133)=TRUE,TODAY()+(ROW($A133)/86400),$A133+(ROW($A133)/86400)) -> 2020-10-20T00:02:13 | Q133: =IF(AND(ISBLANK(J133)=FALSE,J133<A133),"E1",IF(AND(ISBLANK(I133)=FALSE,ISNA(VLOOKUP(I133,AccountAll,1,0))),"E2",IF(AND(ISBLANK(H133)=FALSE,ISNA(VLOOKUP(H133,BankCode,1,0))),"E3","-"))) -> -
A134: 2020-10-21 | B134: DF Manufacturing | C134: INV0066 | D134: Consulting Services | E134: 15390 | F134: A | G134: E | H134: B1 | I134: IS-100 | J134: 2020-10-21 | K134: D | L134: =SUMIFS(CBIncl,CBBalDate,"<="&($A134+(ROW($A134)/86400)),CBBank,$H134) -> 103514.6 | M134: =$E134/(1+IF(ISERROR($F134),0,IF(ISNA(MATCH($F134,TaxCode,0)),0,OFFSET(Setup!$D$7,MATCH($F134,TaxCode,0),0,1,1)))+IF(ISERROR($G134),0,IF(ISNA(MATCH($G134,TaxCode,0)),0,OFFSET(Setup!$D$7,MATCH($G134,TaxCode,0),0,1,1))))*IF(ISERROR($F134),0,IF(ISNA(MATCH($F134,TaxCode,0)),0,OFFSET(Setup!$D$7,MATCH($F134,TaxCode,0),0,1,1))) -> 2007.391304 | N134: =$E134/(1+IF(ISERROR($F134),0,IF(ISNA(MATCH($F134,TaxCode,0)),0,OFFSET(Setup!$D$7,MATCH($F134,TaxCode,0),0,1,1)))+IF(ISERROR($G134),0,IF(ISNA(MATCH($G134,TaxCode,0)),0,OFFSET(Setup!$D$7,MATCH($G134,TaxCode,0),0,1,1))))*IF(ISERROR($G134),0,IF(ISNA(MATCH($G134,TaxCode,0)),0,OFFSET(Setup!$D$7,MATCH($G134,TaxCode,0),0,1,1))) -> 0 | O134: =IF(TaxCount=2,E134-SUM(M134:N134),E134-SUM(M134:M134)) -> 13382.6087 | P134: 2020-10-21T00:02:14 | Q134: -
A135: 2020-10-25 | B135: Cash | C135: Bank Statement | D135: Petty Cash Reimbursement | E135: -220 | F135: E | G135: E | H135: B1 | I135: BS-TRF | J135: 2020-10-25 | K135: W | L135: =SUMIFS(CBIncl,CBBalDate,"<="&($A135+(ROW($A135)/86400)),CBBank,$H135) -> 103294.6 | M135: =$E135/(1+IF(ISERROR($F135),0,IF(ISNA(MATCH($F135,TaxCode,0)),0,OFFSET(Setup!$D$7,MATCH($F135,TaxCode,0),0,1,1)))+IF(ISERROR($G135),0,IF(ISNA(MATCH($G135,TaxCode,0)),0,OFFSET(Setup!$D$7,MATCH($G135,TaxCode,0),0,1,1))))*IF(ISERROR($F135),0,IF(ISNA(MATCH($F135,TaxCode,0)),0,OFFSET(Setup!$D$7,MATCH($F135,TaxCode,0),0,1,1))) -> 0 | N135: =$E135/(1+IF(ISERROR($F135),0,IF(ISNA(MATCH($F135,TaxCode,0)),0,OFFSET(Setup!$D$7,MATCH($F135,TaxCode,0),0,1,1)))+IF(ISERROR($G135),0,IF(ISNA(MATCH($G135,TaxCode,0)),0,OFFSET(Setup!$D$7,MATCH($G135,TaxCode,0),0,1,1))))*IF(ISERROR($G135),0,IF(ISNA(MATCH($G135,TaxCode,0)),0,OFFSET(Setup!$D$7,MATCH($G135,TaxCode,0),0,1,1))) -> 0 | O135: =IF(TaxCount=2,E135-SUM(M135:N135),E135-SUM(M135:M135)) -> -220 | P135: 2020-10-25T00:02:15 | Q135: -
A136: 2020-10-25 | B136: Cash | C136: Bank Statement | D136: Petty Cash Reimbursement | E136: 220 | F136: E | G136: E | H136: PC | I136: BS-TRF | J136: 2020-10-25 | K136: D | L136: =SUMIFS(CBIncl,CBBalDate,"<="&($A136+(ROW($A136)/86400)),CBBank,$H136) -> 1214.827 | M136: =$E136/(1+IF(ISERROR($F136),0,IF(ISNA(MATCH($F136,TaxCode,0)),0,OFFSET(Setup!$D$7,MATCH($F136,TaxCode,0),0,1,1)))+IF(ISERROR($G136),0,IF(ISNA(MATCH($G136,TaxCode,0)),0,OFFSET(Setup!$D$7,MATCH($G136,TaxCode,0),0,1,1))))*IF(ISERROR($F136),0,IF(ISNA(MATCH($F136,TaxCode,0)),0,OFFSET(Setup!$D$7,MATCH($F136,TaxCode,0),0,1,1))) -> 0 | N136: =$E136/(1+IF(ISERROR($F136),0,IF(ISNA(MATCH($F136,TaxCode,0)),0,OFFSET(Setup!$D$7,MATCH($F136,TaxCode,0),0,1,1)))+IF(ISERROR($G136),0,IF(ISNA(MATCH($G136,TaxCode,0)),0,OFFSET(Setup!$D$7,MATCH($G136,TaxCode,0),0,1,1))))*IF(ISERROR($G136),0,IF(ISNA(MATCH($G136,TaxCode,0)),0,OFFSET(Setup!$D$7,MATCH($G136,TaxCode,0),0,1,1))) -> 0 | O136: =IF(TaxCount=2,E136-SUM(M136:N136),E136-SUM(M136:M136)) -> 220 | P136: 2020-10-25T00:02:16 | Q136: -
A137: 2020-10-25 | B137: Inland Revenue | C137: Return | D137: Sales Tax | E137: -3500 | F137: E | G137: E | H137: B1 | I137: BS-TAX1 | J137: 2020-10-25 | K137: W | L137: =SUMIFS(CBIncl,CBBalDate,"<="&($A137+(ROW($A137)/86400)),CBBank,$H137) -> 99794.6 | M137: =$E137/(1+IF(ISERROR($F137),0,IF(ISNA(MATCH($F137,TaxCode,0)),0,OFFSET(Setup!$D$7,MATCH($F137,TaxCode,0),0,1,1)))+IF(ISERROR($G137),0,IF(ISNA(MATCH($G137,TaxCode,0)),0,OFFSET(Setup!$D$7,MATCH($G137,TaxCode,0),0,1,1))))*IF(ISERROR($F137),0,IF(ISNA(MATCH($F137,TaxCode,0)),0,OFFSET(Setup!$D$7,MATCH($F137,TaxCode,0),0,1,1))) -> 0 | N137: =$E137/(1+IF(ISERROR($F137),0,IF(ISNA(MATCH($F137,TaxCode,0)),0,OFFSET(Setup!$D$7,MATCH($F137,TaxCode,0),0,1,1)))+IF(ISERROR($G137),0,IF(ISNA(MATCH($G137,TaxCode,0)),0,OFFSET(Setup!$D$7,MATCH($G137,TaxCode,0),0,1,1))))*IF(ISERROR($G137),0,IF(ISNA(MATCH($G137,TaxCode,0)),0,OFFSET(Setup!$D$7,MATCH($G137,TaxCode,0),0,1,1))) -> 0 | O137: =IF(TaxCount=2,E137-SUM(M137:N137),E137-SUM(M137:M137)) -> -3500 | P137: 2020-10-25T00:02:17 | Q137: -
A138: 2020-10-26 | B138: Payroll | C138: Payroll | D138: Salaries | E138: -13000 | F138: E | G138: E | H138: B2 | I138: IS-365 | J138: 2020-10-26 | K138: W | L138: =SUMIFS(CBIncl,CBBalDate,"<="&($A138+(ROW($A138)/86400)),CBBank,$H138) -> 1600 | M138: =$E138/(1+IF(ISERROR($F138),0,IF(ISNA(MATCH($F138,TaxCode,0)),0,OFFSET(Setup!$D$7,MATCH($F138,TaxCode,0),0,1,1)))+IF(ISERROR($G138),0,IF(ISNA(MATCH($G138,TaxCode,0)),0,OFFSET(Setup!$D$7,MATCH($G138,TaxCode,0),0,1,1))))*IF(ISERROR($F138),0,IF(ISNA(MATCH($F138,TaxCode,0)),0,OFFSET(Setup!$D$7,MATCH($F138,TaxCode,0),0,1,1))) -> 0 | N138: =$E138/(1+IF(ISERROR($F138),0,IF(ISNA(MATCH($F138,TaxCode,0)),0,OFFSET(Setup!$D$7,MATCH($F138,TaxCode,0),0,1,1)))+IF(ISERROR($G138),0,IF(ISNA(MATCH($G138,TaxCode,0)),0,OFFSET(Setup!$D$7,MATCH($G138,TaxCode,0),0,1,1))))*IF(ISERROR($G138),0,IF(ISNA(MATCH($G138,TaxCode,0)),0,OFFSET(Setup!$D$7,MATCH($G138,TaxCode,0),0,1,1))) -> 0 | O138: =IF(TaxCount=2,E138-SUM(M138:N138),E138-SUM(M138:M138)) -> -13000 | P138: 2020-10-26T00:02:18 | Q138: -
A139: 2020-10-26 | B139: PR Properties | C139: Debit Order | D139: Rent | E139: -5700 | F139: A | G139: E | H139: B1 | I139: IS-350 | J139: 2020-10-26 | K139: W | L139: =SUMIFS(CBIncl,CBBalDate,"<="&($A139+(ROW($A139)/86400)),CBBank,$H139) -> 94094.6 | M139: =$E139/(1+IF(ISERROR($F139),0,IF(ISNA(MATCH($F139,TaxCode,0)),0,OFFSET(Setup!$D$7,MATCH($F139,TaxCode,0),0,1,1)))+IF(ISERROR($G139),0,IF(ISNA(MATCH($G139,TaxCode,0)),0,OFFSET(Setup!$D$7,MATCH($G139,TaxCode,0),0,1,1))))*IF(ISERROR($F139),0,IF(ISNA(MATCH($F139,TaxCode,0)),0,OFFSET(Setup!$D$7,MATCH($F139,TaxCode,0),0,1,1))) -> -743.4782609 | N139: =$E139/(1+IF(ISERROR($F139),0,IF(ISNA(MATCH($F139,TaxCode,0)),0,OFFSET(Setup!$D$7,MATCH($F139,TaxCode,0),0,1,1)))+IF(ISERROR($G139),0,IF(ISNA(MATCH($G139,TaxCode,0)),0,OFFSET(Setup!$D$7,MATCH($G139,TaxCode,0),0,1,1))))*IF(ISERROR($G139),0,IF(ISNA(MATCH($G139,TaxCode,0)),0,OFFSET(Setup!$D$7,MATCH($G139,TaxCode,0),0,1,1))) -> 0 | O139: =IF(TaxCount=2,E139-SUM(M139:N139),E139-SUM(M139:M139)) -> -4956.521739 | P139: 2020-10-26T00:02:19 | Q139: -
A140: 2020-10-26 | B140: SQ Financial Services | C140: Debit Order | D140: Capital repayment | E140: -220 | F140: E | G140: E | H140: B1 | I140: BS-700 | J140: 2020-10-26 | K140: W | L140: =SUMIFS(CBIncl,CBBalDate,"<="&($A140+(ROW($A140)/86400)),CBBank,$H140) -> 93874.6 | M140: =$E140/(1+IF(ISERROR($F140),0,IF(ISNA(MATCH($F140,TaxCode,0)),0,OFFSET(Setup!$D$7,MATCH($F140,TaxCode,0),0,1,1)))+IF(ISERROR($G140),0,IF(ISNA(MATCH($G140,TaxCode,0)),0,OFFSET(Setup!$D$7,MATCH($G140,TaxCode,0),0,1,1))))*IF(ISERROR($F140),0,IF(ISNA(MATCH($F140,TaxCode,0)),0,OFFSET(Setup!$D$7,MATCH($F140,TaxCode,0),0,1,1))) -> 0 | N140: =$E140/(1+IF(ISERROR($F140),0,IF(ISNA(MATCH($F140,TaxCode,0)),0,OFFSET(Setup!$D$7,MATCH($F140,TaxCode,0),0,1,1)))+IF(ISERROR($G140),0,IF(ISNA(MATCH($G140,TaxCode,0)),0,OFFSET(Setup!$D$7,MATCH($G140,TaxCode,0),0,1,1))))*IF(ISERROR($G140),0,IF(ISNA(MATCH($G140,TaxCode,0)),0,OFFSET(Setup!$D$7,MATCH($G140,TaxCode,0),0,1,1))) -> 0 | O140: =IF(TaxCount=2,E140-SUM(M140:N140),E140-SUM(M140:M140)) -> -220 | P140: 2020-10-26T00:02:20 | Q140: -
A141: 2020-10-26 | B141: SQ Financial Services | C141: Debit Order | D141: Interest paid | E141: -100 | F141: E | G141: E | H141: B1 | I141: IS-500 | J141: 2020-10-26 | K141: W | L141: =SUMIFS(CBIncl,CBBalDate,"<="&($A141+(ROW($A141)/86400)),CBBank,$H141) -> 93774.6 | M141: =$E141/(1+IF(ISERROR($F141),0,IF(ISNA(MATCH($F141,TaxCode,0)),0,OFFSET(Setup!$D$7,MATCH($F141,TaxCode,0),0,1,1)))+IF(ISERROR($G141),0,IF(ISNA(MATCH($G141,TaxCode,0)),0,OFFSET(Setup!$D$7,MATCH($G141,TaxCode,0),0,1,1))))*IF(ISERROR($F141),0,IF(ISNA(MATCH($F141,TaxCode,0)),0,OFFSET(Setup!$D$7,MATCH($F141,TaxCode,0),0,1,1))) -> 0 | N141: =$E141/(1+IF(ISERROR($F141),0,IF(ISNA(MATCH($F141,TaxCode,0)),0,OFFSET(Setup!$D$7,MATCH($F141,TaxCode,0),0,1,1)))+IF(ISERROR($G141),0,IF(ISNA(MATCH($G141,TaxCode,0)),0,OFFSET(Setup!$D$7,MATCH($G141,TaxCode,0),0,1,1))))*IF(ISERROR($G141),0,IF(ISNA(MATCH($G141,TaxCode,0)),0,OFFSET(Setup!$D$7,MATCH($G141,TaxCode,0),0,1,1))) -> 0 | O141: =IF(TaxCount=2,E141-SUM(M141:N141),E141-SUM(M141:M141)) -> -100 | P141: 2020-10-26T00:02:21 | Q141: -
A142: 2020-10-31 | B142: XY Solutions | C142: Invoice EXP17 | D142: Internet Service Provider | E142: -204.06 | F142: A | G142: E | H142: B1 | I142: IS-380 | J142: 2020-10-31 | K142: W | L142: =SUMIFS(CBIncl,CBBalDate,"<="&($A142+(ROW($A142)/86400)),CBBank,$H142) -> 93570.54 | M142: =$E142/(1+IF(ISERROR($F142),0,IF(ISNA(MATCH($F142,TaxCode,0)),0,OFFSET(Setup!$D$7,MATCH($F142,TaxCode,0),0,1,1)))+IF(ISERROR($G142),0,IF(ISNA(MATCH($G142,TaxCode,0)),0,OFFSET(Setup!$D$7,MATCH($G142,TaxCode,0),0,1,1))))*IF(ISERROR($F142),0,IF(ISNA(MATCH($F142,TaxCode,0)),0,OFFSET(Setup!$D$7,MATCH($F142,TaxCode,0),0,1,1))) -> -26.61652174 | N142: =$E142/(1+IF(ISERROR($F142),0,IF(ISNA(MATCH($F142,TaxCode,0)),0,OFFSET(Setup!$D$7,MATCH($F142,TaxCode,0),0,1,1)))+IF(ISERROR($G142),0,IF(ISNA(MATCH($G142,TaxCode,0)),0,OFFSET(Setup!$D$7,MATCH($G142,TaxCode,0),0,1,1))))*IF(ISERROR($G142),0,IF(ISNA(MATCH($G142,TaxCode,0)),0,OFFSET(Setup!$D$7,MATCH($G142,TaxCode,0),0,1,1))) -> 0 | O142: =IF(TaxCount=2,E142-SUM(M142:N142),E142-SUM(M142:M142)) -> -177.4434783 | P142: 2020-10-31T00:02:22 | Q142: -
A143: 2020-11-02 | B143: GF Training | C143: Invoice | D143: Course | E143: -769.5 | F143: A | G143: E | H143: B1 | I143: IS-385 | J143: 2020-11-02 | K143: W | L143: =SUMIFS(CBIncl,CBBalDate,"<="&($A143+(ROW($A143)/86400)),CBBank,$H143) -> 92801.04 | M143: =$E143/(1+IF(ISERROR($F143),0,IF(ISNA(MATCH($F143,TaxCode,0)),0,OFFSET(Setup!$D$7,MATCH($F143,TaxCode,0),0,1,1)))+IF(ISERROR($G143),0,IF(ISNA(MATCH($G143,TaxCode,0)),0,OFFSET(Setup!$D$7,MATCH($G143,TaxCode,0),0,1,1))))*IF(ISERROR($F143),0,IF(ISNA(MATCH($F143,TaxCode,0)),0,OFFSET(Setup!$D$7,MATCH($F143,TaxCode,0),0,1,1))) -> -100.3695652 | N143: =$E143/(1+IF(ISERROR($F143),0,IF(ISNA(MATCH($F143,TaxCode,0)),0,OFFSET(Setup!$D$7,MATCH($F143,TaxCode,0),0,1,1)))+IF(ISERROR($G143),0,IF(ISNA(MATCH($G143,TaxCode,0)),0,OFFSET(Setup!$D$7,MATCH($G143,TaxCode,0),0,1,1))))*IF(ISERROR($G143),0,IF(ISNA(MATCH($G143,TaxCode,0)),0,OFFSET(Setup!$D$7,MATCH($G143,TaxCode,0),0,1,1))) -> 0 | O143: =IF(TaxCount=2,E143-SUM(M143:N143),E143-SUM(M143:M143)) -> -669.1304348 | P143: 2020-11-02T00:02:23 | Q143: -
A144: 2020-11-02 | B144: IAS Accountants | C144: Invoice | D144: Bookkeeping | E144: -912 | F144: A | G144: E | H144: B1 | I144: IS-305 | J144: 2020-11-02 | K144: W | L144: =SUMIFS(CBIncl,CBBalDate,"<="&($A144+(ROW($A144)/86400)),CBBank,$H144) -> 91889.04 | M144: =$E144/(1+IF(ISERROR($F144),0,IF(ISNA(MATCH($F144,TaxCode,0)),0,OFFSET(Setup!$D$7,MATCH($F144,TaxCode,0),0,1,1)))+IF(ISERROR($G144),0,IF(ISNA(MATCH($G144,TaxCode,0)),0,OFFSET(Setup!$D$7,MATCH($G144,TaxCode,0),0,1,1))))*IF(ISERROR($F144),0,IF(ISNA(MATCH($F144,TaxCode,0)),0,OFFSET(Setup!$D$7,MATCH($F144,TaxCode,0),0,1,1))) -> -118.9565217 | N144: =$E144/(1+IF(ISERROR($F144),0,IF(ISNA(MATCH($F144,TaxCode,0)),0,OFFSET(Setup!$D$7,MATCH($F144,TaxCode,0),0,1,1)))+IF(ISERROR($G144),0,IF(ISNA(MATCH($G144,TaxCode,0)),0,OFFSET(Setup!$D$7,MATCH($G144,TaxCode,0),0,1,1))))*IF(ISERROR($G144),0,IF(ISNA(MATCH($G144,TaxCode,0)),0,OFFSET(Setup!$D$7,MATCH($G144,TaxCode,0),0,1,1))) -> 0 | O144: =IF(TaxCount=2,E144-SUM(M144:N144),E144-SUM(M144:M144)) -> -793.0434783 | P144: 2020-11-02T00:02:24 | Q144: -
A145: 2020-11-03 | B145: GP Accountants | C145: INV0067 | D145: Accounting Services | E145: 3762 | F145: A | G145: E | H145: B1 | I145: IS-100 | J145: 2020-11-03 | K145: D | L145: =SUMIFS(CBIncl,CBBalDate,"<="&($A145+(ROW($A145)/86400)),CBBank,$H145) -> 95651.04 | M145: =$E145/(1+IF(ISERROR($F145),0,IF(ISNA(MATCH($F145,TaxCode,0)),0,OFFSET(Setup!$D$7,MATCH($F145,TaxCode,0),0,1,1)))+IF(ISERROR($G145),0,IF(ISNA(MATCH($G145,TaxCode,0)),0,OFFSET(Setup!$D$7,MATCH($G145,TaxCode,0),0,1,1))))*IF(ISERROR($F145),0,IF(ISNA(MATCH($F145,TaxCode,0)),0,OFFSET(Setup!$D$7,MATCH($F145,TaxCode,0),0,1,1))) -> 490.6956522 | N145: =$E145/(1+IF(ISERROR($F145),0,IF(ISNA(MATCH($F145,TaxCode,0)),0,OFFSET(Setup!$D$7,MATCH($F145,TaxCode,0),0,1,1)))+IF(ISERROR($G145),0,IF(ISNA(MATCH($G145,TaxCode,0)),0,OFFSET(Setup!$D$7,MATCH($G145,TaxCode,0),0,1,1))))*IF(ISERROR($G145),0,IF(ISNA(MATCH($G145,TaxCode,0)),0,OFFSET(Setup!$D$7,MATCH($G145,TaxCode,0),0,1,1))) -> 0 | O145: =IF(TaxCount=2,E145-SUM(M145:N145),E145-SUM(M145:M145)) -> 3271.304348 | P145: 2020-11-03T00:02:25 | Q145: -
A146: 2020-11-03 | B146: GP Accountants | C146: INV0067 | D146: Taxation Services | E146: 2451 | F146: A | G146: E | H146: B1 | I146: IS-100 | J146: 2020-11-03 | K146: D | L146: =SUMIFS(CBIncl,CBBalDate,"<="&($A146+(ROW($A146)/86400)),CBBank,$H146) -> 98102.04 | M146: =$E146/(1+IF(ISERROR($F146),0,IF(ISNA(MATCH($F146,TaxCode,0)),0,OFFSET(Setup!$D$7,MATCH($F146,TaxCode,0),0,1,1)))+IF(ISERROR($G146),0,IF(ISNA(MATCH($G146,TaxCode,0)),0,OFFSET(Setup!$D$7,MATCH($G146,TaxCode,0),0,1,1))))*IF(ISERROR($F146),0,IF(ISNA(MATCH($F146,TaxCode,0)),0,OFFSET(Setup!$D$7,MATCH($F146,TaxCode,0),0,1,1))) -> 319.6956522 | N146: =$E146/(1+IF(ISERROR($F146),0,IF(ISNA(MATCH($F146,TaxCode,0)),0,OFFSET(Setup!$D$7,MATCH($F146,TaxCode,0),0,1,1)))+IF(ISERROR($G146),0,IF(ISNA(MATCH($G146,TaxCode,0)),0,OFFSET(Setup!$D$7,MATCH($G146,TaxCode,0),0,1,1))))*IF(ISERROR($G146),0,IF(ISNA(MATCH($G146,TaxCode,0)),0,OFFSET(Setup!$D$7,MATCH($G146,TaxCode,0),0,1,1))) -> 0 | O146: =IF(TaxCount=2,E146-SUM(M146:N146),E146-SUM(M146:M146)) -> 2131.304348 | P146: 2020-11-03T00:02:26 | Q146: -
A147: 2020-11-03 | B147: GP Accountants | C147: INV0067 | D147: Secretarial Services | E147: 1026 | F147: A | G147: E | H147: B1 | I147: IS-100 | J147: 2020-11-03 | K147: D | L147: =SUMIFS(CBIncl,CBBalDate,"<="&($A147+(ROW($A147)/86400)),CBBank,$H147) -> 99128.04 | M147: =$E147/(1+IF(ISERROR($F147),0,IF(ISNA(MATCH($F147,TaxCode,0)),0,OFFSET(Setup!$D$7,MATCH($F147,TaxCode,0),0,1,1)))+IF(ISERROR($G147),0,IF(ISNA(MATCH($G147,TaxCode,0)),0,OFFSET(Setup!$D$7,MATCH($G147,TaxCode,0),0,1,1))))*IF(ISERROR($F147),0,IF(ISNA(MATCH($F147,TaxCode,0)),0,OFFSET(Setup!$D$7,MATCH($F147,TaxCode,0),0,1,1))) -> 133.826087 | N147: =$E147/(1+IF(ISERROR($F147),0,IF(ISNA(MATCH($F147,TaxCode,0)),0,OFFSET(Setup!$D$7,MATCH($F147,TaxCode,0),0,1,1)))+IF(ISERROR($G147),0,IF(ISNA(MATCH($G147,TaxCode,0)),0,OFFSET(Setup!$D$7,MATCH($G147,TaxCode,0),0,1,1))))*IF(ISERROR($G147),0,IF(ISNA(MATCH($G147,TaxCode,0)),0,OFFSET(Setup!$D$7,MATCH($G147,TaxCode,0),0,1,1))) -> 0 | O147: =IF(TaxCount=2,E147-SUM(M147:N147),E147-SUM(M147:M147)) -> 892.173913 | P147: 2020-11-03T00:02:27 | Q147: -
A148: 2020-11-05 | B148: Hollard | C148: Debit Order | D148: Insurance | E148: -364.8 | F148: A | G148: E | H148: B1 | I148: IS-340 | J148: 2020-11-05 | K148: W | L148: =SUMIFS(CBIncl,CBBalDate,"<="&($A148+(ROW($A148)/86400)),CBBank,$H148) -> 98763.24 | M148: =$E148/(1+IF(ISERROR($F148),0,IF(ISNA(MATCH($F148,TaxCode,0)),0,OFFSET(Setup!$D$7,MATCH($F148,TaxCode,0),0,1,1)))+IF(ISERROR($G148),0,IF(ISNA(MATCH($G148,TaxCode,0)),0,OFFSET(Setup!$D$7,MATCH($G148,TaxCode,0),0,1,1))))*IF(ISERROR($F148),0,IF(ISNA(MATCH($F148,TaxCode,0)),0,OFFSET(Setup!$D$7,MATCH($F148,TaxCode,0),0,1,1))) -> -47.5826087 | N148: =$E148/(1+IF(ISERROR($F148),0,IF(ISNA(MATCH($F148,TaxCode,0)),0,OFFSET(Setup!$D$7,MATCH($F148,TaxCode,0),0,1,1)))+IF(ISERROR($G148),0,IF(ISNA(MATCH($G148,TaxCode,0)),0,OFFSET(Setup!$D$7,MATCH($G148,TaxCode,0),0,1,1))))*IF(ISERROR($G148),0,IF(ISNA(MATCH($G148,TaxCode,0)),0,OFFSET(Setup!$D$7,MATCH($G148,TaxCode,0),0,1,1))) -> 0 | O148: =IF(TaxCount=2,E148-SUM(M148:N148),E148-SUM(M148:M148)) -> -317.2173913 | P148: 2020-11-05T00:02:28 | Q148: -
A149: 2020-11-07 | B149: Economist | C149: 628054 | D149: Subscription | E149: -516.705 | F149: A | G149: E | H149: B1 | I149: IS-375 | J149: 2020-11-07 | K149: W | L149: =SUMIFS(CBIncl,CBBalDate,"<="&($A149+(ROW($A149)/86400)),CBBank,$H149) -> 98246.535 | M149: =$E149/(1+IF(ISERROR($F149),0,IF(ISNA(MATCH($F149,TaxCode,0)),0,OFFSET(Setup!$D$7,MATCH($F149,TaxCode,0),0,1,1)))+IF(ISERROR($G149),0,IF(ISNA(MATCH($G149,TaxCode,0)),0,OFFSET(Setup!$D$7,MATCH($G149,TaxCode,0),0,1,1))))*IF(ISERROR($F149),0,IF(ISNA(MATCH($F149,TaxCode,0)),0,OFFSET(Setup!$D$7,MATCH($F149,TaxCode,0),0,1,1))) -> -67.39630435 | N149: =$E149/(1+IF(ISERROR($F149),0,IF(ISNA(MATCH($F149,TaxCode,0)),0,OFFSET(Setup!$D$7,MATCH($F149,TaxCode,0),0,1,1)))+IF(ISERROR($G149),0,IF(ISNA(MATCH($G149,TaxCode,0)),0,OFFSET(Setup!$D$7,MATCH($G149,TaxCode,0),0,1,1))))*IF(ISERROR($G149),0,IF(ISNA(MATCH($G149,TaxCode,0)),0,OFFSET(Setup!$D$7,MATCH($G149,TaxCode,0),0,1,1))) -> 0 | O149: =IF(TaxCount=2,E149-SUM(M149:N149),E149-SUM(M149:M149)) -> -449.3086957 | P149: 2020-11-07T00:02:29 | Q149: -
A150: 2020-11-15 | B150: ABSA | C150: Bank Statement | D150: Service Fees | E150: -57 | F150: A | G150: E | H150: B1 | I150: IS-315 | J150: 2020-11-15 | K150: W | L150: =SUMIFS(CBIncl,CBBalDate,"<="&($A150+(ROW($A150)/86400)),CBBank,$H150) -> 98189.535 | M150: =$E150/(1+IF(ISERROR($F150),0,IF(ISNA(MATCH($F150,TaxCode,0)),0,OFFSET(Setup!$D$7,MATCH($F150,TaxCode,0),0,1,1)))+IF(ISERROR($G150),0,IF(ISNA(MATCH($G150,TaxCode,0)),0,OFFSET(Setup!$D$7,MATCH($G150,TaxCode,0),0,1,1))))*IF(ISERROR($F150),0,IF(ISNA(MATCH($F150,TaxCode,0)),0,OFFSET(Setup!$D$7,MATCH($F150,TaxCode,0),0,1,1))) -> -7.434782609 | N150: =$E150/(1+IF(ISERROR($F150),0,IF(ISNA(MATCH($F150,TaxCode,0)),0,OFFSET(Setup!$D$7,MATCH($F150,TaxCode,0),0,1,1)))+IF(ISERROR($G150),0,IF(ISNA(MATCH($G150,TaxCode,0)),0,OFFSET(Setup!$D$7,MATCH($G150,TaxCode,0),0,1,1))))*IF(ISERROR($G150),0,IF(ISNA(MATCH($G150,TaxCode,0)),0,OFFSET(Setup!$D$7,MATCH($G150,TaxCode,0),0,1,1))) -> 0 | O150: =IF(TaxCount=2,E150-SUM(M150:N150),E150-SUM(M150:M150)) -> -49.56521739 | P150: 2020-11-15T00:02:30 | Q150: -
A151: 2020-11-20 | B151: Transfer | C151: Bank Statement | D151: Bank Transfer | E151: 13000 | F151: E | G151: E | H151: B2 | I151: BS-TRF | J151: 2020-11-20 | K151: D | L151: =SUMIFS(CBIncl,CBBalDate,"<="&($A151+(ROW($A151)/86400)),CBBank,$H151) -> 14600 | M151: =$E151/(1+IF(ISERROR($F151),0,IF(ISNA(MATCH($F151,TaxCode,0)),0,OFFSET(Setup!$D$7,MATCH($F151,TaxCode,0),0,1,1)))+IF(ISERROR($G151),0,IF(ISNA(MATCH($G151,TaxCode,0)),0,OFFSET(Setup!$D$7,MATCH($G151,TaxCode,0),0,1,1))))*IF(ISERROR($F151),0,IF(ISNA(MATCH($F151,TaxCode,0)),0,OFFSET(Setup!$D$7,MATCH($F151,TaxCode,0),0,1,1))) -> 0 | N151: =$E151/(1+IF(ISERROR($F151),0,IF(ISNA(MATCH($F151,TaxCode,0)),0,OFFSET(Setup!$D$7,MATCH($F151,TaxCode,0),0,1,1)))+IF(ISERROR($G151),0,IF(ISNA(MATCH($G151,TaxCode,0)),0,OFFSET(Setup!$D$7,MATCH($G151,TaxCode,0),0,1,1))))*IF(ISERROR($G151),0,IF(ISNA(MATCH($G151,TaxCode,0)),0,OFFSET(Setup!$D$7,MATCH($G151,TaxCode,0),0,1,1))) -> 0 | O151: =IF(TaxCount=2,E151-SUM(M151:N151),E151-SUM(M151:M151)) -> 13000 | P151: 2020-11-20T00:02:31 | Q151: -
A152: 2020-11-20 | B152: Transfer | C152: Bank Statement | D152: Bank Transfer | E152: -13000 | F152: E | G152: E | H152: B1 | I152: BS-TRF | J152: 2020-11-20 | K152: W | L152: =SUMIFS(CBIncl,CBBalDate,"<="&($A152+(ROW($A152)/86400)),CBBank,$H152) -> 85189.535 | M152: =$E152/(1+IF(ISERROR($F152),0,IF(ISNA(MATCH($F152,TaxCode,0)),0,OFFSET(Setup!$D$7,MATCH($F152,TaxCode,0),0,1,1)))+IF(ISERROR($G152),0,IF(ISNA(MATCH($G152,TaxCode,0)),0,OFFSET(Setup!$D$7,MATCH($G152,TaxCode,0),0,1,1))))*IF(ISERROR($F152),0,IF(ISNA(MATCH($F152,TaxCode,0)),0,OFFSET(Setup!$D$7,MATCH($F152,TaxCode,0),0,1,1))) -> 0 | N152: =$E152/(1+IF(ISERROR($F152),0,IF(ISNA(MATCH($F152,TaxCode,0)),0,OFFSET(Setup!$D$7,MATCH($F152,TaxCode,0),0,1,1)))+IF(ISERROR($G152),0,IF(ISNA(MATCH($G152,TaxCode,0)),0,OFFSET(Setup!$D$7,MATCH($G152,TaxCode,0),0,1,1))))*IF(ISERROR($G152),0,IF(ISNA(MATCH($G152,TaxCode,0)),0,OFFSET(Setup!$D$7,MATCH($G152,TaxCode,0),0,1,1))) -> 0 | O152: =IF(TaxCount=2,E152-SUM(M152:N152),E152-SUM(M152:M152)) -> -13000 | P152: 2020-11-20T00:02:32 | Q152: -
A153: 2020-11-25 | B153: Cash | C153: Bank Statement | D153: Petty Cash Reimbursement | E153: -290 | F153: E | G153: E | H153: B1 | I153: BS-TRF | J153: 2020-11-25 | K153: W | L153: =SUMIFS(CBIncl,CBBalDate,"<="&($A153+(ROW($A153)/86400)),CBBank,$H153) -> 84899.535 | M153: =$E153/(1+IF(ISERROR($F153),0,IF(ISNA(MATCH($F153,TaxCode,0)),0,OFFSET(Setup!$D$7,MATCH($F153,TaxCode,0),0,1,1)))+IF(ISERROR($G153),0,IF(ISNA(MATCH($G153,TaxCode,0)),0,OFFSET(Setup!$D$7,MATCH($G153,TaxCode,0),0,1,1))))*IF(ISERROR($F153),0,IF(ISNA(MATCH($F153,TaxCode,0)),0,OFFSET(Setup!$D$7,MATCH($F153,TaxCode,0),0,1,1))) -> 0 | N153: =$E153/(1+IF(ISERROR($F153),0,IF(ISNA(MATCH($F153,TaxCode,0)),0,OFFSET(Setup!$D$7,MATCH($F153,TaxCode,0),0,1,1)))+IF(ISERROR($G153),0,IF(ISNA(MATCH($G153,TaxCode,0)),0,OFFSET(Setup!$D$7,MATCH($G153,TaxCode,0),0,1,1))))*IF(ISERROR($G153),0,IF(ISNA(MATCH($G153,TaxCode,0)),0,OFFSET(Setup!$D$7,MATCH($G153,TaxCode,0),0,1,1))) -> 0 | O153: =IF(TaxCount=2,E153-SUM(M153:N153),E153-SUM(M153:M153)) -> -290 | P153: 2020-11-25T00:02:33 | Q153: -
A154: 2020-11-25 | B154: Cash | C154: Bank Statement | D154: Petty Cash Reimbursement | E154: 290 | F154: E | G154: E | H154: PC | I154: BS-TRF | J154: 2020-11-25 | K154: D | L154: =SUMIFS(CBIncl,CBBalDate,"<="&($A154+(ROW($A154)/86400)),CBBank,$H154) -> 1504.827 | M154: =$E154/(1+IF(ISERROR($F154),0,IF(ISNA(MATCH($F154,TaxCode,0)),0,OFFSET(Setup!$D$7,MATCH($F154,TaxCode,0),0,1,1)))+IF(ISERROR($G154),0,IF(ISNA(MATCH($G154,TaxCode,0)),0,OFFSET(Setup!$D$7,MATCH($G154,TaxCode,0),0,1,1))))*IF(ISERROR($F154),0,IF(ISNA(MATCH($F154,TaxCode,0)),0,OFFSET(Setup!$D$7,MATCH($F154,TaxCode,0),0,1,1))) -> 0 | N154: =$E154/(1+IF(ISERROR($F154),0,IF(ISNA(MATCH($F154,TaxCode,0)),0,OFFSET(Setup!$D$7,MATCH($F154,TaxCode,0),0,1,1)))+IF(ISERROR($G154),0,IF(ISNA(MATCH($G154,TaxCode,0)),0,OFFSET(Setup!$D$7,MATCH($G154,TaxCode,0),0,1,1))))*IF(ISERROR($G154),0,IF(ISNA(MATCH($G154,TaxCode,0)),0,OFFSET(Setup!$D$7,MATCH($G154,TaxCode,0),0,1,1))) -> 0 | O154: =IF(TaxCount=2,E154-SUM(M154:N154),E154-SUM(M154:M154)) -> 290 | P154: 2020-11-25T00:02:34 | Q154: -
A155: 2020-11-26 | B155: Payroll | C155: Payroll | D155: Salaries | E155: -13000 | F155: E | G155: E | H155: B2 | I155: IS-365 | J155: 2020-11-26 | K155: W | L155: =SUMIFS(CBIncl,CBBalDate,"<="&($A155+(ROW($A155)/86400)),CBBank,$H155) -> 1600 | M155: =$E155/(1+IF(ISERROR($F155),0,IF(ISNA(MATCH($F155,TaxCode,0)),0,OFFSET(Setup!$D$7,MATCH($F155,TaxCode,0),0,1,1)))+IF(ISERROR($G155),0,IF(ISNA(MATCH($G155,TaxCode,0)),0,OFFSET(Setup!$D$7,MATCH($G155,TaxCode,0),0,1,1))))*IF(ISERROR($F155),0,IF(ISNA(MATCH($F155,TaxCode,0)),0,OFFSET(Setup!$D$7,MATCH($F155,TaxCode,0),0,1,1))) -> 0 | N155: =$E155/(1+IF(ISERROR($F155),0,IF(ISNA(MATCH($F155,TaxCode,0)),0,OFFSET(Setup!$D$7,MATCH($F155,TaxCode,0),0,1,1)))+IF(ISERROR($G155),0,IF(ISNA(MATCH($G155,TaxCode,0)),0,OFFSET(Setup!$D$7,MATCH($G155,TaxCode,0),0,1,1))))*IF(ISERROR($G155),0,IF(ISNA(MATCH($G155,TaxCode,0)),0,OFFSET(Setup!$D$7,MATCH($G155,TaxCode,0),0,1,1))) -> 0 | O155: =IF(TaxCount=2,E155-SUM(M155:N155),E155-SUM(M155:M155)) -> -13000 | P155: 2020-11-26T00:02:35 | Q155: -
A156: 2020-11-26 | B156: PR Properties | C156: Debit Order | D156: Rent | E156: -5700 | F156: A | G156: E | H156: B1 | I156: IS-350 | J156: 2020-11-26 | K156: W | L156: =SUMIFS(CBIncl,CBBalDate,"<="&($A156+(ROW($A156)/86400)),CBBank,$H156) -> 79199.535 | M156: =$E156/(1+IF(ISERROR($F156),0,IF(ISNA(MATCH($F156,TaxCode,0)),0,OFFSET(Setup!$D$7,MATCH($F156,TaxCode,0),0,1,1)))+IF(ISERROR($G156),0,IF(ISNA(MATCH($G156,TaxCode,0)),0,OFFSET(Setup!$D$7,MATCH($G156,TaxCode,0),0,1,1))))*IF(ISERROR($F156),0,IF(ISNA(MATCH($F156,TaxCode,0)),0,OFFSET(Setup!$D$7,MATCH($F156,TaxCode,0),0,1,1))) -> -743.4782609 | N156: =$E156/(1+IF(ISERROR($F156),0,IF(ISNA(MATCH($F156,TaxCode,0)),0,OFFSET(Setup!$D$7,MATCH($F156,TaxCode,0),0,1,1)))+IF(ISERROR($G156),0,IF(ISNA(MATCH($G156,TaxCode,0)),0,OFFSET(Setup!$D$7,MATCH($G156,TaxCode,0),0,1,1))))*IF(ISERROR($G156),0,IF(ISNA(MATCH($G156,TaxCode,0)),0,OFFSET(Setup!$D$7,MATCH($G156,TaxCode,0),0,1,1))) -> 0 | O156: =IF(TaxCount=2,E156-SUM(M156:N156),E156-SUM(M156:M156)) -> -4956.521739 | P156: 2020-11-26T00:02:36 | Q156: -
A157: 2020-11-26 | B157: SQ Financial Services | C157: Debit Order | D157: Capital repayment | E157: -220 | F157: E | G157: E | H157: B1 | I157: BS-700 | J157: 2020-11-26 | K157: W | L157: =SUMIFS(CBIncl,CBBalDate,"<="&($A157+(ROW($A157)/86400)),CBBank,$H157) -> 78979.535 | M157: =$E157/(1+IF(ISERROR($F157),0,IF(ISNA(MATCH($F157,TaxCode,0)),0,OFFSET(Setup!$D$7,MATCH($F157,TaxCode,0),0,1,1)))+IF(ISERROR($G157),0,IF(ISNA(MATCH($G157,TaxCode,0)),0,OFFSET(Setup!$D$7,MATCH($G157,TaxCode,0),0,1,1))))*IF(ISERROR($F157),0,IF(ISNA(MATCH($F157,TaxCode,0)),0,OFFSET(Setup!$D$7,MATCH($F157,TaxCode,0),0,1,1))) -> 0 | N157: =$E157/(1+IF(ISERROR($F157),0,IF(ISNA(MATCH($F157,TaxCode,0)),0,OFFSET(Setup!$D$7,MATCH($F157,TaxCode,0),0,1,1)))+IF(ISERROR($G157),0,IF(ISNA(MATCH($G157,TaxCode,0)),0,OFFSET(Setup!$D$7,MATCH($G157,TaxCode,0),0,1,1))))*IF(ISERROR($G157),0,IF(ISNA(MATCH($G157,TaxCode,0)),0,OFFSET(Setup!$D$7,MATCH($G157,TaxCode,0),0,1,1))) -> 0 | O157: =IF(TaxCount=2,E157-SUM(M157:N157),E157-SUM(M157:M157)) -> -220 | P157: 2020-11-26T00:02:37 | Q157: -
A158: 2020-11-26 | B158: SQ Financial Services | C158: Debit Order | D158: Interest paid | E158: -100 | F158: E | G158: E | H158: B1 | I158: IS-500 | J158: 2020-11-26 | K158: W | L158: =SUMIFS(CBIncl,CBBalDate,"<="&($A158+(ROW($A158)/86400)),CBBank,$H158) -> 78879.535 | M158: =$E158/(1+IF(ISERROR($F158),0,IF(ISNA(MATCH($F158,TaxCode,0)),0,OFFSET(Setup!$D$7,MATCH($F158,TaxCode,0),0,1,1)))+IF(ISERROR($G158),0,IF(ISNA(MATCH($G158,TaxCode,0)),0,OFFSET(Setup!$D$7,MATCH($G158,TaxCode,0),0,1,1))))*IF(ISERROR($F158),0,IF(ISNA(MATCH($F158,TaxCode,0)),0,OFFSET(Setup!$D$7,MATCH($F158,TaxCode,0),0,1,1))) -> 0 | N158: =$E158/(1+IF(ISERROR($F158),0,IF(ISNA(MATCH($F158,TaxCode,0)),0,OFFSET(Setup!$D$7,MATCH($F158,TaxCode,0),0,1,1)))+IF(ISERROR($G158),0,IF(ISNA(MATCH($G158,TaxCode,0)),0,OFFSET(Setup!$D$7,MATCH($G158,TaxCode,0),0,1,1))))*IF(ISERROR($G158),0,IF(ISNA(MATCH($G158,TaxCode,0)),0,OFFSET(Setup!$D$7,MATCH($G158,TaxCode,0),0,1,1))) -> 0 | O158: =IF(TaxCount=2,E158-SUM(M158:N158),E158-SUM(M158:M158)) -> -100 | P158: 2020-11-26T00:02:38 | Q158: -
A159: 2020-11-30 | B159: CC Supplies | C159: INV0068 | D159: Accounting Services | E159: 3762 | F159: A | G159: E | H159: B1 | I159: IS-100 | J159: 2020-11-30 | K159: D | L159: =SUMIFS(CBIncl,CBBalDate,"<="&($A159+(ROW($A159)/86400)),CBBank,$H159) -> 82641.535 | M159: =$E159/(1+IF(ISERROR($F159),0,IF(ISNA(MATCH($F159,TaxCode,0)),0,OFFSET(Setup!$D$7,MATCH($F159,TaxCode,0),0,1,1)))+IF(ISERROR($G159),0,IF(ISNA(MATCH($G159,TaxCode,0)),0,OFFSET(Setup!$D$7,MATCH($G159,TaxCode,0),0,1,1))))*IF(ISERROR($F159),0,IF(ISNA(MATCH($F159,TaxCode,0)),0,OFFSET(Setup!$D$7,MATCH($F159,TaxCode,0),0,1,1))) -> 490.6956522 | N159: =$E159/(1+IF(ISERROR($F159),0,IF(ISNA(MATCH($F159,TaxCode,0)),0,OFFSET(Setup!$D$7,MATCH($F159,TaxCode,0),0,1,1)))+IF(ISERROR($G159),0,IF(ISNA(MATCH($G159,TaxCode,0)),0,OFFSET(Setup!$D$7,MATCH($G159,TaxCode,0),0,1,1))))*IF(ISERROR($G159),0,IF(ISNA(MATCH($G159,TaxCode,0)),0,OFFSET(Setup!$D$7,MATCH($G159,TaxCode,0),0,1,1))) -> 0 | O159: =IF(TaxCount=2,E159-SUM(M159:N159),E159-SUM(M159:M159)) -> 3271.304348 | P159: 2020-11-30T00:02:39 | Q159: -
A160: 2020-12-01 | B160: XY Solutions | C160: Invoice EXP18 | D160: Internet Service Provider | E160: -204.06 | F160: A | G160: E | H160: B1 | I160: IS-380 | J160: 2020-12-01 | K160: W | L160: =SUMIFS(CBIncl,CBBalDate,"<="&($A160+(ROW($A160)/86400)),CBBank,$H160) -> 82437.475 | M160: =$E160/(1+IF(ISERROR($F160),0,IF(ISNA(MATCH($F160,TaxCode,0)),0,OFFSET(Setup!$D$7,MATCH($F160,TaxCode,0),0,1,1)))+IF(ISERROR($G160),0,IF(ISNA(MATCH($G160,TaxCode,0)),0,OFFSET(Setup!$D$7,MATCH($G160,TaxCode,0),0,1,1))))*IF(ISERROR($F160),0,IF(ISNA(MATCH($F160,TaxCode,0)),0,OFFSET(Setup!$D$7,MATCH($F160,TaxCode,0),0,1,1))) -> -26.61652174 | N160: =$E160/(1+IF(ISERROR($F160),0,IF(ISNA(MATCH($F160,TaxCode,0)),0,OFFSET(Setup!$D$7,MATCH($F160,TaxCode,0),0,1,1)))+IF(ISERROR($G160),0,IF(ISNA(MATCH($G160,TaxCode,0)),0,OFFSET(Setup!$D$7,MATCH($G160,TaxCode,0),0,1,1))))*IF(ISERROR($G160),0,IF(ISNA(MATCH($G160,TaxCode,0)),0,OFFSET(Setup!$D$7,MATCH($G160,TaxCode,0),0,1,1))) -> 0 | O160: =IF(TaxCount=2,E160-SUM(M160:N160),E160-SUM(M160:M160)) -> -177.4434783 | P160: 2020-12-01T00:02:40 | Q160: -
A161: 2020-12-03 | B161: IAS Accountants | C161: Invoice | D161: Bookkeeping | E161: -912 | F161: A | G161: E | H161: B1 | I161: IS-305 | J161: 2020-12-03 | K161: W | L161: =SUMIFS(CBIncl,CBBalDate,"<="&($A161+(ROW($A161)/86400)),CBBank,$H161) -> 81525.475 | M161: =$E161/(1+IF(ISERROR($F161),0,IF(ISNA(MATCH($F161,TaxCode,0)),0,OFFSET(Setup!$D$7,MATCH($F161,TaxCode,0),0,1,1)))+IF(ISERROR($G161),0,IF(ISNA(MATCH($G161,TaxCode,0)),0,OFFSET(Setup!$D$7,MATCH($G161,TaxCode,0),0,1,1))))*IF(ISERROR($F161),0,IF(ISNA(MATCH($F161,TaxCode,0)),0,OFFSET(Setup!$D$7,MATCH($F161,TaxCode,0),0,1,1))) -> -118.9565217 | N161: =$E161/(1+IF(ISERROR($F161),0,IF(ISNA(MATCH($F161,TaxCode,0)),0,OFFSET(Setup!$D$7,MATCH($F161,TaxCode,0),0,1,1)))+IF(ISERROR($G161),0,IF(ISNA(MATCH($G161,TaxCode,0)),0,OFFSET(Setup!$D$7,MATCH($G161,TaxCode,0),0,1,1))))*IF(ISERROR($G161),0,IF(ISNA(MATCH($G161,TaxCode,0)),0,OFFSET(Setup!$D$7,MATCH($G161,TaxCode,0),0,1,1))) -> 0 | O161: =IF(TaxCount=2,E161-SUM(M161:N161),E161-SUM(M161:M161)) -> -793.0434783 | P161: 2020-12-03T00:02:41 | Q161: -
A162: 2020-12-05 | B162: Hollard | C162: Debit Order | D162: Insurance | E162: -364.8 | F162: A | G162: E | H162: B1 | I162: IS-340 | J162: 2020-12-05 | K162: W | L162: =SUMIFS(CBIncl,CBBalDate,"<="&($A162+(ROW($A162)/86400)),CBBank,$H162) -> 81160.675 | M162: =$E162/(1+IF(ISERROR($F162),0,IF(ISNA(MATCH($F162,TaxCode,0)),0,OFFSET(Setup!$D$7,MATCH($F162,TaxCode,0),0,1,1)))+IF(ISERROR($G162),0,IF(ISNA(MATCH($G162,TaxCode,0)),0,OFFSET(Setup!$D$7,MATCH($G162,TaxCode,0),0,1,1))))*IF(ISERROR($F162),0,IF(ISNA(MATCH($F162,TaxCode,0)),0,OFFSET(Setup!$D$7,MATCH($F162,TaxCode,0),0,1,1))) -> -47.5826087 | N162: =$E162/(1+IF(ISERROR($F162),0,IF(ISNA(MATCH($F162,TaxCode,0)),0,OFFSET(Setup!$D$7,MATCH($F162,TaxCode,0),0,1,1)))+IF(ISERROR($G162),0,IF(ISNA(MATCH($G162,TaxCode,0)),0,OFFSET(Setup!$D$7,MATCH($G162,TaxCode,0),0,1,1))))*IF(ISERROR($G162),0,IF(ISNA(MATCH($G162,TaxCode,0)),0,OFFSET(Setup!$D$7,MATCH($G162,TaxCode,0),0,1,1))) -> 0 | O162: =IF(TaxCount=2,E162-SUM(M162:N162),E162-SUM(M162:M162)) -> -317.2173913 | P162: 2020-12-05T00:02:42 | Q162: -
A163: 2020-12-05 | B163: TRF Solutions | C163: INV0069 | D163: Consulting Services | E163: 17100 | F163: A | G163: E | H163: B1 | I163: IS-100 | J163: 2020-12-05 | K163: D | L163: =SUMIFS(CBIncl,CBBalDate,"<="&($A163+(ROW($A163)/86400)),CBBank,$H163) -> 98260.675 | M163: =$E163/(1+IF(ISERROR($F163),0,IF(ISNA(MATCH($F163,TaxCode,0)),0,OFFSET(Setup!$D$7,MATCH($F163,TaxCode,0),0,1,1)))+IF(ISERROR($G163),0,IF(ISNA(MATCH($G163,TaxCode,0)),0,OFFSET(Setup!$D$7,MATCH($G163,TaxCode,0),0,1,1))))*IF(ISERROR($F163),0,IF(ISNA(MATCH($F163,TaxCode,0)),0,OFFSET(Setup!$D$7,MATCH($F163,TaxCode,0),0,1,1))) -> 2230.434783 | N163: =$E163/(1+IF(ISERROR($F163),0,IF(ISNA(MATCH($F163,TaxCode,0)),0,OFFSET(Setup!$D$7,MATCH($F163,TaxCode,0),0,1,1)))+IF(ISERROR($G163),0,IF(ISNA(MATCH($G163,TaxCode,0)),0,OFFSET(Setup!$D$7,MATCH($G163,TaxCode,0),0,1,1))))*IF(ISERROR($G163),0,IF(ISNA(MATCH($G163,TaxCode,0)),0,OFFSET(Setup!$D$7,MATCH($G163,TaxCode,0),0,1,1))) -> 0 | O163: =IF(TaxCount=2,E163-SUM(M163:N163),E163-SUM(M163:M163)) -> 14869.56522 | P163: 2020-12-05T00:02:43 | Q163: -
A164: 2020-12-08 | B164: PQW Parking | C164: TR6906 | D164: Parking | E164: -228 | F164: A | G164: E | H164: B1 | I164: IS-390 | J164: 2020-12-08 | K164: W | L164: =SUMIFS(CBIncl,CBBalDate,"<="&($A164+(ROW($A164)/86400)),CBBank,$H164) -> 98032.675 | M164: =$E164/(1+IF(ISERROR($F164),0,IF(ISNA(MATCH($F164,TaxCode,0)),0,OFFSET(Setup!$D$7,MATCH($F164,TaxCode,0),0,1,1)))+IF(ISERROR($G164),0,IF(ISNA(MATCH($G164,TaxCode,0)),0,OFFSET(Setup!$D$7,MATCH($G164,TaxCode,0),0,1,1))))*IF(ISERROR($F164),0,IF(ISNA(MATCH($F164,TaxCode,0)),0,OFFSET(Setup!$D$7,MATCH($F164,TaxCode,0),0,1,1))) -> -29.73913043 | N164: =$E164/(1+IF(ISERROR($F164),0,IF(ISNA(MATCH($F164,TaxCode,0)),0,OFFSET(Setup!$D$7,MATCH($F164,TaxCode,0),0,1,1)))+IF(ISERROR($G164),0,IF(ISNA(MATCH($G164,TaxCode,0)),0,OFFSET(Setup!$D$7,MATCH($G164,TaxCode,0),0,1,1))))*IF(ISERROR($G164),0,IF(ISNA(MATCH($G164,TaxCode,0)),0,OFFSET(Setup!$D$7,MATCH($G164,TaxCode,0),0,1,1))) -> 0 | O164: =IF(TaxCount=2,E164-SUM(M164:N164),E164-SUM(M164:M164)) -> -198.2608696 | P164: 2020-12-08T00:02:44 | Q164: -
A165: 2020-12-15 | B165: ABSA | C165: Bank Statement | D165: Service Fees | E165: -57 | F165: A | G165: E | H165: B1 | I165: IS-315 | J165: 2020-12-15 | K165: W | L165: =SUMIFS(CBIncl,CBBalDate,"<="&($A165+(ROW($A165)/86400)),CBBank,$H165) -> 97975.675 | M165: =$E165/(1+IF(ISERROR($F165),0,IF(ISNA(MATCH($F165,TaxCode,0)),0,OFFSET(Setup!$D$7,MATCH($F165,TaxCode,0),0,1,1)))+IF(ISERROR($G165),0,IF(ISNA(MATCH($G165,TaxCode,0)),0,OFFSET(Setup!$D$7,MATCH($G165,TaxCode,0),0,1,1))))*IF(ISERROR($F165),0,IF(ISNA(MATCH($F165,TaxCode,0)),0,OFFSET(Setup!$D$7,MATCH($F165,TaxCode,0),0,1,1))) -> -7.434782609 | N165: =$E165/(1+IF(ISERROR($F165),0,IF(ISNA(MATCH($F165,TaxCode,0)),0,OFFSET(Setup!$D$7,MATCH($F165,TaxCode,0),0,1,1)))+IF(ISERROR($G165),0,IF(ISNA(MATCH($G165,TaxCode,0)),0,OFFSET(Setup!$D$7,MATCH($G165,TaxCode,0),0,1,1))))*IF(ISERROR($G165),0,IF(ISNA(MATCH($G165,TaxCode,0)),0,OFFSET(Setup!$D$7,MATCH($G165,TaxCode,0),0,1,1))) -> 0 | O165: =IF(TaxCount=2,E165-SUM(M165:N165),E165-SUM(M165:M165)) -> -49.56521739 | P165: 2020-12-15T00:02:45 | Q165: -
A166: 2020-12-20 | B166: Transfer | C166: Bank Statement | D166: Bank Transfer | E166: 13000 | F166: E | G166: E | H166: B2 | I166: BS-TRF | J166: 2020-12-20 | K166: D | L166: =SUMIFS(CBIncl,CBBalDate,"<="&($A166+(ROW($A166)/86400)),CBBank,$H166) -> 14600 | M166: =$E166/(1+IF(ISERROR($F166),0,IF(ISNA(MATCH($F166,TaxCode,0)),0,OFFSET(Setup!$D$7,MATCH($F166,TaxCode,0),0,1,1)))+IF(ISERROR($G166),0,IF(ISNA(MATCH($G166,TaxCode,0)),0,OFFSET(Setup!$D$7,MATCH($G166,TaxCode,0),0,1,1))))*IF(ISERROR($F166),0,IF(ISNA(MATCH($F166,TaxCode,0)),0,OFFSET(Setup!$D$7,MATCH($F166,TaxCode,0),0,1,1))) -> 0 | N166: =$E166/(1+IF(ISERROR($F166),0,IF(ISNA(MATCH($F166,TaxCode,0)),0,OFFSET(Setup!$D$7,MATCH($F166,TaxCode,0),0,1,1)))+IF(ISERROR($G166),0,IF(ISNA(MATCH($G166,TaxCode,0)),0,OFFSET(Setup!$D$7,MATCH($G166,TaxCode,0),0,1,1))))*IF(ISERROR($G166),0,IF(ISNA(MATCH($G166,TaxCode,0)),0,OFFSET(Setup!$D$7,MATCH($G166,TaxCode,0),0,1,1))) -> 0 | O166: =IF(TaxCount=2,E166-SUM(M166:N166),E166-SUM(M166:M166)) -> 13000 | P166: 2020-12-20T00:02:46 | Q166: -
A167: 2020-12-20 | B167: Transfer | C167: Bank Statement | D167: Bank Transfer | E167: -13000 | F167: E | G167: E | H167: B1 | I167: BS-TRF | J167: 2020-12-20 | K167: W | L167: =SUMIFS(CBIncl,CBBalDate,"<="&($A167+(ROW($A167)/86400)),CBBank,$H167) -> 84975.675 | M167: =$E167/(1+IF(ISERROR($F167),0,IF(ISNA(MATCH($F167,TaxCode,0)),0,OFFSET(Setup!$D$7,MATCH($F167,TaxCode,0),0,1,1)))+IF(ISERROR($G167),0,IF(ISNA(MATCH($G167,TaxCode,0)),0,OFFSET(Setup!$D$7,MATCH($G167,TaxCode,0),0,1,1))))*IF(ISERROR($F167),0,IF(ISNA(MATCH($F167,TaxCode,0)),0,OFFSET(Setup!$D$7,MATCH($F167,TaxCode,0),0,1,1))) -> 0 | N167: =$E167/(1+IF(ISERROR($F167),0,IF(ISNA(MATCH($F167,TaxCode,0)),0,OFFSET(Setup!$D$7,MATCH($F167,TaxCode,0),0,1,1)))+IF(ISERROR($G167),0,IF(ISNA(MATCH($G167,TaxCode,0)),0,OFFSET(Setup!$D$7,MATCH($G167,TaxCode,0),0,1,1))))*IF(ISERROR($G167),0,IF(ISNA(MATCH($G167,TaxCode,0)),0,OFFSET(Setup!$D$7,MATCH($G167,TaxCode,0),0,1,1))) -> 0 | O167: =IF(TaxCount=2,E167-SUM(M167:N167),E167-SUM(M167:M167)) -> -13000 | P167: 2020-12-20T00:02:47 | Q167: -
A168: 2020-12-22 | B168: SPAR | C168: IN1149 | D168: Consumables | E168: -59.28 | F168: A | G168: E | H168: PC | I168: IS-325 | J168: 2020-12-22 | K168: W | L168: =SUMIFS(CBIncl,CBBalDate,"<="&($A168+(ROW($A168)/86400)),CBBank,$H168) -> 1445.547 | M168: =$E168/(1+IF(ISERROR($F168),0,IF(ISNA(MATCH($F168,TaxCode,0)),0,OFFSET(Setup!$D$7,MATCH($F168,TaxCode,0),0,1,1)))+IF(ISERROR($G168),0,IF(ISNA(MATCH($G168,TaxCode,0)),0,OFFSET(Setup!$D$7,MATCH($G168,TaxCode,0),0,1,1))))*IF(ISERROR($F168),0,IF(ISNA(MATCH($F168,TaxCode,0)),0,OFFSET(Setup!$D$7,MATCH($F168,TaxCode,0),0,1,1))) -> -7.732173913 | N168: =$E168/(1+IF(ISERROR($F168),0,IF(ISNA(MATCH($F168,TaxCode,0)),0,OFFSET(Setup!$D$7,MATCH($F168,TaxCode,0),0,1,1)))+IF(ISERROR($G168),0,IF(ISNA(MATCH($G168,TaxCode,0)),0,OFFSET(Setup!$D$7,MATCH($G168,TaxCode,0),0,1,1))))*IF(ISERROR($G168),0,IF(ISNA(MATCH($G168,TaxCode,0)),0,OFFSET(Setup!$D$7,MATCH($G168,TaxCode,0),0,1,1))) -> 0 | O168: =IF(TaxCount=2,E168-SUM(M168:N168),E168-SUM(M168:M168)) -> -51.54782609 | P168: 2020-12-22T00:02:48 | Q168: -
A169: 2020-12-25 | B169: Cash | C169: Bank Statement | D169: Petty Cash Reimbursement | E169: -390 | F169: E | G169: E | H169: B1 | I169: BS-TRF | J169: 2020-12-25 | K169: W | L169: =SUMIFS(CBIncl,CBBalDate,"<="&($A169+(ROW($A169)/86400)),CBBank,$H169) -> 84585.675 | M169: =$E169/(1+IF(ISERROR($F169),0,IF(ISNA(MATCH($F169,TaxCode,0)),0,OFFSET(Setup!$D$7,MATCH($F169,TaxCode,0),0,1,1)))+IF(ISERROR($G169),0,IF(ISNA(MATCH($G169,TaxCode,0)),0,OFFSET(Setup!$D$7,MATCH($G169,TaxCode,0),0,1,1))))*IF(ISERROR($F169),0,IF(ISNA(MATCH($F169,TaxCode,0)),0,OFFSET(Setup!$D$7,MATCH($F169,TaxCode,0),0,1,1))) -> 0 | N169: =$E169/(1+IF(ISERROR($F169),0,IF(ISNA(MATCH($F169,TaxCode,0)),0,OFFSET(Setup!$D$7,MATCH($F169,TaxCode,0),0,1,1)))+IF(ISERROR($G169),0,IF(ISNA(MATCH($G169,TaxCode,0)),0,OFFSET(Setup!$D$7,MATCH($G169,TaxCode,0),0,1,1))))*IF(ISERROR($G169),0,IF(ISNA(MATCH($G169,TaxCode,0)),0,OFFSET(Setup!$D$7,MATCH($G169,TaxCode,0),0,1,1))) -> 0 | O169: =IF(TaxCount=2,E169-SUM(M169:N169),E169-SUM(M169:M169)) -> -390 | P169: 2020-12-25T00:02:49 | Q169: -
A170: 2020-12-25 | B170: Cash | C170: Bank Statement | D170: Petty Cash Reimbursement | E170: 390 | F170: E | G170: E | H170: PC | I170: BS-TRF | J170: 2020-12-25 | K170: D | L170: =SUMIFS(CBIncl,CBBalDate,"<="&($A170+(ROW($A170)/86400)),CBBank,$H170) -> 1835.547 | M170: =$E170/(1+IF(ISERROR($F170),0,IF(ISNA(MATCH($F170,TaxCode,0)),0,OFFSET(Setup!$D$7,MATCH($F170,TaxCode,0),0,1,1)))+IF(ISERROR($G170),0,IF(ISNA(MATCH($G170,TaxCode,0)),0,OFFSET(Setup!$D$7,MATCH($G170,TaxCode,0),0,1,1))))*IF(ISERROR($F170),0,IF(ISNA(MATCH($F170,TaxCode,0)),0,OFFSET(Setup!$D$7,MATCH($F170,TaxCode,0),0,1,1))) -> 0 | N170: =$E170/(1+IF(ISERROR($F170),0,IF(ISNA(MATCH($F170,TaxCode,0)),0,OFFSET(Setup!$D$7,MATCH($F170,TaxCode,0),0,1,1)))+IF(ISERROR($G170),0,IF(ISNA(MATCH($G170,TaxCode,0)),0,OFFSET(Setup!$D$7,MATCH($G170,TaxCode,0),0,1,1))))*IF(ISERROR($G170),0,IF(ISNA(MATCH($G170,TaxCode,0)),0,OFFSET(Setup!$D$7,MATCH($G170,TaxCode,0),0,1,1))) -> 0 | O170: =IF(TaxCount=2,E170-SUM(M170:N170),E170-SUM(M170:M170)) -> 390 | P170: 2020-12-25T00:02:50 | Q170: -
A171: 2020-12-25 | B171: Inland Revenue | C171: Return | D171: Sales Tax | E171: -1500 | F171: E | G171: E | H171: B1 | I171: BS-TAX1 | J171: 2020-12-25 | K171: W | L171: =SUMIFS(CBIncl,CBBalDate,"<="&($A171+(ROW($A171)/86400)),CBBank,$H171) -> 83085.675 | M171: =$E171/(1+IF(ISERROR($F171),0,IF(ISNA(MATCH($F171,TaxCode,0)),0,OFFSET(Setup!$D$7,MATCH($F171,TaxCode,0),0,1,1)))+IF(ISERROR($G171),0,IF(ISNA(MATCH($G171,TaxCode,0)),0,OFFSET(Setup!$D$7,MATCH($G171,TaxCode,0),0,1,1))))*IF(ISERROR($F171),0,IF(ISNA(MATCH($F171,TaxCode,0)),0,OFFSET(Setup!$D$7,MATCH($F171,TaxCode,0),0,1,1))) -> 0 | N171: =$E171/(1+IF(ISERROR($F171),0,IF(ISNA(MATCH($F171,TaxCode,0)),0,OFFSET(Setup!$D$7,MATCH($F171,TaxCode,0),0,1,1)))+IF(ISERROR($G171),0,IF(ISNA(MATCH($G171,TaxCode,0)),0,OFFSET(Setup!$D$7,MATCH($G171,TaxCode,0),0,1,1))))*IF(ISERROR($G171),0,IF(ISNA(MATCH($G171,TaxCode,0)),0,OFFSET(Setup!$D$7,MATCH($G171,TaxCode,0),0,1,1))) -> 0 | O171: =IF(TaxCount=2,E171-SUM(M171:N171),E171-SUM(M171:M171)) -> -1500 | P171: 2020-12-25T00:02:51 | Q171: -
A172: 2020-12-26 | B172: Payroll | C172: Payroll | D172: Salaries | E172: -13000 | F172: E | G172: E | H172: B2 | I172: IS-365 | J172: 2020-12-26 | K172: W | L172: =SUMIFS(CBIncl,CBBalDate,"<="&($A172+(ROW($A172)/86400)),CBBank,$H172) -> 1600 | M172: =$E172/(1+IF(ISERROR($F172),0,IF(ISNA(MATCH($F172,TaxCode,0)),0,OFFSET(Setup!$D$7,MATCH($F172,TaxCode,0),0,1,1)))+IF(ISERROR($G172),0,IF(ISNA(MATCH($G172,TaxCode,0)),0,OFFSET(Setup!$D$7,MATCH($G172,TaxCode,0),0,1,1))))*IF(ISERROR($F172),0,IF(ISNA(MATCH($F172,TaxCode,0)),0,OFFSET(Setup!$D$7,MATCH($F172,TaxCode,0),0,1,1))) -> 0 | N172: =$E172/(1+IF(ISERROR($F172),0,IF(ISNA(MATCH($F172,TaxCode,0)),0,OFFSET(Setup!$D$7,MATCH($F172,TaxCode,0),0,1,1)))+IF(ISERROR($G172),0,IF(ISNA(MATCH($G172,TaxCode,0)),0,OFFSET(Setup!$D$7,MATCH($G172,TaxCode,0),0,1,1))))*IF(ISERROR($G172),0,IF(ISNA(MATCH($G172,TaxCode,0)),0,OFFSET(Setup!$D$7,MATCH($G172,TaxCode,0),0,1,1))) -> 0 | O172: =IF(TaxCount=2,E172-SUM(M172:N172),E172-SUM(M172:M172)) -> -13000 | P172: 2020-12-26T00:02:52 | Q172: -
A173: 2020-12-26 | B173: PR Properties | C173: Debit Order | D173: Rent | E173: -5700 | F173: A | G173: E | H173: B1 | I173: IS-350 | J173: 2020-12-26 | K173: W | L173: =SUMIFS(CBIncl,CBBalDate,"<="&($A173+(ROW($A173)/86400)),CBBank,$H173) -> 77385.675 | M173: =$E173/(1+IF(ISERROR($F173),0,IF(ISNA(MATCH($F173,TaxCode,0)),0,OFFSET(Setup!$D$7,MATCH($F173,TaxCode,0),0,1,1)))+IF(ISERROR($G173),0,IF(ISNA(MATCH($G173,TaxCode,0)),0,OFFSET(Setup!$D$7,MATCH($G173,TaxCode,0),0,1,1))))*IF(ISERROR($F173),0,IF(ISNA(MATCH($F173,TaxCode,0)),0,OFFSET(Setup!$D$7,MATCH($F173,TaxCode,0),0,1,1))) -> -743.4782609 | N173: =$E173/(1+IF(ISERROR($F173),0,IF(ISNA(MATCH($F173,TaxCode,0)),0,OFFSET(Setup!$D$7,MATCH($F173,TaxCode,0),0,1,1)))+IF(ISERROR($G173),0,IF(ISNA(MATCH($G173,TaxCode,0)),0,OFFSET(Setup!$D$7,MATCH($G173,TaxCode,0),0,1,1))))*IF(ISERROR($G173),0,IF(ISNA(MATCH($G173,TaxCode,0)),0,OFFSET(Setup!$D$7,MATCH($G173,TaxCode,0),0,1,1))) -> 0 | O173: =IF(TaxCount=2,E173-SUM(M173:N173),E173-SUM(M173:M173)) -> -4956.521739 | P173: 2020-12-26T00:02:53 | Q173: -
A174: 2020-12-26 | B174: SQ Financial Services | C174: Debit Order | D174: Capital repayment | E174: -220 | F174: E | G174: E | H174: B1 | I174: BS-700 | J174: 2020-12-26 | K174: W | L174: =SUMIFS(CBIncl,CBBalDate,"<="&($A174+(ROW($A174)/86400)),CBBank,$H174) -> 77165.675 | M174: =$E174/(1+IF(ISERROR($F174),0,IF(ISNA(MATCH($F174,TaxCode,0)),0,OFFSET(Setup!$D$7,MATCH($F174,TaxCode,0),0,1,1)))+IF(ISERROR($G174),0,IF(ISNA(MATCH($G174,TaxCode,0)),0,OFFSET(Setup!$D$7,MATCH($G174,TaxCode,0),0,1,1))))*IF(ISERROR($F174),0,IF(ISNA(MATCH($F174,TaxCode,0)),0,OFFSET(Setup!$D$7,MATCH($F174,TaxCode,0),0,1,1))) -> 0 | N174: =$E174/(1+IF(ISERROR($F174),0,IF(ISNA(MATCH($F174,TaxCode,0)),0,OFFSET(Setup!$D$7,MATCH($F174,TaxCode,0),0,1,1)))+IF(ISERROR($G174),0,IF(ISNA(MATCH($G174,TaxCode,0)),0,OFFSET(Setup!$D$7,MATCH($G174,TaxCode,0),0,1,1))))*IF(ISERROR($G174),0,IF(ISNA(MATCH($G174,TaxCode,0)),0,OFFSET(Setup!$D$7,MATCH($G174,TaxCode,0),0,1,1))) -> 0 | O174: =IF(TaxCount=2,E174-SUM(M174:N174),E174-SUM(M174:M174)) -> -220 | P174: 2020-12-26T00:02:54 | Q174: -
A175: 2020-12-26 | B175: SQ Financial Services | C175: Debit Order | D175: Interest paid | E175: -100 | F175: E | G175: E | H175: B1 | I175: IS-500 | J175: 2020-12-26 | K175: W | L175: =SUMIFS(CBIncl,CBBalDate,"<="&($A175+(ROW($A175)/86400)),CBBank,$H175) -> 77065.675 | M175: =$E175/(1+IF(ISERROR($F175),0,IF(ISNA(MATCH($F175,TaxCode,0)),0,OFFSET(Setup!$D$7,MATCH($F175,TaxCode,0),0,1,1)))+IF(ISERROR($G175),0,IF(ISNA(MATCH($G175,TaxCode,0)),0,OFFSET(Setup!$D$7,MATCH($G175,TaxCode,0),0,1,1))))*IF(ISERROR($F175),0,IF(ISNA(MATCH($F175,TaxCode,0)),0,OFFSET(Setup!$D$7,MATCH($F175,TaxCode,0),0,1,1))) -> 0 | N175: =$E175/(1+IF(ISERROR($F175),0,IF(ISNA(MATCH($F175,TaxCode,0)),0,OFFSET(Setup!$D$7,MATCH($F175,TaxCode,0),0,1,1)))+IF(ISERROR($G175),0,IF(ISNA(MATCH($G175,TaxCode,0)),0,OFFSET(Setup!$D$7,MATCH($G175,TaxCode,0),0,1,1))))*IF(ISERROR($G175),0,IF(ISNA(MATCH($G175,TaxCode,0)),0,OFFSET(Setup!$D$7,MATCH($G175,TaxCode,0),0,1,1))) -> 0 | O175: =IF(TaxCount=2,E175-SUM(M175:N175),E175-SUM(M175:M175)) -> -100 | P175: 2020-12-26T00:02:55 | Q175: -
A176: 2020-12-30 | B176: ABC Limited | C176: INV0070 | D176: Consulting Services | E176: 16986 | F176: A | G176: E | H176: B1 | I176: IS-100 | J176: 2020-12-30 | K176: D | L176: =SUMIFS(CBIncl,CBBalDate,"<="&($A176+(ROW($A176)/86400)),CBBank,$H176) -> 94051.675 | M176: =$E176/(1+IF(ISERROR($F176),0,IF(ISNA(MATCH($F176,TaxCode,0)),0,OFFSET(Setup!$D$7,MATCH($F176,TaxCode,0),0,1,1)))+IF(ISERROR($G176),0,IF(ISNA(MATCH($G176,TaxCode,0)),0,OFFSET(Setup!$D$7,MATCH($G176,TaxCode,0),0,1,1))))*IF(ISERROR($F176),0,IF(ISNA(MATCH($F176,TaxCode,0)),0,OFFSET(Setup!$D$7,MATCH($F176,TaxCode,0),0,1,1))) -> 2215.565217 | N176: =$E176/(1+IF(ISERROR($F176),0,IF(ISNA(MATCH($F176,TaxCode,0)),0,OFFSET(Setup!$D$7,MATCH($F176,TaxCode,0),0,1,1)))+IF(ISERROR($G176),0,IF(ISNA(MATCH($G176,TaxCode,0)),0,OFFSET(Setup!$D$7,MATCH($G176,TaxCode,0),0,1,1))))*IF(ISERROR($G176),0,IF(ISNA(MATCH($G176,TaxCode,0)),0,OFFSET(Setup!$D$7,MATCH($G176,TaxCode,0),0,1,1))) -> 0 | O176: =IF(TaxCount=2,E176-SUM(M176:N176),E176-SUM(M176:M176)) -> 14770.43478 | P176: 2020-12-30T00:02:56 | Q176: -
A177: 2020-12-31 | B177: XY Solutions | C177: Invoice EXP19 | D177: Internet Service Provider | E177: -204.06 | F177: A | G177: E | H177: B1 | I177: IS-380 | J177: 2020-12-31 | K177: W | L177: =SUMIFS(CBIncl,CBBalDate,"<="&($A177+(ROW($A177)/86400)),CBBank,$H177) -> 93847.615 | M177: =$E177/(1+IF(ISERROR($F177),0,IF(ISNA(MATCH($F177,TaxCode,0)),0,OFFSET(Setup!$D$7,MATCH($F177,TaxCode,0),0,1,1)))+IF(ISERROR($G177),0,IF(ISNA(MATCH($G177,TaxCode,0)),0,OFFSET(Setup!$D$7,MATCH($G177,TaxCode,0),0,1,1))))*IF(ISERROR($F177),0,IF(ISNA(MATCH($F177,TaxCode,0)),0,OFFSET(Setup!$D$7,MATCH($F177,TaxCode,0),0,1,1))) -> -26.61652174 | N177: =$E177/(1+IF(ISERROR($F177),0,IF(ISNA(MATCH($F177,TaxCode,0)),0,OFFSET(Setup!$D$7,MATCH($F177,TaxCode,0),0,1,1)))+IF(ISERROR($G177),0,IF(ISNA(MATCH($G177,TaxCode,0)),0,OFFSET(Setup!$D$7,MATCH($G177,TaxCode,0),0,1,1))))*IF(ISERROR($G177),0,IF(ISNA(MATCH($G177,TaxCode,0)),0,OFFSET(Setup!$D$7,MATCH($G177,TaxCode,0),0,1,1))) -> 0 | O177: =IF(TaxCount=2,E177-SUM(M177:N177),E177-SUM(M177:M177)) -> -177.4434783 | P177: 2020-12-31T00:02:57 | Q177: -
A178: 2021-01-02 | B178: IAS Accountants | C178: Invoice | D178: Bookkeeping | E178: -912 | F178: A | G178: E | H178: B1 | I178: IS-305 | J178: 2021-01-02 | K178: W | L178: =SUMIFS(CBIncl,CBBalDate,"<="&($A178+(ROW($A178)/86400)),CBBank,$H178) -> 93847.615 | M178: =$E178/(1+IF(ISERROR($F178),0,IF(ISNA(MATCH($F178,TaxCode,0)),0,OFFSET(Setup!$D$7,MATCH($F178,TaxCode,0),0,1,1)))+IF(ISERROR($G178),0,IF(ISNA(MATCH($G178,TaxCode,0)),0,OFFSET(Setup!$D$7,MATCH($G178,TaxCode,0),0,1,1))))*IF(ISERROR($F178),0,IF(ISNA(MATCH($F178,TaxCode,0)),0,OFFSET(Setup!$D$7,MATCH($F178,TaxCode,0),0,1,1))) -> -118.9565217 | N178: =$E178/(1+IF(ISERROR($F178),0,IF(ISNA(MATCH($F178,TaxCode,0)),0,OFFSET(Setup!$D$7,MATCH($F178,TaxCode,0),0,1,1)))+IF(ISERROR($G178),0,IF(ISNA(MATCH($G178,TaxCode,0)),0,OFFSET(Setup!$D$7,MATCH($G178,TaxCode,0),0,1,1))))*IF(ISERROR($G178),0,IF(ISNA(MATCH($G178,TaxCode,0)),0,OFFSET(Setup!$D$7,MATCH($G178,TaxCode,0),0,1,1))) -> 0 | O178: =IF(TaxCount=2,E178-SUM(M178:N178),E178-SUM(M178:M178)) -> -793.0434783 | P178: 2021-01-02T00:02:58 | Q178: -
A179: 2021-01-04 | B179: EC Estate Agents | C179: INV0071 | D179: Taxation Services | E179: 9311.52 | F179: A | G179: E | H179: B1 | I179: IS-100 | J179: 2021-01-04 | K179: D | L179: =SUMIFS(CBIncl,CBBalDate,"<="&($A179+(ROW($A179)/86400)),CBBank,$H179) -> 102247.135 | M179: =$E179/(1+IF(ISERROR($F179),0,IF(ISNA(MATCH($F179,TaxCode,0)),0,OFFSET(Setup!$D$7,MATCH($F179,TaxCode,0),0,1,1)))+IF(ISERROR($G179),0,IF(ISNA(MATCH($G179,TaxCode,0)),0,OFFSET(Setup!$D$7,MATCH($G179,TaxCode,0),0,1,1))))*IF(ISERROR($F179),0,IF(ISNA(MATCH($F179,TaxCode,0)),0,OFFSET(Setup!$D$7,MATCH($F179,TaxCode,0),0,1,1))) -> 1214.546087 | N179: =$E179/(1+IF(ISERROR($F179),0,IF(ISNA(MATCH($F179,TaxCode,0)),0,OFFSET(Setup!$D$7,MATCH($F179,TaxCode,0),0,1,1)))+IF(ISERROR($G179),0,IF(ISNA(MATCH($G179,TaxCode,0)),0,OFFSET(Setup!$D$7,MATCH($G179,TaxCode,0),0,1,1))))*IF(ISERROR($G179),0,IF(ISNA(MATCH($G179,TaxCode,0)),0,OFFSET(Setup!$D$7,MATCH($G179,TaxCode,0),0,1,1))) -> 0 | O179: =IF(TaxCount=2,E179-SUM(M179:N179),E179-SUM(M179:M179)) -> 8096.973913 | P179: 2021-01-04T00:02:59 | Q179: -
A180: 2021-01-05 | B180: Hollard | C180: Debit Order | D180: Insurance | E180: -387.6 | F180: A | G180: E | H180: B1 | I180: IS-340 | J180: 2021-01-05 | K180: W | L180: =SUMIFS(CBIncl,CBBalDate,"<="&($A180+(ROW($A180)/86400)),CBBank,$H180) -> 101859.535 | M180: =$E180/(1+IF(ISERROR($F180),0,IF(ISNA(MATCH($F180,TaxCode,0)),0,OFFSET(Setup!$D$7,MATCH($F180,TaxCode,0),0,1,1)))+IF(ISERROR($G180),0,IF(ISNA(MATCH($G180,TaxCode,0)),0,OFFSET(Setup!$D$7,MATCH($G180,TaxCode,0),0,1,1))))*IF(ISERROR($F180),0,IF(ISNA(MATCH($F180,TaxCode,0)),0,OFFSET(Setup!$D$7,MATCH($F180,TaxCode,0),0,1,1))) -> -50.55652174 | N180: =$E180/(1+IF(ISERROR($F180),0,IF(ISNA(MATCH($F180,TaxCode,0)),0,OFFSET(Setup!$D$7,MATCH($F180,TaxCode,0),0,1,1)))+IF(ISERROR($G180),0,IF(ISNA(MATCH($G180,TaxCode,0)),0,OFFSET(Setup!$D$7,MATCH($G180,TaxCode,0),0,1,1))))*IF(ISERROR($G180),0,IF(ISNA(MATCH($G180,TaxCode,0)),0,OFFSET(Setup!$D$7,MATCH($G180,TaxCode,0),0,1,1))) -> 0 | O180: =IF(TaxCount=2,E180-SUM(M180:N180),E180-SUM(M180:M180)) -> -337.0434783 | P180: 2021-01-05T00:03:00 | Q180: -
A181: 2021-01-15 | B181: ABSA | C181: Bank Statement | D181: Service Fees | E181: -57 | F181: A | G181: E | H181: B1 | I181: IS-315 | J181: 2021-01-15 | K181: W | L181: =SUMIFS(CBIncl,CBBalDate,"<="&($A181+(ROW($A181)/86400)),CBBank,$H181) -> 101802.535 | M181: =$E181/(1+IF(ISERROR($F181),0,IF(ISNA(MATCH($F181,TaxCode,0)),0,OFFSET(Setup!$D$7,MATCH($F181,TaxCode,0),0,1,1)))+IF(ISERROR($G181),0,IF(ISNA(MATCH($G181,TaxCode,0)),0,OFFSET(Setup!$D$7,MATCH($G181,TaxCode,0),0,1,1))))*IF(ISERROR($F181),0,IF(ISNA(MATCH($F181,TaxCode,0)),0,OFFSET(Setup!$D$7,MATCH($F181,TaxCode,0),0,1,1))) -> -7.434782609 | N181: =$E181/(1+IF(ISERROR($F181),0,IF(ISNA(MATCH($F181,TaxCode,0)),0,OFFSET(Setup!$D$7,MATCH($F181,TaxCode,0),0,1,1)))+IF(ISERROR($G181),0,IF(ISNA(MATCH($G181,TaxCode,0)),0,OFFSET(Setup!$D$7,MATCH($G181,TaxCode,0),0,1,1))))*IF(ISERROR($G181),0,IF(ISNA(MATCH($G181,TaxCode,0)),0,OFFSET(Setup!$D$7,MATCH($G181,TaxCode,0),0,1,1))) -> 0 | O181: =IF(TaxCount=2,E181-SUM(M181:N181),E181-SUM(M181:M181)) -> -49.56521739 | P181: 2021-01-15T00:03:01 | Q181: -
A182: 2021-01-20 | B182: Transfer | C182: Bank Statement | D182: Bank Transfer | E182: 13000 | F182: E | G182: E | H182: B2 | I182: BS-TRF | J182: 2021-01-20 | K182: D | L182: =SUMIFS(CBIncl,CBBalDate,"<="&($A182+(ROW($A182)/86400)),CBBank,$H182) -> 14600 | M182: =$E182/(1+IF(ISERROR($F182),0,IF(ISNA(MATCH($F182,TaxCode,0)),0,OFFSET(Setup!$D$7,MATCH($F182,TaxCode,0),0,1,1)))+IF(ISERROR($G182),0,IF(ISNA(MATCH($G182,TaxCode,0)),0,OFFSET(Setup!$D$7,MATCH($G182,TaxCode,0),0,1,1))))*IF(ISERROR($F182),0,IF(ISNA(MATCH($F182,TaxCode,0)),0,OFFSET(Setup!$D$7,MATCH($F182,TaxCode,0),0,1,1))) -> 0 | N182: =$E182/(1+IF(ISERROR($F182),0,IF(ISNA(MATCH($F182,TaxCode,0)),0,OFFSET(Setup!$D$7,MATCH($F182,TaxCode,0),0,1,1)))+IF(ISERROR($G182),0,IF(ISNA(MATCH($G182,TaxCode,0)),0,OFFSET(Setup!$D$7,MATCH($G182,TaxCode,0),0,1,1))))*IF(ISERROR($G182),0,IF(ISNA(MATCH($G182,TaxCode,0)),0,OFFSET(Setup!$D$7,MATCH($G182,TaxCode,0),0,1,1))) -> 0 | O182: =IF(TaxCount=2,E182-SUM(M182:N182),E182-SUM(M182:M182)) -> 13000 | P182: 2021-01-20T00:03:02 | Q182: -
A183: 2021-01-20 | B183: Transfer | C183: Bank Statement | D183: Bank Transfer | E183: -13000 | F183: E | G183: E | H183: B1 | I183: BS-TRF | J183: 2021-01-20 | K183: W | L183: =SUMIFS(CBIncl,CBBalDate,"<="&($A183+(ROW($A183)/86400)),CBBank,$H183) -> 88802.535 | M183: =$E183/(1+IF(ISERROR($F183),0,IF(ISNA(MATCH($F183,TaxCode,0)),0,OFFSET(Setup!$D$7,MATCH($F183,TaxCode,0),0,1,1)))+IF(ISERROR($G183),0,IF(ISNA(MATCH($G183,TaxCode,0)),0,OFFSET(Setup!$D$7,MATCH($G183,TaxCode,0),0,1,1))))*IF(ISERROR($F183),0,IF(ISNA(MATCH($F183,TaxCode,0)),0,OFFSET(Setup!$D$7,MATCH($F183,TaxCode,0),0,1,1))) -> 0 | N183: =$E183/(1+IF(ISERROR($F183),0,IF(ISNA(MATCH($F183,TaxCode,0)),0,OFFSET(Setup!$D$7,MATCH($F183,TaxCode,0),0,1,1)))+IF(ISERROR($G183),0,IF(ISNA(MATCH($G183,TaxCode,0)),0,OFFSET(Setup!$D$7,MATCH($G183,TaxCode,0),0,1,1))))*IF(ISERROR($G183),0,IF(ISNA(MATCH($G183,TaxCode,0)),0,OFFSET(Setup!$D$7,MATCH($G183,TaxCode,0),0,1,1))) -> 0 | O183: =IF(TaxCount=2,E183-SUM(M183:N183),E183-SUM(M183:M183)) -> -13000 | P183: 2021-01-20T00:03:03 | Q183: -
A184: 2021-01-25 | B184: Cash | C184: Bank Statement | D184: Petty Cash Reimbursement | E184: -250 | F184: E | G184: E | H184: B1 | I184: BS-TRF | J184: 2021-01-25 | K184: W | L184: =SUMIFS(CBIncl,CBBalDate,"<="&($A184+(ROW($A184)/86400)),CBBank,$H184) -> 88552.535 | M184: =$E184/(1+IF(ISERROR($F184),0,IF(ISNA(MATCH($F184,TaxCode,0)),0,OFFSET(Setup!$D$7,MATCH($F184,TaxCode,0),0,1,1)))+IF(ISERROR($G184),0,IF(ISNA(MATCH($G184,TaxCode,0)),0,OFFSET(Setup!$D$7,MATCH($G184,TaxCode,0),0,1,1))))*IF(ISERROR($F184),0,IF(ISNA(MATCH($F184,TaxCode,0)),0,OFFSET(Setup!$D$7,MATCH($F184,TaxCode,0),0,1,1))) -> 0 | N184: =$E184/(1+IF(ISERROR($F184),0,IF(ISNA(MATCH($F184,TaxCode,0)),0,OFFSET(Setup!$D$7,MATCH($F184,TaxCode,0),0,1,1)))+IF(ISERROR($G184),0,IF(ISNA(MATCH($G184,TaxCode,0)),0,OFFSET(Setup!$D$7,MATCH($G184,TaxCode,0),0,1,1))))*IF(ISERROR($G184),0,IF(ISNA(MATCH($G184,TaxCode,0)),0,OFFSET(Setup!$D$7,MATCH($G184,TaxCode,0),0,1,1))) -> 0 | O184: =IF(TaxCount=2,E184-SUM(M184:N184),E184-SUM(M184:M184)) -> -250 | P184: 2021-01-25T00:03:04 | Q184: -
A185: 2021-01-25 | B185: Cash | C185: Bank Statement | D185: Petty Cash Reimbursement | E185: 250 | F185: E | G185: E | H185: PC | I185: BS-TRF | J185: 2021-01-25 | K185: D | L185: =SUMIFS(CBIncl,CBBalDate,"<="&($A185+(ROW($A185)/86400)),CBBank,$H185) -> 2085.547 | M185: =$E185/(1+IF(ISERROR($F185),0,IF(ISNA(MATCH($F185,TaxCode,0)),0,OFFSET(Setup!$D$7,MATCH($F185,TaxCode,0),0,1,1)))+IF(ISERROR($G185),0,IF(ISNA(MATCH($G185,TaxCode,0)),0,OFFSET(Setup!$D$7,MATCH($G185,TaxCode,0),0,1,1))))*IF(ISERROR($F185),0,IF(ISNA(MATCH($F185,TaxCode,0)),0,OFFSET(Setup!$D$7,MATCH($F185,TaxCode,0),0,1,1))) -> 0 | N185: =$E185/(1+IF(ISERROR($F185),0,IF(ISNA(MATCH($F185,TaxCode,0)),0,OFFSET(Setup!$D$7,MATCH($F185,TaxCode,0),0,1,1)))+IF(ISERROR($G185),0,IF(ISNA(MATCH($G185,TaxCode,0)),0,OFFSET(Setup!$D$7,MATCH($G185,TaxCode,0),0,1,1))))*IF(ISERROR($G185),0,IF(ISNA(MATCH($G185,TaxCode,0)),0,OFFSET(Setup!$D$7,MATCH($G185,TaxCode,0),0,1,1))) -> 0 | O185: =IF(TaxCount=2,E185-SUM(M185:N185),E185-SUM(M185:M185)) -> 250 | P185: 2021-01-25T00:03:05 | Q185: -
A186: 2021-01-25 | B186: DF Manufacturing | C186: O/B INV0051 | D186: Consulting Services | E186: 9120 | F186: A | G186: E | H186: B1 | I186: IS-100 | J186: 2021-02-01 | K186: D | L186: =SUMIFS(CBIncl,CBBalDate,"<="&($A186+(ROW($A186)/86400)),CBBank,$H186) -> 97672.535 | M186: =$E186/(1+IF(ISERROR($F186),0,IF(ISNA(MATCH($F186,TaxCode,0)),0,OFFSET(Setup!$D$7,MATCH($F186,TaxCode,0),0,1,1)))+IF(ISERROR($G186),0,IF(ISNA(MATCH($G186,TaxCode,0)),0,OFFSET(Setup!$D$7,MATCH($G186,TaxCode,0),0,1,1))))*IF(ISERROR($F186),0,IF(ISNA(MATCH($F186,TaxCode,0)),0,OFFSET(Setup!$D$7,MATCH($F186,TaxCode,0),0,1,1))) -> 1189.565217 | N186: =$E186/(1+IF(ISERROR($F186),0,IF(ISNA(MATCH($F186,TaxCode,0)),0,OFFSET(Setup!$D$7,MATCH($F186,TaxCode,0),0,1,1)))+IF(ISERROR($G186),0,IF(ISNA(MATCH($G186,TaxCode,0)),0,OFFSET(Setup!$D$7,MATCH($G186,TaxCode,0),0,1,1))))*IF(ISERROR($G186),0,IF(ISNA(MATCH($G186,TaxCode,0)),0,OFFSET(Setup!$D$7,MATCH($G186,TaxCode,0),0,1,1))) -> 0 | O186: =IF(TaxCount=2,E186-SUM(M186:N186),E186-SUM(M186:M186)) -> 7930.434783 | P186: 2021-01-25T00:03:06 | Q186: -
A187: 2021-01-25 | B187: The Paint Shop | C187: INV0072 | D187: Taxation Services | E187: 2793 | F187: A | G187: E | H187: B1 | I187: IS-100 | J187: 2021-01-25 | K187: D | L187: =SUMIFS(CBIncl,CBBalDate,"<="&($A187+(ROW($A187)/86400)),CBBank,$H187) -> 100465.535 | M187: =$E187/(1+IF(ISERROR($F187),0,IF(ISNA(MATCH($F187,TaxCode,0)),0,OFFSET(Setup!$D$7,MATCH($F187,TaxCode,0),0,1,1)))+IF(ISERROR($G187),0,IF(ISNA(MATCH($G187,TaxCode,0)),0,OFFSET(Setup!$D$7,MATCH($G187,TaxCode,0),0,1,1))))*IF(ISERROR($F187),0,IF(ISNA(MATCH($F187,TaxCode,0)),0,OFFSET(Setup!$D$7,MATCH($F187,TaxCode,0),0,1,1))) -> 364.3043478 | N187: =$E187/(1+IF(ISERROR($F187),0,IF(ISNA(MATCH($F187,TaxCode,0)),0,OFFSET(Setup!$D$7,MATCH($F187,TaxCode,0),0,1,1)))+IF(ISERROR($G187),0,IF(ISNA(MATCH($G187,TaxCode,0)),0,OFFSET(Setup!$D$7,MATCH($G187,TaxCode,0),0,1,1))))*IF(ISERROR($G187),0,IF(ISNA(MATCH($G187,TaxCode,0)),0,OFFSET(Setup!$D$7,MATCH($G187,TaxCode,0),0,1,1))) -> 0 | O187: =IF(TaxCount=2,E187-SUM(M187:N187),E187-SUM(M187:M187)) -> 2428.695652 | P187: 2021-01-25T00:03:07 | Q187: -
A188: 2021-01-26 | B188: Payroll | C188: Payroll | D188: Salaries | E188: -13000 | F188: E | G188: E | H188: B2 | I188: IS-365 | J188: 2021-01-26 | K188: W | L188: =SUMIFS(CBIncl,CBBalDate,"<="&($A188+(ROW($A188)/86400)),CBBank,$H188) -> 1600 | M188: =$E188/(1+IF(ISERROR($F188),0,IF(ISNA(MATCH($F188,TaxCode,0)),0,OFFSET(Setup!$D$7,MATCH($F188,TaxCode,0),0,1,1)))+IF(ISERROR($G188),0,IF(ISNA(MATCH($G188,TaxCode,0)),0,OFFSET(Setup!$D$7,MATCH($G188,TaxCode,0),0,1,1))))*IF(ISERROR($F188),0,IF(ISNA(MATCH($F188,TaxCode,0)),0,OFFSET(Setup!$D$7,MATCH($F188,TaxCode,0),0,1,1))) -> 0 | N188: =$E188/(1+IF(ISERROR($F188),0,IF(ISNA(MATCH($F188,TaxCode,0)),0,OFFSET(Setup!$D$7,MATCH($F188,TaxCode,0),0,1,1)))+IF(ISERROR($G188),0,IF(ISNA(MATCH($G188,TaxCode,0)),0,OFFSET(Setup!$D$7,MATCH($G188,TaxCode,0),0,1,1))))*IF(ISERROR($G188),0,IF(ISNA(MATCH($G188,TaxCode,0)),0,OFFSET(Setup!$D$7,MATCH($G188,TaxCode,0),0,1,1))) -> 0 | O188: =IF(TaxCount=2,E188-SUM(M188:N188),E188-SUM(M188:M188)) -> -13000 | P188: 2021-01-26T00:03:08 | Q188: -
A189: 2021-01-26 | B189: PR Properties | C189: Debit Order | D189: Rent | E189: -5700 | F189: A | G189: E | H189: B1 | I189: IS-350 | J189: 2021-01-26 | K189: W | L189: =SUMIFS(CBIncl,CBBalDate,"<="&($A189+(ROW($A189)/86400)),CBBank,$H189) -> 94765.535 | M189: =$E189/(1+IF(ISERROR($F189),0,IF(ISNA(MATCH($F189,TaxCode,0)),0,OFFSET(Setup!$D$7,MATCH($F189,TaxCode,0),0,1,1)))+IF(ISERROR($G189),0,IF(ISNA(MATCH($G189,TaxCode,0)),0,OFFSET(Setup!$D$7,MATCH($G189,TaxCode,0),0,1,1))))*IF(ISERROR($F189),0,IF(ISNA(MATCH($F189,TaxCode,0)),0,OFFSET(Setup!$D$7,MATCH($F189,TaxCode,0),0,1,1))) -> -743.4782609 | N189: =$E189/(1+IF(ISERROR($F189),0,IF(ISNA(MATCH($F189,TaxCode,0)),0,OFFSET(Setup!$D$7,MATCH($F189,TaxCode,0),0,1,1)))+IF(ISERROR($G189),0,IF(ISNA(MATCH($G189,TaxCode,0)),0,OFFSET(Setup!$D$7,MATCH($G189,TaxCode,0),0,1,1))))*IF(ISERROR($G189),0,IF(ISNA(MATCH($G189,TaxCode,0)),0,OFFSET(Setup!$D$7,MATCH($G189,TaxCode,0),0,1,1))) -> 0 | O189: =IF(TaxCount=2,E189-SUM(M189:N189),E189-SUM(M189:M189)) -> -4956.521739 | P189: 2021-01-26T00:03:09 | Q189: -
A190: 2021-01-26 | B190: PTY Consultants | C190: INV0074 | D190: Consulting Services | E190: 21888 | F190: A | G190: E | H190: B1 | I190: IS-100 | J190: 2021-01-26 | K190: D | L190: =SUMIFS(CBIncl,CBBalDate,"<="&($A190+(ROW($A190)/86400)),CBBank,$H190) -> 116653.535 | M190: =$E190/(1+IF(ISERROR($F190),0,IF(ISNA(MATCH($F190,TaxCode,0)),0,OFFSET(Setup!$D$7,MATCH($F190,TaxCode,0),0,1,1)))+IF(ISERROR($G190),0,IF(ISNA(MATCH($G190,TaxCode,0)),0,OFFSET(Setup!$D$7,MATCH($G190,TaxCode,0),0,1,1))))*IF(ISERROR($F190),0,IF(ISNA(MATCH($F190,TaxCode,0)),0,OFFSET(Setup!$D$7,MATCH($F190,TaxCode,0),0,1,1))) -> 2854.956522 | N190: =$E190/(1+IF(ISERROR($F190),0,IF(ISNA(MATCH($F190,TaxCode,0)),0,OFFSET(Setup!$D$7,MATCH($F190,TaxCode,0),0,1,1)))+IF(ISERROR($G190),0,IF(ISNA(MATCH($G190,TaxCode,0)),0,OFFSET(Setup!$D$7,MATCH($G190,TaxCode,0),0,1,1))))*IF(ISERROR($G190),0,IF(ISNA(MATCH($G190,TaxCode,0)),0,OFFSET(Setup!$D$7,MATCH($G190,TaxCode,0),0,1,1))) -> 0 | O190: =IF(TaxCount=2,E190-SUM(M190:N190),E190-SUM(M190:M190)) -> 19033.04348 | P190: 2021-01-26T00:03:10 | Q190: -
A191: 2021-01-26 | B191: SQ Financial Services | C191: Debit Order | D191: Capital repayment | E191: -220 | F191: E | G191: E | H191: B1 | I191: BS-700 | J191: 2021-01-26 | K191: W | L191: =SUMIFS(CBIncl,CBBalDate,"<="&($A191+(ROW($A191)/86400)),CBBank,$H191) -> 116433.535 | M191: =$E191/(1+IF(ISERROR($F191),0,IF(ISNA(MATCH($F191,TaxCode,0)),0,OFFSET(Setup!$D$7,MATCH($F191,TaxCode,0),0,1,1)))+IF(ISERROR($G191),0,IF(ISNA(MATCH($G191,TaxCode,0)),0,OFFSET(Setup!$D$7,MATCH($G191,TaxCode,0),0,1,1))))*IF(ISERROR($F191),0,IF(ISNA(MATCH($F191,TaxCode,0)),0,OFFSET(Setup!$D$7,MATCH($F191,TaxCode,0),0,1,1))) -> 0 | N191: =$E191/(1+IF(ISERROR($F191),0,IF(ISNA(MATCH($F191,TaxCode,0)),0,OFFSET(Setup!$D$7,MATCH($F191,TaxCode,0),0,1,1)))+IF(ISERROR($G191),0,IF(ISNA(MATCH($G191,TaxCode,0)),0,OFFSET(Setup!$D$7,MATCH($G191,TaxCode,0),0,1,1))))*IF(ISERROR($G191),0,IF(ISNA(MATCH($G191,TaxCode,0)),0,OFFSET(Setup!$D$7,MATCH($G191,TaxCode,0),0,1,1))) -> 0 | O191: =IF(TaxCount=2,E191-SUM(M191:N191),E191-SUM(M191:M191)) -> -220 | P191: 2021-01-26T00:03:11 | Q191: -
A192: 2021-01-26 | B192: SQ Financial Services | C192: Debit Order | D192: Interest paid | E192: -100 | F192: E | G192: E | H192: B1 | I192: IS-500 | J192: 2021-01-26 | K192: W | L192: =SUMIFS(CBIncl,CBBalDate,"<="&($A192+(ROW($A192)/86400)),CBBank,$H192) -> 116333.535 | M192: =$E192/(1+IF(ISERROR($F192),0,IF(ISNA(MATCH($F192,TaxCode,0)),0,OFFSET(Setup!$D$7,MATCH($F192,TaxCode,0),0,1,1)))+IF(ISERROR($G192),0,IF(ISNA(MATCH($G192,TaxCode,0)),0,OFFSET(Setup!$D$7,MATCH($G192,TaxCode,0),0,1,1))))*IF(ISERROR($F192),0,IF(ISNA(MATCH($F192,TaxCode,0)),0,OFFSET(Setup!$D$7,MATCH($F192,TaxCode,0),0,1,1))) -> 0 | N192: =$E192/(1+IF(ISERROR($F192),0,IF(ISNA(MATCH($F192,TaxCode,0)),0,OFFSET(Setup!$D$7,MATCH($F192,TaxCode,0),0,1,1)))+IF(ISERROR($G192),0,IF(ISNA(MATCH($G192,TaxCode,0)),0,OFFSET(Setup!$D$7,MATCH($G192,TaxCode,0),0,1,1))))*IF(ISERROR($G192),0,IF(ISNA(MATCH($G192,TaxCode,0)),0,OFFSET(Setup!$D$7,MATCH($G192,TaxCode,0),0,1,1))) -> 0 | O192: =IF(TaxCount=2,E192-SUM(M192:N192),E192-SUM(M192:M192)) -> -100 | P192: 2021-01-26T00:03:12 | Q192: -
A193: 2021-01-27 | B193: Qantas | C193: SA8234 | D193: Travel | E193: -1273.38 | F193: A | G193: E | H193: B1 | I193: IS-390 | J193: 2021-02-02 | K193: W | L193: =SUMIFS(CBIncl,CBBalDate,"<="&($A193+(ROW($A193)/86400)),CBBank,$H193) -> 115060.155 | M193: =$E193/(1+IF(ISERROR($F193),0,IF(ISNA(MATCH($F193,TaxCode,0)),0,OFFSET(Setup!$D$7,MATCH($F193,TaxCode,0),0,1,1)))+IF(ISERROR($G193),0,IF(ISNA(MATCH($G193,TaxCode,0)),0,OFFSET(Setup!$D$7,MATCH($G193,TaxCode,0),0,1,1))))*IF(ISERROR($F193),0,IF(ISNA(MATCH($F193,TaxCode,0)),0,OFFSET(Setup!$D$7,MATCH($F193,TaxCode,0),0,1,1))) -> -166.0930435 | N193: =$E193/(1+IF(ISERROR($F193),0,IF(ISNA(MATCH($F193,TaxCode,0)),0,OFFSET(Setup!$D$7,MATCH($F193,TaxCode,0),0,1,1)))+IF(ISERROR($G193),0,IF(ISNA(MATCH($G193,TaxCode,0)),0,OFFSET(Setup!$D$7,MATCH($G193,TaxCode,0),0,1,1))))*IF(ISERROR($G193),0,IF(ISNA(MATCH($G193,TaxCode,0)),0,OFFSET(Setup!$D$7,MATCH($G193,TaxCode,0),0,1,1))) -> 0 | O193: =IF(TaxCount=2,E193-SUM(M193:N193),E193-SUM(M193:M193)) -> -1107.286957 | P193: 2021-01-27T00:03:13 | Q193: -
A194: 2021-01-27 | B194: WW Retail | C194: INV0073 | D194: Consulting Services | E194: 20520 | F194: A | G194: E | H194: B1 | I194: IS-100 | J194: 2021-01-27 | K194: D | L194: =SUMIFS(CBIncl,CBBalDate,"<="&($A194+(ROW($A194)/86400)),CBBank,$H194) -> 135580.155 | M194: =$E194/(1+IF(ISERROR($F194),0,IF(ISNA(MATCH($F194,TaxCode,0)),0,OFFSET(Setup!$D$7,MATCH($F194,TaxCode,0),0,1,1)))+IF(ISERROR($G194),0,IF(ISNA(MATCH($G194,TaxCode,0)),0,OFFSET(Setup!$D$7,MATCH($G194,TaxCode,0),0,1,1))))*IF(ISERROR($F194),0,IF(ISNA(MATCH($F194,TaxCode,0)),0,OFFSET(Setup!$D$7,MATCH($F194,TaxCode,0),0,1,1))) -> 2676.521739 | N194: =$E194/(1+IF(ISERROR($F194),0,IF(ISNA(MATCH($F194,TaxCode,0)),0,OFFSET(Setup!$D$7,MATCH($F194,TaxCode,0),0,1,1)))+IF(ISERROR($G194),0,IF(ISNA(MATCH($G194,TaxCode,0)),0,OFFSET(Setup!$D$7,MATCH($G194,TaxCode,0),0,1,1))))*IF(ISERROR($G194),0,IF(ISNA(MATCH($G194,TaxCode,0)),0,OFFSET(Setup!$D$7,MATCH($G194,TaxCode,0),0,1,1))) -> 0 | O194: =IF(TaxCount=2,E194-SUM(M194:N194),E194-SUM(M194:M194)) -> 17843.47826 | P194: 2021-01-27T00:03:14 | Q194: -
A195: 2021-01-31 | B195: XY Solutions | C195: Invoice EXP20 | D195: Internet Service Provider | E195: -204.06 | F195: A | G195: E | H195: B1 | I195: IS-380 | J195: 2021-01-31 | K195: W | L195: =SUMIFS(CBIncl,CBBalDate,"<="&($A195+(ROW($A195)/86400)),CBBank,$H195) -> 135376.095 | M195: =$E195/(1+IF(ISERROR($F195),0,IF(ISNA(MATCH($F195,TaxCode,0)),0,OFFSET(Setup!$D$7,MATCH($F195,TaxCode,0),0,1,1)))+IF(ISERROR($G195),0,IF(ISNA(MATCH($G195,TaxCode,0)),0,OFFSET(Setup!$D$7,MATCH($G195,TaxCode,0),0,1,1))))*IF(ISERROR($F195),0,IF(ISNA(MATCH($F195,TaxCode,0)),0,OFFSET(Setup!$D$7,MATCH($F195,TaxCode,0),0,1,1))) -> -26.61652174 | N195: =$E195/(1+IF(ISERROR($F195),0,IF(ISNA(MATCH($F195,TaxCode,0)),0,OFFSET(Setup!$D$7,MATCH($F195,TaxCode,0),0,1,1)))+IF(ISERROR($G195),0,IF(ISNA(MATCH($G195,TaxCode,0)),0,OFFSET(Setup!$D$7,MATCH($G195,TaxCode,0),0,1,1))))*IF(ISERROR($G195),0,IF(ISNA(MATCH($G195,TaxCode,0)),0,OFFSET(Setup!$D$7,MATCH($G195,TaxCode,0),0,1,1))) -> 0 | O195: =IF(TaxCount=2,E195-SUM(M195:N195),E195-SUM(M195:M195)) -> -177.4434783 | P195: 2021-01-31T00:03:15 | Q195: -
A196: 2021-02-02 | B196: IAS Accountants | C196: Invoice | D196: Bookkeeping | E196: -912 | F196: A | G196: E | H196: B1 | I196: IS-305 | J196: 2021-02-02 | K196: W | L196: =SUMIFS(CBIncl,CBBalDate,"<="&($A196+(ROW($A196)/86400)),CBBank,$H196) -> 134464.095 | M196: =$E196/(1+IF(ISERROR($F196),0,IF(ISNA(MATCH($F196,TaxCode,0)),0,OFFSET(Setup!$D$7,MATCH($F196,TaxCode,0),0,1,1)))+IF(ISERROR($G196),0,IF(ISNA(MATCH($G196,TaxCode,0)),0,OFFSET(Setup!$D$7,MATCH($G196,TaxCode,0),0,1,1))))*IF(ISERROR($F196),0,IF(ISNA(MATCH($F196,TaxCode,0)),0,OFFSET(Setup!$D$7,MATCH($F196,TaxCode,0),0,1,1))) -> -118.9565217 | N196: =$E196/(1+IF(ISERROR($F196),0,IF(ISNA(MATCH($F196,TaxCode,0)),0,OFFSET(Setup!$D$7,MATCH($F196,TaxCode,0),0,1,1)))+IF(ISERROR($G196),0,IF(ISNA(MATCH($G196,TaxCode,0)),0,OFFSET(Setup!$D$7,MATCH($G196,TaxCode,0),0,1,1))))*IF(ISERROR($G196),0,IF(ISNA(MATCH($G196,TaxCode,0)),0,OFFSET(Setup!$D$7,MATCH($G196,TaxCode,0),0,1,1))) -> 0 | O196: =IF(TaxCount=2,E196-SUM(M196:N196),E196-SUM(M196:M196)) -> -793.0434783 | P196: 2021-02-02T00:03:16 | Q196: -
A197: 2021-02-05 | B197: Hollard | C197: Debit Order | D197: Insurance | E197: -387.6 | F197: A | G197: E | H197: B1 | I197: IS-340 | J197: 2021-02-05 | K197: =IF(E197>=0,"D","W") -> W | L197: =SUMIFS(CBIncl,CBBalDate,"<="&($A197+(ROW($A197)/86400)),CBBank,$H197) -> 134076.495 | M197: =$E197/(1+IF(ISERROR($F197),0,IF(ISNA(MATCH($F197,TaxCode,0)),0,OFFSET(Setup!$D$7,MATCH($F197,TaxCode,0),0,1,1)))+IF(ISERROR($G197),0,IF(ISNA(MATCH($G197,TaxCode,0)),0,OFFSET(Setup!$D$7,MATCH($G197,TaxCode,0),0,1,1))))*IF(ISERROR($F197),0,IF(ISNA(MATCH($F197,TaxCode,0)),0,OFFSET(Setup!$D$7,MATCH($F197,TaxCode,0),0,1,1))) -> -50.55652174 | N197: =$E197/(1+IF(ISERROR($F197),0,IF(ISNA(MATCH($F197,TaxCode,0)),0,OFFSET(Setup!$D$7,MATCH($F197,TaxCode,0),0,1,1)))+IF(ISERROR($G197),0,IF(ISNA(MATCH($G197,TaxCode,0)),0,OFFSET(Setup!$D$7,MATCH($G197,TaxCode,0),0,1,1))))*IF(ISERROR($G197),0,IF(ISNA(MATCH($G197,TaxCode,0)),0,OFFSET(Setup!$D$7,MATCH($G197,TaxCode,0),0,1,1))) -> 0 | O197: =IF(TaxCount=2,E197-SUM(M197:N197),E197-SUM(M197:M197)) -> -337.0434783 | P197: =IF(ISBLANK($A197)=TRUE,TODAY()+(ROW($A197)/86400),$A197+(ROW($A197)/86400)) -> 2021-02-05T00:03:17 | Q197: =IF(AND(ISBLANK(J197)=FALSE,J197<A197),"E1",IF(AND(ISBLANK(I197)=FALSE,ISNA(VLOOKUP(I197,AccountAll,1,0))),"E2",IF(AND(ISBLANK(H197)=FALSE,ISNA(VLOOKUP(H197,BankCode,1,0))),"E3","-"))) -> -
A198: 2021-02-15 | B198: ABSA | C198: Bank Statement | D198: Service Fees | E198: -57 | F198: A | G198: E | H198: B1 | I198: IS-315 | J198: 2021-02-15 | K198: W | L198: =SUMIFS(CBIncl,CBBalDate,"<="&($A198+(ROW($A198)/86400)),CBBank,$H198) -> 134019.495 | M198: =$E198/(1+IF(ISERROR($F198),0,IF(ISNA(MATCH($F198,TaxCode,0)),0,OFFSET(Setup!$D$7,MATCH($F198,TaxCode,0),0,1,1)))+IF(ISERROR($G198),0,IF(ISNA(MATCH($G198,TaxCode,0)),0,OFFSET(Setup!$D$7,MATCH($G198,TaxCode,0),0,1,1))))*IF(ISERROR($F198),0,IF(ISNA(MATCH($F198,TaxCode,0)),0,OFFSET(Setup!$D$7,MATCH($F198,TaxCode,0),0,1,1))) -> -7.434782609 | N198: =$E198/(1+IF(ISERROR($F198),0,IF(ISNA(MATCH($F198,TaxCode,0)),0,OFFSET(Setup!$D$7,MATCH($F198,TaxCode,0),0,1,1)))+IF(ISERROR($G198),0,IF(ISNA(MATCH($G198,TaxCode,0)),0,OFFSET(Setup!$D$7,MATCH($G198,TaxCode,0),0,1,1))))*IF(ISERROR($G198),0,IF(ISNA(MATCH($G198,TaxCode,0)),0,OFFSET(Setup!$D$7,MATCH($G198,TaxCode,0),0,1,1))) -> 0 | O198: =IF(TaxCount=2,E198-SUM(M198:N198),E198-SUM(M198:M198)) -> -49.56521739 | P198: 2021-02-15T00:03:18 | Q198: -
A199: 2021-02-17 | B199: SPAR | C199: IN1156 | D199: Consumables | E199: -111.72 | F199: A | G199: E | H199: PC | I199: IS-325 | J199: 2021-02-17 | K199: W | L199: =SUMIFS(CBIncl,CBBalDate,"<="&($A199+(ROW($A199)/86400)),CBBank,$H199) -> 1973.827 | M199: =$E199/(1+IF(ISERROR($F199),0,IF(ISNA(MATCH($F199,TaxCode,0)),0,OFFSET(Setup!$D$7,MATCH($F199,TaxCode,0),0,1,1)))+IF(ISERROR($G199),0,IF(ISNA(MATCH($G199,TaxCode,0)),0,OFFSET(Setup!$D$7,MATCH($G199,TaxCode,0),0,1,1))))*IF(ISERROR($F199),0,IF(ISNA(MATCH($F199,TaxCode,0)),0,OFFSET(Setup!$D$7,MATCH($F199,TaxCode,0),0,1,1))) -> -14.57217391 | N199: =$E199/(1+IF(ISERROR($F199),0,IF(ISNA(MATCH($F199,TaxCode,0)),0,OFFSET(Setup!$D$7,MATCH($F199,TaxCode,0),0,1,1)))+IF(ISERROR($G199),0,IF(ISNA(MATCH($G199,TaxCode,0)),0,OFFSET(Setup!$D$7,MATCH($G199,TaxCode,0),0,1,1))))*IF(ISERROR($G199),0,IF(ISNA(MATCH($G199,TaxCode,0)),0,OFFSET(Setup!$D$7,MATCH($G199,TaxCode,0),0,1,1))) -> 0 | O199: =IF(TaxCount=2,E199-SUM(M199:N199),E199-SUM(M199:M199)) -> -97.14782609 | P199: 2021-02-17T00:03:19 | Q199: -
A200: 2021-02-18 | B200: WS Wholesale | C200: INV0075 | D200: Consulting Services | E200: 19365.18 | F200: A | G200: E | H200: B1 | I200: IS-100 | J200: 2021-03-18 | K200: D | L200: =SUMIFS(CBIncl,CBBalDate,"<="&($A200+(ROW($A200)/86400)),CBBank,$H200) -> 153384.675 | M200: =$E200/(1+IF(ISERROR($F200),0,IF(ISNA(MATCH($F200,TaxCode,0)),0,OFFSET(Setup!$D$7,MATCH($F200,TaxCode,0),0,1,1)))+IF(ISERROR($G200),0,IF(ISNA(MATCH($G200,TaxCode,0)),0,OFFSET(Setup!$D$7,MATCH($G200,TaxCode,0),0,1,1))))*IF(ISERROR($F200),0,IF(ISNA(MATCH($F200,TaxCode,0)),0,OFFSET(Setup!$D$7,MATCH($F200,TaxCode,0),0,1,1))) -> 2525.893043 | N200: =$E200/(1+IF(ISERROR($F200),0,IF(ISNA(MATCH($F200,TaxCode,0)),0,OFFSET(Setup!$D$7,MATCH($F200,TaxCode,0),0,1,1)))+IF(ISERROR($G200),0,IF(ISNA(MATCH($G200,TaxCode,0)),0,OFFSET(Setup!$D$7,MATCH($G200,TaxCode,0),0,1,1))))*IF(ISERROR($G200),0,IF(ISNA(MATCH($G200,TaxCode,0)),0,OFFSET(Setup!$D$7,MATCH($G200,TaxCode,0),0,1,1))) -> 0 | O200: =IF(TaxCount=2,E200-SUM(M200:N200),E200-SUM(M200:M200)) -> 16839.28696 | P200: 2021-02-18T00:03:20 | Q200: -
... 10 more rows

Sheet Cashbook (hidden)
A1: =Setup!$C$4 -> Example Company (Pty) Ltd | C1: Start Date | D1: 2020-03-01
A2: Monthly Cashbook Report | C2: Bank Account | E2: =IF(ISBLANK($D$2),"*",$D$2) -> *
A3: =IF(ISBLANK($D$2),"All bank accounts",VLOOKUP($D$2,BanksAll,2,0)) -> All bank accounts | C3: Report Type | D3: All | E3: =IF($D$3="Deposits","D",IF($D$3="Withdrawals","W","*")) -> *
A4: © www.excel-skills.com
A5: Acc No | B5: Account Description | C5: =IF(ISBLANK($D$1)=TRUE,DATE(YEAR(TODAY()),MONTH(TODAY())+1,0),DATE(YEAR($D$1),MONTH($D$1)+1,0)) -> 2020-03-31 | D5: =DATE(YEAR(C5),MONTH(C5)+2,0) -> 2020-04-30 | E5: =DATE(YEAR(D5),MONTH(D5)+2,0) -> 2020-05-31 | F5: 2020-06-30 | G5: 2020-07-31 | H5: 2020-08-31 | I5: 2020-09-30 | J5: 2020-10-31 | K5: 2020-11-30 | L5: 2020-12-31 | M5: 2021-01-31 | N5: 2021-02-28 | O5: Total
A6: IS-100 | B6: Income from Services | C6: =SUMIFS(CBExcl,CBPayDate,">="&DATE(YEAR(C$5),MONTH(C$5),1),CBPayDate,"<="&C$5,CBType,$E$3,CBAccount,$A6,CBBank,$E$2)+IF($A6="BS-TAX1",SUMIFS(CBTax1,CBPayDate,">="&DATE(YEAR(C$5),MONTH(C$5),1),CBPayDate,"<="&C$5,CBType,$E$3,CBBank,$E$2),0)+IF($A6="BS-TAX2",IF(TaxCount=2,SUMIFS(CBTax2,CBPayDate,">="&DATE(YEAR(C$5),MONTH(C$5),1),CBPayDate,"<="&C$5,CBType,$E$3,CBBank,$E$2),0),0) -> 14869.56522 | D6: =SUMIFS(CBExcl,CBPayDate,">="&DATE(YEAR(D$5),MONTH(D$5),1),CBPayDate,"<="&D$5,CBType,$E$3,CBAccount,$A6,CBBank,$E$2)+IF($A6="BS-TAX1",SUMIFS(CBTax1,CBPayDate,">="&DATE(YEAR(D$5),MONTH(D$5),1),CBPayDate,"<="&D$5,CBType,$E$3,CBBank,$E$2),0)+IF($A6="BS-TAX2",IF(TaxCount=2,SUMIFS(CBTax2,CBPayDate,">="&DATE(YEAR(D$5),MONTH(D$5),1),CBPayDate,"<="&D$5,CBType,$E$3,CBBank,$E$2),0),0) -> 62242.01739 | E6: =SUMIFS(CBExcl,CBPayDate,">="&DATE(YEAR(E$5),MONTH(E$5),1),CBPayDate,"<="&E$5,CBType,$E$3,CBAccount,$A6,CBBank,$E$2)+IF($A6="BS-TAX1",SUMIFS(CBTax1,CBPayDate,">="&DATE(YEAR(E$5),MONTH(E$5),1),CBPayDate,"<="&E$5,CBType,$E$3,CBBank,$E$2),0)+IF($A6="BS-TAX2",IF(TaxCount=2,SUMIFS(CBTax2,CBPayDate,">="&DATE(YEAR(E$5),MONTH(E$5),1),CBPayDate,"<="&E$5,CBType,$E$3,CBBank,$E$2),0),0) -> 14869.56522 | F6: =SUMIFS(CBExcl,CBPayDate,">="&DATE(YEAR(F$5),MONTH(F$5),1),CBPayDate,"<="&F$5,CBType,$E$3,CBAccount,$A6,CBBank,$E$2)+IF($A6="BS-TAX1",SUMIFS(CBTax1,CBPayDate,">="&DATE(YEAR(F$5),MONTH(F$5),1),CBPayDate,"<="&F$5,CBType,$E$3,CBBank,$E$2),0)+IF($A6="BS-TAX2",IF(TaxCount=2,SUMIFS(CBTax2,CBPayDate,">="&DATE(YEAR(F$5),MONTH(F$5),1),CBPayDate,"<="&F$5,CBType,$E$3,CBBank,$E$2),0),0) -> 17248.69565 | G6: =SUMIFS(CBExcl,CBPayDate,">="&DATE(YEAR(G$5),MONTH(G$5),1),CBPayDate,"<="&G$5,CBType,$E$3,CBAccount,$A6,CBBank,$E$2)+IF($A6="BS-TAX1",SUMIFS(CBTax1,CBPayDate,">="&DATE(YEAR(G$5),MONTH(G$5),1),CBPayDate,"<="&G$5,CBType,$E$3,CBBank,$E$2),0)+IF($A6="BS-TAX2",IF(TaxCount=2,SUMIFS(CBTax2,CBPayDate,">="&DATE(YEAR(G$5),MONTH(G$5),1),CBPayDate,"<="&G$5,CBType,$E$3,CBBank,$E$2),0),0) -> 29045.21739 | H6: =SUMIFS(CBExcl,CBPayDate,">="&DATE(YEAR(H$5),MONTH(H$5),1),CBPayDate,"<="&H$5,CBType,$E$3,CBAccount,$A6,CBBank,$E$2)+IF($A6="BS-TAX1",SUMIFS(CBTax1,CBPayDate,">="&DATE(YEAR(H$5),MONTH(H$5),1),CBPayDate,"<="&H$5,CBType,$E$3,CBBank,$E$2),0)+IF($A6="BS-TAX2",IF(TaxCount=2,SUMIFS(CBTax2,CBPayDate,">="&DATE(YEAR(H$5),MONTH(H$5),1),CBPayDate,"<="&H$5,CBType,$E$3,CBBank,$E$2),0),0) -> 31721.73913 | I6: =SUMIFS(CBExcl,CBPayDate,">="&DATE(YEAR(I$5),MONTH(I$5),1),CBPayDate,"<="&I$5,CBType,$E$3,CBAccount,$A6,CBBank,$E$2)+IF($A6="BS-TAX1",SUMIFS(CBTax1,CBPayDate,">="&DATE(YEAR(I$5),MONTH(I$5),1),CBPayDate,"<="&I$5,CBType,$E$3,CBBank,$E$2),0)+IF($A6="BS-TAX2",IF(TaxCount=2,SUMIFS(CBTax2,CBPayDate,">="&DATE(YEAR(I$5),MONTH(I$5),1),CBPayDate,"<="&I$5,CBType,$E$3,CBBank,$E$2),0),0) -> 34695.65217 | J6: =SUMIFS(CBExcl,CBPayDate,">="&DATE(YEAR(J$5),MONTH(J$5),1),CBPayDate,"<="&J$5,CBType,$E$3,CBAccount,$A6,CBBank,$E$2)+IF($A6="BS-TAX1",SUMIFS(CBTax1,CBPayDate,">="&DATE(YEAR(J$5),MONTH(J$5),1),CBPayDate,"<="&J$5,CBType,$E$3,CBBank,$E$2),0)+IF($A6="BS-TAX2",IF(TaxCount=2,SUMIFS(CBTax2,CBPayDate,">="&DATE(YEAR(J$5),MONTH(J$5),1),CBPayDate,"<="&J$5,CBType,$E$3,CBBank,$E$2),0),0) -> 31226.08696 | K6: =SUMIFS(CBExcl,CBPayDate,">="&DATE(YEAR(K$5),MONTH(K$5),1),CBPayDate,"<="&K$5,CBType,$E$3,CBAccount,$A6,CBBank,$E$2)+IF($A6="BS-TAX1",SUMIFS(CBTax1,CBPayDate,">="&DATE(YEAR(K$5),MONTH(K$5),1),CBPayDate,"<="&K$5,CBType,$E$3,CBBank,$E$2),0)+IF($A6="BS-TAX2",IF(TaxCount=2,SUMIFS(CBTax2,CBPayDate,">="&DATE(YEAR(K$5),MONTH(K$5),1),CBPayDate,"<="&K$5,CBType,$E$3,CBBank,$E$2),0),0) -> 9566.086957 | L6: =SUMIFS(CBExcl,CBPayDate,">="&DATE(YEAR(L$5),MONTH(L$5),1),CBPayDate,"<="&L$5,CBType,$E$3,CBAccount,$A6,CBBank,$E$2)+IF($A6="BS-TAX1",SUMIFS(CBTax1,CBPayDate,">="&DATE(YEAR(L$5),MONTH(L$5),1),CBPayDate,"<="&L$5,CBType,$E$3,CBBank,$E$2),0)+IF($A6="BS-TAX2",IF(TaxCount=2,SUMIFS(CBTax2,CBPayDate,">="&DATE(YEAR(L$5),MONTH(L$5),1),CBPayDate,"<="&L$5,CBType,$E$3,CBBank,$E$2),0),0) -> 29640 | M6: =SUMIFS(CBExcl,CBPayDate,">="&DATE(YEAR(M$5),MONTH(M$5),1),CBPayDate,"<="&M$5,CBType,$E$3,CBAccount,$A6,CBBank,$E$2)+IF($A6="BS-TAX1",SUMIFS(CBTax1,CBPayDate,">="&DATE(YEAR(M$5),MONTH(M$5),1),CBPayDate,"<="&M$5,CBType,$E$3,CBBank,$E$2),0)+IF($A6="BS-TAX2",IF(TaxCount=2,SUMIFS(CBTax2,CBPayDate,">="&DATE(YEAR(M$5),MONTH(M$5),1),CBPayDate,"<="&M$5,CBType,$E$3,CBBank,$E$2),0),0) -> 55332.62609 | N6: =SUMIFS(CBExcl,CBPayDate,">="&DATE(YEAR(N$5),MONTH(N$5),1),CBPayDate,"<="&N$5,CBType,$E$3,CBAccount,$A6,CBBank,$E$2)+IF($A6="BS-TAX1",SUMIFS(CBTax1,CBPayDate,">="&DATE(YEAR(N$5),MONTH(N$5),1),CBPayDate,"<="&N$5,CBType,$E$3,CBBank,$E$2),0)+IF($A6="BS-TAX2",IF(TaxCount=2,SUMIFS(CBTax2,CBPayDate,">="&DATE(YEAR(N$5),MONTH(N$5),1),CBPayDate,"<="&N$5,CBType,$E$3,CBBank,$E$2),0),0) -> 16839.28696 | O6: =SUM(C6:N6) -> 347296.5391
A7: IS-200 | B7: Other Income | C7: =SUMIFS(CBExcl,CBPayDate,">="&DATE(YEAR(C$5),MONTH(C$5),1),CBPayDate,"<="&C$5,CBType,$E$3,CBAccount,$A7,CBBank,$E$2)+IF($A7="BS-TAX1",SUMIFS(CBTax1,CBPayDate,">="&DATE(YEAR(C$5),MONTH(C$5),1),CBPayDate,"<="&C$5,CBType,$E$3,CBBank,$E$2),0)+IF($A7="BS-TAX2",IF(TaxCount=2,SUMIFS(CBTax2,CBPayDate,">="&DATE(YEAR(C$5),MONTH(C$5),1),CBPayDate,"<="&C$5,CBType,$E$3,CBBank,$E$2),0),0) -> 0 | D7: =SUMIFS(CBExcl,CBPayDate,">="&DATE(YEAR(D$5),MONTH(D$5),1),CBPayDate,"<="&D$5,CBType,$E$3,CBAccount,$A7,CBBank,$E$2)+IF($A7="BS-TAX1",SUMIFS(CBTax1,CBPayDate,">="&DATE(YEAR(D$5),MONTH(D$5),1),CBPayDate,"<="&D$5,CBType,$E$3,CBBank,$E$2),0)+IF($A7="BS-TAX2",IF(TaxCount=2,SUMIFS(CBTax2,CBPayDate,">="&DATE(YEAR(D$5),MONTH(D$5),1),CBPayDate,"<="&D$5,CBType,$E$3,CBBank,$E$2),0),0) -> 0 | E7: =SUMIFS(CBExcl,CBPayDate,">="&DATE(YEAR(E$5),MONTH(E$5),1),CBPayDate,"<="&E$5,CBType,$E$3,CBAccount,$A7,CBBank,$E$2)+IF($A7="BS-TAX1",SUMIFS(CBTax1,CBPayDate,">="&DATE(YEAR(E$5),MONTH(E$5),1),CBPayDate,"<="&E$5,CBType,$E$3,CBBank,$E$2),0)+IF($A7="BS-TAX2",IF(TaxCount=2,SUMIFS(CBTax2,CBPayDate,">="&DATE(YEAR(E$5),MONTH(E$5),1),CBPayDate,"<="&E$5,CBType,$E$3,CBBank,$E$2),0),0) -> 5184.521739 | F7: =SUMIFS(CBExcl,CBPayDate,">="&DATE(YEAR(F$5),MONTH(F$5),1),CBPayDate,"<="&F$5,CBType,$E$3,CBAccount,$A7,CBBank,$E$2)+IF($A7="BS-TAX1",SUMIFS(CBTax1,CBPayDate,">="&DATE(YEAR(F$5),MONTH(F$5),1),CBPayDate,"<="&F$5,CBType,$E$3,CBBank,$E$2),0)+IF($A7="BS-TAX2",IF(TaxCount=2,SUMIFS(CBTax2,CBPayDate,">="&DATE(YEAR(F$5),MONTH(F$5),1),CBPayDate,"<="&F$5,CBType,$E$3,CBBank,$E$2),0),0) -> 0 | G7: =SUMIFS(CBExcl,CBPayDate,">="&DATE(YEAR(G$5),MONTH(G$5),1),CBPayDate,"<="&G$5,CBType,$E$3,CBAccount,$A7,CBBank,$E$2)+IF($A7="BS-TAX1",SUMIFS(CBTax1,CBPayDate,">="&DATE(YEAR(G$5),MONTH(G$5),1),CBPayDate,"<="&G$5,CBType,$E$3,CBBank,$E$2),0)+IF($A7="BS-TAX2",IF(TaxCount=2,SUMIFS(CBTax2,CBPayDate,">="&DATE(YEAR(G$5),MONTH(G$5),1),CBPayDate,"<="&G$5,CBType,$E$3,CBBank,$E$2),0),0) -> 0 | H7: =SUMIFS(CBExcl,CBPayDate,">="&DATE(YEAR(H$5),MONTH(H$5),1),CBPayDate,"<="&H$5,CBType,$E$3,CBAccount,$A7,CBBank,$E$2)+IF($A7="BS-TAX1",SUMIFS(CBTax1,CBPayDate,">="&DATE(YEAR(H$5),MONTH(H$5),1),CBPayDate,"<="&H$5,CBType,$E$3,CBBank,$E$2),0)+IF($A7="BS-TAX2",IF(TaxCount=2,SUMIFS(CBTax2,CBPayDate,">="&DATE(YEAR(H$5),MONTH(H$5),1),CBPayDate,"<="&H$5,CBType,$E$3,CBBank,$E$2),0),0) -> 0 | I7: =SUMIFS(CBExcl,CBPayDate,">="&DATE(YEAR(I$5),MONTH(I$5),1),CBPayDate,"<="&I$5,CBType,$E$3,CBAccount,$A7,CBBank,$E$2)+IF($A7="BS-TAX1",SUMIFS(CBTax1,CBPayDate,">="&DATE(YEAR(I$5),MONTH(I$5),1),CBPayDate,"<="&I$5,CBType,$E$3,CBBank,$E$2),0)+IF($A7="BS-TAX2",IF(TaxCount=2,SUMIFS(CBTax2,CBPayDate,">="&DATE(YEAR(I$5),MONTH(I$5),1),CBPayDate,"<="&I$5,CBType,$E$3,CBBank,$E$2),0),0) -> 0 | J7: =SUMIFS(CBExcl,CBPayDate,">="&DATE(YEAR(J$5),MONTH(J$5),1),CBPayDate,"<="&J$5,CBType,$E$3,CBAccount,$A7,CBBank,$E$2)+IF($A7="BS-TAX1",SUMIFS(CBTax1,CBPayDate,">="&DATE(YEAR(J$5),MONTH(J$5),1),CBPayDate,"<="&J$5,CBType,$E$3,CBBank,$E$2),0)+IF($A7="BS-TAX2",IF(TaxCount=2,SUMIFS(CBTax2,CBPayDate,">="&DATE(YEAR(J$5),MONTH(J$5),1),CBPayDate,"<="&J$5,CBType,$E$3,CBBank,$E$2),0),0) -> 0 | K7: =SUMIFS(CBExcl,CBPayDate,">="&DATE(YEAR(K$5),MONTH(K$5),1),CBPayDate,"<="&K$5,CBType,$E$3,CBAccount,$A7,CBBank,$E$2)+IF($A7="BS-TAX1",SUMIFS(CBTax1,CBPayDate,">="&DATE(YEAR(K$5),MONTH(K$5),1),CBPayDate,"<="&K$5,CBType,$E$3,CBBank,$E$2),0)+IF($A7="BS-TAX2",IF(TaxCount=2,SUMIFS(CBTax2,CBPayDate,">="&DATE(YEAR(K$5),MONTH(K$5),1),CBPayDate,"<="&K$5,CBType,$E$3,CBBank,$E$2),0),0) -> 0 | L7: =SUMIFS(CBExcl,CBPayDate,">="&DATE(YEAR(L$5),MONTH(L$5),1),CBPayDate,"<="&L$5,CBType,$E$3,CBAccount,$A7,CBBank,$E$2)+IF($A7="BS-TAX1",SUMIFS(CBTax1,CBPayDate,">="&DATE(YEAR(L$5),MONTH(L$5),1),CBPayDate,"<="&L$5,CBType,$E$3,CBBank,$E$2),0)+IF($A7="BS-TAX2",IF(TaxCount=2,SUMIFS(CBTax2,CBPayDate,">="&DATE(YEAR(L$5),MONTH(L$5),1),CBPayDate,"<="&L$5,CBType,$E$3,CBBank,$E$2),0),0) -> 0 | M7: =SUMIFS(CBExcl,CBPayDate,">="&DATE(YEAR(M$5),MONTH(M$5),1),CBPayDate,"<="&M$5,CBType,$E$3,CBAccount,$A7,CBBank,$E$2)+IF($A7="BS-TAX1",SUMIFS(CBTax1,CBPayDate,">="&DATE(YEAR(M$5),MONTH(M$5),1),CBPayDate,"<="&M$5,CBType,$E$3,CBBank,$E$2),0)+IF($A7="BS-TAX2",IF(TaxCount=2,SUMIFS(CBTax2,CBPayDate,">="&DATE(YEAR(M$5),MONTH(M$5),1),CBPayDate,"<="&M$5,CBType,$E$3,CBBank,$E$2),0),0) -> 0 | N7: =SUMIFS(CBExcl,CBPayDate,">="&DATE(YEAR(N$5),MONTH(N$5),1),CBPayDate,"<="&N$5,CBType,$E$3,CBAccount,$A7,CBBank,$E$2)+IF($A7="BS-TAX1",SUMIFS(CBTax1,CBPayDate,">="&DATE(YEAR(N$5),MONTH(N$5),1),CBPayDate,"<="&N$5,CBType,$E$3,CBBank,$E$2),0)+IF($A7="BS-TAX2",IF(TaxCount=2,SUMIFS(CBTax2,CBPayDate,">="&DATE(YEAR(N$5),MONTH(N$5),1),CBPayDate,"<="&N$5,CBType,$E$3,CBBank,$E$2),0),0) -> 0 | O7: 5184.521739
A8: IS-305 | B8: Accounting Fees | C8: =SUMIFS(CBExcl,CBPayDate,">="&DATE(YEAR(C$5),MONTH(C$5),1),CBPayDate,"<="&C$5,CBType,$E$3,CBAccount,$A8,CBBank,$E$2)+IF($A8="BS-TAX1",SUMIFS(CBTax1,CBPayDate,">="&DATE(YEAR(C$5),MONTH(C$5),1),CBPayDate,"<="&C$5,CBType,$E$3,CBBank,$E$2),0)+IF($A8="BS-TAX2",IF(TaxCount=2,SUMIFS(CBTax2,CBPayDate,">="&DATE(YEAR(C$5),MONTH(C$5),1),CBPayDate,"<="&C$5,CBType,$E$3,CBBank,$E$2),0),0) -> 0 | D8: =SUMIFS(CBExcl,CBPayDate,">="&DATE(YEAR(D$5),MONTH(D$5),1),CBPayDate,"<="&D$5,CBType,$E$3,CBAccount,$A8,CBBank,$E$2)+IF($A8="BS-TAX1",SUMIFS(CBTax1,CBPayDate,">="&DATE(YEAR(D$5),MONTH(D$5),1),CBPayDate,"<="&D$5,CBType,$E$3,CBBank,$E$2),0)+IF($A8="BS-TAX2",IF(TaxCount=2,SUMIFS(CBTax2,CBPayDate,">="&DATE(YEAR(D$5),MONTH(D$5),1),CBPayDate,"<="&D$5,CBType,$E$3,CBBank,$E$2),0),0) -> -793.0434783 | E8: =SUMIFS(CBExcl,CBPayDate,">="&DATE(YEAR(E$5),MONTH(E$5),1),CBPayDate,"<="&E$5,CBType,$E$3,CBAccount,$A8,CBBank,$E$2)+IF($A8="BS-TAX1",SUMIFS(CBTax1,CBPayDate,">="&DATE(YEAR(E$5),MONTH(E$5),1),CBPayDate,"<="&E$5,CBType,$E$3,CBBank,$E$2),0)+IF($A8="BS-TAX2",IF(TaxCount=2,SUMIFS(CBTax2,CBPayDate,">="&DATE(YEAR(E$5),MONTH(E$5),1),CBPayDate,"<="&E$5,CBType,$E$3,CBBank,$E$2),0),0) -> -793.0434783 | F8: =SUMIFS(CBExcl,CBPayDate,">="&DATE(YEAR(F$5),MONTH(F$5),1),CBPayDate,"<="&F$5,CBType,$E$3,CBAccount,$A8,CBBank,$E$2)+IF($A8="BS-TAX1",SUMIFS(CBTax1,CBPayDate,">="&DATE(YEAR(F$5),MONTH(F$5),1),CBPayDate,"<="&F$5,CBType,$E$3,CBBank,$E$2),0)+IF($A8="BS-TAX2",IF(TaxCount=2,SUMIFS(CBTax2,CBPayDate,">="&DATE(YEAR(F$5),MONTH(F$5),1),CBPayDate,"<="&F$5,CBType,$E$3,CBBank,$E$2),0),0) -> -793.0434783 | G8: =SUMIFS(CBExcl,CBPayDate,">="&DATE(YEAR(G$5),MONTH(G$5),1),CBPayDate,"<="&G$5,CBType,$E$3,CBAccount,$A8,CBBank,$E$2)+IF($A8="BS-TAX1",SUMIFS(CBTax1,CBPayDate,">="&DATE(YEAR(G$5),MONTH(G$5),1),CBPayDate,"<="&G$5,CBType,$E$3,CBBank,$E$2),0)+IF($A8="BS-TAX2",IF(TaxCount=2,SUMIFS(CBTax2,CBPayDate,">="&DATE(YEAR(G$5),MONTH(G$5),1),CBPayDate,"<="&G$5,CBType,$E$3,CBBank,$E$2),0),0) -> -793.0434783 | H8: =SUMIFS(CBExcl,CBPayDate,">="&DATE(YEAR(H$5),MONTH(H$5),1),CBPayDate,"<="&H$5,CBType,$E$3,CBAccount,$A8,CBBank,$E$2)+IF($A8="BS-TAX1",SUMIFS(CBTax1,CBPayDate,">="&DATE(YEAR(H$5),MONTH(H$5),1),CBPayDate,"<="&H$5,CBType,$E$3,CBBank,$E$2),0)+IF($A8="BS-TAX2",IF(TaxCount=2,SUMIFS(CBTax2,CBPayDate,">="&DATE(YEAR(H$5),MONTH(H$5),1),CBPayDate,"<="&H$5,CBType,$E$3,CBBank,$E$2),0),0) -> -793.0434783 | I8: =SUMIFS(CBExcl,CBPayDate,">="&DATE(YEAR(I$5),MONTH(I$5),1),CBPayDate,"<="&I$5,CBType,$E$3,CBAccount,$A8,CBBank,$E$2)+IF($A8="BS-TAX1",SUMIFS(CBTax1,CBPayDate,">="&DATE(YEAR(I$5),MONTH(I$5),1),CBPayDate,"<="&I$5,CBType,$E$3,CBBank,$E$2),0)+IF($A8="BS-TAX2",IF(TaxCount=2,SUMIFS(CBTax2,CBPayDate,">="&DATE(YEAR(I$5),MONTH(I$5),1),CBPayDate,"<="&I$5,CBType,$E$3,CBBank,$E$2),0),0) -> -793.0434783 | J8: =SUMIFS(CBExcl,CBPayDate,">="&DATE(YEAR(J$5),MONTH(J$5),1),CBPayDate,"<="&J$5,CBType,$E$3,CBAccount,$A8,CBBank,$E$2)+IF($A8="BS-TAX1",SUMIFS(CBTax1,CBPayDate,">="&DATE(YEAR(J$5),MONTH(J$5),1),CBPayDate,"<="&J$5,CBType,$E$3,CBBank,$E$2),0)+IF($A8="BS-TAX2",IF(TaxCount=2,SUMIFS(CBTax2,CBPayDate,">="&DATE(YEAR(J$5),MONTH(J$5),1),CBPayDate,"<="&J$5,CBType,$E$3,CBBank,$E$2),0),0) -> -793.0434783 | K8: =SUMIFS(CBExcl,CBPayDate,">="&DATE(YEAR(K$5),MONTH(K$5),1),CBPayDate,"<="&K$5,CBType,$E$3,CBAccount,$A8,CBBank,$E$2)+IF($A8="BS-TAX1",SUMIFS(CBTax1,CBPayDate,">="&DATE(YEAR(K$5),MONTH(K$5),1),CBPayDate,"<="&K$5,CBType,$E$3,CBBank,$E$2),0)+IF($A8="BS-TAX2",IF(TaxCount=2,SUMIFS(CBTax2,CBPayDate,">="&DATE(YEAR(K$5),MONTH(K$5),1),CBPayDate,"<="&K$5,CBType,$E$3,CBBank,$E$2),0),0) -> -793.0434783 | L8: =SUMIFS(CBExcl,CBPayDate,">="&DATE(YEAR(L$5),MONTH(L$5),1),CBPayDate,"<="&L$5,CBType,$E$3,CBAccount,$A8,CBBank,$E$2)+IF($A8="BS-TAX1",SUMIFS(CBTax1,CBPayDate,">="&DATE(YEAR(L$5),MONTH(L$5),1),CBPayDate,"<="&L$5,CBType,$E$3,CBBank,$E$2),0)+IF($A8="BS-TAX2",IF(TaxCount=2,SUMIFS(CBTax2,CBPayDate,">="&DATE(YEAR(L$5),MONTH(L$5),1),CBPayDate,"<="&L$5,CBType,$E$3,CBBank,$E$2),0),0) -> -793.0434783 | M8: =SUMIFS(CBExcl,CBPayDate,">="&DATE(YEAR(M$5),MONTH(M$5),1),CBPayDate,"<="&M$5,CBType,$E$3,CBAccount,$A8,CBBank,$E$2)+IF($A8="BS-TAX1",SUMIFS(CBTax1,CBPayDate,">="&DATE(YEAR(M$5),MONTH(M$5),1),CBPayDate,"<="&M$5,CBType,$E$3,CBBank,$E$2),0)+IF($A8="BS-TAX2",IF(TaxCount=2,SUMIFS(CBTax2,CBPayDate,">="&DATE(YEAR(M$5),MONTH(M$5),1),CBPayDate,"<="&M$5,CBType,$E$3,CBBank,$E$2),0),0) -> -793.0434783 | N8: =SUMIFS(CBExcl,CBPayDate,">="&DATE(YEAR(N$5),MONTH(N$5),1),CBPayDate,"<="&N$5,CBType,$E$3,CBAccount,$A8,CBBank,$E$2)+IF($A8="BS-TAX1",SUMIFS(CBTax1,CBPayDate,">="&DATE(YEAR(N$5),MONTH(N$5),1),CBPayDate,"<="&N$5,CBType,$E$3,CBBank,$E$2),0)+IF($A8="BS-TAX2",IF(TaxCount=2,SUMIFS(CBTax2,CBPayDate,">="&DATE(YEAR(N$5),MONTH(N$5),1),CBPayDate,"<="&N$5,CBType,$E$3,CBBank,$E$2),0),0) -> -793.0434783 | O8: -8723.478261
A9: IS-310 | B9: Advertising & Marketing | C9: =SUMIFS(CBExcl,CBPayDate,">="&DATE(YEAR(C$5),MONTH(C$5),1),CBPayDate,"<="&C$5,CBType,$E$3,CBAccount,$A9,CBBank,$E$2)+IF($A9="BS-TAX1",SUMIFS(CBTax1,CBPayDate,">="&DATE(YEAR(C$5),MONTH(C$5),1),CBPayDate,"<="&C$5,CBType,$E$3,CBBank,$E$2),0)+IF($A9="BS-TAX2",IF(TaxCount=2,SUMIFS(CBTax2,CBPayDate,">="&DATE(YEAR(C$5),MONTH(C$5),1),CBPayDate,"<="&C$5,CBType,$E$3,CBBank,$E$2),0),0) -> 0 | D9: =SUMIFS(CBExcl,CBPayDate,">="&DATE(YEAR(D$5),MONTH(D$5),1),CBPayDate,"<="&D$5,CBType,$E$3,CBAccount,$A9,CBBank,$E$2)+IF($A9="BS-TAX1",SUMIFS(CBTax1,CBPayDate,">="&DATE(YEAR(D$5),MONTH(D$5),1),CBPayDate,"<="&D$5,CBType,$E$3,CBBank,$E$2),0)+IF($A9="BS-TAX2",IF(TaxCount=2,SUMIFS(CBTax2,CBPayDate,">="&DATE(YEAR(D$5),MONTH(D$5),1),CBPayDate,"<="&D$5,CBType,$E$3,CBBank,$E$2),0),0) -> 0 | E9: =SUMIFS(CBExcl,CBPayDate,">="&DATE(YEAR(E$5),MONTH(E$5),1),CBPayDate,"<="&E$5,CBType,$E$3,CBAccount,$A9,CBBank,$E$2)+IF($A9="BS-TAX1",SUMIFS(CBTax1,CBPayDate,">="&DATE(YEAR(E$5),MONTH(E$5),1),CBPayDate,"<="&E$5,CBType,$E$3,CBBank,$E$2),0)+IF($A9="BS-TAX2",IF(TaxCount=2,SUMIFS(CBTax2,CBPayDate,">="&DATE(YEAR(E$5),MONTH(E$5),1),CBPayDate,"<="&E$5,CBType,$E$3,CBBank,$E$2),0),0) -> 0 | F9: =SUMIFS(CBExcl,CBPayDate,">="&DATE(YEAR(F$5),MONTH(F$5),1),CBPayDate,"<="&F$5,CBType,$E$3,CBAccount,$A9,CBBank,$E$2)+IF($A9="BS-TAX1",SUMIFS(CBTax1,CBPayDate,">="&DATE(YEAR(F$5),MONTH(F$5),1),CBPayDate,"<="&F$5,CBType,$E$3,CBBank,$E$2),0)+IF($A9="BS-TAX2",IF(TaxCount=2,SUMIFS(CBTax2,CBPayDate,">="&DATE(YEAR(F$5),MONTH(F$5),1),CBPayDate,"<="&F$5,CBType,$E$3,CBBank,$E$2),0),0) -> 0 | G9: =SUMIFS(CBExcl,CBPayDate,">="&DATE(YEAR(G$5),MONTH(G$5),1),CBPayDate,"<="&G$5,CBType,$E$3,CBAccount,$A9,CBBank,$E$2)+IF($A9="BS-TAX1",SUMIFS(CBTax1,CBPayDate,">="&DATE(YEAR(G$5),MONTH(G$5),1),CBPayDate,"<="&G$5,CBType,$E$3,CBBank,$E$2),0)+IF($A9="BS-TAX2",IF(TaxCount=2,SUMIFS(CBTax2,CBPayDate,">="&DATE(YEAR(G$5),MONTH(G$5),1),CBPayDate,"<="&G$5,CBType,$E$3,CBBank,$E$2),0),0) -> 0 | H9: =SUMIFS(CBExcl,CBPayDate,">="&DATE(YEAR(H$5),MONTH(H$5),1),CBPayDate,"<="&H$5,CBType,$E$3,CBAccount,$A9,CBBank,$E$2)+IF($A9="BS-TAX1",SUMIFS(CBTax1,CBPayDate,">="&DATE(YEAR(H$5),MONTH(H$5),1),CBPayDate,"<="&H$5,CBType,$E$3,CBBank,$E$2),0)+IF($A9="BS-TAX2",IF(TaxCount=2,SUMIFS(CBTax2,CBPayDate,">="&DATE(YEAR(H$5),MONTH(H$5),1),CBPayDate,"<="&H$5,CBType,$E$3,CBBank,$E$2),0),0) -> 0 | I9: =SUMIFS(CBExcl,CBPayDate,">="&DATE(YEAR(I$5),MONTH(I$5),1),CBPayDate,"<="&I$5,CBType,$E$3,CBAccount,$A9,CBBank,$E$2)+IF($A9="BS-TAX1",SUMIFS(CBTax1,CBPayDate,">="&DATE(YEAR(I$5),MONTH(I$5),1),CBPayDate,"<="&I$5,CBType,$E$3,CBBank,$E$2),0)+IF($A9="BS-TAX2",IF(TaxCount=2,SUMIFS(CBTax2,CBPayDate,">="&DATE(YEAR(I$5),MONTH(I$5),1),CBPayDate,"<="&I$5,CBType,$E$3,CBBank,$E$2),0),0) -> 0 | J9: =SUMIFS(CBExcl,CBPayDate,">="&DATE(YEAR(J$5),MONTH(J$5),1),CBPayDate,"<="&J$5,CBType,$E$3,CBAccount,$A9,CBBank,$E$2)+IF($A9="BS-TAX1",SUMIFS(CBTax1,CBPayDate,">="&DATE(YEAR(J$5),MONTH(J$5),1),CBPayDate,"<="&J$5,CBType,$E$3,CBBank,$E$2),0)+IF($A9="BS-TAX2",IF(TaxCount=2,SUMIFS(CBTax2,CBPayDate,">="&DATE(YEAR(J$5),MONTH(J$5),1),CBPayDate,"<="&J$5,CBType,$E$3,CBBank,$E$2),0),0) -> 0 | K9: =SUMIFS(CBExcl,CBPayDate,">="&DATE(YEAR(K$5),MONTH(K$5),1),CBPayDate,"<="&K$5,CBType,$E$3,CBAccount,$A9,CBBank,$E$2)+IF($A9="BS-TAX1",SUMIFS(CBTax1,CBPayDate,">="&DATE(YEAR(K$5),MONTH(K$5),1),CBPayDate,"<="&K$5,CBType,$E$3,CBBank,$E$2),0)+IF($A9="BS-TAX2",IF(TaxCount=2,SUMIFS(CBTax2,CBPayDate,">="&DATE(YEAR(K$5),MONTH(K$5),1),CBPayDate,"<="&K$5,CBType,$E$3,CBBank,$E$2),0),0) -> 0 | L9: =SUMIFS(CBExcl,CBPayDate,">="&DATE(YEAR(L$5),MONTH(L$5),1),CBPayDate,"<="&L$5,CBType,$E$3,CBAccount,$A9,CBBank,$E$2)+IF($A9="BS-TAX1",SUMIFS(CBTax1,CBPayDate,">="&DATE(YEAR(L$5),MONTH(L$5),1),CBPayDate,"<="&L$5,CBType,$E$3,CBBank,$E$2),0)+IF($A9="BS-TAX2",IF(TaxCount=2,SUMIFS(CBTax2,CBPayDate,">="&DATE(YEAR(L$5),MONTH(L$5),1),CBPayDate,"<="&L$5,CBType,$E$3,CBBank,$E$2),0),0) -> 0 | M9: =SUMIFS(CBExcl,CBPayDate,">="&DATE(YEAR(M$5),MONTH(M$5),1),CBPayDate,"<="&M$5,CBType,$E$3,CBAccount,$A9,CBBank,$E$2)+IF($A9="BS-TAX1",SUMIFS(CBTax1,CBPayDate,">="&DATE(YEAR(M$5),MONTH(M$5),1),CBPayDate,"<="&M$5,CBType,$E$3,CBBank,$E$2),0)+IF($A9="BS-TAX2",IF(TaxCount=2,SUMIFS(CBTax2,CBPayDate,">="&DATE(YEAR(M$5),MONTH(M$5),1),CBPayDate,"<="&M$5,CBType,$E$3,CBBank,$E$2),0),0) -> 0 | N9: =SUMIFS(CBExcl,CBPayDate,">="&DATE(YEAR(N$5),MONTH(N$5),1),CBPayDate,"<="&N$5,CBType,$E$3,CBAccount,$A9,CBBank,$E$2)+IF($A9="BS-TAX1",SUMIFS(CBTax1,CBPayDate,">="&DATE(YEAR(N$5),MONTH(N$5),1),CBPayDate,"<="&N$5,CBType,$E$3,CBBank,$E$2),0)+IF($A9="BS-TAX2",IF(TaxCount=2,SUMIFS(CBTax2,CBPayDate,">="&DATE(YEAR(N$5),MONTH(N$5),1),CBPayDate,"<="&N$5,CBType,$E$3,CBBank,$E$2),0),0) -> 0 | O9: 0
A10: IS-315 | B10: Bank Charges | C10: =SUMIFS(CBExcl,CBPayDate,">="&DATE(YEAR(C$5),MONTH(C$5),1),CBPayDate,"<="&C$5,CBType,$E$3,CBAccount,$A10,CBBank,$E$2)+IF($A10="BS-TAX1",SUMIFS(CBTax1,CBPayDate,">="&DATE(YEAR(C$5),MONTH(C$5),1),CBPayDate,"<="&C$5,CBType,$E$3,CBBank,$E$2),0)+IF($A10="BS-TAX2",IF(TaxCount=2,SUMIFS(CBTax2,CBPayDate,">="&DATE(YEAR(C$5),MONTH(C$5),1),CBPayDate,"<="&C$5,CBType,$E$3,CBBank,$E$2),0),0) -> -49.56521739 | D10: =SUMIFS(CBExcl,CBPayDate,">="&DATE(YEAR(D$5),MONTH(D$5),1),CBPayDate,"<="&D$5,CBType,$E$3,CBAccount,$A10,CBBank,$E$2)+IF($A10="BS-TAX1",SUMIFS(CBTax1,CBPayDate,">="&DATE(YEAR(D$5),MONTH(D$5),1),CBPayDate,"<="&D$5,CBType,$E$3,CBBank,$E$2),0)+IF($A10="BS-TAX2",IF(TaxCount=2,SUMIFS(CBTax2,CBPayDate,">="&DATE(YEAR(D$5),MONTH(D$5),1),CBPayDate,"<="&D$5,CBType,$E$3,CBBank,$E$2),0),0) -> -49.56521739 | E10: =SUMIFS(CBExcl,CBPayDate,">="&DATE(YEAR(E$5),MONTH(E$5),1),CBPayDate,"<="&E$5,CBType,$E$3,CBAccount,$A10,CBBank,$E$2)+IF($A10="BS-TAX1",SUMIFS(CBTax1,CBPayDate,">="&DATE(YEAR(E$5),MONTH(E$5),1),CBPayDate,"<="&E$5,CBType,$E$3,CBBank,$E$2),0)+IF($A10="BS-TAX2",IF(TaxCount=2,SUMIFS(CBTax2,CBPayDate,">="&DATE(YEAR(E$5),MONTH(E$5),1),CBPayDate,"<="&E$5,CBType,$E$3,CBBank,$E$2),0),0) -> -49.56521739 | F10: =SUMIFS(CBExcl,CBPayDate,">="&DATE(YEAR(F$5),MONTH(F$5),1),CBPayDate,"<="&F$5,CBType,$E$3,CBAccount,$A10,CBBank,$E$2)+IF($A10="BS-TAX1",SUMIFS(CBTax1,CBPayDate,">="&DATE(YEAR(F$5),MONTH(F$5),1),CBPayDate,"<="&F$5,CBType,$E$3,CBBank,$E$2),0)+IF($A10="BS-TAX2",IF(TaxCount=2,SUMIFS(CBTax2,CBPayDate,">="&DATE(YEAR(F$5),MONTH(F$5),1),CBPayDate,"<="&F$5,CBType,$E$3,CBBank,$E$2),0),0) -> -49.56521739 | G10: =SUMIFS(CBExcl,CBPayDate,">="&DATE(YEAR(G$5),MONTH(G$5),1),CBPayDate,"<="&G$5,CBType,$E$3,CBAccount,$A10,CBBank,$E$2)+IF($A10="BS-TAX1",SUMIFS(CBTax1,CBPayDate,">="&DATE(YEAR(G$5),MONTH(G$5),1),CBPayDate,"<="&G$5,CBType,$E$3,CBBank,$E$2),0)+IF($A10="BS-TAX2",IF(TaxCount=2,SUMIFS(CBTax2,CBPayDate,">="&DATE(YEAR(G$5),MONTH(G$5),1),CBPayDate,"<="&G$5,CBType,$E$3,CBBank,$E$2),0),0) -> -49.56521739 | H10: =SUMIFS(CBExcl,CBPayDate,">="&DATE(YEAR(H$5),MONTH(H$5),1),CBPayDate,"<="&H$5,CBType,$E$3,CBAccount,$A10,CBBank,$E$2)+IF($A10="BS-TAX1",SUMIFS(CBTax1,CBPayDate,">="&DATE(YEAR(H$5),MONTH(H$5),1),CBPayDate,"<="&H$5,CBType,$E$3,CBBank,$E$2),0)+IF($A10="BS-TAX2",IF(TaxCount=2,SUMIFS(CBTax2,CBPayDate,">="&DATE(YEAR(H$5),MONTH(H$5),1),CBPayDate,"<="&H$5,CBType,$E$3,CBBank,$E$2),0),0) -> -49.56521739 | I10: =SUMIFS(CBExcl,CBPayDate,">="&DATE(YEAR(I$5),MONTH(I$5),1),CBPayDate,"<="&I$5,CBType,$E$3,CBAccount,$A10,CBBank,$E$2)+IF($A10="BS-TAX1",SUMIFS(CBTax1,CBPayDate,">="&DATE(YEAR(I$5),MONTH(I$5),1),CBPayDate,"<="&I$5,CBType,$E$3,CBBank,$E$2),0)+IF($A10="BS-TAX2",IF(TaxCount=2,SUMIFS(CBTax2,CBPayDate,">="&DATE(YEAR(I$5),MONTH(I$5),1),CBPayDate,"<="&I$5,CBType,$E$3,CBBank,$E$2),0),0) -> -49.56521739 | J10: =SUMIFS(CBExcl,CBPayDate,">="&DATE(YEAR(J$5),MONTH(J$5),1),CBPayDate,"<="&J$5,CBType,$E$3,CBAccount,$A10,CBBank,$E$2)+IF($A10="BS-TAX1",SUMIFS(CBTax1,CBPayDate,">="&DATE(YEAR(J$5),MONTH(J$5),1),CBPayDate,"<="&J$5,CBType,$E$3,CBBank,$E$2),0)+IF($A10="BS-TAX2",IF(TaxCount=2,SUMIFS(CBTax2,CBPayDate,">="&DATE(YEAR(J$5),MONTH(J$5),1),CBPayDate,"<="&J$5,CBType,$E$3,CBBank,$E$2),0),0) -> -49.56521739 | K10: =SUMIFS(CBExcl,CBPayDate,">="&DATE(YEAR(K$5),MONTH(K$5),1),CBPayDate,"<="&K$5,CBType,$E$3,CBAccount,$A10,CBBank,$E$2)+IF($A10="BS-TAX1",SUMIFS(CBTax1,CBPayDate,">="&DATE(YEAR(K$5),MONTH(K$5),1),CBPayDate,"<="&K$5,CBType,$E$3,CBBank,$E$2),0)+IF($A10="BS-TAX2",IF(TaxCount=2,SUMIFS(CBTax2,CBPayDate,">="&DATE(YEAR(K$5),MONTH(K$5),1),CBPayDate,"<="&K$5,CBType,$E$3,CBBank,$E$2),0),0) -> -49.56521739 | L10: =SUMIFS(CBExcl,CBPayDate,">="&DATE(YEAR(L$5),MONTH(L$5),1),CBPayDate,"<="&L$5,CBType,$E$3,CBAccount,$A10,CBBank,$E$2)+IF($A10="BS-TAX1",SUMIFS(CBTax1,CBPayDate,">="&DATE(YEAR(L$5),MONTH(L$5),1),CBPayDate,"<="&L$5,CBType,$E$3,CBBank,$E$2),0)+IF($A10="BS-TAX2",IF(TaxCount=2,SUMIFS(CBTax2,CBPayDate,">="&DATE(YEAR(L$5),MONTH(L$5),1),CBPayDate,"<="&L$5,CBType,$E$3,CBBank,$E$2),0),0) -> -49.56521739 | M10: =SUMIFS(CBExcl,CBPayDate,">="&DATE(YEAR(M$5),MONTH(M$5),1),CBPayDate,"<="&M$5,CBType,$E$3,CBAccount,$A10,CBBank,$E$2)+IF($A10="BS-TAX1",SUMIFS(CBTax1,CBPayDate,">="&DATE(YEAR(M$5),MONTH(M$5),1),CBPayDate,"<="&M$5,CBType,$E$3,CBBank,$E$2),0)+IF($A10="BS-TAX2",IF(TaxCount=2,SUMIFS(CBTax2,CBPayDate,">="&DATE(YEAR(M$5),MONTH(M$5),1),CBPayDate,"<="&M$5,CBType,$E$3,CBBank,$E$2),0),0) -> -49.56521739 | N10: =SUMIFS(CBExcl,CBPayDate,">="&DATE(YEAR(N$5),MONTH(N$5),1),CBPayDate,"<="&N$5,CBType,$E$3,CBAccount,$A10,CBBank,$E$2)+IF($A10="BS-TAX1",SUMIFS(CBTax1,CBPayDate,">="&DATE(YEAR(N$5),MONTH(N$5),1),CBPayDate,"<="&N$5,CBType,$E$3,CBBank,$E$2),0)+IF($A10="BS-TAX2",IF(TaxCount=2,SUMIFS(CBTax2,CBPayDate,">="&DATE(YEAR(N$5),MONTH(N$5),1),CBPayDate,"<="&N$5,CBType,$E$3,CBBank,$E$2),0),0) -> -49.56521739 | O10: -594.7826087
A11: IS-320 | B11: Commission | C11: =SUMIFS(CBExcl,CBPayDate,">="&DATE(YEAR(C$5),MONTH(C$5),1),CBPayDate,"<="&C$5,CBType,$E$3,CBAccount,$A11,CBBank,$E$2)+IF($A11="BS-TAX1",SUMIFS(CBTax1,CBPayDate,">="&DATE(YEAR(C$5),MONTH(C$5),1),CBPayDate,"<="&C$5,CBType,$E$3,CBBank,$E$2),0)+IF($A11="BS-TAX2",IF(TaxCount=2,SUMIFS(CBTax2,CBPayDate,">="&DATE(YEAR(C$5),MONTH(C$5),1),CBPayDate,"<="&C$5,CBType,$E$3,CBBank,$E$2),0),0) -> 0 | D11: =SUMIFS(CBExcl,CBPayDate,">="&DATE(YEAR(D$5),MONTH(D$5),1),CBPayDate,"<="&D$5,CBType,$E$3,CBAccount,$A11,CBBank,$E$2)+IF($A11="BS-TAX1",SUMIFS(CBTax1,CBPayDate,">="&DATE(YEAR(D$5),MONTH(D$5),1),CBPayDate,"<="&D$5,CBType,$E$3,CBBank,$E$2),0)+IF($A11="BS-TAX2",IF(TaxCount=2,SUMIFS(CBTax2,CBPayDate,">="&DATE(YEAR(D$5),MONTH(D$5),1),CBPayDate,"<="&D$5,CBType,$E$3,CBBank,$E$2),0),0) -> 0 | E11: =SUMIFS(CBExcl,CBPayDate,">="&DATE(YEAR(E$5),MONTH(E$5),1),CBPayDate,"<="&E$5,CBType,$E$3,CBAccount,$A11,CBBank,$E$2)+IF($A11="BS-TAX1",SUMIFS(CBTax1,CBPayDate,">="&DATE(YEAR(E$5),MONTH(E$5),1),CBPayDate,"<="&E$5,CBType,$E$3,CBBank,$E$2),0)+IF($A11="BS-TAX2",IF(TaxCount=2,SUMIFS(CBTax2,CBPayDate,">="&DATE(YEAR(E$5),MONTH(E$5),1),CBPayDate,"<="&E$5,CBType,$E$3,CBBank,$E$2),0),0) -> 0 | F11: =SUMIFS(CBExcl,CBPayDate,">="&DATE(YEAR(F$5),MONTH(F$5),1),CBPayDate,"<="&F$5,CBType,$E$3,CBAccount,$A11,CBBank,$E$2)+IF($A11="BS-TAX1",SUMIFS(CBTax1,CBPayDate,">="&DATE(YEAR(F$5),MONTH(F$5),1),CBPayDate,"<="&F$5,CBType,$E$3,CBBank,$E$2),0)+IF($A11="BS-TAX2",IF(TaxCount=2,SUMIFS(CBTax2,CBPayDate,">="&DATE(YEAR(F$5),MONTH(F$5),1),CBPayDate,"<="&F$5,CBType,$E$3,CBBank,$E$2),0),0) -> 0 | G11: =SUMIFS(CBExcl,CBPayDate,">="&DATE(YEAR(G$5),MONTH(G$5),1),CBPayDate,"<="&G$5,CBType,$E$3,CBAccount,$A11,CBBank,$E$2)+IF($A11="BS-TAX1",SUMIFS(CBTax1,CBPayDate,">="&DATE(YEAR(G$5),MONTH(G$5),1),CBPayDate,"<="&G$5,CBType,$E$3,CBBank,$E$2),0)+IF($A11="BS-TAX2",IF(TaxCount=2,SUMIFS(CBTax2,CBPayDate,">="&DATE(YEAR(G$5),MONTH(G$5),1),CBPayDate,"<="&G$5,CBType,$E$3,CBBank,$E$2),0),0) -> 0 | H11: =SUMIFS(CBExcl,CBPayDate,">="&DATE(YEAR(H$5),MONTH(H$5),1),CBPayDate,"<="&H$5,CBType,$E$3,CBAccount,$A11,CBBank,$E$2)+IF($A11="BS-TAX1",SUMIFS(CBTax1,CBPayDate,">="&DATE(YEAR(H$5),MONTH(H$5),1),CBPayDate,"<="&H$5,CBType,$E$3,CBBank,$E$2),0)+IF($A11="BS-TAX2",IF(TaxCount=2,SUMIFS(CBTax2,CBPayDate,">="&DATE(YEAR(H$5),MONTH(H$5),1),CBPayDate,"<="&H$5,CBType,$E$3,CBBank,$E$2),0),0) -> 0 | I11: =SUMIFS(CBExcl,CBPayDate,">="&DATE(YEAR(I$5),MONTH(I$5),1),CBPayDate,"<="&I$5,CBType,$E$3,CBAccount,$A11,CBBank,$E$2)+IF($A11="BS-TAX1",SUMIFS(CBTax1,CBPayDate,">="&DATE(YEAR(I$5),MONTH(I$5),1),CBPayDate,"<="&I$5,CBType,$E$3,CBBank,$E$2),0)+IF($A11="BS-TAX2",IF(TaxCount=2,SUMIFS(CBTax2,CBPayDate,">="&DATE(YEAR(I$5),MONTH(I$5),1),CBPayDate,"<="&I$5,CBType,$E$3,CBBank,$E$2),0),0) -> 0 | J11: =SUMIFS(CBExcl,CBPayDate,">="&DATE(YEAR(J$5),MONTH(J$5),1),CBPayDate,"<="&J$5,CBType,$E$3,CBAccount,$A11,CBBank,$E$2)+IF($A11="BS-TAX1",SUMIFS(CBTax1,CBPayDate,">="&DATE(YEAR(J$5),MONTH(J$5),1),CBPayDate,"<="&J$5,CBType,$E$3,CBBank,$E$2),0)+IF($A11="BS-TAX2",IF(TaxCount=2,SUMIFS(CBTax2,CBPayDate,">="&DATE(YEAR(J$5),MONTH(J$5),1),CBPayDate,"<="&J$5,CBType,$E$3,CBBank,$E$2),0),0) -> 0 | K11: =SUMIFS(CBExcl,CBPayDate,">="&DATE(YEAR(K$5),MONTH(K$5),1),CBPayDate,"<="&K$5,CBType,$E$3,CBAccount,$A11,CBBank,$E$2)+IF($A11="BS-TAX1",SUMIFS(CBTax1,CBPayDate,">="&DATE(YEAR(K$5),MONTH(K$5),1),CBPayDate,"<="&K$5,CBType,$E$3,CBBank,$E$2),0)+IF($A11="BS-TAX2",IF(TaxCount=2,SUMIFS(CBTax2,CBPayDate,">="&DATE(YEAR(K$5),MONTH(K$5),1),CBPayDate,"<="&K$5,CBType,$E$3,CBBank,$E$2),0),0) -> 0 | L11: =SUMIFS(CBExcl,CBPayDate,">="&DATE(YEAR(L$5),MONTH(L$5),1),CBPayDate,"<="&L$5,CBType,$E$3,CBAccount,$A11,CBBank,$E$2)+IF($A11="BS-TAX1",SUMIFS(CBTax1,CBPayDate,">="&DATE(YEAR(L$5),MONTH(L$5),1),CBPayDate,"<="&L$5,CBType,$E$3,CBBank,$E$2),0)+IF($A11="BS-TAX2",IF(TaxCount=2,SUMIFS(CBTax2,CBPayDate,">="&DATE(YEAR(L$5),MONTH(L$5),1),CBPayDate,"<="&L$5,CBType,$E$3,CBBank,$E$2),0),0) -> 0 | M11: =SUMIFS(CBExcl,CBPayDate,">="&DATE(YEAR(M$5),MONTH(M$5),1),CBPayDate,"<="&M$5,CBType,$E$3,CBAccount,$A11,CBBank,$E$2)+IF($A11="BS-TAX1",SUMIFS(CBTax1,CBPayDate,">="&DATE(YEAR(M$5),MONTH(M$5),1),CBPayDate,"<="&M$5,CBType,$E$3,CBBank,$E$2),0)+IF($A11="BS-TAX2",IF(TaxCount=2,SUMIFS(CBTax2,CBPayDate,">="&DATE(YEAR(M$5),MONTH(M$5),1),CBPayDate,"<="&M$5,CBType,$E$3,CBBank,$E$2),0),0) -> 0 | N11: =SUMIFS(CBExcl,CBPayDate,">="&DATE(YEAR(N$5),MONTH(N$5),1),CBPayDate,"<="&N$5,CBType,$E$3,CBAccount,$A11,CBBank,$E$2)+IF($A11="BS-TAX1",SUMIFS(CBTax1,CBPayDate,">="&DATE(YEAR(N$5),MONTH(N$5),1),CBPayDate,"<="&N$5,CBType,$E$3,CBBank,$E$2),0)+IF($A11="BS-TAX2",IF(TaxCount=2,SUMIFS(CBTax2,CBPayDate,">="&DATE(YEAR(N$5),MONTH(N$5),1),CBPayDate,"<="&N$5,CBType,$E$3,CBBank,$E$2),0),0) -> 0 | O11: 0
A12: IS-325 | B12: Computer Expenses | C12: =SUMIFS(CBExcl,CBPayDate,">="&DATE(YEAR(C$5),MONTH(C$5),1),CBPayDate,"<="&C$5,CBType,$E$3,CBAccount,$A12,CBBank,$E$2)+IF($A12="BS-TAX1",SUMIFS(CBTax1,CBPayDate,">="&DATE(YEAR(C$5),MONTH(C$5),1),CBPayDate,"<="&C$5,CBType,$E$3,CBBank,$E$2),0)+IF($A12="BS-TAX2",IF(TaxCount=2,SUMIFS(CBTax2,CBPayDate,">="&DATE(YEAR(C$5),MONTH(C$5),1),CBPayDate,"<="&C$5,CBType,$E$3,CBBank,$E$2),0),0) -> 0 | D12: =SUMIFS(CBExcl,CBPayDate,">="&DATE(YEAR(D$5),MONTH(D$5),1),CBPayDate,"<="&D$5,CBType,$E$3,CBAccount,$A12,CBBank,$E$2)+IF($A12="BS-TAX1",SUMIFS(CBTax1,CBPayDate,">="&DATE(YEAR(D$5),MONTH(D$5),1),CBPayDate,"<="&D$5,CBType,$E$3,CBBank,$E$2),0)+IF($A12="BS-TAX2",IF(TaxCount=2,SUMIFS(CBTax2,CBPayDate,">="&DATE(YEAR(D$5),MONTH(D$5),1),CBPayDate,"<="&D$5,CBType,$E$3,CBBank,$E$2),0),0) -> -393.0434783 | E12: =SUMIFS(CBExcl,CBPayDate,">="&DATE(YEAR(E$5),MONTH(E$5),1),CBPayDate,"<="&E$5,CBType,$E$3,CBAccount,$A12,CBBank,$E$2)+IF($A12="BS-TAX1",SUMIFS(CBTax1,CBPayDate,">="&DATE(YEAR(E$5),MONTH(E$5),1),CBPayDate,"<="&E$5,CBType,$E$3,CBBank,$E$2),0)+IF($A12="BS-TAX2",IF(TaxCount=2,SUMIFS(CBTax2,CBPayDate,">="&DATE(YEAR(E$5),MONTH(E$5),1),CBPayDate,"<="&E$5,CBType,$E$3,CBBank,$E$2),0),0) -> -396.5217391 | F12: =SUMIFS(CBExcl,CBPayDate,">="&DATE(YEAR(F$5),MONTH(F$5),1),CBPayDate,"<="&F$5,CBType,$E$3,CBAccount,$A12,CBBank,$E$2)+IF($A12="BS-TAX1",SUMIFS(CBTax1,CBPayDate,">="&DATE(YEAR(F$5),MONTH(F$5),1),CBPayDate,"<="&F$5,CBType,$E$3,CBBank,$E$2),0)+IF($A12="BS-TAX2",IF(TaxCount=2,SUMIFS(CBTax2,CBPayDate,">="&DATE(YEAR(F$5),MONTH(F$5),1),CBPayDate,"<="&F$5,CBType,$E$3,CBBank,$E$2),0),0) -> -396.5217391 | G12: =SUMIFS(CBExcl,CBPayDate,">="&DATE(YEAR(G$5),MONTH(G$5),1),CBPayDate,"<="&G$5,CBType,$E$3,CBAccount,$A12,CBBank,$E$2)+IF($A12="BS-TAX1",SUMIFS(CBTax1,CBPayDate,">="&DATE(YEAR(G$5),MONTH(G$5),1),CBPayDate,"<="&G$5,CBType,$E$3,CBBank,$E$2),0)+IF($A12="BS-TAX2",IF(TaxCount=2,SUMIFS(CBTax2,CBPayDate,">="&DATE(YEAR(G$5),MONTH(G$5),1),CBPayDate,"<="&G$5,CBType,$E$3,CBBank,$E$2),0),0) -> -314.6895652 | H12: =SUMIFS(CBExcl,CBPayDate,">="&DATE(YEAR(H$5),MONTH(H$5),1),CBPayDate,"<="&H$5,CBType,$E$3,CBAccount,$A12,CBBank,$E$2)+IF($A12="BS-TAX1",SUMIFS(CBTax1,CBPayDate,">="&DATE(YEAR(H$5),MONTH(H$5),1),CBPayDate,"<="&H$5,CBType,$E$3,CBBank,$E$2),0)+IF($A12="BS-TAX2",IF(TaxCount=2,SUMIFS(CBTax2,CBPayDate,">="&DATE(YEAR(H$5),MONTH(H$5),1),CBPayDate,"<="&H$5,CBType,$E$3,CBBank,$E$2),0),0) -> 0 | I12: =SUMIFS(CBExcl,CBPayDate,">="&DATE(YEAR(I$5),MONTH(I$5),1),CBPayDate,"<="&I$5,CBType,$E$3,CBAccount,$A12,CBBank,$E$2)+IF($A12="BS-TAX1",SUMIFS(CBTax1,CBPayDate,">="&DATE(YEAR(I$5),MONTH(I$5),1),CBPayDate,"<="&I$5,CBType,$E$3,CBBank,$E$2),0)+IF($A12="BS-TAX2",IF(TaxCount=2,SUMIFS(CBTax2,CBPayDate,">="&DATE(YEAR(I$5),MONTH(I$5),1),CBPayDate,"<="&I$5,CBType,$E$3,CBBank,$E$2),0),0) -> 0 | J12: =SUMIFS(CBExcl,CBPayDate,">="&DATE(YEAR(J$5),MONTH(J$5),1),CBPayDate,"<="&J$5,CBType,$E$3,CBAccount,$A12,CBBank,$E$2)+IF($A12="BS-TAX1",SUMIFS(CBTax1,CBPayDate,">="&DATE(YEAR(J$5),MONTH(J$5),1),CBPayDate,"<="&J$5,CBType,$E$3,CBBank,$E$2),0)+IF($A12="BS-TAX2",IF(TaxCount=2,SUMIFS(CBTax2,CBPayDate,">="&DATE(YEAR(J$5),MONTH(J$5),1),CBPayDate,"<="&J$5,CBType,$E$3,CBBank,$E$2),0),0) -> -51.54782609 | K12: =SUMIFS(CBExcl,CBPayDate,">="&DATE(YEAR(K$5),MONTH(K$5),1),CBPayDate,"<="&K$5,CBType,$E$3,CBAccount,$A12,CBBank,$E$2)+IF($A12="BS-TAX1",SUMIFS(CBTax1,CBPayDate,">="&DATE(YEAR(K$5),MONTH(K$5),1),CBPayDate,"<="&K$5,CBType,$E$3,CBBank,$E$2),0)+IF($A12="BS-TAX2",IF(TaxCount=2,SUMIFS(CBTax2,CBPayDate,">="&DATE(YEAR(K$5),MONTH(K$5),1),CBPayDate,"<="&K$5,CBType,$E$3,CBBank,$E$2),0),0) -> 0 | L12: =SUMIFS(CBExcl,CBPayDate,">="&DATE(YEAR(L$5),MONTH(L$5),1),CBPayDate,"<="&L$5,CBType,$E$3,CBAccount,$A12,CBBank,$E$2)+IF($A12="BS-TAX1",SUMIFS(CBTax1,CBPayDate,">="&DATE(YEAR(L$5),MONTH(L$5),1),CBPayDate,"<="&L$5,CBType,$E$3,CBBank,$E$2),0)+IF($A12="BS-TAX2",IF(TaxCount=2,SUMIFS(CBTax2,CBPayDate,">="&DATE(YEAR(L$5),MONTH(L$5),1),CBPayDate,"<="&L$5,CBType,$E$3,CBBank,$E$2),0),0) -> -51.54782609 | M12: =SUMIFS(CBExcl,CBPayDate,">="&DATE(YEAR(M$5),MONTH(M$5),1),CBPayDate,"<="&M$5,CBType,$E$3,CBAccount,$A12,CBBank,$E$2)+IF($A12="BS-TAX1",SUMIFS(CBTax1,CBPayDate,">="&DATE(YEAR(M$5),MONTH(M$5),1),CBPayDate,"<="&M$5,CBType,$E$3,CBBank,$E$2),0)+IF($A12="BS-TAX2",IF(TaxCount=2,SUMIFS(CBTax2,CBPayDate,">="&DATE(YEAR(M$5),MONTH(M$5),1),CBPayDate,"<="&M$5,CBType,$E$3,CBBank,$E$2),0),0) -> 0 | N12: =SUMIFS(CBExcl,CBPayDate,">="&DATE(YEAR(N$5),MONTH(N$5),1),CBPayDate,"<="&N$5,CBType,$E$3,CBAccount,$A12,CBBank,$E$2)+IF($A12="BS-TAX1",SUMIFS(CBTax1,CBPayDate,">="&DATE(YEAR(N$5),MONTH(N$5),1),CBPayDate,"<="&N$5,CBType,$E$3,CBBank,$E$2),0)+IF($A12="BS-TAX2",IF(TaxCount=2,SUMIFS(CBTax2,CBPayDate,">="&DATE(YEAR(N$5),MONTH(N$5),1),CBPayDate,"<="&N$5,CBType,$E$3,CBBank,$E$2),0),0) -> -97.14782609 | O12: -1701.02
A13: IS-330 | B13: Consumables & Cleaning | C13: =SUMIFS(CBExcl,CBPayDate,">="&DATE(YEAR(C$5),MONTH(C$5),1),CBPayDate,"<="&C$5,CBType,$E$3,CBAccount,$A13,CBBank,$E$2)+IF($A13="BS-TAX1",SUMIFS(CBTax1,CBPayDate,">="&DATE(YEAR(C$5),MONTH(C$5),1),CBPayDate,"<="&C$5,CBType,$E$3,CBBank,$E$2),0)+IF($A13="BS-TAX2",IF(TaxCount=2,SUMIFS(CBTax2,CBPayDate,">="&DATE(YEAR(C$5),MONTH(C$5),1),CBPayDate,"<="&C$5,CBType,$E$3,CBBank,$E$2),0),0) -> 0 | D13: =SUMIFS(CBExcl,CBPayDate,">="&DATE(YEAR(D$5),MONTH(D$5),1),CBPayDate,"<="&D$5,CBType,$E$3,CBAccount,$A13,CBBank,$E$2)+IF($A13="BS-TAX1",SUMIFS(CBTax1,CBPayDate,">="&DATE(YEAR(D$5),MONTH(D$5),1),CBPayDate,"<="&D$5,CBType,$E$3,CBBank,$E$2),0)+IF($A13="BS-TAX2",IF(TaxCount=2,SUMIFS(CBTax2,CBPayDate,">="&DATE(YEAR(D$5),MONTH(D$5),1),CBPayDate,"<="&D$5,CBType,$E$3,CBBank,$E$2),0),0) -> 0 | E13: =SUMIFS(CBExcl,CBPayDate,">="&DATE(YEAR(E$5),MONTH(E$5),1),CBPayDate,"<="&E$5,CBType,$E$3,CBAccount,$A13,CBBank,$E$2)+IF($A13="BS-TAX1",SUMIFS(CBTax1,CBPayDate,">="&DATE(YEAR(E$5),MONTH(E$5),1),CBPayDate,"<="&E$5,CBType,$E$3,CBBank,$E$2),0)+IF($A13="BS-TAX2",IF(TaxCount=2,SUMIFS(CBTax2,CBPayDate,">="&DATE(YEAR(E$5),MONTH(E$5),1),CBPayDate,"<="&E$5,CBType,$E$3,CBBank,$E$2),0),0) -> 0 | F13: =SUMIFS(CBExcl,CBPayDate,">="&DATE(YEAR(F$5),MONTH(F$5),1),CBPayDate,"<="&F$5,CBType,$E$3,CBAccount,$A13,CBBank,$E$2)+IF($A13="BS-TAX1",SUMIFS(CBTax1,CBPayDate,">="&DATE(YEAR(F$5),MONTH(F$5),1),CBPayDate,"<="&F$5,CBType,$E$3,CBBank,$E$2),0)+IF($A13="BS-TAX2",IF(TaxCount=2,SUMIFS(CBTax2,CBPayDate,">="&DATE(YEAR(F$5),MONTH(F$5),1),CBPayDate,"<="&F$5,CBType,$E$3,CBBank,$E$2),0),0) -> 0 | G13: =SUMIFS(CBExcl,CBPayDate,">="&DATE(YEAR(G$5),MONTH(G$5),1),CBPayDate,"<="&G$5,CBType,$E$3,CBAccount,$A13,CBBank,$E$2)+IF($A13="BS-TAX1",SUMIFS(CBTax1,CBPayDate,">="&DATE(YEAR(G$5),MONTH(G$5),1),CBPayDate,"<="&G$5,CBType,$E$3,CBBank,$E$2),0)+IF($A13="BS-TAX2",IF(TaxCount=2,SUMIFS(CBTax2,CBPayDate,">="&DATE(YEAR(G$5),MONTH(G$5),1),CBPayDate,"<="&G$5,CBType,$E$3,CBBank,$E$2),0),0) -> 0 | H13: =SUMIFS(CBExcl,CBPayDate,">="&DATE(YEAR(H$5),MONTH(H$5),1),CBPayDate,"<="&H$5,CBType,$E$3,CBAccount,$A13,CBBank,$E$2)+IF($A13="BS-TAX1",SUMIFS(CBTax1,CBPayDate,">="&DATE(YEAR(H$5),MONTH(H$5),1),CBPayDate,"<="&H$5,CBType,$E$3,CBBank,$E$2),0)+IF($A13="BS-TAX2",IF(TaxCount=2,SUMIFS(CBTax2,CBPayDate,">="&DATE(YEAR(H$5),MONTH(H$5),1),CBPayDate,"<="&H$5,CBType,$E$3,CBBank,$E$2),0),0) -> 0 | I13: =SUMIFS(CBExcl,CBPayDate,">="&DATE(YEAR(I$5),MONTH(I$5),1),CBPayDate,"<="&I$5,CBType,$E$3,CBAccount,$A13,CBBank,$E$2)+IF($A13="BS-TAX1",SUMIFS(CBTax1,CBPayDate,">="&DATE(YEAR(I$5),MONTH(I$5),1),CBPayDate,"<="&I$5,CBType,$E$3,CBBank,$E$2),0)+IF($A13="BS-TAX2",IF(TaxCount=2,SUMIFS(CBTax2,CBPayDate,">="&DATE(YEAR(I$5),MONTH(I$5),1),CBPayDate,"<="&I$5,CBType,$E$3,CBBank,$E$2),0),0) -> 0 | J13: =SUMIFS(CBExcl,CBPayDate,">="&DATE(YEAR(J$5),MONTH(J$5),1),CBPayDate,"<="&J$5,CBType,$E$3,CBAccount,$A13,CBBank,$E$2)+IF($A13="BS-TAX1",SUMIFS(CBTax1,CBPayDate,">="&DATE(YEAR(J$5),MONTH(J$5),1),CBPayDate,"<="&J$5,CBType,$E$3,CBBank,$E$2),0)+IF($A13="BS-TAX2",IF(TaxCount=2,SUMIFS(CBTax2,CBPayDate,">="&DATE(YEAR(J$5),MONTH(J$5),1),CBPayDate,"<="&J$5,CBType,$E$3,CBBank,$E$2),0),0) -> 0 | K13: =SUMIFS(CBExcl,CBPayDate,">="&DATE(YEAR(K$5),MONTH(K$5),1),CBPayDate,"<="&K$5,CBType,$E$3,CBAccount,$A13,CBBank,$E$2)+IF($A13="BS-TAX1",SUMIFS(CBTax1,CBPayDate,">="&DATE(YEAR(K$5),MONTH(K$5),1),CBPayDate,"<="&K$5,CBType,$E$3,CBBank,$E$2),0)+IF($A13="BS-TAX2",IF(TaxCount=2,SUMIFS(CBTax2,CBPayDate,">="&DATE(YEAR(K$5),MONTH(K$5),1),CBPayDate,"<="&K$5,CBType,$E$3,CBBank,$E$2),0),0) -> 0 | L13: =SUMIFS(CBExcl,CBPayDate,">="&DATE(YEAR(L$5),MONTH(L$5),1),CBPayDate,"<="&L$5,CBType,$E$3,CBAccount,$A13,CBBank,$E$2)+IF($A13="BS-TAX1",SUMIFS(CBTax1,CBPayDate,">="&DATE(YEAR(L$5),MONTH(L$5),1),CBPayDate,"<="&L$5,CBType,$E$3,CBBank,$E$2),0)+IF($A13="BS-TAX2",IF(TaxCount=2,SUMIFS(CBTax2,CBPayDate,">="&DATE(YEAR(L$5),MONTH(L$5),1),CBPayDate,"<="&L$5,CBType,$E$3,CBBank,$E$2),0),0) -> 0 | M13: =SUMIFS(CBExcl,CBPayDate,">="&DATE(YEAR(M$5),MONTH(M$5),1),CBPayDate,"<="&M$5,CBType,$E$3,CBAccount,$A13,CBBank,$E$2)+IF($A13="BS-TAX1",SUMIFS(CBTax1,CBPayDate,">="&DATE(YEAR(M$5),MONTH(M$5),1),CBPayDate,"<="&M$5,CBType,$E$3,CBBank,$E$2),0)+IF($A13="BS-TAX2",IF(TaxCount=2,SUMIFS(CBTax2,CBPayDate,">="&DATE(YEAR(M$5),MONTH(M$5),1),CBPayDate,"<="&M$5,CBType,$E$3,CBBank,$E$2),0),0) -> 0 | N13: =SUMIFS(CBExcl,CBPayDate,">="&DATE(YEAR(N$5),MONTH(N$5),1),CBPayDate,"<="&N$5,CBType,$E$3,CBAccount,$A13,CBBank,$E$2)+IF($A13="BS-TAX1",SUMIFS(CBTax1,CBPayDate,">="&DATE(YEAR(N$5),MONTH(N$5),1),CBPayDate,"<="&N$5,CBType,$E$3,CBBank,$E$2),0)+IF($A13="BS-TAX2",IF(TaxCount=2,SUMIFS(CBTax2,CBPayDate,">="&DATE(YEAR(N$5),MONTH(N$5),1),CBPayDate,"<="&N$5,CBType,$E$3,CBBank,$E$2),0),0) -> 0 | O13: 0
A14: IS-335 | B14: Entertainment | C14: =SUMIFS(CBExcl,CBPayDate,">="&DATE(YEAR(C$5),MONTH(C$5),1),CBPayDate,"<="&C$5,CBType,$E$3,CBAccount,$A14,CBBank,$E$2)+IF($A14="BS-TAX1",SUMIFS(CBTax1,CBPayDate,">="&DATE(YEAR(C$5),MONTH(C$5),1),CBPayDate,"<="&C$5,CBType,$E$3,CBBank,$E$2),0)+IF($A14="BS-TAX2",IF(TaxCount=2,SUMIFS(CBTax2,CBPayDate,">="&DATE(YEAR(C$5),MONTH(C$5),1),CBPayDate,"<="&C$5,CBType,$E$3,CBBank,$E$2),0),0) -> 0 | D14: =SUMIFS(CBExcl,CBPayDate,">="&DATE(YEAR(D$5),MONTH(D$5),1),CBPayDate,"<="&D$5,CBType,$E$3,CBAccount,$A14,CBBank,$E$2)+IF($A14="BS-TAX1",SUMIFS(CBTax1,CBPayDate,">="&DATE(YEAR(D$5),MONTH(D$5),1),CBPayDate,"<="&D$5,CBType,$E$3,CBBank,$E$2),0)+IF($A14="BS-TAX2",IF(TaxCount=2,SUMIFS(CBTax2,CBPayDate,">="&DATE(YEAR(D$5),MONTH(D$5),1),CBPayDate,"<="&D$5,CBType,$E$3,CBBank,$E$2),0),0) -> 0 | E14: =SUMIFS(CBExcl,CBPayDate,">="&DATE(YEAR(E$5),MONTH(E$5),1),CBPayDate,"<="&E$5,CBType,$E$3,CBAccount,$A14,CBBank,$E$2)+IF($A14="BS-TAX1",SUMIFS(CBTax1,CBPayDate,">="&DATE(YEAR(E$5),MONTH(E$5),1),CBPayDate,"<="&E$5,CBType,$E$3,CBBank,$E$2),0)+IF($A14="BS-TAX2",IF(TaxCount=2,SUMIFS(CBTax2,CBPayDate,">="&DATE(YEAR(E$5),MONTH(E$5),1),CBPayDate,"<="&E$5,CBType,$E$3,CBBank,$E$2),0),0) -> 0 | F14: =SUMIFS(CBExcl,CBPayDate,">="&DATE(YEAR(F$5),MONTH(F$5),1),CBPayDate,"<="&F$5,CBType,$E$3,CBAccount,$A14,CBBank,$E$2)+IF($A14="BS-TAX1",SUMIFS(CBTax1,CBPayDate,">="&DATE(YEAR(F$5),MONTH(F$5),1),CBPayDate,"<="&F$5,CBType,$E$3,CBBank,$E$2),0)+IF($A14="BS-TAX2",IF(TaxCount=2,SUMIFS(CBTax2,CBPayDate,">="&DATE(YEAR(F$5),MONTH(F$5),1),CBPayDate,"<="&F$5,CBType,$E$3,CBBank,$E$2),0),0) -> 0 | G14: =SUMIFS(CBExcl,CBPayDate,">="&DATE(YEAR(G$5),MONTH(G$5),1),CBPayDate,"<="&G$5,CBType,$E$3,CBAccount,$A14,CBBank,$E$2)+IF($A14="BS-TAX1",SUMIFS(CBTax1,CBPayDate,">="&DATE(YEAR(G$5),MONTH(G$5),1),CBPayDate,"<="&G$5,CBType,$E$3,CBBank,$E$2),0)+IF($A14="BS-TAX2",IF(TaxCount=2,SUMIFS(CBTax2,CBPayDate,">="&DATE(YEAR(G$5),MONTH(G$5),1),CBPayDate,"<="&G$5,CBType,$E$3,CBBank,$E$2),0),0) -> 0 | H14: =SUMIFS(CBExcl,CBPayDate,">="&DATE(YEAR(H$5),MONTH(H$5),1),CBPayDate,"<="&H$5,CBType,$E$3,CBAccount,$A14,CBBank,$E$2)+IF($A14="BS-TAX1",SUMIFS(CBTax1,CBPayDate,">="&DATE(YEAR(H$5),MONTH(H$5),1),CBPayDate,"<="&H$5,CBType,$E$3,CBBank,$E$2),0)+IF($A14="BS-TAX2",IF(TaxCount=2,SUMIFS(CBTax2,CBPayDate,">="&DATE(YEAR(H$5),MONTH(H$5),1),CBPayDate,"<="&H$5,CBType,$E$3,CBBank,$E$2),0),0) -> 0 | I14: =SUMIFS(CBExcl,CBPayDate,">="&DATE(YEAR(I$5),MONTH(I$5),1),CBPayDate,"<="&I$5,CBType,$E$3,CBAccount,$A14,CBBank,$E$2)+IF($A14="BS-TAX1",SUMIFS(CBTax1,CBPayDate,">="&DATE(YEAR(I$5),MONTH(I$5),1),CBPayDate,"<="&I$5,CBType,$E$3,CBBank,$E$2),0)+IF($A14="BS-TAX2",IF(TaxCount=2,SUMIFS(CBTax2,CBPayDate,">="&DATE(YEAR(I$5),MONTH(I$5),1),CBPayDate,"<="&I$5,CBType,$E$3,CBBank,$E$2),0),0) -> 0 | J14: =SUMIFS(CBExcl,CBPayDate,">="&DATE(YEAR(J$5),MONTH(J$5),1),CBPayDate,"<="&J$5,CBType,$E$3,CBAccount,$A14,CBBank,$E$2)+IF($A14="BS-TAX1",SUMIFS(CBTax1,CBPayDate,">="&DATE(YEAR(J$5),MONTH(J$5),1),CBPayDate,"<="&J$5,CBType,$E$3,CBBank,$E$2),0)+IF($A14="BS-TAX2",IF(TaxCount=2,SUMIFS(CBTax2,CBPayDate,">="&DATE(YEAR(J$5),MONTH(J$5),1),CBPayDate,"<="&J$5,CBType,$E$3,CBBank,$E$2),0),0) -> 0 | K14: =SUMIFS(CBExcl,CBPayDate,">="&DATE(YEAR(K$5),MONTH(K$5),1),CBPayDate,"<="&K$5,CBType,$E$3,CBAccount,$A14,CBBank,$E$2)+IF($A14="BS-TAX1",SUMIFS(CBTax1,CBPayDate,">="&DATE(YEAR(K$5),MONTH(K$5),1),CBPayDate,"<="&K$5,CBType,$E$3,CBBank,$E$2),0)+IF($A14="BS-TAX2",IF(TaxCount=2,SUMIFS(CBTax2,CBPayDate,">="&DATE(YEAR(K$5),MONTH(K$5),1),CBPayDate,"<="&K$5,CBType,$E$3,CBBank,$E$2),0),0) -> 0 | L14: =SUMIFS(CBExcl,CBPayDate,">="&DATE(YEAR(L$5),MONTH(L$5),1),CBPayDate,"<="&L$5,CBType,$E$3,CBAccount,$A14,CBBank,$E$2)+IF($A14="BS-TAX1",SUMIFS(CBTax1,CBPayDate,">="&DATE(YEAR(L$5),MONTH(L$5),1),CBPayDate,"<="&L$5,CBType,$E$3,CBBank,$E$2),0)+IF($A14="BS-TAX2",IF(TaxCount=2,SUMIFS(CBTax2,CBPayDate,">="&DATE(YEAR(L$5),MONTH(L$5),1),CBPayDate,"<="&L$5,CBType,$E$3,CBBank,$E$2),0),0) -> 0 | M14: =SUMIFS(CBExcl,CBPayDate,">="&DATE(YEAR(M$5),MONTH(M$5),1),CBPayDate,"<="&M$5,CBType,$E$3,CBAccount,$A14,CBBank,$E$2)+IF($A14="BS-TAX1",SUMIFS(CBTax1,CBPayDate,">="&DATE(YEAR(M$5),MONTH(M$5),1),CBPayDate,"<="&M$5,CBType,$E$3,CBBank,$E$2),0)+IF($A14="BS-TAX2",IF(TaxCount=2,SUMIFS(CBTax2,CBPayDate,">="&DATE(YEAR(M$5),MONTH(M$5),1),CBPayDate,"<="&M$5,CBType,$E$3,CBBank,$E$2),0),0) -> 0 | N14: =SUMIFS(CBExcl,CBPayDate,">="&DATE(YEAR(N$5),MONTH(N$5),1),CBPayDate,"<="&N$5,CBType,$E$3,CBAccount,$A14,CBBank,$E$2)+IF($A14="BS-TAX1",SUMIFS(CBTax1,CBPayDate,">="&DATE(YEAR(N$5),MONTH(N$5),1),CBPayDate,"<="&N$5,CBType,$E$3,CBBank,$E$2),0)+IF($A14="BS-TAX2",IF(TaxCount=2,SUMIFS(CBTax2,CBPayDate,">="&DATE(YEAR(N$5),MONTH(N$5),1),CBPayDate,"<="&N$5,CBType,$E$3,CBBank,$E$2),0),0) -> 0 | O14: 0
A15: IS-340 | B15: Insurance | C15: =SUMIFS(CBExcl,CBPayDate,">="&DATE(YEAR(C$5),MONTH(C$5),1),CBPayDate,"<="&C$5,CBType,$E$3,CBAccount,$A15,CBBank,$E$2)+IF($A15="BS-TAX1",SUMIFS(CBTax1,CBPayDate,">="&DATE(YEAR(C$5),MONTH(C$5),1),CBPayDate,"<="&C$5,CBType,$E$3,CBBank,$E$2),0)+IF($A15="BS-TAX2",IF(TaxCount=2,SUMIFS(CBTax2,CBPayDate,">="&DATE(YEAR(C$5),MONTH(C$5),1),CBPayDate,"<="&C$5,CBType,$E$3,CBBank,$E$2),0),0) -> -317.2173913 | D15: =SUMIFS(CBExcl,CBPayDate,">="&DATE(YEAR(D$5),MONTH(D$5),1),CBPayDate,"<="&D$5,CBType,$E$3,CBAccount,$A15,CBBank,$E$2)+IF($A15="BS-TAX1",SUMIFS(CBTax1,CBPayDate,">="&DATE(YEAR(D$5),MONTH(D$5),1),CBPayDate,"<="&D$5,CBType,$E$3,CBBank,$E$2),0)+IF($A15="BS-TAX2",IF(TaxCount=2,SUMIFS(CBTax2,CBPayDate,">="&DATE(YEAR(D$5),MONTH(D$5),1),CBPayDate,"<="&D$5,CBType,$E$3,CBBank,$E$2),0),0) -> -317.2173913 | E15: =SUMIFS(CBExcl,CBPayDate,">="&DATE(YEAR(E$5),MONTH(E$5),1),CBPayDate,"<="&E$5,CBType,$E$3,CBAccount,$A15,CBBank,$E$2)+IF($A15="BS-TAX1",SUMIFS(CBTax1,CBPayDate,">="&DATE(YEAR(E$5),MONTH(E$5),1),CBPayDate,"<="&E$5,CBType,$E$3,CBBank,$E$2),0)+IF($A15="BS-TAX2",IF(TaxCount=2,SUMIFS(CBTax2,CBPayDate,">="&DATE(YEAR(E$5),MONTH(E$5),1),CBPayDate,"<="&E$5,CBType,$E$3,CBBank,$E$2),0),0) -> -317.2173913 | F15: =SUMIFS(CBExcl,CBPayDate,">="&DATE(YEAR(F$5),MONTH(F$5),1),CBPayDate,"<="&F$5,CBType,$E$3,CBAccount,$A15,CBBank,$E$2)+IF($A15="BS-TAX1",SUMIFS(CBTax1,CBPayDate,">="&DATE(YEAR(F$5),MONTH(F$5),1),CBPayDate,"<="&F$5,CBType,$E$3,CBBank,$E$2),0)+IF($A15="BS-TAX2",IF(TaxCount=2,SUMIFS(CBTax2,CBPayDate,">="&DATE(YEAR(F$5),MONTH(F$5),1),CBPayDate,"<="&F$5,CBType,$E$3,CBBank,$E$2),0),0) -> -317.2173913 | G15: =SUMIFS(CBExcl,CBPayDate,">="&DATE(YEAR(G$5),MONTH(G$5),1),CBPayDate,"<="&G$5,CBType,$E$3,CBAccount,$A15,CBBank,$E$2)+IF($A15="BS-TAX1",SUMIFS(CBTax1,CBPayDate,">="&DATE(YEAR(G$5),MONTH(G$5),1),CBPayDate,"<="&G$5,CBType,$E$3,CBBank,$E$2),0)+IF($A15="BS-TAX2",IF(TaxCount=2,SUMIFS(CBTax2,CBPayDate,">="&DATE(YEAR(G$5),MONTH(G$5),1),CBPayDate,"<="&G$5,CBType,$E$3,CBBank,$E$2),0),0) -> -317.2173913 | H15: =SUMIFS(CBExcl,CBPayDate,">="&DATE(YEAR(H$5),MONTH(H$5),1),CBPayDate,"<="&H$5,CBType,$E$3,CBAccount,$A15,CBBank,$E$2)+IF($A15="BS-TAX1",SUMIFS(CBTax1,CBPayDate,">="&DATE(YEAR(H$5),MONTH(H$5),1),CBPayDate,"<="&H$5,CBType,$E$3,CBBank,$E$2),0)+IF($A15="BS-TAX2",IF(TaxCount=2,SUMIFS(CBTax2,CBPayDate,">="&DATE(YEAR(H$5),MONTH(H$5),1),CBPayDate,"<="&H$5,CBType,$E$3,CBBank,$E$2),0),0) -> -317.2173913 | I15: =SUMIFS(CBExcl,CBPayDate,">="&DATE(YEAR(I$5),MONTH(I$5),1),CBPayDate,"<="&I$5,CBType,$E$3,CBAccount,$A15,CBBank,$E$2)+IF($A15="BS-TAX1",SUMIFS(CBTax1,CBPayDate,">="&DATE(YEAR(I$5),MONTH(I$5),1),CBPayDate,"<="&I$5,CBType,$E$3,CBBank,$E$2),0)+IF($A15="BS-TAX2",IF(TaxCount=2,SUMIFS(CBTax2,CBPayDate,">="&DATE(YEAR(I$5),MONTH(I$5),1),CBPayDate,"<="&I$5,CBType,$E$3,CBBank,$E$2),0),0) -> -317.2173913 | J15: =SUMIFS(CBExcl,CBPayDate,">="&DATE(YEAR(J$5),MONTH(J$5),1),CBPayDate,"<="&J$5,CBType,$E$3,CBAccount,$A15,CBBank,$E$2)+IF($A15="BS-TAX1",SUMIFS(CBTax1,CBPayDate,">="&DATE(YEAR(J$5),MONTH(J$5),1),CBPayDate,"<="&J$5,CBType,$E$3,CBBank,$E$2),0)+IF($A15="BS-TAX2",IF(TaxCount=2,SUMIFS(CBTax2,CBPayDate,">="&DATE(YEAR(J$5),MONTH(J$5),1),CBPayDate,"<="&J$5,CBType,$E$3,CBBank,$E$2),0),0) -> -317.2173913 | K15: =SUMIFS(CBExcl,CBPayDate,">="&DATE(YEAR(K$5),MONTH(K$5),1),CBPayDate,"<="&K$5,CBType,$E$3,CBAccount,$A15,CBBank,$E$2)+IF($A15="BS-TAX1",SUMIFS(CBTax1,CBPayDate,">="&DATE(YEAR(K$5),MONTH(K$5),1),CBPayDate,"<="&K$5,CBType,$E$3,CBBank,$E$2),0)+IF($A15="BS-TAX2",IF(TaxCount=2,SUMIFS(CBTax2,CBPayDate,">="&DATE(YEAR(K$5),MONTH(K$5),1),CBPayDate,"<="&K$5,CBType,$E$3,CBBank,$E$2),0),0) -> -317.2173913 | L15: =SUMIFS(CBExcl,CBPayDate,">="&DATE(YEAR(L$5),MONTH(L$5),1),CBPayDate,"<="&L$5,CBType,$E$3,CBAccount,$A15,CBBank,$E$2)+IF($A15="BS-TAX1",SUMIFS(CBTax1,CBPayDate,">="&DATE(YEAR(L$5),MONTH(L$5),1),CBPayDate,"<="&L$5,CBType,$E$3,CBBank,$E$2),0)+IF($A15="BS-TAX2",IF(TaxCount=2,SUMIFS(CBTax2,CBPayDate,">="&DATE(YEAR(L$5),MONTH(L$5),1),CBPayDate,"<="&L$5,CBType,$E$3,CBBank,$E$2),0),0) -> -317.2173913 | M15: =SUMIFS(CBExcl,CBPayDate,">="&DATE(YEAR(M$5),MONTH(M$5),1),CBPayDate,"<="&M$5,CBType,$E$3,CBAccount,$A15,CBBank,$E$2)+IF($A15="BS-TAX1",SUMIFS(CBTax1,CBPayDate,">="&DATE(YEAR(M$5),MONTH(M$5),1),CBPayDate,"<="&M$5,CBType,$E$3,CBBank,$E$2),0)+IF($A15="BS-TAX2",IF(TaxCount=2,SUMIFS(CBTax2,CBPayDate,">="&DATE(YEAR(M$5),MONTH(M$5),1),CBPayDate,"<="&M$5,CBType,$E$3,CBBank,$E$2),0),0) -> -337.0434783 | N15: =SUMIFS(CBExcl,CBPayDate,">="&DATE(YEAR(N$5),MONTH(N$5),1),CBPayDate,"<="&N$5,CBType,$E$3,CBAccount,$A15,CBBank,$E$2)+IF($A15="BS-TAX1",SUMIFS(CBTax1,CBPayDate,">="&DATE(YEAR(N$5),MONTH(N$5),1),CBPayDate,"<="&N$5,CBType,$E$3,CBBank,$E$2),0)+IF($A15="BS-TAX2",IF(TaxCount=2,SUMIFS(CBTax2,CBPayDate,">="&DATE(YEAR(N$5),MONTH(N$5),1),CBPayDate,"<="&N$5,CBType,$E$3,CBBank,$E$2),0),0) -> -337.0434783 | O15: -3846.26087
A16: IS-345 | B16: Office Expenses | C16: =SUMIFS(CBExcl,CBPayDate,">="&DATE(YEAR(C$5),MONTH(C$5),1),CBPayDate,"<="&C$5,CBType,$E$3,CBAccount,$A16,CBBank,$E$2)+IF($A16="BS-TAX1",SUMIFS(CBTax1,CBPayDate,">="&DATE(YEAR(C$5),MONTH(C$5),1),CBPayDate,"<="&C$5,CBType,$E$3,CBBank,$E$2),0)+IF($A16="BS-TAX2",IF(TaxCount=2,SUMIFS(CBTax2,CBPayDate,">="&DATE(YEAR(C$5),MONTH(C$5),1),CBPayDate,"<="&C$5,CBType,$E$3,CBBank,$E$2),0),0) -> 0 | D16: =SUMIFS(CBExcl,CBPayDate,">="&DATE(YEAR(D$5),MONTH(D$5),1),CBPayDate,"<="&D$5,CBType,$E$3,CBAccount,$A16,CBBank,$E$2)+IF($A16="BS-TAX1",SUMIFS(CBTax1,CBPayDate,">="&DATE(YEAR(D$5),MONTH(D$5),1),CBPayDate,"<="&D$5,CBType,$E$3,CBBank,$E$2),0)+IF($A16="BS-TAX2",IF(TaxCount=2,SUMIFS(CBTax2,CBPayDate,">="&DATE(YEAR(D$5),MONTH(D$5),1),CBPayDate,"<="&D$5,CBType,$E$3,CBBank,$E$2),0),0) -> 0 | E16: =SUMIFS(CBExcl,CBPayDate,">="&DATE(YEAR(E$5),MONTH(E$5),1),CBPayDate,"<="&E$5,CBType,$E$3,CBAccount,$A16,CBBank,$E$2)+IF($A16="BS-TAX1",SUMIFS(CBTax1,CBPayDate,">="&DATE(YEAR(E$5),MONTH(E$5),1),CBPayDate,"<="&E$5,CBType,$E$3,CBBank,$E$2),0)+IF($A16="BS-TAX2",IF(TaxCount=2,SUMIFS(CBTax2,CBPayDate,">="&DATE(YEAR(E$5),MONTH(E$5),1),CBPayDate,"<="&E$5,CBType,$E$3,CBBank,$E$2),0),0) -> 0 | F16: =SUMIFS(CBExcl,CBPayDate,">="&DATE(YEAR(F$5),MONTH(F$5),1),CBPayDate,"<="&F$5,CBType,$E$3,CBAccount,$A16,CBBank,$E$2)+IF($A16="BS-TAX1",SUMIFS(CBTax1,CBPayDate,">="&DATE(YEAR(F$5),MONTH(F$5),1),CBPayDate,"<="&F$5,CBType,$E$3,CBBank,$E$2),0)+IF($A16="BS-TAX2",IF(TaxCount=2,SUMIFS(CBTax2,CBPayDate,">="&DATE(YEAR(F$5),MONTH(F$5),1),CBPayDate,"<="&F$5,CBType,$E$3,CBBank,$E$2),0),0) -> 0 | G16: =SUMIFS(CBExcl,CBPayDate,">="&DATE(YEAR(G$5),MONTH(G$5),1),CBPayDate,"<="&G$5,CBType,$E$3,CBAccount,$A16,CBBank,$E$2)+IF($A16="BS-TAX1",SUMIFS(CBTax1,CBPayDate,">="&DATE(YEAR(G$5),MONTH(G$5),1),CBPayDate,"<="&G$5,CBType,$E$3,CBBank,$E$2),0)+IF($A16="BS-TAX2",IF(TaxCount=2,SUMIFS(CBTax2,CBPayDate,">="&DATE(YEAR(G$5),MONTH(G$5),1),CBPayDate,"<="&G$5,CBType,$E$3,CBBank,$E$2),0),0) -> 0 | H16: =SUMIFS(CBExcl,CBPayDate,">="&DATE(YEAR(H$5),MONTH(H$5),1),CBPayDate,"<="&H$5,CBType,$E$3,CBAccount,$A16,CBBank,$E$2)+IF($A16="BS-TAX1",SUMIFS(CBTax1,CBPayDate,">="&DATE(YEAR(H$5),MONTH(H$5),1),CBPayDate,"<="&H$5,CBType,$E$3,CBBank,$E$2),0)+IF($A16="BS-TAX2",IF(TaxCount=2,SUMIFS(CBTax2,CBPayDate,">="&DATE(YEAR(H$5),MONTH(H$5),1),CBPayDate,"<="&H$5,CBType,$E$3,CBBank,$E$2),0),0) -> 0 | I16: =SUMIFS(CBExcl,CBPayDate,">="&DATE(YEAR(I$5),MONTH(I$5),1),CBPayDate,"<="&I$5,CBType,$E$3,CBAccount,$A16,CBBank,$E$2)+IF($A16="BS-TAX1",SUMIFS(CBTax1,CBPayDate,">="&DATE(YEAR(I$5),MONTH(I$5),1),CBPayDate,"<="&I$5,CBType,$E$3,CBBank,$E$2),0)+IF($A16="BS-TAX2",IF(TaxCount=2,SUMIFS(CBTax2,CBPayDate,">="&DATE(YEAR(I$5),MONTH(I$5),1),CBPayDate,"<="&I$5,CBType,$E$3,CBBank,$E$2),0),0) -> -1584.104348 | J16: =SUMIFS(CBExcl,CBPayDate,">="&DATE(YEAR(J$5),MONTH(J$5),1),CBPayDate,"<="&J$5,CBType,$E$3,CBAccount,$A16,CBBank,$E$2)+IF($A16="BS-TAX1",SUMIFS(CBTax1,CBPayDate,">="&DATE(YEAR(J$5),MONTH(J$5),1),CBPayDate,"<="&J$5,CBType,$E$3,CBBank,$E$2),0)+IF($A16="BS-TAX2",IF(TaxCount=2,SUMIFS(CBTax2,CBPayDate,">="&DATE(YEAR(J$5),MONTH(J$5),1),CBPayDate,"<="&J$5,CBType,$E$3,CBBank,$E$2),0),0) -> 0 | K16: =SUMIFS(CBExcl,CBPayDate,">="&DATE(YEAR(K$5),MONTH(K$5),1),CBPayDate,"<="&K$5,CBType,$E$3,CBAccount,$A16,CBBank,$E$2)+IF($A16="BS-TAX1",SUMIFS(CBTax1,CBPayDate,">="&DATE(YEAR(K$5),MONTH(K$5),1),CBPayDate,"<="&K$5,CBType,$E$3,CBBank,$E$2),0)+IF($A16="BS-TAX2",IF(TaxCount=2,SUMIFS(CBTax2,CBPayDate,">="&DATE(YEAR(K$5),MONTH(K$5),1),CBPayDate,"<="&K$5,CBType,$E$3,CBBank,$E$2),0),0) -> 0 | L16: =SUMIFS(CBExcl,CBPayDate,">="&DATE(YEAR(L$5),MONTH(L$5),1),CBPayDate,"<="&L$5,CBType,$E$3,CBAccount,$A16,CBBank,$E$2)+IF($A16="BS-TAX1",SUMIFS(CBTax1,CBPayDate,">="&DATE(YEAR(L$5),MONTH(L$5),1),CBPayDate,"<="&L$5,CBType,$E$3,CBBank,$E$2),0)+IF($A16="BS-TAX2",IF(TaxCount=2,SUMIFS(CBTax2,CBPayDate,">="&DATE(YEAR(L$5),MONTH(L$5),1),CBPayDate,"<="&L$5,CBType,$E$3,CBBank,$E$2),0),0) -> 0 | M16: =SUMIFS(CBExcl,CBPayDate,">="&DATE(YEAR(M$5),MONTH(M$5),1),CBPayDate,"<="&M$5,CBType,$E$3,CBAccount,$A16,CBBank,$E$2)+IF($A16="BS-TAX1",SUMIFS(CBTax1,CBPayDate,">="&DATE(YEAR(M$5),MONTH(M$5),1),CBPayDate,"<="&M$5,CBType,$E$3,CBBank,$E$2),0)+IF($A16="BS-TAX2",IF(TaxCount=2,SUMIFS(CBTax2,CBPayDate,">="&DATE(YEAR(M$5),MONTH(M$5),1),CBPayDate,"<="&M$5,CBType,$E$3,CBBank,$E$2),0),0) -> 0 | N16: =SUMIFS(CBExcl,CBPayDate,">="&DATE(YEAR(N$5),MONTH(N$5),1),CBPayDate,"<="&N$5,CBType,$E$3,CBAccount,$A16,CBBank,$E$2)+IF($A16="BS-TAX1",SUMIFS(CBTax1,CBPayDate,">="&DATE(YEAR(N$5),MONTH(N$5),1),CBPayDate,"<="&N$5,CBType,$E$3,CBBank,$E$2),0)+IF($A16="BS-TAX2",IF(TaxCount=2,SUMIFS(CBTax2,CBPayDate,">="&DATE(YEAR(N$5),MONTH(N$5),1),CBPayDate,"<="&N$5,CBType,$E$3,CBBank,$E$2),0),0) -> 0 | O16: -1584.104348
A17: IS-350 | B17: Office Rent | C17: =SUMIFS(CBExcl,CBPayDate,">="&DATE(YEAR(C$5),MONTH(C$5),1),CBPayDate,"<="&C$5,CBType,$E$3,CBAccount,$A17,CBBank,$E$2)+IF($A17="BS-TAX1",SUMIFS(CBTax1,CBPayDate,">="&DATE(YEAR(C$5),MONTH(C$5),1),CBPayDate,"<="&C$5,CBType,$E$3,CBBank,$E$2),0)+IF($A17="BS-TAX2",IF(TaxCount=2,SUMIFS(CBTax2,CBPayDate,">="&DATE(YEAR(C$5),MONTH(C$5),1),CBPayDate,"<="&C$5,CBType,$E$3,CBBank,$E$2),0),0) -> -4956.521739 | D17: =SUMIFS(CBExcl,CBPayDate,">="&DATE(YEAR(D$5),MONTH(D$5),1),CBPayDate,"<="&D$5,CBType,$E$3,CBAccount,$A17,CBBank,$E$2)+IF($A17="BS-TAX1",SUMIFS(CBTax1,CBPayDate,">="&DATE(YEAR(D$5),MONTH(D$5),1),CBPayDate,"<="&D$5,CBType,$E$3,CBBank,$E$2),0)+IF($A17="BS-TAX2",IF(TaxCount=2,SUMIFS(CBTax2,CBPayDate,">="&DATE(YEAR(D$5),MONTH(D$5),1),CBPayDate,"<="&D$5,CBType,$E$3,CBBank,$E$2),0),0) -> -4956.521739 | E17: =SUMIFS(CBExcl,CBPayDate,">="&DATE(YEAR(E$5),MONTH(E$5),1),CBPayDate,"<="&E$5,CBType,$E$3,CBAccount,$A17,CBBank,$E$2)+IF($A17="BS-TAX1",SUMIFS(CBTax1,CBPayDate,">="&DATE(YEAR(E$5),MONTH(E$5),1),CBPayDate,"<="&E$5,CBType,$E$3,CBBank,$E$2),0)+IF($A17="BS-TAX2",IF(TaxCount=2,SUMIFS(CBTax2,CBPayDate,">="&DATE(YEAR(E$5),MONTH(E$5),1),CBPayDate,"<="&E$5,CBType,$E$3,CBBank,$E$2),0),0) -> -4956.521739 | F17: =SUMIFS(CBExcl,CBPayDate,">="&DATE(YEAR(F$5),MONTH(F$5),1),CBPayDate,"<="&F$5,CBType,$E$3,CBAccount,$A17,CBBank,$E$2)+IF($A17="BS-TAX1",SUMIFS(CBTax1,CBPayDate,">="&DATE(YEAR(F$5),MONTH(F$5),1),CBPayDate,"<="&F$5,CBType,$E$3,CBBank,$E$2),0)+IF($A17="BS-TAX2",IF(TaxCount=2,SUMIFS(CBTax2,CBPayDate,">="&DATE(YEAR(F$5),MONTH(F$5),1),CBPayDate,"<="&F$5,CBType,$E$3,CBBank,$E$2),0),0) -> -4956.521739 | G17: =SUMIFS(CBExcl,CBPayDate,">="&DATE(YEAR(G$5),MONTH(G$5),1),CBPayDate,"<="&G$5,CBType,$E$3,CBAccount,$A17,CBBank,$E$2)+IF($A17="BS-TAX1",SUMIFS(CBTax1,CBPayDate,">="&DATE(YEAR(G$5),MONTH(G$5),1),CBPayDate,"<="&G$5,CBType,$E$3,CBBank,$E$2),0)+IF($A17="BS-TAX2",IF(TaxCount=2,SUMIFS(CBTax2,CBPayDate,">="&DATE(YEAR(G$5),MONTH(G$5),1),CBPayDate,"<="&G$5,CBType,$E$3,CBBank,$E$2),0),0) -> -4956.521739 | H17: =SUMIFS(CBExcl,CBPayDate,">="&DATE(YEAR(H$5),MONTH(H$5),1),CBPayDate,"<="&H$5,CBType,$E$3,CBAccount,$A17,CBBank,$E$2)+IF($A17="BS-TAX1",SUMIFS(CBTax1,CBPayDate,">="&DATE(YEAR(H$5),MONTH(H$5),1),CBPayDate,"<="&H$5,CBType,$E$3,CBBank,$E$2),0)+IF($A17="BS-TAX2",IF(TaxCount=2,SUMIFS(CBTax2,CBPayDate,">="&DATE(YEAR(H$5),MONTH(H$5),1),CBPayDate,"<="&H$5,CBType,$E$3,CBBank,$E$2),0),0) -> -4956.521739 | I17: =SUMIFS(CBExcl,CBPayDate,">="&DATE(YEAR(I$5),MONTH(I$5),1),CBPayDate,"<="&I$5,CBType,$E$3,CBAccount,$A17,CBBank,$E$2)+IF($A17="BS-TAX1",SUMIFS(CBTax1,CBPayDate,">="&DATE(YEAR(I$5),MONTH(I$5),1),CBPayDate,"<="&I$5,CBType,$E$3,CBBank,$E$2),0)+IF($A17="BS-TAX2",IF(TaxCount=2,SUMIFS(CBTax2,CBPayDate,">="&DATE(YEAR(I$5),MONTH(I$5),1),CBPayDate,"<="&I$5,CBType,$E$3,CBBank,$E$2),0),0) -> -4956.521739 | J17: =SUMIFS(CBExcl,CBPayDate,">="&DATE(YEAR(J$5),MONTH(J$5),1),CBPayDate,"<="&J$5,CBType,$E$3,CBAccount,$A17,CBBank,$E$2)+IF($A17="BS-TAX1",SUMIFS(CBTax1,CBPayDate,">="&DATE(YEAR(J$5),MONTH(J$5),1),CBPayDate,"<="&J$5,CBType,$E$3,CBBank,$E$2),0)+IF($A17="BS-TAX2",IF(TaxCount=2,SUMIFS(CBTax2,CBPayDate,">="&DATE(YEAR(J$5),MONTH(J$5),1),CBPayDate,"<="&J$5,CBType,$E$3,CBBank,$E$2),0),0) -> -4956.521739 | K17: =SUMIFS(CBExcl,CBPayDate,">="&DATE(YEAR(K$5),MONTH(K$5),1),CBPayDate,"<="&K$5,CBType,$E$3,CBAccount,$A17,CBBank,$E$2)+IF($A17="BS-TAX1",SUMIFS(CBTax1,CBPayDate,">="&DATE(YEAR(K$5),MONTH(K$5),1),CBPayDate,"<="&K$5,CBType,$E$3,CBBank,$E$2),0)+IF($A17="BS-TAX2",IF(TaxCount=2,SUMIFS(CBTax2,CBPayDate,">="&DATE(YEAR(K$5),MONTH(K$5),1),CBPayDate,"<="&K$5,CBType,$E$3,CBBank,$E$2),0),0) -> -4956.521739 | L17: =SUMIFS(CBExcl,CBPayDate,">="&DATE(YEAR(L$5),MONTH(L$5),1),CBPayDate,"<="&L$5,CBType,$E$3,CBAccount,$A17,CBBank,$E$2)+IF($A17="BS-TAX1",SUMIFS(CBTax1,CBPayDate,">="&DATE(YEAR(L$5),MONTH(L$5),1),CBPayDate,"<="&L$5,CBType,$E$3,CBBank,$E$2),0)+IF($A17="BS-TAX2",IF(TaxCount=2,SUMIFS(CBTax2,CBPayDate,">="&DATE(YEAR(L$5),MONTH(L$5),1),CBPayDate,"<="&L$5,CBType,$E$3,CBBank,$E$2),0),0) -> -4956.521739 | M17: =SUMIFS(CBExcl,CBPayDate,">="&DATE(YEAR(M$5),MONTH(M$5),1),CBPayDate,"<="&M$5,CBType,$E$3,CBAccount,$A17,CBBank,$E$2)+IF($A17="BS-TAX1",SUMIFS(CBTax1,CBPayDate,">="&DATE(YEAR(M$5),MONTH(M$5),1),CBPayDate,"<="&M$5,CBType,$E$3,CBBank,$E$2),0)+IF($A17="BS-TAX2",IF(TaxCount=2,SUMIFS(CBTax2,CBPayDate,">="&DATE(YEAR(M$5),MONTH(M$5),1),CBPayDate,"<="&M$5,CBType,$E$3,CBBank,$E$2),0),0) -> -4956.521739 | N17: =SUMIFS(CBExcl,CBPayDate,">="&DATE(YEAR(N$5),MONTH(N$5),1),CBPayDate,"<="&N$5,CBType,$E$3,CBAccount,$A17,CBBank,$E$2)+IF($A17="BS-TAX1",SUMIFS(CBTax1,CBPayDate,">="&DATE(YEAR(N$5),MONTH(N$5),1),CBPayDate,"<="&N$5,CBType,$E$3,CBBank,$E$2),0)+IF($A17="BS-TAX2",IF(TaxCount=2,SUMIFS(CBTax2,CBPayDate,">="&DATE(YEAR(N$5),MONTH(N$5),1),CBPayDate,"<="&N$5,CBType,$E$3,CBBank,$E$2),0),0) -> -4956.521739 | O17: -59478.26087
